{"text_format":"1","workbook":"xlsx","n_sheets":42,"sheets":["Application","Sewer Map Images","Assessment","Est-6 Month Charges","Est-6 Month QQ","Risk Ranking","FY 19-20 Charges","FY 20-21 Charges","FY 21-22 Charges","FY 22-23 Charges","FY 23-24 Charges","FY 24-25 Charges","Est-Charges > 6 Month Remaining","Est-QQ > 6 Month Remaining","Conditions of Approval","Action Plan","Meter 1","Meter 2","Meter 3","Meter 4","Meter 5","Meter 6","RRR - (BLANK)","Billing Cycle 1 - Charges","Billing Cycle 1 - QQ #1","RRR - 1","Billing Cycle 2 - Charges","Billing Cycle 2 - QQ #1","RRR - 2","Billing Cycle 3 - Charges","Billing Cycle 3 - QQ #1","RRR - 3","Billing Cycle 4 - Charges","Billing Cycle 4 - QQ #1","RRR - 4","Billing Cycle 5 - Charges","Billing Cycle 5 - QQ #1","RRR - 5","Billing Cycle 6 - Charges","Billing Cycle 6 - QQ #1","RRR - 6","Close Out"],"not_rendered":{"charts":0,"images":14,"macros":1,"external_links":0,"defined_names":93,"comments":1,"pivot_tables":0},"unopened":[],"bounds":{"document_bytes":16777216,"sheet_cells":100000,"rows_first":2000,"rows_last":500,"rows_between":2000,"halvings":0,"cell_chars":16384,"cell_head_chars":4096},"cells_cut":0,"cells_raw":0,"read":"whole","date_system":"1900"}

{"sheet":"Application","index":0,"n_rows":238,"n_cols":25,"rows_kept":238,"cut":false,"hidden":false,"merged":[[0,0,2,19],[35,0,37,19],[76,0,77,19],[128,0,129,19],[72,0,72,15],[73,2,73,15],[27,18,27,19],[63,1,64,9],[5,0,5,27],[6,0,6,27],[7,0,7,27],[8,0,8,27],[9,0,9,27],[10,0,10,27],[70,0,70,24],[60,17,60,27],[25,21,25,27],[26,15,26,27],[54,1,55,9],[27,20,27,24],[20,18,20,19],[39,0,39,24],[52,1,53,9],[48,10,49,27],[42,0,42,27],[48,1,49,9],[215,1,215,27],[216,1,216,27],[217,1,217,27],[224,0,225,19],[222,1,222,27],[223,1,223,27],[195,0,198,19],[199,0,199,27],[205,1,205,27],[206,1,206,27],[207,1,207,27],[82,23,82,27],[79,0,79,27],[80,0,80,27],[81,23,81,27],[86,19,86,22],[86,23,86,27],[83,19,83,22],[82,19,82,22],[83,23,83,27],[84,19,84,22],[84,23,84,27],[20,0,20,5],[38,0,38,24],[34,0,34,1],[28,0,28,23],[28,24,28,26],[25,4,25,5],[26,0,26,5],[26,6,26,11],[26,12,26,14],[25,6,25,11],[71,0,71,1],[64,10,64,11],[61,17,61,27],[73,0,73,1],[73,17,73,18],[71,16,71,18],[54,10,55,27],[65,10,66,24],[56,10,57,27],[58,10,59,27],[73,19,73,27],[87,23,87,27],[85,19,85,22],[74,0,75,24],[94,0,109,10],[93,0,93,27],[89,0,91,27],[81,0,88,18],[88,19,88,27],[81,19,81,22],[85,23,85,27],[74,25,75,27],[3,0,4,24],[32,0,32,3],[33,0,33,3],[21,0,21,5],[21,6,21,24],[11,0,11,27],[15,0,15,24],[22,20,22,24],[17,6,17,24],[31,0,31,24],[22,0,22,5],[24,0,24,24],[27,5,27,16],[16,0,16,24],[18,0,18,5],[17,0,17,5],[19,0,19,5],[19,15,19,19],[18,6,18,24],[12,0,12,27],[13,0,13,27],[14,0,14,27],[19,6,19,14],[22,18,22,19],[19,20,19,24],[25,12,25,14],[30,0,30,24],[46,1,47,9],[20,6,20,17],[23,0,23,24],[34,20,34,24],[34,2,34,17],[33,20,33,24],[33,16,33,19],[33,4,33,14],[25,19,25,20],[25,15,25,18],[32,4,32,24],[44,0,44,27],[29,0,29,24],[27,0,27,4],[20,20,20,24],[34,18,34,19],[46,10,47,27],[43,0,43,27],[40,0,40,27],[41,0,41,27],[22,6,22,17],[236,1,236,27],[237,1,237,27],[201,1,201,27],[203,1,203,27],[212,1,212,27],[213,1,213,27],[226,1,226,27],[227,1,227,27],[232,1,232,27],[233,1,233,27],[234,1,234,27],[229,1,229,27],[230,1,230,27],[231,1,231,27],[218,1,218,27],[219,1,219,27],[228,1,228,27],[220,1,220,27],[221,1,221,27],[208,1,208,27],[209,1,209,27],[210,1,210,27],[211,1,211,27],[214,1,214,27],[50,10,51,27],[235,1,235,27],[63,10,63,11],[69,0,69,24],[65,1,66,9],[67,10,68,27],[71,19,71,27],[60,1,62,9],[71,2,71,14],[62,17,62,27],[60,10,62,16],[65,25,66,27],[69,25,70,27],[63,12,63,21],[64,12,64,21],[63,22,64,27],[67,1,67,9],[68,1,68,9],[58,1,59,9],[56,1,57,9],[50,1,51,9],[52,10,53,27],[130,0,193,27],[87,19,87,22]]}
["Application for a One-Off Discharge of\nTrade Waste to Sewerage Works"]
[]
[]
[]
[]
["Please complete this form to request approval from Water Corporation for a short-term or one-off discharge of trade waste to the wastewater system.\n"]
["This application is required when a business proposes to discharge trade waste to the wastewater system for a short period of time. We will assess the application and determine if the waste can be discharged, and any conditions which must apply. Waste can only be accepted if it has no harmful, disruptive or hazardous impacts on the wastewater system, health and environment. Discharge to sewer cannot be guaranteed.\n"]
["If your application is approved then the final allowable flow rate will be determined by factors such as waste quality, sewer pipe size, sewer condition and current sewer capacity. Refer to page 3 of this application for more information regarding discharge rates and additional sewer condition requirements."]
["For operational and safety reasons, connection to any maintenance shaft or access chamber will be performed during daylight business hours. If maintenance shafts or access chambers have been recently installed and have not been labelled with an asset number on the physical asset, then the applicant must confirm the exact location of the discharge point prior to any connection being made."]
["Your application may take up to ten (10) working days to process.  If you provide (or are requested to provide) a CCTV sewer condition inspection report as part of your application then you must allow an additional five (5) working days to process once the report is received."]
["This application needs to be completed by the organisation proposing to discharge the waste. The applicant is responsible for overall management of the discharge and payment of accounts.  Should approval be granted then the General Conditions will be applied (refer page 5).  For further information please contact us on 13 13 95."]
["This application form needs to be completed electronically. Please save a copy to your desktop and complete off-line. When completed forward the application in Excel format (not PDF) via e-mail to:\n"]
["tradewaste@watercorporation.com.au"]
["If you cannot submit your application electronically then please print off your completed form and forward your application to Commercial and Industrial Services Section, PO Box 100, Leederville, WA 6902. Alternatively you may fax your application to (08) 6330 6691."]
["If your request for discharge is greater than six (6) months in duration then your conditions of agreement will be reviewed every six months until completion of the discharge."]
[]
["1. Applicant details"]
["Business trading name:",null,null,null,null,null,"enter here (for billing purposes)"]
["Business address:",null,null,null,null,null,"enter here"]
["Business contact name:",null,null,null,null,null,"enter here",null,null,null,null,null,null,null,null,"Phone (24 hour):",null,null,null,null,"enter here"]
["E-mail (mandatory):",null,null,null,null,null,"enterhere@here.com.au"]
["Billing address details:",null,null,null,null,null,"enter here (must be postal address, not an e-mail account)"]
["Billing contact name:",null,null,null,null,null,"enter here (must be a natural person's name)",null,null,null,null,null,null,null,null,null,null,null,"Phone:",null,"enter here"]
[]
["2. Property where the discharge will occur"]
["Property address:",null,null,null,"lot #:",null,"enter here",null,null,null,null,null,"house #:",null,null,"enter here",null,null,null,"street:",null,"enter here"]
["suburb and post code:",null,null,null,null,null,"enter here",null,null,null,null,null,"other info:",null,null,"enter here"]
["Site contact name:",null,null,null,null,"enter here - do not enter 'As above'",null,null,null,null,null,null,null,null,null,null,null,null,"Phone:",null,"enter here"]
["Is this discharge for a project building Corporation assets, such as a pump station (headworks not to be included):",null,null,null,null,null,null,null,null,null,null,null,null,null,null,null,null,null,null,null,null,null,null,null,"Yes or No?"]
[]
["3. Contractor details"]
["If a contractor will operate the discharge then please provide their details."]
["Business name:",null,null,null,"enter here"]
["Business contact:",null,null,null,"enter here",null,null,null,null,null,null,null,null,null,null,null,"Phone (24 hour):",null,null,null,"enter here"]
["E-mail:",null,"enterhere@here.com.au"]
["Application for a One-Off Discharge of\nTrade Waste to Sewerage Works (cont.)"]
[]
[]
[]
["4. Proposed discharge details"]
["Please provide details of the proposed discharge. A chemical analysis of a representative sample of the waste is required; if this is not possible please contact us on 13 13 95."]
["Samples must be tested by a NATA accredited laboratory for BOD, suspended solids, TKN, TP, pH, conductivity, and sulphate. Additional sampling and analysis may be required as part of the assessment."]
["If sewer access is granted then the proposed trade waste discharge must comply with our Trade Waste Acceptance Criteria."]
["Should the quality of the proposed trade waste not meet the Acceptance Criteria then the application shall be rejected or suitable pre-treatment will be requested."]
["Discharge rate and volume must be accurately verifiable by the Corporation during the discharge period."]
[]
["a.","Nature of trade waste:\nThe quality and concentration of the waste must be known."]
[]
["b.","Reason for discharge:\nIs the discharge for site excavation dewatering, off-batch product, etc.?",null,null,null,null,null,null,null,null,"Enter here."]
[]
["c.","Initial start up rate required (L/s):",null,null,null,null,null,null,null,null,"Enter numerical values only - no text letters.  Sometimes dewatering requires higher initial flows for a small period of time. Please indicate (i) initial required rate here and (ii) for how long (enter this information at Part 'k' below)."]
[]
["d.","Final rate of discharge required (L/s):",null,null,null,null,null,null,null,null,"Enter numerical values only - no text letters."]
[]
["e.","Estimated total discharge volume (kL):",null,null,null,null,null,null,null,null,"Enter here.\n(e.g.: final rate (L/s) x 3600 seconds x 24 hours x (end date - start date) / 1000)"]
[]
["f.","Method of discharge rate control and volume measurement:",null,null,null,null,null,null,null,null,"Enter here. Is a calibrated meter to be used? Will ball/gate valves be available to control the required discharge rate, etc.? Use Part 'k' if required."]
[]
["g.","Treatment prior to discharge:\nPlease provide diagrams, where relevant."]
[]
["h.","Location of discharge:\nIf location of discharge is not an access chamber then you must provide a site plan clearly indicating the proposed discharge location/s."]
[null,null,null,null,null,null,null,null,null,null,null,null,null,null,null,null,null,"Enter here any other details, otherwise enter 'N/A'."]
[null,null,null,null,null,null,null,null,null,null,null,null,null,null,null,null,null,"Enter here chamber number, otherwise enter 'N/A'."]
["i.","Date/s of discharge:",null,null,null,null,null,null,null,null,"Start:",null,"Enter start date here (in dd/mmm/yyyy format)"]
[null,null,null,null,null,null,null,null,null,null,"End:",null,"Enter end date here (in dd/mmm/yyyy format)"]
["j.","Time of discharge:"]
[]
["k.","Any comments relating to request:\nPlease add any further comments that may be needed as part of this application.",null,null,null,null,null,null,null,null,{"$f":"IF(B69=\"\",\"Enter here, otherwise enter 'N/A'.\n\nIf you require to attach further information then please also submit these (electronically, if possible).\",\"Enter here, otherwise enter 'N/A'.  If you require to attach further information then please also submit these (electronically, if possible).\"&\"\n\nIf you are wanting connection to sewer access chambers or other Corporation sewer assets then the Corporation project manager must provide a network activity number (NWA#) from this project.\"&\"  This NWA# will be used by our Wastewater Operation managers to create a work order number against this NWA# and assign a work crew to make the required (dis)connections.\")","v":"Enter here, otherwise enter 'N/A'.\n\nIf you require to attach further information then please also submit these (electronically, if possible)."}]
[null,{"$f":"IF(Y29=\"Yes or No?\",\"\",IF(OR(Y29=\"yes\",Y29=\"y\",Y29=\"ye\",Y29=\"yy\",Y29=\"yyes\"),\"A NWA# must be supplied here and now before this application can be processed further.\",\"\"))","v":""}]
[]
["5. Applicant's E-signature"]
["Name:",null,"Enter here.",null,null,null,null,null,null,null,null,null,null,null,null,null,"e-Signature:",null,null,"Paste e-signature here (if available)."]
[]
["Position:",null,"Enter here.",null,null,null,null,null,null,null,null,null,null,null,null,null,null,"Date:",null,"Enter here."]
["                (Senior Company Representative)"]
[]
["Application for a One-Off Discharge of\nTrade Waste to Sewerage Works (cont.)"]
[]
[]
["Supplementary Information\n"]
["Theoretical Sewer Discharge Rates Based Upon Available Sewer Size"]
["General allowable one off discharge flow rates of trade waste to sewer can initially be determined once the receiving sewer pipe size is known (refer to the table to the right).  For example: If your property discharges into a 150 mm pipe then a maximum discharge rate of 2 L/s will more than likely be approved (however, this is not a guarantee).  \n\nThese discharge rates may change if the relevant asset capability manager agrees to a higher discharge rate.  Should your one off discharge application require a higher discharge rate from your known sewer location then a further detailed assessment will be performed.  You may be requested (as part of the overall application process) to provide a CCTV vision report from your discharge location to the receiving sewer pump station or next increased size in sewer.\n\n",null,null,null,null,null,null,null,null,null,null,null,null,null,null,null,null,null,null,"Sewer Size (mm)",null,null,null,"Max Flow Rate (L/s)"]
[null,null,null,null,null,null,null,null,null,null,null,null,null,null,null,null,null,null,null,100,null,null,null,1]
[null,null,null,null,null,null,null,null,null,null,null,null,null,null,null,null,null,null,null,150,null,null,null,2]
[null,null,null,null,null,null,null,null,null,null,null,null,null,null,null,null,null,null,null,"225 / 230",null,null,null,3]
[null,null,null,null,null,null,null,null,null,null,null,null,null,null,null,null,null,null,null,"300 / 305",null,null,null,4]
[null,null,null,null,null,null,null,null,null,null,null,null,null,null,null,null,null,null,null,380,null,null,null,5]
[null,null,null,null,null,null,null,null,null,null,null,null,null,null,null,null,null,null,null,"> 380",null,null,null,"case by case basis"]
[]
["The CCTV vision report must be provided according to the Corporation standard (refer below for further details).  Upon receipt of the CCTV vision report you must allow a further five (5) working days for this report to be reviewed by the asset capability manager."]
[]
[]
[]
["CCTV Sewer Condition Inspection Reporting Requirements"]
["The following CCTV reporting standard applies:\n1. Actual access chamber numbers (nodes) must be referenced from the start to end point.  No other form of referencing or imagery is to be used. \n2. The survey direction of the inspection must be clearly indicated.\n3. The actual completed inspection length from the access chamber must be recorded.\n4. Where sewers are blocked or a defect is located then these location lengths from the access chamber must also be recorded.\n\nRefer below to the illustrated example of a CCTV sewer inspection report between chambers G0994 and G0993.  This is a typical inspection report providing the minimum standard information required.  This type of reporting standard must be repeated for each consecutive access chamber from your property to the required end point as requested by the asset capability manager."]
[]
[]
[]
[]
[]
[]
[]
[]
[]
[]
[]
[]
[]
[]
[]
[]
[]
[]
[]
[]
[]
[]
[]
[]
[]
[]
[]
[]
[]
[]
[]
[]
[]
["Application for a One-Off Discharge of\nTrade Waste to Sewerage Works (cont.)"]
[]
[]
[]
[]
[]
[]
[]
[]
[]
[]
[]
[]
[]
[]
[]
[]
[]
[]
[]
[]
[]
[]
[]
[]
[]
[]
[]
[]
[]
[]
[]
[]
[]
[]
[]
[]
[]
[]
[]
[]
[]
[]
[]
[]
[]
[]
[]
[]
[]
[]
[]
[]
[]
[]
[]
[]
[]
[]
[]
[]
[]
[]
[]
[]
[]
[]
["Application for a One-Off Discharge of\nTrade Waste to Sewerage Works (cont.)"]
[]
[]
[]
["General Conditions"]
["1.","Approval to Discharge"]
[null,"(a) The Approval Holder may, subject to the Conditions of the Approval, the Act, and any regulations of the Act, to the extent not altered by the\n     Approval, discharge, or permit the discharge of Trade Waste from the Premises to the Sewerage Works.\n\n(b) The Corporation shall receive the Approval Holder’s Trade Waste, provided that at all times, the Approval Holder complies with the Conditions \n     to the Approval. \n"]
["2.","Commencement"]
[null,"The Approval commences on the Effective Date specified in Schedule 1 of the Approval Conditions. "]
["3.","Discharge Obligations"]
[null,"(a) The Approval Holder must discharge, or permit the discharge of, Trade Waste in accordance with the conditions the Approval.\n\n(b) The Approval Holder must ensure that Trade Waste is discharged from waste producing processes via pre-treatment and monitoring \n     equipment within the quality, quantity and rate discharge limits specified in the Approval.\n\n(c) The Corporation will determine, in its absolute discretion:\n     (1) the method of measuring the quality, quantity and rate of Trade Waste discharged by the Approval Holder; and\n     (2) whether the Approval Holder has complied with the quality, quantity and rate of Trade Waste discharge limits specified in the Approval.\n\n(d) The Approval Holder must immediately report to the Corporation, by telephone on 13 13 95 (business hours) or 13 13 75 (after hours) and\n     quote 'One-Off-Discharge', of any failure of a fixture, fitting or pipe that is part of or connected to the Sewerage Works or any other\n     change, event, or anything that impacts or is likely to impact on the quality or quantity of Trade Waste discharged by the Approval Holder.\n\n(e) The Approval Holder must obtain the Corporation’s written consent before changing the process of discharging Trade Waste, any fixture, \n     fitting or pipe that is part of or connected to the Sewerage Works or the nature, quality, discharge rate or discharge volume of Trade Waste.\n\n"]
["4.","Maintenance of fittings, fixtures and pipes"]
[null,"The Approval Holder must appropriately maintain all fixtures, fittings and pipes that are part of or connected to the Sewerage Works and appropriately install any fixtures, fittings and pipes that are required to be installed as a condition of the Approval in accordance with the Corporation’s requirements and standards."]
["5.","Charges and fees"]
[null,"The Approval Holder must pay all charges and fees applicable to the Approval."]
["6.","Repair, Remedy and Make Good"]
[null,"The Corporation may, at the expense of the Approval Holder, repair, remedy and make good any damage to the Sewerage Works caused by, or arising out of, or resulting from the discharge of Trade Waste failing to comply with the Approval and recover the costs of doing so from the Approval Holder as a debt due and payable from the date of demand for that payment."]
["7.","Indemnity"]
[null,"The Approval Holder indemnifies the Corporation in respect of any claim, action, liability, damage, loss, cost, charge, expense, outgoing or payment which the Corporation suffers, incurs or is liable for in respect of any accident, damage, loss or injury to:\n\n(a) the Corporation’s Sewerage Works and/or Water Service Works;\n\n(b) any authorised officer, servant, agent, contractor or employee of the Corporation; or\n\n(c) any third party, property or the environment generally;\n\ndirectly or indirectly arising from the Approval Holder’s failure to implement, or breach of the Approval, or any negligent acts of the Approval Holder."]
["8.","Interruptions to service"]
[null,"(a) The Corporation may from time to time, at its absolute discretion, prevent, stop or restrict the Approval Holder from discharging Trade Waste\n     during any maintenance, alteration, repair or inspection or as a result of any adverse operational impacts on the Corporation’s Sewerage Works or\n     Water Service Works.\n\n(b) The Approval Holder will not be compensated from the Corporation for or in respect to any interruption, restriction or cancellation of the Approval\n     to the discharge of Trade Waste from the Premises to the Sewerage Works during any maintenance, alteration, repair or inspection of the\n     Sewerage Works and/or Water Service Works or for any interruption to the Approval Holder’s ability to discharge Trade Waste."]
["9.","Right of entry"]
[null,"The Corporation or any authorised officer, servant, agent, contractor or employee of the Corporation may, at any time and without notice, enter the Approval Holder’s property and/or the Premises to conduct an inspection, take samples, attach identification tags to any fixtures or fittings that are part of or connected to the Sewerage Works or obtain evidence in relation to the Approval Holder’s compliance or breach or suspected breach of the Approval."]
["10.","Approval details to be correct"]
[null,"(a) The Approval is void where any information or detail included in the Approval is altered or incorrect.\n\n(b) The Approval Holder must immediately provide the Corporation with written notice of any incorrect information or detail included in this \n     Approval."]
["11.","Transfer of approval"]
[null,"At the written request of the Approval Holder, or an incoming occupier or owner of the Premises applicable to the Approval, the Corporation may, in its absolute discretion, transfer the Approval to the incoming occupier or owner of the Premises."]
["12.","Amendment of approval"]
[null,"(a) The Approval supersedes any other Trade Waste discharge approval or other permit issued by the Corporation prior to the Effective\n     Date of the Approval, as specified in Schedule 1 of the Additional Conditions.\n\n(b) The Corporation may revoke the Approval or amend any condition of, or impose a new condition on, the Approval at any time by written\n     notice to the Approval Holder, including upon the transfer of this Approval under condition 11 of this Approval.\n\n(c) At the written request of the Approval Holder, the Corporation may, in its absolute discretion, amend the Conditions of the Approval."]
["Application for a One-Off Discharge of\nTrade Waste to Sewerage Works (cont.)"]
[]
["13.","Additional Conditions"]
[null,"(a) The Approval Holder acknowledges and agrees that the Approval is subject to the Additional Conditions of Approval for One Off Discharge to\n     Sewerage Works.\n\n(b) The Approval Holder acknowledges and agrees that the Additional Conditions form part of the Approval and to the extent that there is any\n     inconsistency between the Additional Conditions and any other provisions of the Approval, the Additional Conditions will prevail.\n\n(c) The Approval Holder must comply with the Additional Conditions of Approval for One Off Discharge to Sewerage Works.\n\n(d) The Approval Holder agrees and acknowledges that the Corporation may amend the Additional Conditions of Approval for One Off Discharge to \n     Sewerage Works to:\n              (1) avoid or minimise material damage to any of the Corporation’s Sewerage Works and/or the Water Service Works, person, property or the \n          environment generally;\n     (2) avoid or minimise materially adverse impacts on the Corporation’s Sewerage Works and/or Water Service Works in terms of the efficient \n          processing or capacity of the Corporation to treat the Trade Waste; or\n     (3) ensure compliance with, or avoid a likely breach of any condition of a licence or agreement the Corporation is subject to, or the \n          requirements of any government, local government, statutory authority or statutory corporation or other external entity which has the \n          legal power to enforce compliance; and\n     after the Corporation has made such amendments, they shall apply for the purposes of this Approval.\n\n(e) Defined terms in clause 18 of these General Conditions where used in the Additional Conditions have the same meaning as these General\n     Conditions."]
["14.","Compliance with laws"]
[null,"(a) The relevant provisions of the Act and the Water Services Regulations (WA), and any other applicable laws, apply to this Approval (Laws).\n\n(b) The Approval Holder must comply, and ensure that all officers, servants, agents, contractors or employees of the Approval Holder comply, \n     with all relevant Laws relating to the discharge of Trade Waste and the conditions of the Approval.\n\n(c) Any breach of the Conditions of the Approval by the Approval Holder’s tenants, officers, servants, agents, contractors or employees will be \n     deemed to be the breach of the Approval Holder.\n"]
["15.","Breach of Approval"]
[null,"If the Approval Holder breaches any Condition of the Approval, the Corporation may do one or more of the following:\n\n(a) give a compliance notice pursuant to section 119 and/or 104 of the Act to the Approval Holder;\n\n(b) amend the Conditions of the Approval, including so that the discharge of Trade Waste is no longer covered by the Approval;\n\n(c) terminate this Approval; or\n\n(d) seek an order against the Approval Holder under section 127 of the Act for the recovery of water service charges including interest.\n"]
["16.","Termination of approval"]
[null,"This Approval will terminate when:\n\n(a) the Approval Holder surrenders this Approval to the Corporation; or\n\n(b) the Corporation, in its absolute discretion, terminates the Approval by written notice to the Approval Holder.\n"]
["17.","Privacy"]
[null,"(a) In giving effect to the Approval, the Approval Holder acknowledges and agrees that the Corporation will collect and retain personal \n     information relating to the Approval Holder.\n\n(b) The Approval holder acknowledges and agrees that the primary purposes of collection by the Corporation of the Approval Holder’s \n     information under or in connection with this Approval includes (without limitation) the provision of information by the Corporation to third \n     parties to:\n     (1) ensure that the Conditions of the Approval are complied with; and\n     (2) ensure the safe, effective and efficient operation, maintenance, repair, or alteration of the Corporation’s Sewerage Works. \n"]
["18.","Definitions"]
[null,"Act means the Water Services Act 2012.\n\nAdditional Conditions means the additional conditions contained in the Additional Conditions of Approval for One Off Discharge to Sewer Works set out in the Approval.\n\nAdditional Conditions of Approval for One Off Discharge to Sewerage Works means the Additional Conditions of Approval for One Off Discharge to Sewerage Works set out in the Approval. \n\nApproval means the Corporation’s approval subject to the Conditions to permit the once off discharge of Trade Waste from the Premises by the Approval Holder into the Corporation’s Sewerage Works to comply with the Act.\n\nApproval Holder means the occupier of the Premises who is identified as the approval holder in the Additional Conditions of Approval for One Off Discharge to Sewerage Works. \n\nConditions means the General Conditions and the Additional Conditions.\n\nCorporation means the Water Corporation (WA).\n\nGeneral Conditions means these general conditions set out in this document.\n\nPremises means the premises of discharge identified in the Additional Conditions of Approval for One Off Discharge to Sewerage Works and being any land or part of any land or any building or structure or part of any building or structure within which or from which the Trade Waste is created, dealt with, or otherwise discharged or capable of being discharged, which is occupied by the Approval Holder. \n\nSewerage Works means the sewerage works of the Corporation as defined in section 3 of the Act to which the Premises may be connected or to which Trade Waste may be discharged or in which Trade Waste may be treated, reused, or disposed.\n\nTrade Waste means trade waste as defined in section 101 of the Act.\n\nWater Service Works means water service works as defined in section 3 of the Act\n"]

{"sheet":"Sewer Map Images","index":1,"n_rows":0,"n_cols":0,"rows_kept":0,"cut":false,"hidden":true,"merged":[]}

{"sheet":"Assessment","index":2,"n_rows":210,"n_cols":35,"rows_kept":210,"cut":false,"hidden":true,"merged":[[111,1,119,1],[116,21,116,31],[111,2,111,31],[102,2,102,26],[102,27,102,30],[103,5,103,12],[65,34,66,50],[65,4,65,27],[65,28,65,30],[67,5,67,8],[68,5,68,8],[69,5,69,8],[67,12,67,15],[68,12,68,15],[69,12,69,15],[67,9,67,11],[68,9,68,11],[69,9,69,11],[67,16,67,18],[68,16,68,18],[69,16,69,18],[67,19,67,20],[68,19,68,20],[69,19,69,20],[98,12,98,17],[97,28,97,30],[91,13,91,23],[91,2,91,12],[99,11,99,26],[99,5,99,10],[88,26,88,30],[90,30,90,31],[147,2,147,12],[147,13,147,14],[147,15,147,30],[93,1,94,32],[111,32,119,32],[121,1,122,32],[129,31,132,31],[98,5,98,11],[119,20,119,30],[105,4,105,12],[123,32,136,32],[134,13,134,17],[104,13,104,23],[112,2,115,14],[112,15,115,31],[120,1,120,32],[95,1,107,1],[107,4,107,12],[116,2,116,14],[116,15,116,20],[105,13,105,23],[109,1,110,32],[108,1,108,32],[106,13,106,23],[81,12,82,30],[90,24,90,29],[98,28,98,30],[96,2,96,31],[97,18,97,26],[99,28,99,30],[100,28,100,30],[97,13,97,17],[90,13,90,21],[83,12,84,30],[85,2,86,11],[85,12,86,30],[83,2,84,11],[92,1,92,32],[95,2,95,31],[98,18,98,26],[118,31,119,31],[119,2,119,19],[104,4,104,12],[103,24,104,29],[118,2,118,19],[134,2,134,12],[129,2,130,11],[143,13,143,14],[135,2,135,12],[128,2,128,11],[103,13,103,21],[107,13,107,23],[118,20,118,30],[123,1,136,1],[131,2,132,11],[136,13,136,23],[134,18,134,31],[136,2,136,12],[135,13,135,21],[124,12,127,31],[128,12,128,26],[135,30,135,31],[123,2,123,31],[135,24,136,29],[129,12,130,30],[133,2,133,31],[128,27,128,31],[124,2,127,11],[156,1,156,32],[140,1,155,1],[140,32,155,32],[141,2,142,31],[143,2,143,12],[153,18,153,28],[146,13,146,14],[146,15,146,30],[148,13,148,14],[144,2,144,12],[154,31,155,31],[153,2,153,17],[154,2,154,7],[154,20,154,24],[152,2,152,31],[154,8,154,19],[155,20,155,24],[155,25,155,30],[155,8,155,19],[143,31,148,31],[145,13,145,14],[140,2,140,31],[153,29,153,31],[145,2,145,12],[154,25,154,30],[54,31,55,31],[55,2,55,19],[54,2,54,19],[150,26,151,31],[97,5,97,12],[101,28,101,29],[146,2,146,12],[138,1,139,32],[54,20,54,30],[145,15,145,30],[149,2,149,31],[148,15,148,30],[144,13,144,14],[143,15,143,30],[150,10,151,25],[137,1,137,32],[150,2,151,9],[148,2,148,12],[144,15,144,30],[95,32,107,32],[106,4,106,12],[100,5,101,27],[131,12,132,30],[21,15,21,31],[33,2,33,31],[39,14,39,21],[45,2,45,31],[34,2,34,31],[21,2,21,14],[46,29,46,31],[32,15,32,31],[35,14,35,23],[38,14,38,23],[24,15,24,31],[22,2,22,14],[38,2,38,13],[25,2,25,14],[37,2,37,13],[35,2,35,13],[37,14,37,31],[32,2,32,14],[25,15,25,31],[9,3,9,19],[11,2,11,8],[11,13,11,26],[11,27,11,30],[11,9,11,11],[63,4,63,30],[64,4,64,30],[52,2,52,28],[52,29,52,31],[46,26,46,28],[39,22,41,31],[47,29,47,31],[13,25,15,31],[20,15,20,31],[55,20,55,30],[48,2,48,31],[46,2,47,9],[43,28,43,31],[43,2,43,26],[62,3,62,30],[19,2,19,14],[23,2,23,14],[24,2,24,14],[22,15,22,31],[49,2,49,31],[30,15,30,31],[36,14,36,23],[74,12,74,26],[47,26,47,28],[68,28,68,30],[67,28,67,30],[74,27,74,31],[74,2,74,11],[69,28,69,30],[67,21,67,23],[68,21,68,23],[69,21,69,23],[67,25,67,27],[68,25,68,27],[69,25,69,27],[70,5,70,12],[70,13,71,30],[72,2,72,31],[47,10,47,25],[1,1,2,32],[20,2,20,14],[13,2,15,24],[18,2,18,14],[26,15,26,31],[19,15,19,31],[23,15,23,31],[3,1,56,1],[16,2,16,31],[3,2,3,31],[26,2,26,14],[17,2,17,31],[18,15,18,31],[39,2,39,13],[28,2,28,31],[36,2,36,13],[46,10,46,25],[40,2,41,21],[3,32,56,32],[56,20,56,30],[50,2,50,31],[6,9,7,31],[4,6,4,13],[9,20,9,30],[90,2,90,12],[88,2,88,25],[79,2,80,11],[57,1,57,32],[79,12,80,30],[60,1,91,1],[60,2,60,31],[91,24,91,31],[58,1,59,32],[66,28,66,30],[81,2,82,11],[60,32,91,32],[76,9,78,25],[75,2,75,11],[73,2,73,31],[75,12,75,13],[66,4,66,27]]}
[]
[null,"TO BE COMPLETED BY C&IS STAFF"]
[]
[null,null,"Part 1. Quality Sampling Required"]
[null,null,"Sampling by:",null,null,null,"< MAKE SELECTION >"]
[]
[null,null,"Reason behind decision:",null,null,null,null,null,null,"Enter here! Water quality data must be less than six months old. Data from neighbouring sites can be initially used to provide a cost estimate only until a formal sample is obtained."]
[]
[]
[null,null,null,"Check the property on the DWER Contaminated Site Database:",null,null,null,null,null,null,null,null,null,null,null,null,null,null,null,null,"click on this link"]
[]
[null,null,"Is the site contaminated:",null,null,null,null,null,null,"select here",null,null,null,{"$f":"IF(J12=\"yes\",\"Save the report into Nexus. Nexus reference number is:\",\"\")","v":""},null,null,null,null,null,null,null,null,null,null,null,null,null,{"$f":"IF(N12<>\"\",\"enter here\",\"\")","v":""}]
[]
[null,null,"Components to be tested:",null,null,null,null,null,null,null,null,null,null,null,null,null,null,null,null,null,null,null,null,null,null,"enter here for other components!"]
[]
[]
[]
[null,null,"Part 2. Summary of OOD Request Details"]
[null,null,"Property address discharge point:",null,null,null,null,null,null,null,null,null,null,null,null,{"$f":"IF(OR(Application!G26=\"\",Application!G26=\"enter here\"),\"\",\"Lot \"&Application!G26)&IF(OR(Application!P26=\"\",Application!P26=\"enter here\"),\"\",\" No \"&Application!P26)&IF(OR(Application!V26=\"\",Application!V26=\"enter here\"),\"\",\" \"&Application!V26)&IF(OR(Application!G27=\"\",Application!G27=\"enter here\"),\"\",\" \"&Application!G27)&IF(OR(Application!P27=\"\",Application!P27=\"enter here\"),\"\",\" (\"&Application!P27&\")\")","v":""}]
[null,null,"Business seeking application:",null,null,null,null,null,null,null,null,null,null,null,null,{"$f":"Application!G18","v":"enter here (for billing purposes)"}]
[null,null,"Business contact name:",null,null,null,null,null,null,null,null,null,null,null,null,{"$f":"Application!G20","v":"enter here"}]
[null,null,"Business contact number:",null,null,null,null,null,null,null,null,null,null,null,null,{"$f":"Application!U20","v":"enter here"}]
[null,null,"Initial start up conditions required:",null,null,null,null,null,null,null,null,null,null,null,null,{"$f":"Application!K51","v":"Enter numerical values only - no text letters.  Sometimes dewatering requires higher initial flows for a small period of time. Please indicate (i) initial required rate here and (ii) for how long (enter this information at Part 'k' below)."}]
[null,null,"Final requested flow rate from Customer (L/s):",null,null,null,null,null,null,null,null,null,null,null,null,{"$f":"Application!K53","v":"Enter numerical values only - no text letters."}]
[null,null,"Anticipated discharge volume (kL):",null,null,null,null,null,null,null,null,null,null,null,null,{"$f":"Application!K55","v":"Enter here.\n(e.g.: final rate (L/s) x 3600 seconds x 24 hours x (end date - start date) / 1000)"}]
[null,null,"Proposed discharge start date:",null,null,null,null,null,null,null,null,null,null,null,null,{"$f":"Application!M64","v":"Enter start date here (in dd/mmm/yyyy format)"}]
[null,null,"Proposed discharge end date:",null,null,null,null,null,null,null,null,null,null,null,null,{"$f":"Application!M65","v":"Enter end date here (in dd/mmm/yyyy format)"}]
[]
[null,null,{"$f":"IF(Application!M65-Application!M64>(365/2),\"This OOD request is greater than six (6) months duration! When the new extension is processed the START DATE and END DATE above need to be reset here and not from the Application Tab.\",\"\")","v":{"$error":"#VALUE!"}}]
[]
[null,null,null,null,null,null,null,null,null,null,null,null,null,null,"Notification period for extension requests:",{"$f":"IF(P27-P26>(365/2),\"four (4) weeks\",(IF(AND(P27-P26<=(365/2),(P27-P26>(365/4))),\"two (2) weeks\",(IF(AND(P27-P26<=(365/4),(P27-P26>(365/12))),\"one (1) week\",(IF(AND(P27-P26<=(365/12),(P27-P26>=0)),\"immediately\",(IF(P27-P26<0,\"ERROR!!!!!  Check start and end dates\",\"\")))))))))","v":{"$error":"#VALUE!"}}]
[]
[null,null,"Added extra comments relating to application:",null,null,null,null,null,null,null,null,null,null,null,null,{"$f":"Application!K68","v":"Enter here, otherwise enter 'N/A'.\n\nIf you require to attach further information then please also submit these (electronically, if possible)."}]
[]
[null,null,"Part 3. Wastewater Infrastructure Details"]
[null,null,"Size and type of receiving sewer line:",null,null,null,null,null,null,null,null,null,null,null,"enter here!"]
[null,null,"Receiving pump station:",null,null,null,null,null,null,null,null,null,null,null,"enter here!"]
[null,null,"Location of pump station to waterways:",null,null,null,null,null,null,null,null,null,null,null,"enter here!"]
[null,null,"Receiving WWTP:",null,null,null,null,null,null,null,null,null,null,null,"enter here!"]
[null,null,"Location of discharge connection point:",null,null,null,null,null,null,null,null,null,null,null,"select here",null,null,null,null,null,null,null,{"$f":"IF(O40=\"access chamber\",Application!R63,(IF(O40=\"other\",Application!R62,\"\")))","v":""}]
[]
[]
[]
[null,null,"Discharge only during day or night hours (e.g. tankering) and NOT a continuous 24/7 discharge?",null,null,null,null,null,null,null,null,null,null,null,null,null,null,null,null,null,null,null,null,null,null,null,null,"-","enter here!"]
[]
[]
[null,null,"Perth Region only:",null,null,null,null,null,null,null,"THEORETICAL cumulative sewer flows at time of application:",null,null,null,null,null,null,null,null,null,null,null,null,null,null,null,"enter here!",null,null,"kL/day"]
[null,null,null,null,null,null,null,null,null,null,"ACTUAL cumulative sewer flows at time of application:",null,null,null,null,null,null,null,null,null,null,null,null,null,null,null,"enter here!",null,null,"kL/day"]
[]
[]
[null,null,"< Exactly enter physical property address details as created on the Enquiry Sheet >"]
[]
[null,null,"Send request to asset manager for hydraulic flow rate review and trunk main / pump station performance:",null,null,null,null,null,null,null,null,null,null,null,null,null,null,null,null,null,null,null,null,null,null,null,null,null,null,"click here"]
[]
[null,null,"Full name of C&IS person who processed this application:"]
[null,null,"Position title:"]
[null,null,null,null,null,null,null,null,null,null,null,null,null,null,null,null,null,null,null,"Contact Number:"]
[]
[null,"TO BE COMPLETED BY WASTEWATER ASSET MANAGEMENT"]
[]
[null,null,"Part 4. Wastewater Asset Review and Approval / Rejection"]
[]
[null,null,null,"PLEASE NOTE that before providing a final assessment you are required to:"]
[null,null,null,"(i)","Review the information provided at Parts 2 and 3 (above)."]
[null,null,null,"(ii)","Contact the Operations Centre. Discuss any asset issues regarding the receiving trunk main and/or the pump station.  If Conditions are to be applied can these also be safely and readily monitored by the OC?"]
[null,null,null,"(iii)","(Perth Region only) Review the status summary of existing and scheduled OODs in this area:",null,null,null,null,null,null,null,null,null,null,null,null,null,null,null,null,null,null,null,null,null,null,null,"summary",null,null,null,null,null,{"$f":"IF(AC67=\"Yes\",\"If CCTV information is required then PRFS MUST expand the hidden grouped row button to the left of the screen.\",\"\")","v":""}]
[null,null,null,"(iv)","Consider any need for CCTV information.  Is CCTV required as part of this PRFS assessment?",null,null,null,null,null,null,null,null,null,null,null,null,null,null,null,null,null,null,null,null,null,null,null,"select here"]
[null,null,null,null,"(a)","Start chamber: ",null,null,null,"enter here",null,null,"End chamber:",null,null,null,"enter here",null,null,"Time:",null,"enter here",null,null,"to","enter here",null,null,"select here"]
[null,null,null,null,"(b)","Start chamber: ",null,null,null,"enter here",null,null,"End chamber:",null,null,null,"enter here",null,null,"Time:",null,"enter here",null,null,"to","enter here",null,null,"select here"]
[null,null,null,null,"(c)","Start chamber: ",null,null,null,"enter here",null,null,"End chamber:",null,null,null,"enter here",null,null,"Time:",null,"enter here",null,null,"to","enter here",null,null,"select here"]
[null,null,null,null,"(d)","Other specific CCTV conditions:",null,null,null,null,null,null,null,"Example:  MUST be undertaken during these specific peak hourly flows indicated above.  Otherwsie, please enter N/A if not required."]
[]
[null,null,{"$f":"IF(AC67=\"No\",\"CCTV information is NOT REQUIRED\",\"\")","v":""}]
[]
[null,null,"The application has been:"]
[null,null,{"$f":"IF(M75=\"\",\"\",(IF(M75=\"REJECTED\",\"\",\"Final approved discharge rate:\")))","v":""},null,null,null,null,null,null,null,null,null,null,null,{"$f":"IF(M75=\"\",\"\",(IF(M75=\"REJECTED\",\"\",\"L/s\")))","v":""}]
[null,null,null,null,null,null,null,null,null,{"$f":"IF(M75=\"Rejected\",\"You must provide technical reasons for rejection.\",IF(OR(M75=\"Rejected\",M76=\"\"),\"\",IF(AND(M76=P24,M76=P23),\"The approved rate given is the same as the initial and final requested rates.\",IF(MAX(P24,P23)<M76,\"The approved rate given is greater than the initial and final requested rate.\",IF(M76=P23,\"The approved rate given is equal to the initial requested rate.\",IF(AND(M76>P24,M76<=P23),\"The approved rate given is less than the initial requested rate, but more than their final required rate.                  Please explain why.\",IF(MIN(P24,P23)=M76,\"The approved rate given is equal to the final requested rate, but less than their initial start up rate.                  Please explain why.\",\"The approved rate given is less than the final requested rate.  Please provide technical reasons for the reduced rate.\")))))))","v":""}]
[]
[]
[null,null,{"$f":"IF(OR(M75=\"\",AND(M75=\"APPROVED but subject to the following conditions\",M76=\"\"),AND(M75=\"Approved\",M76=\"\")),\"\",IF(AND(M76=\"\",M75=\"Rejected\"),\"Answer for rejection:\",IF(M76<P24,\"Answer for giving reduced rate:\",IF(AND(M76>=P24,M76<P23),\"Answer for giving reduced rate:\",IF(OR(AND(MAX(P24,P23)<M76,M75=\"Approved but subject to the following conditions\"),AND(M76=P23,M75=\"APPROVED but subject to the following conditions\")),\"Condition 1:\",\"\")))))","v":""},null,null,null,null,null,null,null,null,null,{"$f":"IF(OR(C80=\"Answer for REJECTION:\",C80=\"Condition 1:\",C80=\"Answer for giving reduced rate:\"),\"enter here!\",\"\")","v":""}]
[]
[null,null,{"$f":"IF(OR(M75=\"\",AND(M75=\"APPROVED but subject to the following conditions\",M76=\"\"),AND(M75=\"Approved\",M76=\"\")),\"\",IF(M75=\"Rejected\",\"Rationale:\",IF(M76<P24,\"Rationale:\",IF(AND(M76>=P24,M76<P23),\"Rationale:\",IF(AND(M76=P23,M75=\"APPROVED but subject to the following conditions\"),\"Condition 2:\",IF(AND(MAX(P24,P23)<M76,M75=\"Approved but subject to the following conditions\"),\"Condition 2:\",\"\"))))))","v":""},null,null,null,null,null,null,null,null,null,{"$f":"IF(OR(C82=\"Rationale:\",C82=\"Condition 2:\"),\"enter here!\",\"\")","v":""}]
[]
[null,null,{"$f":"IF(OR(M75=\"\",AND(M75=\"APPROVED but subject to the following conditions\",M76=\"\"),AND(M75=\"Approved\",M76=\"\")),\"\",IF(M75=\"Rejected\",\"Risk:\",IF(M76<P24,\"Risk:\",IF(AND(M76>=P24,M76<P23),\"Risk:\",IF(AND(M76=P23,OR(M75=\"APPROVED but subject to the following conditions\",M75=\"APPROVED\")),\"\",IF(AND(MAX(P24,P23)<M76,OR(M75=\"APPROVED but subject to the following conditions\",M75=\"Approved\")),\"\"))))))","v":""},null,null,null,null,null,null,null,null,null,{"$f":"IF(OR(C84=\"Risk:\",C84=\"Condition 2:\"),\"enter here!\",\"\")","v":""}]
[]
[null,null,{"$f":"IF(OR(M75=\"\",AND(M75=\"APPROVED but subject to the following conditions\",M76=\"\"),AND(M75=\"Approved\",M76=\"\")),\"\",IF(M75=\"Rejected\",\"Recommendation:\",IF(M76<P24,\"Recommendation:\",IF(AND(M76>=P24,M76<P23),\"Recommendation:\",IF(AND(M76=P23,OR(M75=\"APPROVED but subject to the following conditions\",M75=\"APPROVED\")),\"\",IF(AND(MAX(P24,P23)<M76,OR(M75=\"APPROVED but subject to the following conditions\",M75=\"Approved\")),\"\"))))))","v":""},null,null,null,null,null,null,null,null,null,{"$f":"IF(OR(C86=\"Recommendation:\",C86=\"Condition 2:\"),\"enter here!\",\"\")","v":""}]
[]
[]
[null,null,{"$f":"IF(M75=\"\",\"\",IF(M75<>\"Rejected\",\"Based upon the available information and known risks this OOD must be inspected:\",\"\"))","v":""},null,null,null,null,null,null,null,null,null,null,null,null,null,null,null,null,null,null,null,null,null,null,null,{"$f":"IF(M75=\"\",\"\",IF(M75<>\"Rejected\",\"enter here!\",\"\"))","v":""}]
[]
[null,null,"Reviewed by:",null,null,null,null,null,null,null,null,null,null,"enter here!",null,null,null,null,null,null,null,null,null,"Date:","enter here!"]
[null,null,"Position title of reviewing person:",null,null,null,null,null,null,null,null,null,null,"enter here!"]
[]
[null,"TO BE COMPLETED BY WASTEWATER OPERATIONS"]
[]
[null,null,{"$f":"(IF(M75=\"Rejected\",\"                            Review by Wastewater Operations not required as rejected by WW Asset Management!\",\"Part 5. Regional Work Required to Allow Safe and Correct Access to Sewer\"))","v":"Part 5. Regional Work Required to Allow Safe and Correct Access to Sewer"}]
[]
[null,null,null,null,null,{"$f":"IF(C96=\"                            Review by Wastewater Operations not required as rejected by WW Asset Management!\",\"\",(IF(O40=\"access chamber\",\"Labour Costs\",\"\")))","v":""},null,null,null,null,null,null,null,{"$f":"IF(C96=\"                            Review by Wastewater Operations not required as rejected by WW Asset Management!\",\"\",(IF(O40=\"access chamber\",\"Hours required:\",\"\")))","v":""},null,null,null,null,{"$f":"IF(OR(M75=\"REJECTED\",O40<>\"access chamber\"),\"\",(IF(C96=\"                                  Review by Wastewater Operations not required as rejected by WW Asset Management!\",\"\",\"enter here otherwise DELETE!\")))","v":""},null,null,null,null,null,null,null,null,{"$f":"IF(C96=\"                            Review by Wastewater Operations not required as rejected by WW Assets!\",\"\",(IF(O40=\"access chamber\",\"$\",\"\")))","v":""}]
[null,null,null,null,null,{"$f":"IF(C96=\"                            Review by Wastewater Operations not required as rejected by WW Assets!\",\"\",(IF(O40=\"access chamber\",\"Equipment Usage / Hire\",\"\")))","v":""},null,null,null,null,null,null,{"$f":"IF(C96=\"                            Review by Wastewater Operations not required as rejected by WW Asset Management!\",\"\",(IF(O40=\"access chamber\",\"Equipment required:\",\"\")))","v":""},null,null,null,null,null,{"$f":"IF(OR(M75=\"REJECTED\",O40<>\"access chamber\"),\"\",(IF(C96=\"                                  Review by Wastewater Operations not required as rejected by WW Asset Management!\",\"\",\"enter here otherwise DELETE!\")))","v":""},null,null,null,null,null,null,null,null,{"$f":"IF(C96=\"                            Review by Wastewater Operations not required as rejected by WW Assets!\",\"\",(IF(O40=\"access chamber\",\"$\",\"\")))","v":""}]
[null,null,null,null,null,{"$f":"IF(C96=\"                            Review by Wastewater Operations not required as rejected by WW Asset Management!\",\"\",(IF(O40=\"access chamber\",\"Other (specify here)\",\"\")))","v":""},null,null,null,null,null,{"$f":"IF(OR(M75=\"REJECTED\",O40<>\"access chamber\"),\"\",(IF(C96=\"                                  Review by Wastewater Operations not required as rejected by WW Asset Management!\",\"\",\"enter here otherwise DELETE!\")))","v":""},null,null,null,null,null,null,null,null,null,null,null,null,null,null,null,{"$f":"IF(C96=\"                            Review by Wastewater Operations not required as rejected by WW Assets!\",\"\",(IF(O40=\"access chamber\",\"$\",\"\")))","v":""}]
[null,null,null,null,null,{"$f":"IF(C96=\"                            Review by Wastewater Operations not required as rejected by WW Asset Management!\",\"\",(IF(O40=\"access chamber\",\"$\",\"\")))","v":""},null,null,null,null,null,null,null,null,null,null,null,null,null,null,null,null,null,null,null,null,null,null,{"$f":"SUM(AC98:AE100)","v":0}]
[]
[null,null,{"$f":"IF(C96=\"                            Review by Wastewater Operations not required as rejected by WW Asset Management!\",\"\",(IF(O40=\"access chamber\",\"This requires connection to an access chamber. Refer to WWO Work Order number:\",\"\")))","v":""},null,null,null,null,null,null,null,null,null,null,null,null,null,null,null,null,null,null,null,null,null,null,null,null,{"$f":"IF(OR(M75=\"REJECTED\",O40<>\"access chamber\"),\"\",(IF(C96=\"                                  Review by Wastewater Operations not required as rejected by WW Asset Management!\",\"\",\"enter here!\")))","v":""}]
[null,null,null,null,null,{"$f":"IF(C96=\"                            Review by Wastewater Operations not required as rejected by WW Asset Management!\",\"\",(IF(O40=\"access chamber\",\"Supplied by:\",\"\")))","v":""},null,null,null,null,null,null,null,{"$f":"IF(OR(M75=\"REJECTED\",O40<>\"access chamber\"),\"\",(IF(C96=\"                                  Review by Wastewater Operations not required as rejected by WW Asset Management!\",\"\",\"enter here otherwise DELETE!\")))","v":""},null,null,null,null,null,null,null,null,null,{"$f":"IF(C96=\"                            Review by Wastewater Operations not required as rejected by WW Assets!\",\"\",(IF(O40=\"access chamber\",\"Date:\",\"\")))","v":""},{"$f":"IF(OR(M75=\"REJECTED\",O40<>\"access chamber\"),\"\",(IF(C96=\"                                  Review by Wastewater Operations not required as rejected by WW Asset Management!\",\"\",\"enter here otherwise DELETE!\")))","v":""}]
[null,null,null,null,{"$f":"IF(C96=\"                            Review by Wastewater Operations not required as rejected by WW Asset Management!\",\"\",(IF(O40=\"access chamber\",\"Position title of reviewing person:\",\"\")))","v":""},null,null,null,null,null,null,null,null,{"$f":"IF(OR(M75=\"REJECTED\",O40<>\"access chamber\"),\"\",(IF(C96=\"                                  Review by Wastewater Operations not required as rejected by WW Asset Management!\",\"\",\"enter here otherwise DELETE!\")))","v":""}]
[null,null,null,null,{"$f":"IF(C96=\"                            Review by Wastewater Operations not required as rejected by WW Asset Management!\",\"\",(IF(O40=\"access chamber\",\"Region responsible:\",\"\")))","v":""},null,null,null,null,null,null,null,null,{"$f":"IF(OR(M75=\"REJECTED\",O40<>\"access chamber\"),\"\",(IF(C96=\"                                  Review by Wastewater Operations not required as rejected by WW Asset Management!\",\"\",\"enter here otherwise DELETE!\")))","v":""}]
[null,null,null,null,{"$f":"IF(C96=\"                            Review by Wastewater Operations not required as rejected by WW Asset Management!\",\"\",(IF(O40=\"access chamber\",\"Mobile number:\",\"\")))","v":""},null,null,null,null,null,null,null,null,{"$f":"IF(OR(M75=\"REJECTED\",O40<>\"access chamber\"),\"\",(IF(C96=\"                                  Review by Wastewater Operations not required as rejected by WW Asset Management!\",\"\",\"enter here otherwise DELETE!\")))","v":""}]
[null,null,null,null,{"$f":"IF(C96=\"                            Review by Wastewater Operations not required as rejected by WW Asset Management!\",\"\",(IF(O40=\"access chamber\",\"Phone number:\",\"\")))","v":""},null,null,null,null,null,null,null,null,{"$f":"IF(OR(M75=\"REJECTED\",O40<>\"access chamber\"),\"\",(IF(C96=\"                                  Review by Wastewater Operations not required as rejected by WW Asset Management!\",\"\",\"enter here otherwise DELETE!\")))","v":""}]
[]
[null,"TO BE COMPLETED BY C&IS STAFF"]
[]
[null,null,{"$f":"(IF(M75=\"Rejected\",\"                            Review by C&IS not required as rejected by WW Asset Management!\",\"Part 6. Potential Impact on Receiving WRRF/WWTP?\"))","v":"Part 6. Potential Impact on Receiving WRRF/WWTP?"}]
[null,null,{"$f":"(IF(M75=\"Rejected\",\"\",\"Any specific chemistry or mass loading related details that may affect the receiving WRRF/WWTP:\"))","v":"Any specific chemistry or mass loading related details that may affect the receiving WRRF/WWTP:"},null,null,null,null,null,null,null,null,null,null,null,null,{"$f":"(IF(M75=\"Rejected\",\"\",\"Hit 'Delete' if there are no specific issues that may affect the receiving WRRF/WWTP.\"))","v":"Hit 'Delete' if there are no specific issues that may affect the receiving WRRF/WWTP."}]
[]
[]
[]
[null,null,{"$f":"(IF(M75=\"Rejected\",\"\",\"Review still required by receiving WRRF/WWTP:\"))","v":"Review still required by receiving WRRF/WWTP:"}]
[]
[null,null,{"$f":"(IF(M75=\"Rejected\",\"\",\"Full name of C&IS person who processed this application:\"))","v":"Full name of C&IS person who processed this application:"},null,null,null,null,null,null,null,null,null,null,null,null,null,null,null,null,null,{"$f":"(IF(M75=\"Rejected\",\"\",\"enter here!\"))","v":"enter here!"}]
[null,null,{"$f":"(IF(M75=\"Rejected\",\"\",\"Position title:\"))","v":"Position title:"},null,null,null,null,null,null,null,null,null,null,null,null,null,null,null,null,null,{"$f":"(IF(M75=\"Rejected\",\"\",\"enter here!\"))","v":"enter here!"}]
[]
[null,"TO BE COMPLETED BY WATER QUALITY BRANCH"]
[]
[null,null,{"$f":"IF(P117=\"No\",\"                                                       Review by WWTP and / or WWQB not required!\",(IF(M75=\"Rejected\",\"                                  Review by WWTP and / or WWQB not required as rejected by WW Asset Management!\",\"Part 7. Review any Potential Treatment Process Upset or Breaches of Licenced Reuse Conditions\")))","v":"Part 7. Review any Potential Treatment Process Upset or Breaches of Licenced Reuse Conditions"}]
[null,null,{"$f":"IF(P117=\"No\",\"\",(IF(M75=\"Rejected\",\"\",\"Please consider the following:\")))","v":"Please consider the following:"},null,null,null,null,null,null,null,null,null,{"$f":"IF(P113=\"Hit 'Delete' if there are no specific issues that may affect the receiving WRRF/WWTP.\",\"\",(IF(P117=\"No\",\"\",P113)))","v":""}]
[]
[]
[]
[null,null,{"$f":"IF(P117=\"No\",\"\",(IF(M75=\"Rejected\",\"\",\"The application has been:\")))","v":"The application has been:"},null,null,null,null,null,null,null,null,null,"< MUST COMLPETE or DELETE TOTALLY >"]
[null,null,{"$f":"IF(M129=\"APPROVED but subject to the following conditions\",\"Condition 1:\",(IF(M129=\"REJECTED\",\"Reason/s for REJECTION:\",\"\")))","v":""},null,null,null,null,null,null,null,null,null,{"$f":"IF(OR(C130=\"Reason/s for REJECTION:\",C130=\"Condition 1:\"),\"enter here!\",\"\")","v":""}]
[]
[null,null,{"$f":"IF(C130=\"Condition 1:\",\"Condition 2:\",\"\")","v":""},null,null,null,null,null,null,null,null,null,{"$f":"IF(OR(C132=\"Reason/s for REJECTION:\",C132=\"Condition 2:\"),\"enter here!\",\"\")","v":""}]
[]
[]
[null,null,{"$f":"IF(P117=\"No\",\"\",(IF(M75=\"REJECTED\",\"\",\"Final approved discharge rate (L/s):\")))","v":"Final approved discharge rate (L/s):"},null,null,null,null,null,null,null,null,null,null,{"$f":"IF(P117=\"No\",\"\",(IF(M75=\"rejected\",\"\",\"enter here!\")))","v":"enter here!"},null,null,null,null,{"$f":"IF(OR(M129=\"\",M129=\"rejected\",N135=\"enter here!\"),\"\",(IF(N135>M76,\"Cannot be greater than what WW Assets have approved!\",\"\")))","v":""}]
[null,null,{"$f":"IF(P117=\"No\",\"\",(IF(M75=\"Rejected\",\"\",\"Reviewed by:\")))","v":"Reviewed by:"},null,null,null,null,null,null,null,null,null,null,{"$f":"IF(P117=\"No\",\"\",(IF(M75=\"Rejected\",\"\",\"enter here otherwise DELETE!\")))","v":"enter here otherwise DELETE!"},null,null,null,null,null,null,null,null,null,{"$f":"IF(P117=\"No\",\"\",(IF(M75=\"Rejected\",\"\",\"Date:\")))","v":"Date:"},{"$f":"IF(P117=\"No\",\"\",(IF(M75=\"Rejected\",\"\",\"enter here otherwise DELETE!\")))","v":"enter here otherwise DELETE!"}]
[null,null,{"$f":"IF(P117=\"No\",\"\",(IF(M75=\"Rejected\",\"\",\"Position title of reviewing person:\")))","v":"Position title of reviewing person:"},null,null,null,null,null,null,null,null,null,null,{"$f":"IF(P117=\"No\",\"\",(IF(M75=\"Rejected\",\"\",\"enter here otherwise DELETE!\")))","v":"enter here otherwise DELETE!"}]
[]
[null,"TO BE COMPLETED BY C&IS STAFF"]
[]
[null,null,{"$f":"IF(OR(M75=\"rejected\",M129=\"rejected\"),\"\",\"Part 8. Review and Approval\")","v":"Part 8. Review and Approval"}]
[null,null,{"$f":"IF(OR(M75=\"rejected\",M129=\"rejected\"),\"Applicant to be advised of REJECTION to discharge to sewer\",\"Completed satisfactorily?\")","v":"Completed satisfactorily?"}]
[]
[null,null,{"$f":"IF($C$142=\"Applicant to be advised of REJECTION to discharge to sewer\",\"\",\"Estimated Q/Q -\")","v":"Estimated Q/Q -"},null,null,null,null,null,null,null,null,null,null,null,null,{"$f":"IF($C$142=\"Applicant to be advised of REJECTION to discharge to sewer\",\"\",(IF(N144=\"no\",\"Note what needs to be considered, looked at, fixed… etc.\",\"\")))","v":""}]
[null,null,{"$f":"IF($C$142=\"Applicant to be advised of REJECTION to discharge to sewer\",\"\",\"Estimated Charges -\")","v":"Estimated Charges -"},null,null,null,null,null,null,null,null,null,null,null,null,{"$f":"IF($C$142=\"Applicant to be advised of REJECTION to discharge to sewer\",\"\",(IF(N145=\"no\",\"Note what needs to be considered, looked at, fixed… etc.\",\"\")))","v":""}]
[null,null,{"$f":"IF($C$142=\"Applicant to be advised of REJECTION to discharge to sewer\",\"\",\"Conditions of Acceptance -\")","v":"Conditions of Acceptance -"},null,null,null,null,null,null,null,null,null,null,null,null,{"$f":"IF($C$142=\"Applicant to be advised of REJECTION to discharge to sewer\",\"\",(IF(N146=\"no\",\"Note what needs to be considered, looked at, fixed… etc.\",\"\")))","v":""}]
[null,null,{"$f":"IF($C$142=\"Applicant to be advised of REJECTION to discharge to sewer\",\"\",\"Action plan -\")","v":"Action plan -"},null,null,null,null,null,null,null,null,null,null,null,null,{"$f":"IF($C$142=\"Applicant to be advised of REJECTION to discharge to sewer\",\"\",(IF(N147=\"no\",\"Note what needs to be considered, looked at, fixed… etc.\",\"\")))","v":""}]
[null,null,{"$f":"IF($C$142=\"Applicant to be advised of REJECTION to discharge to sewer\",\"\",\"This overall Assessment worksheet -\")","v":"This overall Assessment worksheet -"},null,null,null,null,null,null,null,null,null,null,null,null,{"$f":"IF($C$142=\"Applicant to be advised of REJECTION to discharge to sewer\",\"\",(IF(N148=\"no\",\"Note what needs to be considered, looked at, fixed… etc.\",\"\")))","v":""}]
[null,null,{"$f":"IF($C$142=\"Applicant to be advised of REJECTION to discharge to sewer\",\"\",\"Payment history of previous invoices -\")","v":"Payment history of previous invoices -"},null,null,null,null,null,null,null,null,null,null,null,null,{"$f":"IF($C$142=\"Applicant to be advised of REJECTION to discharge to sewer\",\"\",\"(consider rejection if poor history payment of ALL Corp invoices)\")","v":"(consider rejection if poor history payment of ALL Corp invoices)"}]
[]
[null,null,null,null,null,null,null,null,null,null,{"$f":"IF(C142=\"Applicant to be advised of REJECTION to discharge to sewer\",\"\",(IF(OR(N144=\"\",N145=\"\",N146=\"\",N147=\"\",N149=\"\"),\"Not yet approved!\",(IF(AND(N144=\"yes\",N145=\"yes\",N146=\"yes\",N147=\"yes\",N149=\"yes\"),\"APPROVED!\",\"Not yet approved!\")))))","v":"Not yet approved!"}]
[]
[]
[null,null,"Name of C&IS person who reviewed this application:",null,null,null,null,null,null,null,null,null,null,null,null,null,null,null,"enter here!"]
[null,null,"Position title:",null,null,null,null,null,"enter here!",null,null,null,null,null,null,null,null,null,null,null,{"$f":"IF(C142=\"Applicant to be advised of REJECTION to discharge to sewer\",\"Date Rejected:\",\"Date approved:\")","v":"Date approved:"},null,null,null,null,"enter here!"]
[null,null,null,null,null,null,null,"QC KPI entered by:","enter here!",null,null,null,null,null,null,null,null,null,null,null,"Date entered:",null,null,null,null,"enter here!"]
[]
[]
[]
[]
[]
[]
[]
[]
[]
[]
[]
[]
[]
[]
[]
[]
[]
[]
[]
[]
[]
[]
[]
[]
[]
[]
[]
[]
[]
[]
[]
[]
[]
[]
[]
[]
[]
[]
[]
[null,null,null,null,null,null,null,null,null,null,null,null,null,null,"select here"]
[null,null,"Continuous",null,null,null,null,"select here",null,null,null,null,null,null,"property sewer connection",null,null,null,null,null,null,null,null,"Fortnightly",null,null,null,null,null,null,null,"select here"]
[null,null,"Not continuous",null,null,null,null,"Yes",null,null,null,null,null,null,"plan attached",null,null,null,null,null,null,null,null,"Weekly",null,null,null,null,null,null,null,"AM"]
[null,null,null,null,null,null,null,"No",null,null,null,null,null,null,"access chamber",null,null,null,null,null,null,null,null,"Three Weekly",null,null,null,null,null,null,null,"PM"]
[null,null,null,null,null,null,null,null,null,null,null,null,null,null,"other",null,null,null,null,null,null,null,null,"Daily",null,null,null,null,null,null,null,"AM or PM"]
[]
[null,null,null,null,"YES - by the Customer"]
[null,null,null,null,"YES - by Water Corporation"]
[null,null,null,null,"NO - Not Required",null,null,null,null,null,null,null,null,null,"REJECTED"]
[null,null,null,null,null,null,null,null,null,null,null,null,null,null,"APPROVED"]
[null,null,null,null,null,null,null,null,null,null,null,null,null,null,"APPROVED but subject to the following conditions"]
[]
[null,null,null,null,null,null,null,null,null,null,null,null,null,null,null,null,"Direct on a river or lake waterfront"]
[null,null,null,null,null,null,null,null,null,null,null,null,null,null,null,null,"Near a river or lake waterfront but freeway or railway is inbetween"]
[null,null,null,null,null,null,null,null,null,null,null,null,null,null,null,null,"More than 50m to 100m from any open waterway"]

{"sheet":"Est-6 Month Charges","index":3,"n_rows":51,"n_cols":9,"rows_kept":51,"cut":false,"hidden":true,"merged":[[28,0,28,3],[45,0,45,2],[50,0,50,2],[36,0,36,3],[37,0,37,2],[38,1,38,2],[39,1,39,2],[40,0,40,2],[44,0,44,3],[20,0,20,3],[0,1,0,8],[3,0,3,3],[3,6,3,8],[7,6,7,8],[11,0,11,3]]}
["Name of One-Off Discharge:",{"$f":"+Assessment!C51&+\" (\"&Application!G18&+\")\"","v":"< Exactly enter physical property address details as created on the Enquiry Sheet > (enter here (for billing purposes))"}]
["From",{"$f":"'Est-6 Month QQ'!I52","v":"Enter start date here (in dd/mmm/yyyy format)"},"To",{"$f":"'Est-6 Month QQ'!I53","v":{"$error":"#VALUE!"}}]
[]
["Administrative / Assessment"]
["Description","Total Hrs","Rate","$ Total"]
[null,null,{"$f":"'FY 24-25 Charges'!D$20","v":150.13},{"$f":"C6*B6","v":0}]
[null,null,{"$f":"'FY 24-25 Charges'!D$20","v":150.13},{"$f":"C7*B7","v":0}]
[null,null,{"$f":"'FY 24-25 Charges'!D$20","v":150.13},{"$f":"C8*B8","v":0},null,null,"Laboratory Analysis Calculator"]
[null,null,{"$f":"'FY 24-25 Charges'!D$20","v":150.13},{"$f":"C9*B9","v":0},null,null,"Indicate \"y\" in blue box if analyte was included"]
[null,null,"Total",{"$f":"SUM(D6:D9)","v":0},null,null,"Analyte","Included?","Rate"]
[null,null,null,null,null,null,"pH",null,4.9000000000000004]
["Monitoring ",null,null,null,null,null,"Acidity to pH 6",null,15.7]
["Description","Total Hrs","Rate","$ Total",null,null,"Alkalinity - to pH 10",null,16.3]
[null,null,{"$f":"'FY 24-25 Charges'!D$13","v":150},{"$f":"C14*B14","v":0},null,null,"Conductivity",null,4.8]
[null,null,{"$f":"'FY 24-25 Charges'!D$13","v":150},{"$f":"C15*B15","v":0},null,null,"Sulphur",null,3]
[null,null,{"$f":"'FY 24-25 Charges'!D$13","v":150},{"$f":"C16*B16","v":0},null,null,"Copper",null,3]
[null,null,{"$f":"'FY 24-25 Charges'!D$13","v":150},{"$f":"C17*B17","v":0},"GST Component",null,"Cadmium",null,3]
[null,null,"Total",{"$f":"SUM(D14:D17)","v":0},{"$f":"SUM(D18)*0.1","v":0},null,"Chromium",null,3]
[null,null,null,null,null,null,"Nickel",null,3]
[null,null,null,null,null,null,"Lead",null,3]
["Laboratory Analysis Costs",null,null,null,null,null,"Zinc",null,3]
["Description","No. Samples","Unit Rate","$ Total",null,null,"Molybdenum",null,3]
[null,null,{"$f":"H35","v":0},{"$f":"C23*B23","v":0},null,null,"Selenium",null,3]
[null,null,null,{"$f":"C24*B24","v":0},null,null,"Silver",null,3]
[null,null,null,{"$f":"C25*B25","v":0},null,null,"Arsenic",null,3]
[null,null,null,{"$f":"C26*B26","v":0},null,null,"Mercury",null,14]
[null,null,"Total",{"$f":"SUM(D23:D26)","v":0},null,null,"Suspended Solids"," ",12.8]
[null,null,null,null,null,null,"BOD"," ",38.5]
["Quality/Quantity Charges",null,null,null,null,null,"COD"," ",46]
["Description","Charge Rate","Total Volume kL","$ Total",null,null,"TKN"," ",26.8]
["Quality/Quantity Charges",{"$f":"ROUND('Est-6 Month QQ'!B37,4)","v":{"$error":"#VALUE!"}},{"$f":"'Est-6 Month QQ'!J60","v":{"$error":"#VALUE!"}},{"$f":"IF(C31=0,\"\",B31*C31)","v":{"$error":"#VALUE!"}},null,null,"Phosphorus Total"," ",16.600000000000001]
[null,null,null,{"$f":"IF(C32=0,\"\",B32*C32)","v":""},null,null,"Oil and Grease",null,40.799999999999997]
[null,null,null,null,null,null,"BTEX & TPH",null,75]
[null,null,null,null,null,null,"PFAS, PFOS, PFOA *",null,208]
[null,null,"Total",{"$f":"SUM(D31:D34)","v":{"$error":"#VALUE!"}},null,null,"Total Unit Rate",{"$f":"SUMIF(H11:I34,\"y\",I11:I34)","v":0}]
[]
["Regional  Charges",null,null,null,null,null,"* ARL charges $28 preparation fee per sample of PFAS "]
["          Description",null,null," $ Total"]
["Labour cost                             ",{"$f":"+\"Hours: \"&+Assessment!S98","v":"Hours: "},null,{"$f":"Assessment!AC98","v":0}]
["Equipment usage /hire             ",{"$f":"+\"Equipment needed: \"&+Assessment!S99","v":"Equipment needed: "},null,{"$f":"Assessment!AC99","v":0}]
[{"$f":"+\"Other (specify): \"&+Assessment!L100","v":"Other (specify): "},null,null,{"$f":"Assessment!AC100","v":0},"GST Component"]
["                                                            ",null,"Total ",{"$f":"SUM(D39:D41)","v":0},{"$f":"SUM(D42)*0.1","v":0}]
[]
[]
["Total Charges"]
["        Description",null,null,"$ Total"]
["Quality/Quantity Charges",null,null,{"$f":"D35","v":{"$error":"#VALUE!"}}]
["Laboratory Analysis Costs",null,null,{"$f":"D27","v":0}]
[{"$f":"A37","v":"Regional  Charges"},null,null,{"$f":"D42","v":0}]
["Labour Costs (Subject to GST)",{"$f":"B6+B7+B8+B9+B14+B15+B16+B17","v":0},"Hrs",{"$f":"IF(D10+D18=0,\"\",D10+D18)","v":""}]
["Total Charges for One Off Discharge\n(which includes the Monitoring and Regional GST components)",null,null,{"$f":"SUM(D47:D50)+E18+E42","v":{"$error":"#VALUE!"}}]

{"sheet":"Est-6 Month QQ","index":4,"n_rows":60,"n_cols":10,"rows_kept":60,"cut":false,"hidden":true,"merged":[[49,7,49,9],[58,0,59,5],[54,9,55,9]]}
["Quality-quantity charges for individually managed customers (2024/2025 rates)"]
[]
["Customer",{"$f":"+Assessment!C51&+\" (\"&Application!G18&+\")\"","v":"< Exactly enter physical property address details as created on the Enquiry Sheet > (enter here (for billing purposes))"}]
["Parameter","Units","Amount","Daily charge","Annual Charge",null,"Mass kg/d","Mass kg/a"]
["Daily volume (note 1)","kL/d",{"$f":"IF(H57=0,\"\",(H57*60*60*24)/1000)","v":""},{"$f":"C5*'FY 24-25 Charges'!D23","v":{"$error":"#VALUE!"}},{"$f":"D5*365","v":{"$error":"#VALUE!"}}]
["BOD","mg/L",null,{"$f":"IF(C6>5000,(C6-5000)*'FY 24-25 Charges'!D25 + 5000*'FY 24-25 Charges'!D24, C6*'FY 24-25 Charges'!D24)*$C$5/1000","v":{"$error":"#VALUE!"}},{"$f":"D6*365","v":{"$error":"#VALUE!"}},null,{"$f":"C6*$C$5/1000","v":{"$error":"#VALUE!"}},{"$f":"G6*365","v":{"$error":"#VALUE!"}},{"$f":"IF(G6=0,\"\",IF(G6<=200,\"Mass alarm limit OK\",\"Check mass alarm limit!\"))","v":{"$error":"#VALUE!"}}]
["SS","mg/L",null,{"$f":"IF(C7>2000,(C7-2000)*'FY 24-25 Charges'!D29 + 2000*'FY 24-25 Charges'!D28, C7*'FY 24-25 Charges'!D28)*$C$5/1000","v":{"$error":"#VALUE!"}},{"$error":"#VALUE!"},null,{"$error":"#VALUE!"},{"$f":"G7*365","v":{"$error":"#VALUE!"}},{"$f":"IF(G7=0,\"\",IF(G7<=200,\"Mass alarm limit OK\",\"Check mass alarm limit!\"))","v":{"$error":"#VALUE!"}}]
["Oil & Grease","mg/L",null,{"$f":"IF(C8>600,(C8-600)*'FY 24-25 Charges'!D32 + 300*'FY 24-25 Charges'!D31 + 300*'FY 24-25 Charges'!D30, IF(C8>300,(C8-300)*'FY 24-25 Charges'!D31 + 300*'FY 24-25 Charges'!D30, C8*'FY 24-25 Charges'!D30))*$C$5/1000","v":{"$error":"#VALUE!"}},{"$error":"#VALUE!"},null,{"$error":"#VALUE!"},{"$error":"#VALUE!"}]
["Acidity to pH 6","mg/L CaCO3",null,{"$f":"IF(C9>300,(C9-300)*'FY 24-25 Charges'!D35 + 200*'FY 24-25 Charges'!D34 + 100*'FY 24-25 Charges'!D33, IF(C9>100,(C9-100)*'FY 24-25 Charges'!D34 + 100*'FY 24-25 Charges'!D33, C9*'FY 24-25 Charges'!D33))*$C$5/1000","v":{"$error":"#VALUE!"}},{"$error":"#VALUE!"},null,{"$error":"#VALUE!"},{"$error":"#VALUE!"}]
["Alkalinity to pH 10","mg/L CaCO3",null,{"$f":"IF(C10>200,(C10-200)*'FY 24-25 Charges'!D38 + 100*'FY 24-25 Charges'!D37 + 100*'FY 24-25 Charges'!D36, IF(C10>100,(C10-100)*'FY 24-25 Charges'!D37 + 100*'FY 24-25 Charges'!D36, C10*'FY 24-25 Charges'!D36))*$C$5/1000","v":{"$error":"#VALUE!"}},{"$error":"#VALUE!"},null,{"$error":"#VALUE!"},{"$error":"#VALUE!"}]
["TKN","mg/L",null,{"$f":"C11*'FY 24-25 Charges'!D39*$C$5/1000","v":{"$error":"#VALUE!"}},{"$error":"#VALUE!"},null,{"$error":"#VALUE!"},{"$error":"#VALUE!"},{"$f":"IF(G11=0,\"\",IF(G11<=30,\"Mass alarm limit OK\",\"Check mass alarm limit!\"))","v":{"$error":"#VALUE!"}}]
["Phosphorus","mg/L",null,{"$f":"C12*'FY 24-25 Charges'!D40*$C$5/1000","v":{"$error":"#VALUE!"}},{"$error":"#VALUE!"},null,{"$error":"#VALUE!"},{"$error":"#VALUE!"},{"$f":"IF(G12=0,\"\",IF(G12<=10,\"Mass alarm limit OK\",\"Check mass alarm limit!\"))","v":{"$error":"#VALUE!"}}]
["Sulphate as SO4","mg/L",null,{"$f":"IF(C13>50,(C13-50)*'FY 24-25 Charges'!D42, 0)*$C$5/1000","v":{"$error":"#VALUE!"}},{"$error":"#VALUE!"},null,{"$error":"#VALUE!"},{"$error":"#VALUE!"}]
["Conductivity (note 2)","mS/m",null,{"$f":"IF(C14>1000,(C14-1000)*'FY 24-25 Charges'!D46 + 500*'FY 24-25 Charges'!D45 + 333*'FY 24-25 Charges'!D44, IF(C14>500,(C14-500)*'FY 24-25 Charges'!D45 + 333*'FY 24-25 Charges'!D44, IF(C14>167, (C14-167)*'FY 24-25 Charges'!D44, 0)))*$C$5*6/1000","v":{"$error":"#VALUE!"}},{"$error":"#VALUE!"},null,{"$f":"(6*C14)*$C$5/1000","v":{"$error":"#VALUE!"}},{"$error":"#VALUE!"},{"$f":"IF(G14=0,\"\",IF(G14<=220,\"Mass alarm limit OK\",\"Check mass alarm limit!\"))","v":{"$error":"#VALUE!"}}]
["Chromium","mg/L",null,{"$f":"IF(G15>1, (G15-1)*'FY 24-25 Charges'!D49 + 0.97*'FY 24-25 Charges'!D48 + 0.03*'FY 24-25 Charges'!D47, IF(G15>0.03, (G15-0.03)*'FY 24-25 Charges'!D48 + 0.03*'FY 24-25 Charges'!D47, G15*'FY 24-25 Charges'!D47))","v":{"$error":"#VALUE!"}},{"$error":"#VALUE!"},null,{"$f":"C15*$C$5/1000","v":{"$error":"#VALUE!"}},{"$error":"#VALUE!"},{"$f":"IF(G15=0,\"\",IF((1000*G15)<=30,\"Mass alarm limit OK\",\"Check mass alarm limit!\"))","v":{"$error":"#VALUE!"}}]
["Copper","mg/L",null,{"$f":"IF(G16>0.12, (G16-0.12)*'FY 24-25 Charges'!D52 + 0.09*'FY 24-25 Charges'!D51 + 0.03*'FY 24-25 Charges'!D50, IF(G16>0.03, (G16-0.03)*'FY 24-25 Charges'!D51 + 0.03*'FY 24-25 Charges'!D50, G16*'FY 24-25 Charges'!D50))","v":{"$error":"#VALUE!"}},{"$error":"#VALUE!"},null,{"$f":"C16*$C$5/1000","v":{"$error":"#VALUE!"}},{"$error":"#VALUE!"},{"$f":"IF(G16=0,\"\",IF((1000*G16)<=30,\"Mass alarm limit OK\",\"Check mass alarm limit!\"))","v":{"$error":"#VALUE!"}}]
["Lead","mg/L",null,{"$f":"IF(G17>0.3, (G17-0.3)*'FY 24-25 Charges'!D55 + 0.27*'FY 24-25 Charges'!D54 + 0.03*'FY 24-25 Charges'!D53, IF(G17>0.03, (G17-0.03)*'FY 24-25 Charges'!D54 + 0.03*'FY 24-25 Charges'!D53, G17*'FY 24-25 Charges'!D53))","v":{"$error":"#VALUE!"}},{"$error":"#VALUE!"},null,{"$error":"#VALUE!"},{"$error":"#VALUE!"},{"$f":"IF(G17=0,\"\",IF((1000*G17)<=30,\"Mass alarm limit OK\",\"Check mass alarm limit!\"))","v":{"$error":"#VALUE!"}}]
["Nickel","mg/L",null,{"$f":"IF(G18>0.15, (G18-0.15)*'FY 24-25 Charges'!D58 + 0.144*'FY 24-25 Charges'!D57 + 0.006*'FY 24-25 Charges'!D56, IF(G18>0.006, (G18-0.006)*'FY 24-25 Charges'!D57 + 0.006*'FY 24-25 Charges'!D56, G18*'FY 24-25 Charges'!D56))","v":{"$error":"#VALUE!"}},{"$error":"#VALUE!"},null,{"$error":"#VALUE!"},{"$error":"#VALUE!"},{"$f":"IF(G18=0,\"\",IF((1000*G18)<=6,\"Mass alarm limit OK\",\"Check mass alarm limit!\"))","v":{"$error":"#VALUE!"}}]
["Zinc","mg/L",null,{"$f":"IF(G19>0.5, (G19-0.5)*'FY 24-25 Charges'!D61 + 0.45*'FY 24-25 Charges'!D60 + 0.05*'FY 24-25 Charges'!D59, IF(G19>0.05, (G19-0.05)*'FY 24-25 Charges'!D60 + 0.05*'FY 24-25 Charges'!D59, G19*'FY 24-25 Charges'!D59))","v":{"$error":"#VALUE!"}},{"$error":"#VALUE!"},null,{"$error":"#VALUE!"},{"$error":"#VALUE!"},{"$f":"IF(G19=0,\"\",IF((1000*G19)<=50,\"Mass alarm limit OK\",\"Check mass alarm limit!\"))","v":{"$error":"#VALUE!"}}]
["Arsenic","mg/L",null,{"$f":"IF(G20>0.04, (G20-0.04)*'FY 24-25 Charges'!D64 + 0.039*'FY 24-25 Charges'!D63 + 0.001*'FY 24-25 Charges'!D62, IF(G20>0.001, (G20-0.001)*'FY 24-25 Charges'!D63 + 0.001*'FY 24-25 Charges'!D62, G20*'FY 24-25 Charges'!D62))","v":{"$error":"#VALUE!"}},{"$error":"#VALUE!"},null,{"$error":"#VALUE!"},{"$error":"#VALUE!"},{"$f":"IF(G20=0,\"\",IF((1000*G20)<=1,\"Mass alarm limit OK\",\"Check mass alarm limit!\"))","v":{"$error":"#VALUE!"}}]
["Cadmium","mg/L",null,{"$f":"IF(G21>0.015, (G21-0.015)*'FY 24-25 Charges'!D67 + 0.014*'FY 24-25 Charges'!D66 + 0.001*'FY 24-25 Charges'!D65, IF(G21>0.001, (G21-0.001)*'FY 24-25 Charges'!D66 + 0.001*'FY 24-25 Charges'!D65, G21*'FY 24-25 Charges'!D65))","v":{"$error":"#VALUE!"}},{"$error":"#VALUE!"},null,{"$error":"#VALUE!"},{"$error":"#VALUE!"},{"$f":"IF(G21=0,\"\",IF((1000*G21)<=1,\"Mass alarm limit OK\",\"Check mass alarm limit!\"))","v":{"$error":"#VALUE!"}}]
["Molybdenum","mg/L",null,{"$f":"IF(G22>0.02, (G22-0.02)*'FY 24-25 Charges'!D70 + 0.019*'FY 24-25 Charges'!D69 + 0.001*'FY 24-25 Charges'!D68, IF(G22>0.001, (G22-0.001)*'FY 24-25 Charges'!D69 + 0.001*'FY 24-25 Charges'!D68, G22*'FY 24-25 Charges'!D68))","v":{"$error":"#VALUE!"}},{"$error":"#VALUE!"},null,{"$error":"#VALUE!"},{"$error":"#VALUE!"},{"$f":"IF(G22=0,\"\",IF((1000*G22)<=1,\"Mass alarm limit OK\",\"Check mass alarm limit!\"))","v":{"$error":"#VALUE!"}}]
["Selenium","mg/L",null,{"$f":"IF(G23>0.02, (G23-0.02)*'FY 24-25 Charges'!D73 + 0.019*'FY 24-25 Charges'!D72 + 0.001*'FY 24-25 Charges'!D71, IF(G23>0.001, (G23-0.001)*'FY 24-25 Charges'!D72 + 0.001*'FY 24-25 Charges'!D71, G23*'FY 24-25 Charges'!D71))","v":{"$error":"#VALUE!"}},{"$error":"#VALUE!"},null,{"$error":"#VALUE!"},{"$error":"#VALUE!"},{"$f":"IF(G23=0,\"\",IF((1000*G23)<=1,\"Mass alarm limit OK\",\"Check mass alarm limit!\"))","v":{"$error":"#VALUE!"}}]
["Silver","mg/L",null,{"$f":"IF(G24>0.01, (G24-0.01)*'FY 24-25 Charges'!D76 + 0.008*'FY 24-25 Charges'!D75 + 0.002*'FY 24-25 Charges'!D74, IF(G24>0.002, (G24-0.002)*'FY 24-25 Charges'!D75 + 0.002*'FY 24-25 Charges'!D74, G24*'FY 24-25 Charges'!D74))","v":{"$error":"#VALUE!"}},{"$error":"#VALUE!"},null,{"$error":"#VALUE!"},{"$error":"#VALUE!"},{"$f":"IF(G24=0,\"\",IF((1000*G24)<=2,\"Mass alarm limit OK\",\"Check mass alarm limit!\"))","v":{"$error":"#VALUE!"}}]
["Mercury","mg/L",null,{"$f":"IF(G25>0.001, (G25-0.001)*'FY 24-25 Charges'!D79 + 0.0009*'FY 24-25 Charges'!D78 + 0.0001*'FY 24-25 Charges'!D77, IF(G25>0.0001, (G25-0.0001)*'FY 24-25 Charges'!D78 + 0.0001*'FY 24-25 Charges'!D77, G25*'FY 24-25 Charges'!D77))","v":{"$error":"#VALUE!"}},{"$error":"#VALUE!"},null,{"$error":"#VALUE!"},{"$error":"#VALUE!"},{"$f":"IF(G25=0,\"\",IF((1000*G25)<=0.1,\"Mass alarm limit OK\",\"Check mass alarm limit!\"))","v":{"$error":"#VALUE!"}}]
["(PFOS+PFHxS) or PFOA","ug/L",null,"Note units in ug/L",null,null,{"$f":"C26*$C$5/1000","v":{"$error":"#VALUE!"}},{"$f":"G26*365","v":{"$error":"#VALUE!"}},"Note units in g/period"]
["Benzene","mg/L",null,null,null,null,null,null,{"$f":"IF(C27=\"\",\"\",IF(C27>0.08,\"Check if allowed as above limit!\",\"OK\"))","v":""}]
["Ethylbenzene","mg/L",null,null,null,null,null,null,{"$f":"IF(C28=\"\",\"\",IF(C28>1,\"Check if allowed as above limit!\",\"OK\"))","v":""}]
["Toluene","mg/L",null,null,null,null,null,null,{"$f":"IF(C29=\"\",\"\",IF(C29>1.3,\"Check if allowed as above limit!\",\"OK\"))","v":""}]
["Xylenes","mg/L",null,null,null,null,null,null,{"$f":"IF(C30=\"\",\"\",IF(C30>1.4,\"Check if allowed as above limit!\",\"OK\"))","v":""}]
["TPH","mg/L",null,null,null,null,null,null,{"$f":"IF(C31=\"\",\"\",IF(C31>30,\"Check if allowed as above limit!\",\"OK\"))","v":""}]
["pH"]
[null,null,null,null,"TDS mass loads",null,{"$f":"C14*C5*6/1000","v":{"$error":"#VALUE!"}},{"$f":"G33*365","v":{"$error":"#VALUE!"}},{"$f":"IF(G33=0,\"\",IF(G33<=220,\"Mass alarm limit OK\",\"Check mass alarm limit!\"))","v":{"$error":"#VALUE!"}}]
[]
["Total  Charge",null,null,{"$f":"SUM(D5:D25)","v":{"$error":"#VALUE!"}},{"$error":"#VALUE!"}]
[null,null,null,"(daily)","(annually)"]
["Charge per kL",{"$f":"D35/C5","v":{"$error":"#VALUE!"}}]
[]
[]
["Note 1","Volume MUST be daily volume or metals charges will not "]
[null,"calculate correctly"]
["Note 2","Use conductivity to determine TDS charges. If estimating "]
[null,"TDS charges from actual TDS data, convert TDS (mg/L) to"]
[null,"conductivity (mS/m) by dividing by 6 and entering into cell C14."]
["Note 3","All concentrations should be entered in mg/L unless otherwise indicated."]
["Note 4","For OOD Quotes: Total volume may be estimated by client in application or calculated "]
[null,"using table (Discharge Volume 24hrs/day) "]
[null,"For Final OOD Billing: Total volume is calculated from meter readings"]
[]
["What information was used to estimate volume and quality of effluent?",null,null,null,null,null,null,"Discharge Volume 24hrs/day"]
["Note 5: "]
[null,null,null,null,null,null,null,"start date",{"$f":"Assessment!P26","v":"Enter start date here (in dd/mmm/yyyy format)"}]
[null,null,null,null,null,null,null,"end date",{"$f":"IF(Application!M65-Application!M64>(365/2),Assessment!P26+(365/2),Application!M65)","v":{"$error":"#VALUE!"}}]
[null,null,null,null,null,null,null,"No Days",{"$f":"I53-I52","v":{"$error":"#VALUE!"}}]
[null,null,null,null,null,null,null,null,null,"Discharge Vol (kL)"]
[null,null,null,null,null,null,null,"Rate L/s","No.of Days"]
[null,null,null,null,null,null,null,{"$f":"MIN(Assessment!M76,Assessment!N135)","v":0},{"$f":"I54","v":{"$error":"#VALUE!"}},{"$f":"(H57*3600*24*I57)/1000","v":{"$error":"#VALUE!"}}]
[null,null,null,null,null,null,null,null,null,{"$f":"(H58*3600*24*I58)/1000","v":0}]
[{"$f":"IF(Assessment!AC44=\"enter here!\",\"\",IF(Assessment!AC44=Assessment!C198,\"NOTE: Cell I57 needs to be divided by a number factor so that the final volume calculated at cell J60 equals \"&TEXT(Application!K55,\"#,##0\")&\" kL.\",\"\"))","v":""},null,null,null,null,null,null,null,null,{"$f":"(H59*3600*24*I59)/1000","v":0}]
[null,null,null,null,null,null,null,null,"Total",{"$f":"J57+J58+J59","v":{"$error":"#VALUE!"}}]

{"sheet":"Risk Ranking","index":5,"n_rows":36,"n_cols":45,"rows_kept":36,"cut":false,"hidden":true,"merged":[[35,7,35,9],[12,30,12,32],[34,16,35,34],[34,35,35,41],[2,17,2,29],[4,4,4,13],[4,30,4,37],[32,2,32,13],[33,2,34,13],[29,18,29,24],[10,17,10,20],[12,17,12,29],[11,17,11,24],[10,21,10,24],[11,25,11,33]]}
[]
[]
[null,null,"1. Charge Rate",null,null,null,null,null,null,null,null,null,null,null,null,null,null,"2. Contaminated Sites"]
[]
[null,null,null,null,"charge/kL ($/kL)",null,null,null,null,null,null,null,null,null,null,null,null,null,null,null,null,null,null,null,null,null,null,null,null,null,"charge/kL ($/kL)"]
[null,null,"rate (L/s)","kL/week",1.75,2,3,4,5,6,7,8,9,10,null,null,null,null,null,null,null,null,null,null,null,null,null,null,null,null,1.75,2,3,4,5,6,7,8]
[null,null,1,604.79999999999995,{"$f":"$D7*E$6","v":1058.3999999999999},1209.5999999999999,1814.3999999999999,2419.1999999999998,3024,3628.7999999999997,4233.5999999999995,4838.3999999999996,5443.2,6048,null,null,null,"not contaminated"]
[null,null,2,1209.5999999999999,2116.7999999999997,2419.1999999999998,3628.7999999999997,4838.3999999999996,6048,7257.5999999999995,8467.1999999999989,9676.7999999999993,10886.4,12096,null,null,null,"contaminated with suitable pre-treatment"]
[null,null,3,1814.4,3175.2000000000003,3628.8,5443.2000000000007,7257.6,9072,10886.400000000001,12700.800000000001,14515.2,16329.6,18144,null,null,null,"contaminated with no pre-treatment"]
[null,null,4,2419.1999999999998,4233.5999999999995,4838.3999999999996,7257.5999999999995,9676.7999999999993,12096,14515.199999999999,16934.399999999998,19353.599999999999,21772.799999999999,24192]
[null,null,5,3024,5292,6048,9072,12096,15120,18144,21168,24192,27216,30240,null,null,null,"1. Q/Q value:",null,null,null,{"$f":"'Est-6 Month QQ'!B37","v":{"$error":"#VALUE!"}},null,null,null,null,null,null,null,null,null,null,null,null,null,null,null,null,null,null,null,null,null,null,"Fortnightly"]
[null,null,6,3628.8,6350.4000000000005,7257.6,10886.400000000001,14515.2,18144,21772.800000000003,25401.600000000002,29030.400000000001,32659.200000000001,36288,null,null,null,"2. Contamination category:",null,null,null,null,null,null,null,"select here!",null,null,null,null,null,null,null,null,null,null,null,null,null,null,null,null,null,null,"Weekly"]
[null,null,7,4233.6000000000004,7408.8000000000011,8467.2000000000007,12700.800000000001,16934.400000000001,21168,25401.600000000002,29635.200000000004,33868.800000000003,38102.400000000001,42336,null,null,null,"3. Make selection of inspection frequency:",null,null,null,null,null,null,null,null,null,null,null,null,"select here!",null,null,null,null,null,null,null,null,null,null,null,null,null,"Three Weekly"]
[null,null,8,4838.3999999999996,8467.1999999999989,9676.7999999999993,14515.199999999999,19353.599999999999,24192,29030.399999999998,33868.799999999996,38707.199999999997,43545.599999999999,48384,null,null,null,null,null,null,null,null,null,null,null,null,null,null,null,null,null,null,null,null,null,null,null,null,null,null,null,null,null,null,"Daily"]
[null,null,9,5443.2,9525.6,10886.4,16329.599999999999,21772.799999999999,27216,32659.199999999997,38102.400000000001,43545.599999999999,48988.799999999996,54432]
[null,null,10,6048,10584,12096,18144,24192,30240,36288,42336,48384,54432,60480]
[null,null,11,6652.8,{"$f":"$D17*E$6","v":11642.4},13305.6,19958.400000000001,26611.200000000001,33264,39916.800000000003,46569.599999999999,53222.400000000001,59875.200000000004,66528]
[null,null,12,7257.6,12700.800000000001,14515.2,21772.800000000003,29030.400000000001,36288,43545.600000000006,50803.200000000004,58060.800000000003,65318.400000000001,72576]
[null,null,13,7862.4,13759.199999999999,15724.8,23587.199999999997,31449.599999999999,39312,47174.399999999994,55036.799999999996,62899.199999999997,70761.599999999991,78624]
[null,null,14,8467.2000000000007,14817.600000000002,16934.400000000001,25401.600000000002,33868.800000000003,42336,50803.200000000004,59270.400000000009,67737.600000000006,76204.800000000003,84672]
[null,null,15,9072,15876,18144,27216,36288,45360,54432,63504,72576,81648,90720]
[null,null,16,9676.7999999999993,16934.399999999998,19353.599999999999,29030.399999999998,38707.199999999997,48384,58060.799999999996,67737.599999999991,77414.399999999994,87091.199999999997,96768]
[null,null,17,10281.6,17992.8,20563.2,30844.800000000003,41126.400000000001,51408,61689.600000000006,71971.199999999997,82252.800000000003,92534.400000000009,102816]
[null,null,18,10886.4,19051.2,21772.799999999999,32659.199999999997,43545.599999999999,54432,65318.399999999994,76204.800000000003,87091.199999999997,97977.599999999991,108864]
[null,null,19,11491.2,20109.600000000002,22982.400000000001,34473.600000000006,45964.800000000003,57456,68947.200000000012,80438.400000000009,91929.600000000006,103420.8,114912]
[null,null,20,12096,21168,24192,36288,48384,60480,72576,84672,96768,108864,120960]
[null,null,21,12700.8,22226.399999999998,25401.599999999999,38102.399999999994,50803.199999999997,63504,76204.799999999988,88905.599999999991,101606.39999999999,114307.2,127008]
[null,null,22,13305.6,23284.799999999999,26611.200000000001,39916.800000000003,53222.400000000001,66528,79833.600000000006,93139.199999999997,106444.8,119750.40000000001,133056,null,null,null,"3. Asset Management"]
[null,null,23,13910.4,24343.200000000001,27820.799999999999,41731.199999999997,55641.599999999999,69552,83462.399999999994,97372.800000000003,111283.2,125193.59999999999,139104]
[null,null,24,14515.2,25401.600000000002,29030.400000000001,43545.600000000006,58060.800000000003,72576,87091.200000000012,101606.40000000001,116121.60000000001,130636.8,145152,null,null,null,null,{"$f":"Assessment!AA89","v":""}]
[null,null,25,15120,26460,30240,45360,60480,75600,90720,105840,120960,136080,151200]
[]
[null,null,"1. If a calculated dollar amount crosses two risk rating zones then always choose the lower rating colour."]
[null,null,"2. Where Daily inspections have been deemed as the Risk Rating then advise customer that billing will be performed weekly in the amounts ranging from $70k to $150k."]
[null,null,null,null,null,null,null,null,null,null,null,null,null,null,null,null,"Risk Rating Inspection Frequency initially determined as:",null,null,null,null,null,null,null,null,null,null,null,null,null,null,null,null,null,null,"select max of the three variables"]
[null,null,"3. Make selection of inspection frequency:",null,null,null,null,"select here!"]

{"sheet":"FY 19-20 Charges","index":6,"n_rows":103,"n_cols":8,"rows_kept":103,"cut":false,"hidden":true,"merged":[]}
["Trade Waste Fees & Charges"]
[]
["Financial Year 2019/2020"]
[]
["Name","Description","Units","Charge"]
["Business Domestic ",null,"$/kL",3.7519999999999998]
[]
["Service Charges"]
["Establishment Fee",null,"$/hr",133.65]
["Permit Fee","All Permits","each",237.1]
["FOGMan Admin Fee",null,"each",104.16,"Shared",56.9]
["Washing Machine Fee",null,"each",0," "]
["Inspection Fee",null,"$/hr",{"$f":"G13","v":133.49999999999997},{"$f":"\"Subject to GST $\"&ROUND(1.1*D13,2)","v":"Subject to GST $146.85"},null,{"$f":"G14/1.1","v":133.49999999999997}]
["Meter Reading Fee",null,"each",26.83,null,null,146.85]
["Sampling Fee","Scheduled - grab","each",312.07,"Includes GST"]
[null,"Scheduled  - Composite","each",733.26,"Includes GST"]
[null,"Unscheduled - grab","each","at cost","Includes GST"]
[null,"Unscheduled  - Composite","each","at cost","Includes GST"]
["Open Area Fee",null,"$/m2",1.58]
["One-off Discharge Fee",null,"$/hr",133.65]
["Product Evaluation",null,"$/hr",167.25]
["Variable Charges"]
["Volume","N/A","$/kL",1.4790000000000001]
["BOD","0 - 5,000 mg/L","$/kg",1.234]
[null,"Above 5,000 mg/L","$/kg",2.5190000000000001]
["COD","0 – 10,000 mg/L","$/kg",0.49]
[null,"Above 10,000 mg/L","$/kg",1]
["Suspended Solids","0 – 2,000 mg/L ","$/kg",1.6830000000000001]
[null,"Above 2,000 mg/L ","$/kg",3.3860000000000001]
["Oil & Grease","0 – 300 mg/L","$/kg",1.52]
[null,"300 - 600 mg/L","$/kg",2.9780000000000002]
[null,"Above 600 mg/L","$/kg",6.008]
["Acidity","0-100 mg/L","$/kg CaCO3",0.41799999999999998]
[null,"100-300 mg/L","$/kg CaCO3",0.877]
[null,"Above 300 mg/L","$/kg CaCO3",1.744]
["Alkalinity","0-100 mg/L","$/kg CaCO3",0.13300000000000001]
[null,"100-200 mg/L","$/kg CaCO3",0.316]
[null,"Above 200 mg/L","$/kg CaCO3",0.63200000000000001]
["Nitrogen","N/A","$/kg",1.3460000000000001]
["Phosphorus","N/A","$/kg",0.377]
["Sulphate","0 - 50 mg/L","$/kg","No Charge"]
[null,"Above 50 mg/L","$/kg",0.71399999999999997]
["TDS","0 – 1,000 mg/L","$/kg","No Charge"]
[null,"1,000 – 3,000 mg/L","$/kg",1E-3]
[null,"3,000 – 6,000 mg/L","$/kg",0.04]
[null,"Above 6,000 mg/L","$/kg",0.14199999999999999]
["Chromium","0 – 30 g per day","$/kg",11.179]
[null,"30 – 1,000 g per day","$/kg",22.297000000000001]
[null,"Above 1,000 g per day","$/kg",89.341999999999999]
["Copper","0 – 30 g per day","$/kg",11.179]
[null,"30 – 120 g per day","$/kg",22.297000000000001]
[null,"Above 120 g per day","$/kg",89.341999999999999]
["Lead","0 – 30 g per day","$/kg",11.179]
[null,"30 – 300 g per day","$/kg",22.297000000000001]
[null,"Above 300 g per day","$/kg",89.341999999999999]
["Nickel","0 – 6 g per day","$/kg",11.179]
[null,"6 – 150 g per day","$/kg",22.297000000000001]
[null,"Above 150 g per day","$/kg",89.341999999999999]
["Zinc","0 – 50 g per day","$/kg",11.179]
[null,"50 – 500 g per day","$/kg",22.297000000000001]
[null,"Above 500 g per day","$/kg",89.341999999999999]
["Arsenic","0 – 1 g per day","$/kg",11.179]
[null,"1 – 40 g per day","$/kg",111.649]
[null,"Above 40 g per day","$/kg",1116.472]
["Cadmium","0 – 1 g per day","$/kg",11.179]
[null,"1 – 15 g per day","$/kg",111.649]
[null,"Above 15 g per day","$/kg",1116.472]
["Molybdenum","0 – 1 g per day","$/kg",11.179]
[null,"1 – 20 g per day","$/kg",111.649]
[null,"Above 20 g per day","$/kg",1116.472]
["Selenium","0 – 1 g per day","$/kg",11.179]
[null,"1 – 20 g per day","$/kg",111.649]
[null,"Above 20 g per day","$/kg",1116.472]
["Silver","0 –2 g per day","$/kg",11.179]
[null,"2 – 10 g per day","$/kg",111.649]
[null,"Above 10 g per day","$/kg",1116.472]
["Mercury","0 – 0.1 g per day","$/kg",11.179]
[null,"0.1 – 1 g per day","$/kg",1116.472]
[null,"Above 1 g per day","$/kg",8373.8529999999992]
[]
["GCMS Scan",123,null,"Updated 5/12/17"]
["Glyphosate",123,null,"Updated 5/12/17"]
["TPH",43,null,"Updated 5/12/17"]
["BTEX",32,null,"Updated 5/12/17"]
[]
[]
["Effluent discharged from a septic tank or effluent pumping system ($/kL)",null,"$/kg",null,1.6930000000000001]
[]
["Third Party Tankered Waste:",null,null,null,null,null,null,"18/19"]
[null,null,null,"Fixed Charge",null,null,"Volumetric Charges"]
["Category 1.01","Animal waste",null,null,0,null,null,116.3]
[]
["Category 1.02","Septage",null,null,0,null,null,116.28]
[]
["Category 1.02","Shipping waste "," (0-150kL)",null,1237.3,null,null,0]
[]
["Category 1.02","Shipping waste  ","(over 150kL)",null,1237.3,null,null,4.7]
[]
["Category 1.03","Grease Trap",null,null,0,null,null,114.2]
[]
["Category 1.04","Winery Waste",null,null,0,null,null,53]
[]
["Category 14","Pond Water",null,null,0,null,null,47.9]

{"sheet":"FY 20-21 Charges","index":7,"n_rows":107,"n_cols":8,"rows_kept":107,"cut":false,"hidden":true,"merged":[]}
["Trade Waste Fees & Charges"]
[]
["Financial Year 2020/2021"]
[]
["Name","Description","Units","Charge"]
["Business Domestic ",null,"$/kL",3.8460000000000001]
[]
["Service Charges"]
["Establishment Fee",null,"$/hr",136.32]
["Permit Fee","All Permits","each",241.84]
["FOGMan Admin Fee",null,"each",106.25,"Shared",58.09]
["Washing Machine Fee",null,"each",0," "]
["Inspection Fee",null,"$/hr",{"$f":"G13","v":136.19999999999999},{"$f":"\"Subject to GST $\"&ROUND(1.1*D13,2)","v":"Subject to GST $149.82"},null,{"$f":"G14/1.1","v":136.19999999999999}]
["Meter Reading Fee",null,"each",27.36,null,null,149.82]
["Sampling Fee","Scheduled - grab","each",318.23,"Includes GST"]
[null,"Scheduled  - Composite","each",747.89,"Includes GST",null,"+ $330.99","for each composite sample >1, inclusive of GST"]
[null,"Unscheduled - grab","each","at cost","Includes GST"]
[null,"Unscheduled  - Composite","each","at cost","Includes GST"]
["Open Area Fee",null,"$/m2",1.61]
["One-off Discharge Fee",null,"$/hr",136.32]
["Product Evaluation",null,"$/hr",170.59]
["Variable Charges"]
["Volume","N/A","$/kL",1.5089999999999999]
["BOD","0 - 5,000 mg/L","$/kg",1.2589999999999999]
[null,"Above 5,000 mg/L","$/kg",2.57]
["COD","0 – 10,000 mg/L","$/kg",0.49]
[null,"Above 10,000 mg/L","$/kg",1]
["Suspended Solids","0 – 2,000 mg/L ","$/kg",1.7170000000000001]
[null,"Above 2,000 mg/L ","$/kg",3.4540000000000002]
["Oil & Grease","0 – 300 mg/L","$/kg",1.55]
[null,"300 - 600 mg/L","$/kg",3.0379999999999998]
[null,"Above 600 mg/L","$/kg",6.1280000000000001]
["Acidity","0-100 mg/L","$/kg CaCO3",0.42699999999999999]
[null,"100-300 mg/L","$/kg CaCO3",0.89500000000000002]
[null,"Above 300 mg/L","$/kg CaCO3",1.7789999999999999]
["Alkalinity","0-100 mg/L","$/kg CaCO3",0.13500000000000001]
[null,"100-200 mg/L","$/kg CaCO3",0.32300000000000001]
[null,"Above 200 mg/L","$/kg CaCO3",0.64500000000000002]
["Nitrogen","N/A","$/kg",1.373]
["Phosphorus","N/A","$/kg",0.38500000000000001]
["Sulphate","0 - 50 mg/L","$/kg","No Charge"]
[null,"Above 50 mg/L","$/kg",0.72799999999999998]
["TDS","0 – 1,000 mg/L","$/kg","No Charge"]
[null,"1,000 – 3,000 mg/L","$/kg",1E-3]
[null,"3,000 – 6,000 mg/L","$/kg",4.1000000000000002E-2]
[null,"Above 6,000 mg/L","$/kg",0.14499999999999999]
["Chromium","0 – 30 g per day","$/kg",11.403]
[null,"30 – 1,000 g per day","$/kg",22.742999999999999]
[null,"Above 1,000 g per day","$/kg",91.129000000000005]
["Copper","0 – 30 g per day","$/kg",11.403]
[null,"30 – 120 g per day","$/kg",22.742999999999999]
[null,"Above 120 g per day","$/kg",91.129000000000005]
["Lead","0 – 30 g per day","$/kg",11.403]
[null,"30 – 300 g per day","$/kg",22.742999999999999]
[null,"Above 300 g per day","$/kg",91.129000000000005]
["Nickel","0 – 6 g per day","$/kg",11.403]
[null,"6 – 150 g per day","$/kg",22.742999999999999]
[null,"Above 150 g per day","$/kg",91.129000000000005]
["Zinc","0 – 50 g per day","$/kg",11.403]
[null,"50 – 500 g per day","$/kg",22.742999999999999]
[null,"Above 500 g per day","$/kg",91.129000000000005]
["Arsenic","0 – 1 g per day","$/kg",11.403]
[null,"1 – 40 g per day","$/kg",113.88200000000001]
[null,"Above 40 g per day","$/kg",1138.8009999999999]
["Cadmium","0 – 1 g per day","$/kg",11.403]
[null,"1 – 15 g per day","$/kg",113.88200000000001]
[null,"Above 15 g per day","$/kg",1138.8009999999999]
["Molybdenum","0 – 1 g per day","$/kg",11.403]
[null,"1 – 20 g per day","$/kg",113.88200000000001]
[null,"Above 20 g per day","$/kg",1138.8009999999999]
["Selenium","0 – 1 g per day","$/kg",11.403]
[null,"1 – 20 g per day","$/kg",113.88200000000001]
[null,"Above 20 g per day","$/kg",1138.8009999999999]
["Silver","0 –2 g per day","$/kg",11.403]
[null,"2 – 10 g per day","$/kg",113.88200000000001]
[null,"Above 10 g per day","$/kg",1138.8009999999999]
["Mercury","0 – 0.1 g per day","$/kg",11.403]
[null,"0.1 – 1 g per day","$/kg",1138.8009999999999]
[null,"Above 1 g per day","$/kg",8541.33]
[]
["GCMS Scan",123,null,"Updated 5/12/17 applicable to November 2022"]
["Glyphosate",123,null,"Updated 5/12/17"]
["TPH",43,null,"Updated 5/12/17"]
["BTEX",32,null,"Updated 5/12/17"]
["BNP (specific base nuetral pesticide scan)",63,null,"Updated 11/10/19 Specific price advised by Andrew Harvey ARL email 11/10/19"]
[]
[]
[]
[]
[]
["Effluent discharged from a septic tank or effluent pumping system ($/kL)",null,"$/kg",null,1.6930000000000001]
[]
["Third Party Tankered Waste:",null,null,null,null,null,null,"20/21"]
[null,null,null,"Fixed Charge",null,null,"Volumetric Charges /kL (pre GST)"]
["Category 1.01 (K100)","Animal waste",null,null,0,null,null,118.6]
[]
["Category 1.02 (K210)","Septage",null,null,0,null,null,118.61]
[]
["Category 1.02 (K210)","Shipping waste "," (0-150kL)",null,1262,null,null,"Fixed Charge"]
[]
["Category 1.02 (K210)","Shipping waste  ","(over 150kL)",null,1262,null,null,4.8]
[]
["Category 1.03 (K110)","Grease Trap",null,null,0,null,null,116.5]
[]
["Category 1.04 (K200)","Winery Waste",null,null,0,null,null,54.1]
[]
["Category 14 (L150)","Pond Water",null,null,0,null,null,48.9]

{"sheet":"FY 21-22 Charges","index":8,"n_rows":107,"n_cols":10,"rows_kept":107,"cut":false,"hidden":true,"merged":[]}
["Trade Waste Fees & Charges"]
[]
["Financial Year 2021/2022"]
[]
["Name","Description","Units","Charge"]
["Business Domestic ",null,"$/kL",3.94,null,null,"Red indicates yet to be updated to 21/22 prices"]
[]
["Service Charges"]
["Establishment Fee",null,"$/hr",140.09]
["Permit Fee","All Permits","each",235.45]
["FOGMan Admin Fee",null,"each",94.07]
["Washing Machine Fee",null,"each",null," "]
["Inspection Fee",null,"$/hr",{"$f":"G13","v":140},{"$f":"\"Subject to GST $\"&ROUND(1.1*D13,2)","v":"Subject to GST $154"},null,{"$f":"G14/1.1","v":140}]
["Meter Reading Fee",null,"each",42.02,null,null,{"$f":"I20","v":154}]
["Sampling Fee","Scheduled - grab","each",474.98,"Includes GST"]
[null,"Scheduled  - Composite","each",752.4,"Includes GST",null,"+ $324.50","for each composite sample >1, inclusive of GST"]
[null,"Unscheduled - grab","each","at cost","Includes GST"]
[null,"Unscheduled  - Composite","each","at cost","Includes GST"]
["Open Area Fee",null,"$/m2",1.64]
["One-off Discharge Admin Fee",null,"$/hr",140.09,null,"One-off Discharge Inspection",null,null,154,"Includes GST"]
["Product Evaluation",null,"$/hr",183.87]
["Variable Charges"]
["Volume","N/A","$/kL",1.5349999999999999]
["BOD","0 - 5,000 mg/L","$/kg",1.2809999999999999]
[null,"Above 5,000 mg/L","$/kg",2.6150000000000002]
["COD","0 – 10,000 mg/L","$/kg"]
[null,"Above 10,000 mg/L","$/kg"]
["Suspended Solids","0 – 2,000 mg/L ","$/kg",1.7470000000000001]
[null,"Above 2,000 mg/L ","$/kg",3.5150000000000001]
["Oil & Grease","0 – 300 mg/L","$/kg",1.577]
[null,"300 - 600 mg/L","$/kg",3.0910000000000002]
[null,"Above 600 mg/L","$/kg",6.2350000000000003]
["Acidity","0-100 mg/L","$/kg CaCO3",0.434]
[null,"100-300 mg/L","$/kg CaCO3",0.91]
[null,"Above 300 mg/L","$/kg CaCO3",1.81]
["Alkalinity","0-100 mg/L","$/kg CaCO3",0.13800000000000001]
[null,"100-200 mg/L","$/kg CaCO3",0.32800000000000001]
[null,"Above 200 mg/L","$/kg CaCO3",0.65600000000000003]
["Nitrogen","N/A","$/kg",1.397]
["Phosphorus","N/A","$/kg",0.39200000000000002]
["Sulphate","0 - 50 mg/L","$/kg","No Charge"]
[null,"Above 50 mg/L","$/kg",0.74099999999999999]
["TDS","0 – 1,000 mg/L","$/kg","No Charge"]
[null,"1,000 – 3,000 mg/L","$/kg",1E-3]
[null,"3,000 – 6,000 mg/L","$/kg",4.1000000000000002E-2]
[null,"Above 6,000 mg/L","$/kg",0.14699999999999999]
["Chromium","0 – 30 g per day","$/kg",11.602]
[null,"30 – 1,000 g per day","$/kg",23.140999999999998]
[null,"Above 1,000 g per day","$/kg",92.722999999999999]
["Copper","0 – 30 g per day","$/kg",11.602]
[null,"30 – 120 g per day","$/kg",23.140999999999998]
[null,"Above 120 g per day","$/kg",92.722999999999999]
["Lead","0 – 30 g per day","$/kg",11.602]
[null,"30 – 300 g per day","$/kg",23.140999999999998]
[null,"Above 300 g per day","$/kg",92.722999999999999]
["Nickel","0 – 6 g per day","$/kg",11.602]
[null,"6 – 150 g per day","$/kg",23.140999999999998]
[null,"Above 150 g per day","$/kg",92.722999999999999]
["Zinc","0 – 50 g per day","$/kg",11.602]
[null,"50 – 500 g per day","$/kg",23.140999999999998]
[null,"Above 500 g per day","$/kg",92.722999999999999]
["Arsenic","0 – 1 g per day","$/kg",11.602]
[null,"1 – 40 g per day","$/kg",115.875]
[null,"Above 40 g per day","$/kg",1158.73]
["Cadmium","0 – 1 g per day","$/kg",11.602]
[null,"1 – 15 g per day","$/kg",115.875]
[null,"Above 15 g per day","$/kg",1158.73]
["Molybdenum","0 – 1 g per day","$/kg",11.602]
[null,"1 – 20 g per day","$/kg",115.875]
[null,"Above 20 g per day","$/kg",1158.73]
["Selenium","0 – 1 g per day","$/kg",11.602]
[null,"1 – 20 g per day","$/kg",115.875]
[null,"Above 20 g per day","$/kg",1158.73]
["Silver","0 –2 g per day","$/kg",11.602]
[null,"2 – 10 g per day","$/kg",115.875]
[null,"Above 10 g per day","$/kg",1158.73]
["Mercury","0 – 0.1 g per day","$/kg",11.602]
[null,"0.1 – 1 g per day","$/kg",1158.73]
[null,"Above 1 g per day","$/kg",8690.8040000000001]
[]
["GCMS Scan",123,null,"Updated 5/12/17 applicable to November 2022"]
["Glyphosate",123,null,"Updated 5/12/17"]
["TPH",43,null,"Updated 5/12/17"]
["BTEX",32,null,"Updated 5/12/17"]
["BNP (specific base nuetral pesticide scan)",63,null,"Updated 11/10/19 Specific price advised by Andrew Harvey ARL email 11/10/19"]
[]
[]
[]
[]
[]
["Effluent discharged from a septic tank or effluent pumping system ($/kL)",null,"$/kg",null,1.7569999999999999]
[]
["Third Party Tankered Waste:",null,null,null,null,null,null,"21/22"]
[null,null,null,"Fixed Charge",null,null,"Volumetric Charges"]
["Category 1.01","Animal waste",null,null,0,null,null,132.77000000000001,"Includes GST"]
[]
["Category 1.02","Septage",null,null,0,null,null,120.68]
[]
["Category 1.02","Shipping waste "," (0-150kL)",null,1412.51,null,null,0,"Includes GST"]
[]
["Category 1.02","Shipping waste  ","(over 150kL)",null,1412.51,null,null,5.39,"Includes GST"]
[]
["Category 1.03","Grease Trap",null,null,0,null,null,130.46,"Includes GST"]
[]
["Category 1.04","Winery Waste",null,null,0,null,null,60.5,"Includes GST"]
[]
["Category 14","Pond Water",null,null,0,null,null,54.78,"Includes GST"]

{"sheet":"FY 22-23 Charges","index":9,"n_rows":125,"n_cols":10,"rows_kept":125,"cut":false,"hidden":true,"merged":[]}
["Trade Waste Fees & Charges"]
[]
["Financial Year 2022/2023"]
[]
["Name","Description","Units","Charge"]
["Business Domestic ",null,"$/kL",4.0410000000000004]
[]
["Service Charges"]
["Establishment Fee",null,"$/hr",142.88999999999999]
["Permit Fee","All Permits","each",240.16]
["FOGMan Admin Fee",null,"each",95.95]
["Washing Machine Fee",null,"each",null," "]
["Inspection Fee",null,"$/hr",142.80000000000001,{"$f":"\"Subject to GST $\"&ROUND(1.1*D13,2)","v":"Subject to GST $157.08"},null,{"$f":"G14/1.1","v":142.80000000000001}]
["Meter Reading Fee",null,"each",42.86,null,null,{"$f":"I20","v":157.08000000000001}]
["Sampling Fee","Scheduled - grab","each",484.44,"Includes GST",null,"(Note setup sampler only charge $484.55, inclusive of GST)"]
[null,"Scheduled  - Composite","each",767.47,"Includes GST",null,"+ $484.55","for each composite sample >1, inclusive of GST"]
[null,"Unscheduled - grab","each","at cost","Includes GST"]
[null,"Unscheduled  - Composite","each","at cost","Includes GST"]
["Open Area Fee",null,"$/m2",1.67]
["One-off Discharge Admin Fee",null,"$/hr",142.88999999999999,null,"One-off Discharge Inspection",null,null,157.08000000000001,"Includes GST"]
["Product Evaluation",null,"$/hr",187.55]
["Variable Charges"]
["Volume","N/A","$/kL",1.5660000000000001]
["BOD","0 - 5,000 mg/L","$/kg",1.3069999999999999]
[null,"Above 5,000 mg/L","$/kg",2.6669999999999998]
["COD","0 – 10,000 mg/L","$/kg"]
[null,"Above 10,000 mg/L","$/kg"]
["Suspended Solids","0 – 2,000 mg/L ","$/kg",1.782]
[null,"Above 2,000 mg/L ","$/kg",3.585]
["Oil & Grease","0 – 300 mg/L","$/kg",1.609]
[null,"300 - 600 mg/L","$/kg",3.153]
[null,"Above 600 mg/L","$/kg",6.36]
["Acidity","0-100 mg/L","$/kg CaCO3",0.443]
[null,"100-300 mg/L","$/kg CaCO3",0.92900000000000005]
[null,"Above 300 mg/L","$/kg CaCO3",1.8460000000000001]
["Alkalinity","0-100 mg/L","$/kg CaCO3",0.14000000000000001]
[null,"100-200 mg/L","$/kg CaCO3",0.33500000000000002]
[null,"Above 200 mg/L","$/kg CaCO3",0.66900000000000004]
["Nitrogen","N/A","$/kg",1.425]
["Phosphorus","N/A","$/kg",0.4]
["Sulphate","0 - 50 mg/L","$/kg","No Charge"]
[null,"Above 50 mg/L","$/kg",0.75600000000000001]
["TDS","0 – 1,000 mg/L","$/kg","No Charge"]
[null,"1,000 – 3,000 mg/L","$/kg",1E-3]
[null,"3,000 – 6,000 mg/L","$/kg",4.2000000000000003E-2]
[null,"Above 6,000 mg/L","$/kg",0.15]
["Chromium","0 – 30 g per day","$/kg",11.834]
[null,"30 – 1,000 g per day","$/kg",23.603999999999999]
[null,"Above 1,000 g per day","$/kg",94.578000000000003]
["Copper","0 – 30 g per day","$/kg",11.834]
[null,"30 – 120 g per day","$/kg",23.603999999999999]
[null,"Above 120 g per day","$/kg",94.578000000000003]
["Lead","0 – 30 g per day","$/kg",11.834]
[null,"30 – 300 g per day","$/kg",23.603999999999999]
[null,"Above 300 g per day","$/kg",94.578000000000003]
["Nickel","0 – 6 g per day","$/kg",11.834]
[null,"6 – 150 g per day","$/kg",23.603999999999999]
[null,"Above 150 g per day","$/kg",94.578000000000003]
["Zinc","0 – 50 g per day","$/kg",11.834]
[null,"50 – 500 g per day","$/kg",23.603999999999999]
[null,"Above 500 g per day","$/kg",94.578000000000003]
["Arsenic","0 – 1 g per day","$/kg",11.834]
[null,"1 – 40 g per day","$/kg",118.193]
[null,"Above 40 g per day","$/kg",1181.905]
["Cadmium","0 – 1 g per day","$/kg",11.834]
[null,"1 – 15 g per day","$/kg",118.193]
[null,"Above 15 g per day","$/kg",1181.905]
["Molybdenum","0 – 1 g per day","$/kg",11.834]
[null,"1 – 20 g per day","$/kg",118.193]
[null,"Above 20 g per day","$/kg",1181.905]
["Selenium","0 – 1 g per day","$/kg",11.834]
[null,"1 – 20 g per day","$/kg",118.193]
[null,"Above 20 g per day","$/kg",1181.905]
["Silver","0 –2 g per day","$/kg",11.834]
[null,"2 – 10 g per day","$/kg",118.193]
[null,"Above 10 g per day","$/kg",1181.905]
["Mercury","0 – 0.1 g per day","$/kg",11.834]
[null,"0.1 – 1 g per day","$/kg",1181.905]
[null,"Above 1 g per day","$/kg",8864.6200000000008]
[]
["GCMS Scan",123,null,"Updated 5/12/17 applicable to November 2022"]
["Glyphosate",123,null,"Updated 5/12/17 applicable to November 2022"]
["TPH",43,null,"Updated 5/12/17 applicable to November 2022"]
["BTEX",32,null,"Updated 5/12/17 applicable to November 2022"]
["BNP (specific base nuetral pesticide scan)",63,null,"Updated 11/10/19 Specific price advised by Andrew Harvey ARL email 11/10/19 when requested at the same time as GCMS scan."]
["PFAS",180,null,"Updated 29/07/21 valid to Nov 2022",null,null," (Note if laboratory runs the blank this is also charged, can tell by the number of results you receive)"]
[]
[]
[]
[]
["Effluent discharged from a septic tank or effluent pumping system ($/kL)",null,"$/kg",null,1.792]
[]
["Third Party Tankered Waste:",null,null,null,null,null,null,"22/23"]
[null,null,null,"Fixed Charge",null,null,null,"Volumetric Charges ($/kL)"]
["Category 1.01 (K100)","Animal waste",null,null,0,null,null,135.41,"Includes GST"]
[]
["Category 1.02 (K210)","Septage",null,null,0,null,null,123.09]
[]
["Category 1.02 (K210)","Shipping waste "," (0-150kL)",null,1440.78,null,null,0,"Includes GST"]
[]
["Category 1.02","Shipping waste  ","(over 150kL)",null,1440.78,null,null,5.5,"Includes GST"]
[]
["Category 1.03 (K110)","Grease Trap",null,null,0,null,null,132.99,"Includes GST"]
[]
["Category 1.04 (K200)","Winery Waste",null,null,0,null,null,61.71,"Includes GST"]
[]
["Category 14 (L150)","Pond Water",null,null,0,null,null,55.77,"Includes GST"]
[]
[]
["Greasy Waste Non Compliance (GST does not apply to these charges)"]
[]
["Category A - Daily Charges (0.3 kL/d)",null,6.15]
["Category A - Annual Charge - 5 days/week",null,1205.02]
["Category A - Annual Charge - 6 days/week",null,1444.8]
["Category A - Annual Charge - 7 days/week",null,1684.57]
[]
["Category B - Daily Charges (0.5 kL/d)",null,10.25]
["Category B - Annual Charge - 5 days/week",null,2008.37]
["Category B - Annual Charge - 6 days/week",null,2407.9899999999998]
["Category B - Annual Charge - 7 days/week",null,2807.62]
[]
["Category C - Daily Charges (1.2 kL/d)",null,24.59]
["Category C - Annual Charge - 5 days/week",null,4820.08]
["Category C - Annual Charge - 6 days/week",null,5779.18]
["Category C - Annual Charge - 7 days/week",null,6738.28]

{"sheet":"FY 23-24 Charges","index":10,"n_rows":125,"n_cols":10,"rows_kept":125,"cut":false,"hidden":true,"merged":[]}
["Trade Waste Fees & Charges"]
[]
["Financial Year 2023/2024"]
[]
["Name","Description","Units","Charge"]
["Business Domestic ",null,"$/kL",4.1420000000000003]
[]
["Service Charges"]
["Establishment Fee",null,"$/hr",146.46]
["Permit Fee","All Permits","each",246.16]
["FOGMan Admin Fee",null,"each",98.35]
["Washing Machine Fee",null,"each",null," "]
["Inspection Fee",null,"$/hr",146.4,{"$f":"\"Subject to GST $\"&ROUND(1.1*D13,2)","v":"Subject to GST $161.04"},null,{"$f":"G14/1.1","v":146.39999999999998}]
["Meter Reading Fee",null,"each",43.93,null,null,{"$f":"I20","v":161.04}]
["Sampling Fee","Scheduled - grab","each",496.54,"Includes GST",null,"(Note setup sampler only charge $290.07, inclusive of GST)"]
[null,"Scheduled  - Composite","each",786.61,"Includes GST",null,"+ $496.54","for each composite sample >1, inclusive of GST"]
[null,"Unscheduled - grab","each","at cost","Includes GST"]
[null,"Unscheduled  - Composite","each","at cost","Includes GST"]
["Open Area Fee",null,"$/m2",1.72]
["One-off Discharge Admin Fee",null,"$/hr",146.46,null,"One-off Discharge Inspection",null,null,161.04,"Includes GST"]
["Product Evaluation",null,"$/hr",192.24]
["Variable Charges"]
["Volume","N/A","$/kL",1.605]
["BOD","0 - 5,000 mg/L","$/kg",1.339]
[null,"Above 5,000 mg/L","$/kg",2.734]
["COD","0 – 10,000 mg/L","$/kg"]
[null,"Above 10,000 mg/L","$/kg"]
["Suspended Solids","0 – 2,000 mg/L ","$/kg",1.8260000000000001]
[null,"Above 2,000 mg/L ","$/kg",3.6739999999999999]
["Oil & Grease","0 – 300 mg/L","$/kg",1.649]
[null,"300 - 600 mg/L","$/kg",3.2320000000000002]
[null,"Above 600 mg/L","$/kg",6.5190000000000001]
["Acidity","0-100 mg/L","$/kg CaCO3",0.45400000000000001]
[null,"100-300 mg/L","$/kg CaCO3",0.95199999999999996]
[null,"Above 300 mg/L","$/kg CaCO3",1.893]
["Alkalinity","0-100 mg/L","$/kg CaCO3",0.14399999999999999]
[null,"100-200 mg/L","$/kg CaCO3",0.34300000000000003]
[null,"Above 200 mg/L","$/kg CaCO3",0.68600000000000005]
["Nitrogen","N/A","$/kg",1.4610000000000001]
["Phosphorus","N/A","$/kg",0.41]
["Sulphate","0 - 50 mg/L","$/kg","No Charge"]
[null,"Above 50 mg/L","$/kg",0.77500000000000002]
["TDS","0 – 1,000 mg/L","$/kg","No Charge"]
[null,"1,000 – 3,000 mg/L","$/kg",1E-3]
[null,"3,000 – 6,000 mg/L","$/kg",4.2999999999999997E-2]
[null,"Above 6,000 mg/L","$/kg",0.154]
["Chromium","0 – 30 g per day","$/kg",12.13]
[null,"30 – 1,000 g per day","$/kg",24.193999999999999]
[null,"Above 1,000 g per day","$/kg",96.941999999999993]
["Copper","0 – 30 g per day","$/kg",12.13]
[null,"30 – 120 g per day","$/kg",24.193999999999999]
[null,"Above 120 g per day","$/kg",96.941999999999993]
["Lead","0 – 30 g per day","$/kg",12.13]
[null,"30 – 300 g per day","$/kg",24.193999999999999]
[null,"Above 300 g per day","$/kg",96.941999999999993]
["Nickel","0 – 6 g per day","$/kg",12.13]
[null,"6 – 150 g per day","$/kg",24.193999999999999]
[null,"Above 150 g per day","$/kg",96.941999999999993]
["Zinc","0 – 50 g per day","$/kg",12.13]
[null,"50 – 500 g per day","$/kg",24.193999999999999]
[null,"Above 500 g per day","$/kg",96.941999999999993]
["Arsenic","0 – 1 g per day","$/kg",12.13]
[null,"1 – 40 g per day","$/kg",121.14700000000001]
[null,"Above 40 g per day","$/kg",1211.452]
["Cadmium","0 – 1 g per day","$/kg",12.13]
[null,"1 – 15 g per day","$/kg",121.14700000000001]
[null,"Above 15 g per day","$/kg",1211.452]
["Molybdenum","0 – 1 g per day","$/kg",12.13]
[null,"1 – 20 g per day","$/kg",121.14700000000001]
[null,"Above 20 g per day","$/kg",1211.452]
["Selenium","0 – 1 g per day","$/kg",12.13]
[null,"1 – 20 g per day","$/kg",121.14700000000001]
[null,"Above 20 g per day","$/kg",1211.452]
["Silver","0 –2 g per day","$/kg",12.13]
[null,"2 – 10 g per day","$/kg",121.14700000000001]
[null,"Above 10 g per day","$/kg",1211.452]
["Mercury","0 – 0.1 g per day","$/kg",12.13]
[null,"0.1 – 1 g per day","$/kg",1211.452]
[null,"Above 1 g per day","$/kg",9086.2350000000006]
[]
["GCMS Scan",123,null,"Updated 5/12/17 applicable to November 2022"]
["Glyphosate",123,null,"Updated 5/12/17 applicable to November 2022"]
["TPH",43,null,"Updated 5/12/17 applicable to November 2022"]
["BTEX",32,null,"Updated 5/12/17 applicable to November 2022"]
["BNP (specific base nuetral pesticide scan)",63,null,"Updated 11/10/19 Specific price advised by Andrew Harvey ARL email 11/10/19 when requested at the same time as GCMS scan."]
["PFAS",180,null,"Updated 29/07/21 valid to Nov 2022",null,null," (Note if laboratory runs the blank this is also charged, can tell by the number of results you receive)"]
[]
[]
[]
[]
["Effluent discharged from a septic tank or effluent pumping system ($/kL)",null,"$/kg",null,1.837]
[]
["Third Party Tankered Waste:",null,null,null,null,null,null,"23/24"]
[null,null,null,"Fixed Charge",null,null,null,"Volumetric Charges ($/kL)"]
["Category 1.01 (K100)","Animal waste",null,null,0,null,null,138.82,"Includes GST"]
[]
["Category 1.02 (K210)","Septage",null,null,0,null,null,126.17]
[]
["Category 1.02 (K210)","Shipping waste "," (0-150kL)",null,1476.75,null,null,0,"Includes GST"]
[]
["Category 1.02","Shipping waste  ","(over 150kL)",null,1476.75,null,null,5.61,"Includes GST"]
[]
["Category 1.03 (K110)","Grease Trap",null,null,0,null,null,136.4,"Includes GST"]
[]
["Category 1.04 (K200)","Winery Waste",null,null,0,null,null,63.36,"Includes GST"]
[]
["Category 14 (L150)","Pond Water",null,null,0,null,null,57.2,"Includes GST"]
[]
[]
["Greasy Waste Non Compliance (GST does not apply to these charges)"]
[]
["Category A - Daily Charges (0.3 kL/d)",null,6.3]
["Category A - Annual Charge - 5 days/week",null,1234.92]
["Category A - Annual Charge - 6 days/week",null,1480.64]
["Category A - Annual Charge - 7 days/week",null,1726.37]
[]
["Category B - Daily Charges (0.5 kL/d)",null,10.5]
["Category B - Annual Charge - 5 days/week",null,2058.1999999999998]
["Category B - Annual Charge - 6 days/week",null,2467.7399999999998]
["Category B - Annual Charge - 7 days/week",null,2877.28]
[]
["Category C - Daily Charges (1.2 kL/d)",null,25.2]
["Category C - Annual Charge - 5 days/week",null,4939.68]
["Category C - Annual Charge - 6 days/week",null,5922.57]
["Category C - Annual Charge - 7 days/week",null,6905.47]

{"sheet":"FY 24-25 Charges","index":11,"n_rows":125,"n_cols":10,"rows_kept":125,"cut":false,"hidden":true,"merged":[]}
["Trade Waste Fees & Charges"]
[]
["Financial Year 2024/2025"]
[]
["Name","Description","Units","Charge"]
["Business Domestic ",null,"$/kL",4.2460000000000004]
[]
["Service Charges"]
["Establishment Fee",null,"$/hr",150.13]
["Permit Fee","All Permits","each",252.32]
["FOGMan Admin Fee",null,"each",100.81]
["Washing Machine Fee",null,"each",null," "]
["Inspection Fee",null,"$/hr",150,{"$f":"\"Subject to GST $\"&ROUND(1.1*D13,2)","v":"Subject to GST $165"},null,{"$f":"G14/1.1","v":150}]
["Meter Reading Fee",null,"each",45.03,null,null,{"$f":"I20","v":165}]
["Sampling Fee","Scheduled - grab","each",508.97,"Includes GST",null,"(Note setup sampler only charge $297.33, inclusive of GST)"]
[null,"Scheduled  - Composite","each",806.3,"Includes GST",null,"+ $508.97","for each composite sample >1, inclusive of GST"]
[null,"Unscheduled - grab","each","at cost","Includes GST"]
[null,"Unscheduled  - Composite","each","at cost","Includes GST"]
["Open Area Fee",null,"$/m2",1.76]
["One-off Discharge Admin Fee",null,"$/hr",150.13,null,"One-off Discharge Inspection",null,null,165,"Includes GST"]
["Product Evaluation",null,"$/hr",197.04]
["Variable Charges"]
["Volume","N/A","$/kL",1.645]
["BOD","0 - 5,000 mg/L","$/kg",1.373]
[null,"Above 5,000 mg/L","$/kg",2.802]
["COD","0 – 10,000 mg/L","$/kg"]
[null,"Above 10,000 mg/L","$/kg"]
["Suspended Solids","0 – 2,000 mg/L ","$/kg",1.8720000000000001]
[null,"Above 2,000 mg/L ","$/kg",3.766]
["Oil & Grease","0 – 300 mg/L","$/kg",1.69]
[null,"300 - 600 mg/L","$/kg",3.3130000000000002]
[null,"Above 600 mg/L","$/kg",6.6820000000000004]
["Acidity","0-100 mg/L","$/kg CaCO3",0.46500000000000002]
[null,"100-300 mg/L","$/kg CaCO3",0.97599999999999998]
[null,"Above 300 mg/L","$/kg CaCO3",1.94]
["Alkalinity","0-100 mg/L","$/kg CaCO3",0.14699999999999999]
[null,"100-200 mg/L","$/kg CaCO3",0.35199999999999998]
[null,"Above 200 mg/L","$/kg CaCO3",0.70299999999999996]
["Nitrogen","N/A","$/kg",1.4970000000000001]
["Phosphorus","N/A","$/kg",0.42]
["Sulphate","0 - 50 mg/L","$/kg","No Charge"]
[null,"Above 50 mg/L","$/kg",0.79400000000000004]
["TDS","0 – 1,000 mg/L","$/kg","No Charge",null,"NOTE: To calculate the chargeable kg/d of TDS you need to subtract the first 1000 mg/L or when using mS/m subtract (1000/6 or 167 mS/m) from conductivity."]
[null,"1,000 – 3,000 mg/L","$/kg",1E-3]
[null,"3,000 – 6,000 mg/L","$/kg",4.3999999999999997E-2]
[null,"Above 6,000 mg/L","$/kg",0.158]
["Chromium","0 – 30 g per day","$/kg",12.433]
[null,"30 – 1,000 g per day","$/kg",24.798999999999999]
[null,"Above 1,000 g per day","$/kg",99.366]
["Copper","0 – 30 g per day","$/kg",12.433]
[null,"30 – 120 g per day","$/kg",24.798999999999999]
[null,"Above 120 g per day","$/kg",99.366]
["Lead","0 – 30 g per day","$/kg",12.433]
[null,"30 – 300 g per day","$/kg",24.798999999999999]
[null,"Above 300 g per day","$/kg",99.366]
["Nickel","0 – 6 g per day","$/kg",12.433]
[null,"6 – 150 g per day","$/kg",24.798999999999999]
[null,"Above 150 g per day","$/kg",99.366]
["Zinc","0 – 50 g per day","$/kg",12.433]
[null,"50 – 500 g per day","$/kg",24.798999999999999]
[null,"Above 500 g per day","$/kg",99.366]
["Arsenic","0 – 1 g per day","$/kg",12.433]
[null,"1 – 40 g per day","$/kg",124.176]
[null,"Above 40 g per day","$/kg",1241.739]
["Cadmium","0 – 1 g per day","$/kg",12.433]
[null,"1 – 15 g per day","$/kg",124.176]
[null,"Above 15 g per day","$/kg",1241.739]
["Molybdenum","0 – 1 g per day","$/kg",12.433]
[null,"1 – 20 g per day","$/kg",124.176]
[null,"Above 20 g per day","$/kg",1241.739]
["Selenium","0 – 1 g per day","$/kg",12.433]
[null,"1 – 20 g per day","$/kg",124.176]
[null,"Above 20 g per day","$/kg",1241.739]
["Silver","0 –2 g per day","$/kg",12.433]
[null,"2 – 10 g per day","$/kg",124.176]
[null,"Above 10 g per day","$/kg",1241.739]
["Mercury","0 – 0.1 g per day","$/kg",12.433]
[null,"0.1 – 1 g per day","$/kg",1241.739]
[null,"Above 1 g per day","$/kg",9313.3909999999996]
[]
["GCMS Scan",123,null,"Updated 5/12/17 applicable to November 2022"]
["Glyphosate",123,null,"Updated 5/12/17 applicable to November 2022"]
["TPH",43,null,"Updated 5/12/17 applicable to November 2022"]
["BTEX",32,null,"Updated 5/12/17 applicable to November 2022"]
["BNP (specific base nuetral pesticide scan)",63,null,"Updated 11/10/19 Specific price advised by Andrew Harvey ARL email 11/10/19 when requested at the same time as GCMS scan."]
["PFAS",180,null,"Updated 29/07/21 valid to Nov 2022",null,null," (Note if laboratory runs the blank this is also charged, can tell by the number of results you receive)"]
[]
[]
[]
[]
["Effluent discharged from a septic tank or effluent pumping system ($/kL)",null,"$/kg",null,1.883]
[]
["Third Party Tankered Waste:",null,null,null,null,null,null,"24/25"]
[null,null,null,"Fixed Charge",null,null,null,"Volumetric Charges ($/kL)"]
["Category 1.01 (K100)","Animal waste",null,null,0,null,null,142.22999999999999,"Includes GST"]
[]
["Category 1.02 (K210)","Septage",null,null,0,null,null,129.33000000000001]
[]
["Category 1.02 (K210)","Shipping waste "," (0-150kL)",null,1513.71,null,null,0,"Includes GST"]
[]
["Category 1.02","Shipping waste  ","(over 150kL)",null,1513.71,null,null,5.72,"Includes GST"]
[]
["Category 1.03 (K110)","Grease Trap",null,null,0,null,null,139.81,"Includes GST"]
[]
["Category 1.04 (K200)","Winery Waste",null,null,0,null,null,64.900000000000006,"Includes GST"]
[]
["Category 14 (L150)","Pond Water",null,null,0,null,null,58.63,"Includes GST"]
[]
[]
["Greasy Waste Non Compliance (GST does not apply to these charges)"]
[]
["Category A - Daily Charges (0.3 kL/d)",null,6.46]
["Category A - Annual Charge - 5 days/week",null,1265.9000000000001]
["Category A - Annual Charge - 6 days/week",null,1517.79]
["Category A - Annual Charge - 7 days/week",null,1769.68]
[]
["Category B - Daily Charges (0.5 kL/d)",null,10.76]
["Category B - Annual Charge - 5 days/week",null,2109.84]
["Category B - Annual Charge - 6 days/week",null,2529.65]
["Category B - Annual Charge - 7 days/week",null,2949.46]
[]
["Category C - Daily Charges (1.2 kL/d)",null,25.83]
["Category C - Annual Charge - 5 days/week",null,5063.6000000000004]
["Category C - Annual Charge - 6 days/week",null,6071.16]
["Category C - Annual Charge - 7 days/week",null,7078.71]

{"sheet":"Est-Charges > 6 Month Remaining","index":12,"n_rows":51,"n_cols":9,"rows_kept":51,"cut":false,"hidden":true,"merged":[[44,0,44,3],[45,0,45,2],[50,0,50,2],[28,0,28,3],[36,0,36,3],[37,0,37,2],[38,1,38,2],[39,1,39,2],[40,0,40,2],[20,0,20,3],[0,1,0,8],[3,0,3,3],[3,6,3,8],[7,6,7,8],[11,0,11,3]]}
["Name of One-Off Discharge:",{"$f":"+Application!E26&+\" (\"&Application!G18&+\")\"","v":"lot #: (enter here (for billing purposes))"}]
["From",{"$f":"Application!M64","v":"Enter start date here (in dd/mmm/yyyy format)"},"To",{"$f":"Application!M65","v":"Enter end date here (in dd/mmm/yyyy format)"}]
[]
["Administrative / Assessment"]
["Description","Total Hrs","Rate","$ Total"]
[{"$f":"'Est-6 Month Charges'!A6:A9","v":0},null,{"$f":"'FY 24-25 Charges'!D$20","v":150.13},{"$f":"C6*B6","v":0}]
[{"$f":"'Est-6 Month Charges'!A7:A10","v":0},null,{"$f":"'FY 24-25 Charges'!D$20","v":150.13},{"$f":"C7*B7","v":0}]
[{"$f":"'Est-6 Month Charges'!A8:A11","v":0},null,{"$f":"'FY 24-25 Charges'!D$20","v":150.13},{"$f":"C8*B8","v":0},null,null,"Laboratory Analysis Calculator"]
[{"$f":"'Est-6 Month Charges'!A9:A12","v":0},null,{"$f":"'FY 24-25 Charges'!D$20","v":150.13},{"$f":"C9*B9","v":0},null,null,"Indicate \"y\" in blue box if analyte was included"]
[null,null,"Total",{"$f":"SUM(D6:D9)","v":0},null,null,"Analyte","Included?","Rate"]
[null,null,null,null,null,null,"pH",null,{"$f":"'Est-6 Month Charges'!I11","v":4.9000000000000004}]
["Monitoring ",null,null,null,null,null,"Acidity to pH 6",null,{"$f":"'Est-6 Month Charges'!I12","v":15.7}]
["Description","Total Hrs","Rate","$ Total",null,null,"Alkalinity - to pH 10",null,{"$f":"'Est-6 Month Charges'!I13","v":16.3}]
[{"$f":"'Est-6 Month Charges'!A14","v":0},{"$f":"(((Assessment!P27-Assessment!P26)/7)-26)*0.75","v":{"$error":"#VALUE!"}},{"$f":"'FY 24-25 Charges'!D$13","v":150},{"$f":"IF(B14<=0,0,C14*B14)","v":{"$error":"#VALUE!"}},null,null,"Conductivity",null,{"$f":"'Est-6 Month Charges'!I14","v":4.8}]
[{"$f":"'Est-6 Month Charges'!A15","v":0},null,{"$f":"'FY 24-25 Charges'!D$13","v":150},{"$f":"C15*B15","v":0},null,null,"Sulphur",null,{"$f":"'Est-6 Month Charges'!I15","v":3}]
[{"$f":"'Est-6 Month Charges'!A16","v":0},null,{"$f":"'FY 24-25 Charges'!D$13","v":150},{"$f":"C16*B16","v":0},null,null,"Copper",null,{"$f":"'Est-6 Month Charges'!I16","v":3}]
[{"$f":"'Est-6 Month Charges'!A17","v":0},null,{"$f":"'FY 24-25 Charges'!D$13","v":150},{"$f":"C17*B17","v":0},"GST Component",null,"Cadmium",null,{"$f":"'Est-6 Month Charges'!I17","v":3}]
[null,null,"Total",{"$f":"SUM(D14:D17)","v":{"$error":"#VALUE!"}},{"$f":"SUM(D18)*0.1","v":{"$error":"#VALUE!"}},null,"Chromium",null,{"$f":"'Est-6 Month Charges'!I18","v":3}]
[null,null,null,null,null,null,"Nickel",null,{"$f":"'Est-6 Month Charges'!I19","v":3}]
[null,null,null,null,null,null,"Lead",null,{"$f":"'Est-6 Month Charges'!I20","v":3}]
["Laboratory Analysis Costs",null,null,null,null,null,"Zinc",null,{"$f":"'Est-6 Month Charges'!I21","v":3}]
["Description","No. Samples","Unit Rate","$ Total",null,null,"Molybdenum",null,{"$f":"'Est-6 Month Charges'!I22","v":3}]
[{"$f":"'Est-6 Month Charges'!A23","v":0},{"$f":"'Est-6 Month Charges'!B23","v":0},{"$f":"H32","v":0},{"$f":"C23*B23","v":0},null,null,"Selenium",null,{"$f":"'Est-6 Month Charges'!I23","v":3}]
[{"$f":"'Est-6 Month Charges'!A24","v":0},{"$f":"'Est-6 Month Charges'!B24","v":0},null,{"$f":"C24*B24","v":0},null,null,"Silver",null,{"$f":"'Est-6 Month Charges'!I24","v":3}]
[{"$f":"'Est-6 Month Charges'!A25","v":0},{"$f":"'Est-6 Month Charges'!B25","v":0},null,{"$f":"C25*B25","v":0},null,null,"Arsenic",null,{"$f":"'Est-6 Month Charges'!I25","v":3}]
[{"$f":"'Est-6 Month Charges'!A26","v":0},{"$f":"'Est-6 Month Charges'!B26","v":0},null,{"$f":"C26*B26","v":0},null,null,"Mercury",null,{"$f":"'Est-6 Month Charges'!I26","v":14}]
[null,null,"Total",{"$f":"SUM(D23:D26)","v":0},null,null,"Suspended Solids"," ",{"$f":"'Est-6 Month Charges'!I27","v":12.8}]
[null,null,null,null,null,null,"BOD"," ",{"$f":"'Est-6 Month Charges'!I28","v":38.5}]
["Quality/Quantity Charges",null,null,null,null,null,"COD"," ",{"$f":"'Est-6 Month Charges'!I29","v":46}]
["Description","Charge Rate","Total Volume kL","$ Total",null,null,"TKN"," ",{"$f":"'Est-6 Month Charges'!I30","v":26.8}]
["Quality/Quantity Charges",{"$f":"ROUND('Est-QQ > 6 Month Remaining'!B31,4)","v":{"$error":"#VALUE!"}},{"$f":"'Est-QQ > 6 Month Remaining'!J54","v":{"$error":"#VALUE!"}},{"$f":"IF(C31=0,\"\",B31*C31)","v":{"$error":"#VALUE!"}},null,null,"Phosphorus Total"," ",{"$f":"'Est-6 Month Charges'!I31","v":16.600000000000001}]
[null,null,null,{"$f":"IF(C32=0,\"\",B32*C32)","v":""},null,null,"Oil and Grease",null,{"$f":"'Est-6 Month Charges'!I32","v":40.799999999999997}]
[null,null,null,null,null,null,"BTEX & TPH",null,{"$f":"'Est-6 Month Charges'!I33","v":75}]
[null,null,null,null,null,null,"PFAS, PFOS, PFOA *",null,{"$f":"'Est-6 Month Charges'!I34","v":208}]
[null,null,"Total",{"$f":"SUM(D31:D34)","v":{"$error":"#VALUE!"}},null,null,"Total Unit Rate",{"$f":"SUMIF(H11:I34,\"y\",I11:I34)","v":0}]
[]
["Regional  Charges",null,null,null,null,null,"* ARL charges $28 preparation fee per sample of PFAS "]
["          Description",null,null," $ Total"]
["Labour cost                             ",{"$f":"+\"Hours: \"&+Assessment!S98","v":"Hours: "},null,{"$f":"Assessment!AC98","v":0}]
["Equipment usage /hire             ",{"$f":"+\"Equipment needed: \"&+Assessment!S99","v":"Equipment needed: "},null,{"$f":"Assessment!AC99","v":0}]
[{"$f":"+\"Other (specify): \"&+Assessment!L100","v":"Other (specify): "},null,null,{"$f":"Assessment!AC100","v":0}]
["                                                            ",null,"Total ",{"$f":"D39+D40+D41","v":0}]
[]
[]
["Total Charges"]
["        Description",null,null,"$ Total"]
["Quality/Quantity Charges",null,null,{"$f":"D35","v":{"$error":"#VALUE!"}}]
["Laboratory Analysis Costs",null,null,{"$f":"D27","v":0}]
[{"$f":"A37","v":"Regional  Charges"},null,null,{"$f":"D42","v":0}]
["Labour Costs (Subject to GST)",{"$f":"B6+B7+B8+B9+B14+B15+B16+B17","v":{"$error":"#VALUE!"}},"Hrs",{"$f":"IF(D10+D18=0,\"\",D10+D18)","v":{"$error":"#VALUE!"}}]
["Total Charges for One Off Discharge\n(which includes the Monitoring GST component)",null,null,{"$f":"((SUM(D47:D50)+E18)*(Application!M65/Application!M64)-D42)","v":{"$error":"#VALUE!"}}]

{"sheet":"Est-QQ > 6 Month Remaining","index":13,"n_rows":54,"n_cols":10,"rows_kept":54,"cut":false,"hidden":true,"merged":[[43,7,43,9]]}
[]
[]
["Customer",{"$f":"+Application!E26&+\" (\"&Application!G18&+\")\"","v":"lot #: (enter here (for billing purposes))"},null,null,null,null,"Permit "]
["Parameter","Units","Amount","Daily charge","Annual Charge",null,"Mass kg/d","Mass kg/a"]
["Daily volume (note 1)","kL/d",{"$f":"IF(H51=0,\"\",(H51*60*60*24)/1000)","v":""},{"$f":"C5*'FY 24-25 Charges'!D23","v":{"$error":"#VALUE!"}},{"$f":"D5*365","v":{"$error":"#VALUE!"}}]
["BOD","mg/L",{"$f":"'Est-6 Month QQ'!C6:C32","v":0},{"$f":"IF(C6>5000,(C6-5000)*'FY 24-25 Charges'!D25 + 5000*'FY 24-25 Charges'!D24, C6*'FY 24-25 Charges'!D24)*$C$5/1000","v":{"$error":"#VALUE!"}},{"$f":"D6*365","v":{"$error":"#VALUE!"}},null,{"$f":"C6*$C$5/1000","v":{"$error":"#VALUE!"}},{"$f":"G6*365","v":{"$error":"#VALUE!"}},{"$f":"IF(G6=0,\"\",IF(G6<=200,\"Mass alarm limit OK\",\"Check mass alarm limit!\"))","v":{"$error":"#VALUE!"}}]
["SS","mg/L",{"$f":"'Est-6 Month QQ'!C7:C33","v":0},{"$f":"IF(C7>2000,(C7-2000)*'FY 24-25 Charges'!D29 + 2000*'FY 24-25 Charges'!D28, C7*'FY 24-25 Charges'!D28)*$C$5/1000","v":{"$error":"#VALUE!"}},{"$error":"#VALUE!"},null,{"$error":"#VALUE!"},{"$f":"G7*365","v":{"$error":"#VALUE!"}},{"$f":"IF(G7=0,\"\",IF(G7<=200,\"Mass alarm limit OK\",\"Check mass alarm limit!\"))","v":{"$error":"#VALUE!"}}]
["Oil & Grease","mg/L",{"$f":"'Est-6 Month QQ'!C8:C34","v":0},{"$f":"IF(C8>600,(C8-600)*'FY 24-25 Charges'!D32 + 300*'FY 24-25 Charges'!D31 + 300*'FY 24-25 Charges'!D30, IF(C8>300,(C8-300)*'FY 24-25 Charges'!D31 + 300*'FY 24-25 Charges'!D30, C8*'FY 24-25 Charges'!D30))*$C$5/1000","v":{"$error":"#VALUE!"}},{"$error":"#VALUE!"},null,{"$error":"#VALUE!"},{"$error":"#VALUE!"}]
["Acidity to pH 6","mg/L CaCO3",{"$f":"'Est-6 Month QQ'!C9:C35","v":0},{"$f":"IF(C9>300,(C9-300)*'FY 24-25 Charges'!D35 + 200*'FY 24-25 Charges'!D34 + 100*'FY 24-25 Charges'!D33, IF(C9>100,(C9-100)*'FY 24-25 Charges'!D34 + 100*'FY 24-25 Charges'!D33, C9*'FY 24-25 Charges'!D33))*$C$5/1000","v":{"$error":"#VALUE!"}},{"$error":"#VALUE!"},null,{"$error":"#VALUE!"},{"$error":"#VALUE!"}]
["Alkalinity to pH 10","mg/L CaCO3",{"$f":"'Est-6 Month QQ'!C10:C36","v":0},{"$f":"IF(C10>200,(C10-200)*'FY 24-25 Charges'!D38 + 100*'FY 24-25 Charges'!D37 + 100*'FY 24-25 Charges'!D36, IF(C10>100,(C10-100)*'FY 24-25 Charges'!D37 + 100*'FY 24-25 Charges'!D36, C10*'FY 24-25 Charges'!D36))*$C$5/1000","v":{"$error":"#VALUE!"}},{"$error":"#VALUE!"},null,{"$error":"#VALUE!"},{"$error":"#VALUE!"}]
["TKN","mg/L",{"$f":"'Est-6 Month QQ'!C11:C37","v":0},{"$f":"C11*'FY 24-25 Charges'!D39*$C$5/1000","v":{"$error":"#VALUE!"}},{"$error":"#VALUE!"},null,{"$error":"#VALUE!"},{"$error":"#VALUE!"},{"$f":"IF(G11=0,\"\",IF(G11<=30,\"Mass alarm limit OK\",\"Check mass alarm limit!\"))","v":{"$error":"#VALUE!"}}]
["Phosphorus","mg/L",{"$f":"'Est-6 Month QQ'!C12:C38","v":0},{"$f":"C12*'FY 24-25 Charges'!D40*$C$5/1000","v":{"$error":"#VALUE!"}},{"$error":"#VALUE!"},null,{"$error":"#VALUE!"},{"$error":"#VALUE!"},{"$f":"IF(G12=0,\"\",IF(G12<=10,\"Mass alarm limit OK\",\"Check mass alarm limit!\"))","v":{"$error":"#VALUE!"}}]
["Sulphate as SO4","mg/L",{"$f":"'Est-6 Month QQ'!C13:C39","v":0},{"$f":"IF(C13>50,(C13-50)*'FY 24-25 Charges'!D42, 0)*$C$5/1000","v":{"$error":"#VALUE!"}},{"$error":"#VALUE!"},null,{"$error":"#VALUE!"},{"$error":"#VALUE!"}]
["Conductivity (note 2)","mS/m",{"$f":"'Est-6 Month QQ'!C14:C40","v":0},{"$f":"IF(C14>1000,(C14-1000)*'FY 24-25 Charges'!D46 + 500*'FY 24-25 Charges'!D45 + 333*'FY 24-25 Charges'!D44, IF(C14>500,(C14-500)*'FY 24-25 Charges'!D45 + 333*'FY 24-25 Charges'!D44, IF(C14>167, (C14-167)*'FY 24-25 Charges'!D44, 0)))*$C$5*6/1000","v":{"$error":"#VALUE!"}},{"$error":"#VALUE!"},null,{"$f":"(6*C14)*$C$5/1000","v":{"$error":"#VALUE!"}},{"$error":"#VALUE!"},{"$f":"IF(G14=0,\"\",IF(G14<=220,\"Mass alarm limit OK\",\"Check mass alarm limit!\"))","v":{"$error":"#VALUE!"}}]
["Chromium","mg/L",{"$f":"'Est-6 Month QQ'!C15:C41","v":0},{"$f":"IF(G15>1, (G15-1)*'FY 24-25 Charges'!D49 + 0.97*'FY 24-25 Charges'!D48 + 0.03*'FY 24-25 Charges'!D47, IF(G15>0.03, (G15-0.03)*'FY 24-25 Charges'!D48 + 0.03*'FY 24-25 Charges'!D47, G15*'FY 24-25 Charges'!D47))","v":{"$error":"#VALUE!"}},{"$error":"#VALUE!"},null,{"$f":"C15*$C$5/1000","v":{"$error":"#VALUE!"}},{"$error":"#VALUE!"},{"$f":"IF(G15=0,\"\",IF((1000*G15)<=30,\"Mass alarm limit OK\",\"Check mass alarm limit!\"))","v":{"$error":"#VALUE!"}}]
["Copper","mg/L",{"$f":"'Est-6 Month QQ'!C16:C42","v":0},{"$f":"IF(G16>0.12, (G16-0.12)*'FY 24-25 Charges'!D52 + 0.09*'FY 24-25 Charges'!D51 + 0.03*'FY 24-25 Charges'!D50, IF(G16>0.03, (G16-0.03)*'FY 24-25 Charges'!D51 + 0.03*'FY 24-25 Charges'!D50, G16*'FY 24-25 Charges'!D50))","v":{"$error":"#VALUE!"}},{"$error":"#VALUE!"},null,{"$f":"C16*$C$5/1000","v":{"$error":"#VALUE!"}},{"$error":"#VALUE!"},{"$f":"IF(G16=0,\"\",IF((1000*G16)<=30,\"Mass alarm limit OK\",\"Check mass alarm limit!\"))","v":{"$error":"#VALUE!"}}]
["Lead","mg/L",{"$f":"'Est-6 Month QQ'!C17:C43","v":0},{"$f":"IF(G17>0.3, (G17-0.3)*'FY 24-25 Charges'!D55 + 0.27*'FY 24-25 Charges'!D54 + 0.03*'FY 24-25 Charges'!D53, IF(G17>0.03, (G17-0.03)*'FY 24-25 Charges'!D54 + 0.03*'FY 24-25 Charges'!D53, G17*'FY 24-25 Charges'!D53))","v":{"$error":"#VALUE!"}},{"$error":"#VALUE!"},null,{"$error":"#VALUE!"},{"$error":"#VALUE!"},{"$f":"IF(G17=0,\"\",IF((1000*G17)<=30,\"Mass alarm limit OK\",\"Check mass alarm limit!\"))","v":{"$error":"#VALUE!"}}]
["Nickel","mg/L",{"$f":"'Est-6 Month QQ'!C18:C44","v":0},{"$f":"IF(G18>0.15, (G18-0.15)*'FY 24-25 Charges'!D58 + 0.144*'FY 24-25 Charges'!D57 + 0.006*'FY 24-25 Charges'!D56, IF(G18>0.006, (G18-0.006)*'FY 24-25 Charges'!D57 + 0.006*'FY 24-25 Charges'!D56, G18*'FY 24-25 Charges'!D56))","v":{"$error":"#VALUE!"}},{"$error":"#VALUE!"},null,{"$error":"#VALUE!"},{"$error":"#VALUE!"},{"$f":"IF(G18=0,\"\",IF((1000*G18)<=6,\"Mass alarm limit OK\",\"Check mass alarm limit!\"))","v":{"$error":"#VALUE!"}}]
["Zinc","mg/L",{"$f":"'Est-6 Month QQ'!C19:C45","v":0},{"$f":"IF(G19>0.5, (G19-0.5)*'FY 24-25 Charges'!D61 + 0.45*'FY 24-25 Charges'!D60 + 0.05*'FY 24-25 Charges'!D59, IF(G19>0.05, (G19-0.05)*'FY 24-25 Charges'!D60 + 0.05*'FY 24-25 Charges'!D59, G19*'FY 24-25 Charges'!D59))","v":{"$error":"#VALUE!"}},{"$error":"#VALUE!"},null,{"$error":"#VALUE!"},{"$error":"#VALUE!"},{"$f":"IF(G19=0,\"\",IF((1000*G19)<=50,\"Mass alarm limit OK\",\"Check mass alarm limit!\"))","v":{"$error":"#VALUE!"}}]
["Arsenic","mg/L",{"$f":"'Est-6 Month QQ'!C20:C46","v":0},{"$f":"IF(G20>0.04, (G20-0.04)*'FY 24-25 Charges'!D64 + 0.039*'FY 24-25 Charges'!D63 + 0.001*'FY 24-25 Charges'!D62, IF(G20>0.001, (G20-0.001)*'FY 24-25 Charges'!D63 + 0.001*'FY 24-25 Charges'!D62, G20*'FY 24-25 Charges'!D62))","v":{"$error":"#VALUE!"}},{"$error":"#VALUE!"},null,{"$error":"#VALUE!"},{"$error":"#VALUE!"},{"$f":"IF(G20=0,\"\",IF((1000*G20)<=1,\"Mass alarm limit OK\",\"Check mass alarm limit!\"))","v":{"$error":"#VALUE!"}}]
["Cadmium","mg/L",{"$f":"'Est-6 Month QQ'!C21:C47","v":0},{"$f":"IF(G21>0.015, (G21-0.015)*'FY 24-25 Charges'!D67 + 0.014*'FY 24-25 Charges'!D66 + 0.001*'FY 24-25 Charges'!D65, IF(G21>0.001, (G21-0.001)*'FY 24-25 Charges'!D66 + 0.001*'FY 24-25 Charges'!D65, G21*'FY 24-25 Charges'!D65))","v":{"$error":"#VALUE!"}},{"$error":"#VALUE!"},null,{"$error":"#VALUE!"},{"$error":"#VALUE!"},{"$f":"IF(G21=0,\"\",IF((1000*G21)<=1,\"Mass alarm limit OK\",\"Check mass alarm limit!\"))","v":{"$error":"#VALUE!"}}]
["Molybdenum","mg/L",{"$f":"'Est-6 Month QQ'!C22:C48","v":0},{"$f":"IF(G22>0.02, (G22-0.02)*'FY 24-25 Charges'!D70 + 0.019*'FY 24-25 Charges'!D69 + 0.001*'FY 24-25 Charges'!D68, IF(G22>0.001, (G22-0.001)*'FY 24-25 Charges'!D69 + 0.001*'FY 24-25 Charges'!D68, G22*'FY 24-25 Charges'!D68))","v":{"$error":"#VALUE!"}},{"$error":"#VALUE!"},null,{"$error":"#VALUE!"},{"$error":"#VALUE!"},{"$f":"IF(G22=0,\"\",IF((1000*G22)<=1,\"Mass alarm limit OK\",\"Check mass alarm limit!\"))","v":{"$error":"#VALUE!"}}]
["Selenium","mg/L",{"$f":"'Est-6 Month QQ'!C23:C49","v":0},{"$f":"IF(G23>0.02, (G23-0.02)*'FY 24-25 Charges'!D73 + 0.019*'FY 24-25 Charges'!D72 + 0.001*'FY 24-25 Charges'!D71, IF(G23>0.001, (G23-0.001)*'FY 24-25 Charges'!D72 + 0.001*'FY 24-25 Charges'!D71, G23*'FY 24-25 Charges'!D71))","v":{"$error":"#VALUE!"}},{"$error":"#VALUE!"},null,{"$error":"#VALUE!"},{"$error":"#VALUE!"},{"$f":"IF(G23=0,\"\",IF((1000*G23)<=1,\"Mass alarm limit OK\",\"Check mass alarm limit!\"))","v":{"$error":"#VALUE!"}}]
["Silver","mg/L",{"$f":"'Est-6 Month QQ'!C24:C50","v":0},{"$f":"IF(G24>0.01, (G24-0.01)*'FY 24-25 Charges'!D76 + 0.008*'FY 24-25 Charges'!D75 + 0.002*'FY 24-25 Charges'!D74, IF(G24>0.002, (G24-0.002)*'FY 24-25 Charges'!D75 + 0.002*'FY 24-25 Charges'!D74, G24*'FY 24-25 Charges'!D74))","v":{"$error":"#VALUE!"}},{"$error":"#VALUE!"},null,{"$error":"#VALUE!"},{"$error":"#VALUE!"},{"$f":"IF(G24=0,\"\",IF((1000*G24)<=2,\"Mass alarm limit OK\",\"Check mass alarm limit!\"))","v":{"$error":"#VALUE!"}}]
["Mercury","mg/L",{"$f":"'Est-6 Month QQ'!C25:C51","v":0},{"$f":"IF(G25>0.001, (G25-0.001)*'FY 24-25 Charges'!D79 + 0.0009*'FY 24-25 Charges'!D78 + 0.0001*'FY 24-25 Charges'!D77, IF(G25>0.0001, (G25-0.0001)*'FY 24-25 Charges'!D78 + 0.0001*'FY 24-25 Charges'!D77, G25*'FY 24-25 Charges'!D77))","v":{"$error":"#VALUE!"}},{"$error":"#VALUE!"},null,{"$error":"#VALUE!"},{"$error":"#VALUE!"},{"$f":"IF(G25=0,\"\",IF((1000*G25)<=0.1,\"Mass alarm limit OK\",\"Check mass alarm limit!\"))","v":{"$error":"#VALUE!"}}]
["pH",null,{"$f":"'Est-6 Month QQ'!C32:C52","v":{"$error":"#VALUE!"}}]
[null,null,null,null,"TDS mass loads",null,{"$f":"C14*C5*6/1000","v":{"$error":"#VALUE!"}},{"$f":"G27*365","v":{"$error":"#VALUE!"}},{"$f":"IF(G27=0,\"\",IF(G27<=220,\"Mass alarm limit OK\",\"Check mass alarm limit!\"))","v":{"$error":"#VALUE!"}}]
[]
["Total  Charge",null,null,{"$f":"SUM(D5:D25)","v":{"$error":"#VALUE!"}},{"$error":"#VALUE!"}]
[null,null,null,"(daily)","(annually)"]
["Charge per kL",{"$f":"D29/C5","v":{"$error":"#VALUE!"}}]
[]
[]
["Note 1","Volume MUST be daily volume or metals charges will not "]
[null,"calculate correctly"]
["Note 2","Use conductivity to determine TDS charges. If estimating "]
[null,"TDS charges from actual TDS data, convert TDS (mg/L) to"]
[null,"conductivity (mS/m) by dividing by 6 and entering into cell C14."]
["Note 3","All concentrations should be entered in mg/L unless otherwise indicated."]
["Note 4","For OOD Quotes: Total volume may be estimated by client in application or calculated "]
[null,"using table (Discharge Volume 24hrs/day) "]
[null,"For Final OOD Billing: Total volume is calculated from meter readings"]
[]
["What information was used to estimate volume and quality of effluent?",null,null,null,null,null,null,"Discharge Volume 24hrs/day"]
[]
[null,null,null,null,null,null,null,"start date",{"$f":"(Assessment!P26+(365/2))","v":{"$error":"#VALUE!"}}]
[null,null,null,null,null,null,null,"end date",{"$f":"Assessment!P27","v":"Enter end date here (in dd/mmm/yyyy format)"}]
[null,null,null,null,null,null,null,"No Days",{"$f":"I47-I46","v":{"$error":"#VALUE!"}}]
[]
[null,null,null,null,null,null,null,"Rate L/s","No.of Days","Discharge Vol (kL)"]
[null,null,null,null,null,null,null,{"$f":"MIN(Assessment!M76,Assessment!N135)","v":0},{"$f":"I48","v":{"$error":"#VALUE!"}},{"$f":"(H51*3600*24*I51)/1000","v":{"$error":"#VALUE!"}}]
[null,null,null,null,null,null,null,null,null,{"$f":"(H52*3600*24*I52)/1000","v":0}]
[null,null,null,null,null,null,null,null,null,{"$f":"(H53*3600*24*I53)/1000","v":0}]
[null,null,null,null,null,null,null,null,"Total",{"$f":"J51+J52+J53","v":{"$error":"#VALUE!"}}]

{"sheet":"Conditions of Approval","index":14,"n_rows":335,"n_cols":51,"rows_kept":335,"cut":false,"hidden":true,"merged":[[196,3,196,27],[198,3,199,27],[201,3,204,27],[211,3,213,27],[206,3,209,27],[224,3,226,27],[99,13,99,18],[93,2,93,27],[76,7,76,26],[142,2,142,27],[121,2,122,27],[180,2,182,24],[160,7,160,11],[146,3,146,7],[150,3,150,9],[154,3,154,9],[157,3,158,26],[124,2,125,27],[146,21,146,22],[152,10,152,26],[154,10,154,26],[152,3,152,9],[108,9,108,15],[106,17,106,27],[110,17,110,27],[112,2,112,27],[109,17,109,27],[97,13,97,17],[77,3,92,27],[27,3,30,27],[31,3,34,27],[41,3,42,27],[48,3,50,27],[38,3,40,27],[46,3,47,27],[43,3,45,27],[60,3,62,27],[57,2,59,26],[73,18,73,20],[74,18,74,20],[148,3,148,9],[150,10,150,26],[144,3,144,4],[144,15,144,17],[118,2,120,24],[138,2,140,27],[63,3,64,27],[66,3,66,27],[67,3,68,27],[98,13,98,17],[111,2,111,27],[108,17,108,27],[113,2,114,27],[104,17,104,27],[101,2,102,27],[107,17,107,27],[105,17,105,27],[73,21,73,27],[74,21,74,27],[73,3,73,6],[69,3,69,27],[71,3,72,27],[75,3,75,7],[74,3,74,6],[334,3,355,27],[249,3,252,27],[261,3,264,27],[239,3,246,27],[279,3,295,27],[297,3,303,27],[267,3,268,27],[271,3,277,27],[254,2,256,24],[319,2,320,24],[325,3,331,27],[314,3,317,27],[305,3,312,27],[229,3,237,27],[187,3,190,27],[216,3,218,27],[221,3,221,27],[3,2,5,26],[86,32,89,50],[16,30,17,57],[7,30,11,57],[96,13,96,26],[70,3,70,27],[7,6,7,11],[24,3,26,27],[8,4,8,9],[13,16,13,21],[21,2,22,27],[7,2,7,5],[16,4,16,26],[51,3,53,27],[35,3,37,27],[13,30,15,57],[4,30,5,57],[9,6,9,27],[10,6,10,27],[54,3,56,27]]}
[]
["yes"]
["no"]
[null,null,"ADDITIONAL CONDITIONS OF APPROVAL FOR ONE-OFF DISCHARGE TO SEWERAGE WORKS"]
[null,null,null,null,null,null,null,null,null,null,null,null,null,null,null,null,null,null,null,null,null,null,null,null,null,null,null,null,null,null,{"$f":"IF('RRR - 1'!Y3=\"< enter date >\",\"\",\"BEFORE sending the customer this OOD permit renewal first check and see if any previously raised OOD invoices in GRANGE have been paid.  In most cases the OOD customer will be a construction company and only have a sundry account number.\")","v":""}]
[]
[]
[null,null,"Effective Date:",null,null,null,null,null,null,null,null,null,null,null,null,null,null,null,null,null,null,null,null,null,null,null,null,null,null,null,{"$f":"IF('RRR - 1'!Y3=\"< enter date >\",\"\",\"However, sometimes the OOD customer may also have a property account number with other unpaid Water Corporation invoices.  Check and see if the property account shows any legal action for unpaid invoices.  \"&\"\n\nIf there are other unpaid invoices not related to the OOD process then discuss with the Team Leader or Manager before proceeding any further.\")","v":""}]
[]
[null,null,"Approval Holder:",null,null,null,{"$f":"Application!G20","v":"enter here"}]
[null,null,"Organisation:",null,null,null,{"$f":"Application!G18","v":"enter here (for billing purposes)"}]
[null,null,"E-mail:",null,null,null,{"$f":"Application!G21","v":"enterhere@here.com.au"}]
[]
[null,null,"From:",null,null,null,{"$f":"Assessment!U55","v":0},null,null,null,null,null,null,null,null,"Tel:",{"$f":"Assessment!U57","v":0},null,null,null,null,null,null,null,null,null,null,null,null,null,{"$f":"IF('RRR - 1'!Y3=\"< enter date >\",\"\",\"If there are other unpaid invoices then contact and advise the customer that the ongoing OOD renewal will not be granted as per General Conditions Clasue #5 (failure to pay charges already issued by Water Corporation).  \"&\"Advise the customer that the Corporation can terminate this OOD permit under Clause 15(c) or 16(b) for failure to make payment to previously issued accounts.\")","v":""}]
[null,null,"Title:",null,null,null,{"$f":"Assessment!U56","v":0}]
[]
[null,null,null,null,{"$f":"\"These Additional Conditions of Approval for a One-Off Discharge to Sewerage Works are valid for seven (7) days from the date of issue.  Should this document not be signed and received by the Corporation by close of business \"&TEXT(7+G8,\"dd mmmm yyyy\")&\", this Approval is not valid.\"","v":"These Additional Conditions of Approval for a One-Off Discharge to Sewerage Works are valid for seven (7) days from the date of issue.  Should this document not be signed and received by the Corporation by close of business 07 January 1900, this Approval is not valid."},null,null,null,null,null,null,null,null,null,null,null,null,null,null,null,null,null,null,null,null,null,null,null,null,null,{"$f":"IF('RRR - 1'!Y3=\"< enter date >\",\"\",\"This business rule only applies AFTER the completion of the first billing cycle and must remain active thereafter until the completion of the final OOD billing activity.\")","v":""}]
[]
[null,null,{"$f":"IF(OR(Application!G26=\"\",Application!G26=\"enter here\"),\"\",\"Lot \"&Application!G26)&IF(OR(Application!P26=\"\",Application!P26=\"enter here\"),\"\",\" No \"&Application!P26)&IF(OR(Application!V26=\"\",Application!V26=\"enter here\"),\"\",\" \"&Application!V26)&IF(OR(Application!G27=\"\",Application!G27=\"enter here\"),\"\",\" \"&Application!G27)&IF(OR(Application!P27=\"\",Application!P27=\"enter here\"),\"\",\" (\"&Application!P27&\")\")","v":""},null,null,null,null,null,null,null,null,null,null,null,null,null,null,null,null,null,null,null,null,null,null,null,null,null,null,null,{"$f":"IF('RRR - 1'!Y3=\"< enter date >\",\"\",\"Check that earlier Billing Cycle invoices have all been paid (via Grange):\")","v":""},null,null,null,null,null,null,null,null,null,null,null,null,null,null,{"$f":"IF('RRR - 1'!$Y$3=\"< enter date >\",\"\",\"#1\")","v":""},{"$f":"IF('RRR - 2'!$Y$3=\"< enter date >\",\"\",\"#2\")","v":""},{"$f":"IF('RRR - 3'!$Y$3=\"< enter date >\",\"\",\"#3\")","v":""},{"$f":"IF('RRR - 4'!$Y$3=\"< enter date >\",\"\",\"#4\")","v":""},{"$f":"IF('RRR - 5'!$Y$3=\"< enter date >\",\"\",\"#5\")","v":""},{"$f":"IF('RRR - 6'!$Y$3=\"< enter date >\",\"\",\"#6\")","v":""}]
[null,null,{"$f":"+\"Dear \"&+Application!G20","v":"Dear enter here"},null,null,null,null,null,null,null,null,null,null,null,null,null,null,null,null,null,null,null,null,null,null,null,null,null,null,null,null,null,null,null,null,null,null,null,null,null,null,null,null,null,null,{"$f":"IF(AT19=\"#1\",\"y/n\",\"\")","v":""},{"$f":"IF(AU19=\"#2\",\"y/n\",\"\")","v":""},{"$f":"IF(AV19=\"#3\",\"y/n\",\"\")","v":""},{"$f":"IF(AW19=\"#4\",\"y/n\",\"\")","v":""},{"$f":"IF(AX19=\"#5\",\"y/n\",\"\")","v":""},{"$f":"IF(AY19=\"#6\",\"y/n\",\"\")","v":""}]
[]
[null,null,"Your request to discharge Trade Waste from the Premises to the Corporation's Sewerage Works, based on the information you have provided, is approved by the Corporation, subject to the following Additional Conditions, as referred to in the General Conditions to the Corporation’s Approval to Permit a Once-Off Discharge of Trade Waste: "]
[]
[]
[null,null,"1.",{"$f":"+\"The Approval Holder must notify the Commercial and Industrial Services Section of Water Corporation (\"&+Assessment!U55&+\", \"&+Assessment!U57&\") prior to the commencement of the discharge so that a site visit of the Premises can be conducted and an inspection of the equipment can be carried out.\"","v":"The Approval Holder must notify the Commercial and Industrial Services Section of Water Corporation (, ) prior to the commencement of the discharge so that a site visit of the Premises can be conducted and an inspection of the equipment can be carried out."}]
[]
[]
[null,null,"2.","For the Term of the Approval, the Approval Holder must not exceed the Maximum Allowable Instantaneous Discharge Rate.  If this Maximum Allowable Instantaneous Discharge Rate is exceeded, the discharge pumps will be switched off immediately. The Corporation accepts no responsibility for any damage, claim, action, liability, loss, cost, charge, expense, outgoing or payment due to or in respect to switching off of the discharge pumps."]
[]
[]
[]
[null,null,"3.",{"$f":"\"The Approval Holder is responsible for ensuring that the discharge rate and volume of the Trade Waste can be accurately verified by the Corporation during the discharge of Trade Waste.\"&+\" The Approval Holder is responsible for ensuring that accurate and calibrated meters are used and maintained in working order at all times.\"&+\" Should meters fail, the Approval Holder must immediately notify the Corporation (\"&+Assessment!U55&+\", \"&+Assessment!U57&\") whereupon a flow estimate will be made by the Corporation, where reasonably practicable, based upon observation and / or available data from this discharge.\"","v":"The Approval Holder is responsible for ensuring that the discharge rate and volume of the Trade Waste can be accurately verified by the Corporation during the discharge of Trade Waste. The Approval Holder is responsible for ensuring that accurate and calibrated meters are used and maintained in working order at all times. Should meters fail, the Approval Holder must immediately notify the Corporation (, ) whereupon a flow estimate will be made by the Corporation, where reasonably practicable, based upon observation and / or available data from this discharge."}]
[]
[]
[]
[null,null,"4.",{"$f":"\"The Approval Holder is responsible for ensuring that should meters be removed or exchanged, the Approval Holder must immediately contact the Corporation in writing (\"&+Assessment!U55&+\", \"&+Assessment!U57&\") and attach photos of the meter reading for the original and replacement meter.\"","v":"The Approval Holder is responsible for ensuring that should meters be removed or exchanged, the Approval Holder must immediately contact the Corporation in writing (, ) and attach photos of the meter reading for the original and replacement meter."}]
[]
[]
[null,null,"5.","The Approval Holder is responsible for ensuring that the discharge of Trade Waste must be made via an acceptable and safe form of pre-treatment (e.g. settling trap) to ensure no silt or gross solids are discharged into the Sewerage Works and avoiding the creation of any hazards. A safe accessible sampling point must be available at or downstream of the pre-treatment fixture at all times."]
[]
[]
[null,null,"6.","The Approval Holder must ensure that the connection to the Sewerage Works includes a water seal such that sewer gases cannot be vented to the atmosphere."]
[]
[null,null,"7.","The Corporation will conduct periodic site visits and may take additional samples for analysis.  All Corporation work in respect to the discharge of Trade Waste will be subject to standard Corporation charges for volume, quality and labour as detailed in the Trade Waste Charges 2023/2024 brochure."]
[]
[]
[null,null,"8.","Upon accepting and signing these Additional Conditions, at least a minimum of one (1) hour administrative charge will be applied even if a discharge of Trade Waste does not subsequently occur.  If more than one (1) hour in administrative charges have been accrued then the full administrative amount shall be charged."]
[]
[null,null,"9.","The Approval Holder acknowledges and agrees that should there be a variation in analysis results that either exceed the Corporation’s acceptance criteria or adversely impacts the Corporation’s Water Service Works, the Corporation, in its absolute discretion, may immediately terminate the Approval."]
[]
[]
[null,null,"10.",{"$f":"+\"Upon completion of the discharge, the Approval Holder must notify the Commercial and Industrial Services Section of Water Corporation in writing (\"&+Assessment!U55&+\", \"&+Assessment!U57&\") to (i) advise the discharge has ended and (ii) supply a photograph of the final meter reading.  \"&\"Should a photograph of the final meter reading not be provided within seven (7) calendar days (when requested by the Corporation in writing)\"&\" then a final volume estimate will be made by the Corporation, where reasonably practicable, based upon historical recorded data from this discharge.\"","v":"Upon completion of the discharge, the Approval Holder must notify the Commercial and Industrial Services Section of Water Corporation in writing (, ) to (i) advise the discharge has ended and (ii) supply a photograph of the final meter reading.  Should a photograph of the final meter reading not be provided within seven (7) calendar days (when requested by the Corporation in writing) then a final volume estimate will be made by the Corporation, where reasonably practicable, based upon historical recorded data from this discharge."}]
[]
[]
[null,null,"11.","The Approval Holder acknowledges and agrees that due to the Approval Holder's ability to discharge Trade Waste on a twenty four (24) hour basis, the Approval Holder must provide the Corporation with a contact number in the customer acceptance box on page 3 of these Additional Conditions of Acceptance for One-Off Discharge to Sewerage Works, in which the Corporation can contact the Approval Holder twenty four (24) hours a day."]
[]
[]
[null,null,"ADDITIONAL CONDITIONS OF APPROVAL FOR ONE-OFF DISCHARGE TO SEWERAGE WORKS (continued)"]
[]
[]
[null,null,"12.",{"$f":"+\"If an extension of the Term of the Approval is required, the Commercial and Industrial Services Section of the Corporation must be notified in writing \"&+(IF(Assessment!P31=\"Immediately\",\"immediately!  A reassessment of the conditions will be conducted and a new agreement may be issued.\",Assessment!P31&+\" prior to the Expiry Date (\"&+(IF(Assessment!P27-Assessment!P26>(365/2),TEXT(Assessment!P26+(365/2),\"DD MMM YYYY\"),TEXT(Assessment!P27,\"DD MMM YYYY\")))&+\"). A reassessment of the conditions will be conducted and a new agreement may be issued.\"))","v":{"$error":"#VALUE!"}}]
[]
[]
[null,null,"13.","The Approval Holder acknowledges having received a copy of the General Conditions to the Corporation’s Approval to Permit the Once-Off Discharge of Trade Waste prior to signing the Additional Conditions. "]
[]
[]
[null,null,{"$f":"IF(Assessment!O40=\"access chamber\",\"14.\",\"\")","v":""},{"$f":"IF(Assessment!O40=\"access chamber\",\"The Approval Holder must:\",\"\")","v":""}]
[null,null,null,{"$f":"IF(Assessment!O40=\"access chamber\",\"(a)  contact the Contact listed below, at least seven (7) days prior to the Start Date where an original connection to an access\n      chamber is required, to arrange for the required connection; and\n\",\"\")","v":""}]
[]
[null,null,null,{"$f":"IF(Assessment!O40=\"access chamber\",\"(b) contact the Contact listed below at least seven (7) days prior to the End Date of Discharge to arrange for:\",\"\")","v":""}]
[null,null,null,{"$f":"IF(Assessment!O40=\"access chamber\",\"      (i)  the removal of original connection referred to in clause 14(a) above; and\",\"\")","v":""}]
[null,null,null,{"$f":"IF(Assessment!O40=\"access chamber\",\"      (ii) for the reinstatement of the of the access chamber to its condition immediately prior to original connection referred to in\n            clause 14(a) above.\",\"\")","v":""}]
[]
[null,null,null,{"$f":"IF(Assessment!O40=\"access chamber\",\"Contact name:\",\"\")","v":""},null,null,null,{"$f":"IF(Assessment!O40=\"access chamber\",Assessment!N104,\"\")","v":""},null,null,null,null,null,null,null,null,null,null,{"$f":"IF(Assessment!O40=\"access chamber\",\"Phone number:\",\"\")","v":""},null,null,{"$f":"IF(Assessment!O40=\"access chamber\",Assessment!N108,\"\")","v":""}]
[null,null,null,{"$f":"IF(Assessment!O40=\"access chamber\",\"Contact title:\",\"\")","v":""},null,null,null,{"$f":"IF(Assessment!O40=\"access chamber\",Assessment!N105,\"\")","v":""},null,null,null,null,null,null,null,null,null,null,{"$f":"IF(Assessment!O40=\"access chamber\",\"Mobile number:\",\"\")","v":""},null,null,{"$f":"IF(Assessment!O40=\"access chamber\",Assessment!N107,\"\")","v":""}]
[null,null,null,{"$f":"IF(Assessment!O40=\"access chamber\",\"Branch responsible:\",\"\")","v":""},null,null,null,null,{"$f":"IF(Assessment!O40=\"access chamber\",Assessment!N106,\"\")","v":""}]
[null,null,{"$f":"IF(Assessment!O40=\"access chamber\",\"15.\",\"14.\")","v":"14."},"Definitions"]
[null,null,null,"Effective Date means the date specified in Schedule 1 of the Additional Conditions of Approval for One Off Discharge to Sewer Works to the Approval.\n\nEnd Date means the date specified in Schedule 1 of the Additional Conditions of Approval for One Off Discharge to Sewer Works to the Approval.\n\nExpiry Date means the date specified in clause 10 of the Additional Conditions of Approval for One Off Discharge to Sewer Works to the Approval.\n\nMaximum Allowable Instantaneous Discharge Rate means the rate set out in Schedule 1 of the Additional Conditions of Approval for One Off Discharge to Sewer Works to the Approval.\n\nOOD means one off discharge.\n\nStart Date means the date specified in Schedule 1 of the Additional Conditions of Approval for One Off Discharge to Sewer Works to the Approval.\n\nTerm means from the period commencing on the Start Date and ending on the Expiry Date, being less than or equal to six (6) months in duration.\n\n"]
[]
[]
[]
[]
[]
[]
[]
[]
[]
[]
[]
[]
[]
[]
[]
[null,null,"Schedule 1 to the Additional Conditions of Approval For One-Off Discharge to Sewerage Works"]
[null,null,"Specific Discharge Requirements and Details"]
[null,null,"Maximum allowable instantaneous discharge rate:",null,null,null,null,null,null,null,null,null,null,{"$f":"MIN(Assessment!M76,Assessment!N135)&+\" L/s\"","v":"0 L/s"}]
[null,null,"Location of discharge:",null,null,null,null,null,null,null,null,null,null,{"$f":"IF(Assessment!O40=\"property sewer connection\",\"property sewer connection\",(IF(Assessment!O40=\"access chamber\",\"access chamber \"&+Assessment!W40,(IF(Assessment!O40=\"plan attached\",\"refer to plans attached\",(IF(Assessment!O40=\"other\",Assessment!W40)))))))","v":false}]
[null,null,"Start Date of discharge:",null,null,null,null,null,null,null,null,null,null,{"$f":"Assessment!P26","v":"Enter start date here (in dd/mmm/yyyy format)"}]
[null,null,"End Date of overall discharge as requested:",null,null,null,null,null,null,null,null,null,null,{"$f":"Assessment!P27","v":"Enter end date here (in dd/mmm/yyyy format)"}]
[null,null,"Effective Date:",null,null,null,null,null,null,null,null,null,null,{"$f":"G8","v":"00:00:00"}]
[]
[null,null,{"$f":"IF(Assessment!P27-Assessment!P26<(362/2),\"Estimated costs of One Off Discharge located at \"&C19,(+\"The estimated costs for the one off discharge located at \"&+Assessment!P19&+\" shown below are for the period of this approval, specifically between the dates of \"&+TEXT(N98,\"DD MMM YYYY\")&+\" and \"&+(IF(Assessment!P27-Assessment!P26>(365/2),TEXT(Assessment!P26+(365/2),\"DD MMM YYYY\"),TEXT(Assessment!P27,\"DD MMM YYYY\")))&+\" inclusive.\"))","v":{"$error":"#VALUE!"}}]
[]
[]
[null,null,"Component",null,null,null,null,null,null,null,null,null,null,null,null,null,null,"Charge Estimate"]
[null,null,"Administration",null,null,null,null,null,null,null,null,null,null,null,null,null,null,{"$f":"IF(OR(Application!Y29=\"Y\",Application!Y29=\"Yes\"),\"Not Applicable\",'Est-6 Month Charges'!D10)","v":0}]
[null,null,"Monitoring",null,null,null,null,null,null,null,null,null,null,null,null,null,null,{"$f":"IF(OR(Application!Y29=\"Y\",Application!Y29=\"Yes\"),\"Not Applicable\",'Est-6 Month Charges'!D18+'Est-6 Month Charges'!E18)","v":0}]
[null,null,"Sampling",null,null,null,null,null,null,null,null,null,null,null,null,null,null,{"$f":"IF(OR(Application!Y29=\"Y\",Application!Y29=\"Yes\"),\"Not Applicable\",'Est-6 Month Charges'!D27)","v":0}]
[null,null,"Quality and Quantity (Q/Q)",null,null,null,null,null,null,{"$f":"IF(OR(Application!Y29=\"Y\",Application!Y29=\"Yes\"),\"\",\"(\"&TEXT('Est-6 Month Charges'!C31,\"#,##0\")&\"kL @ $\"&'Est-6 Month Charges'!B31&\"/kL)\")","v":{"$error":"#VALUE!"}},null,null,null,null,null,null,null,{"$f":"IF(OR(Application!Y29=\"Y\",Application!Y29=\"Yes\"),\"Not Applicable\",'Est-6 Month Charges'!D35)","v":{"$error":"#VALUE!"}}]
[null,null,{"$f":"IF(OR(Application!P29=\"Y\",Application!P29=\"Yes\"),\"Regional (Dis)Connection Charges to Sewer #\",\"Regional (Dis)Connection Charges to Sewer\")","v":"Regional (Dis)Connection Charges to Sewer"},null,null,null,null,null,null,null,null,null,null,null,null,null,null,{"$f":"IF(OR(Application!Y29=\"Y\",Application!Y29=\"Yes\"),\"Not Applicable\",'Est-6 Month Charges'!D42+'Est-6 Month Charges'!E42)","v":0}]
[null,null,"Total*",null,null,null,null,null,null,null,null,null,null,null,null,null,null,{"$f":"IF(OR(Application!Y29=\"Y\",Application!Y29=\"Yes\"),\"Not Applicable\",'Est-6 Month Charges'!D51)","v":{"$error":"#VALUE!"}}]
[null,null,{"$f":"IF(OR(Application!Y29=\"Y\",Application!Y29=\"Yes\"),\"\",IF('Est-QQ > 6 Month Remaining'!I47-'Est-6 Month QQ'!I52>=(365/2),\"* The estimated cost for the balance of the remaining discharge period is approximately $\"&+(TEXT(ROUND('Est-Charges > 6 Month Remaining'!D51,0),\"#,##0\")&+\" and subject to change when this OOD contract is renewed.\"),\"\"))","v":{"$error":"#VALUE!"}}]
[null,null,{"$f":"IF(OR(Application!Y29=\"Y\",Application!Y29=\"Yes\"),\"* Water Corporation do not charge recovery for Corporation Asset activites.  These conditions must still be adhered to to ensure protection of workers, conveyancing systems and wastewater treatment assets.\",\"* This is an estimate only and subject to change. The final charge for Q/Q will be based on actual volumes and quality discharged.\")","v":"* This is an estimate only and subject to change. The final charge for Q/Q will be based on actual volumes and quality discharged."}]
[null,null,{"$f":"IF(OR(Application!Y29=\"N\",Application!Y29=\"No\",Application!Y29=\" No\",Application!Y29=\"No \",Application!Y29=\" No \",Application!Y29=\"No.\",,Application!Y29=\"N.\",Application!Y29=\" N\",Application!Y29=\" N \",Application!Y29=\" N.\",Application!Y29=\" N. \"),\"\",IF(Assessment!O40<>\"property sewer connection\",\"# Regional (dis)connection costs are not determined by C&IS. The Corporation Project Manager must provide a NWA# to the Region for (dis)connection.\",\"\"))","v":"# Regional (dis)connection costs are not determined by C&IS. The Corporation Project Manager must provide a NWA# to the Region for (dis)connection."}]
[]
[]
[]
[]
[null,null,"ADDITIONAL CONDITIONS OF APPROVAL FOR ONE-OFF DISCHARGE TO SEWERAGE WORKS (continued)"]
[]
[]
[null,null,{"$f":"\"To confirm your acceptance of the Additional Conditions Of Approval For The One-Off Discharge to Sewer Works to the Approval, please sign this document in the space provided below and return it by scan/e-mail to \"&LEFT(Assessment!U55,FIND(\" \",Assessment!U55)-1)&\".\"&RIGHT(Assessment!U55,LEN(Assessment!U55)-FIND(\" \",Assessment!U55)-0)&\"@watercorporation.com.au.\"","v":{"$error":"#VALUE!"}}]
[]
[]
[null,null,{"$f":"+\"Should you have any queries regarding the above, please contact me on telephone \"&Assessment!U57&\" or by e-mail (\"&LEFT(Assessment!U55,FIND(\" \",Assessment!U55)-1)&\".\"&RIGHT(Assessment!U55,LEN(Assessment!U55)-FIND(\" \",Assessment!U55)-0)&\"@watercorporation.com.au).\"","v":{"$error":"#VALUE!"}}]
[]
[]
[]
[]
[]
[]
[]
[null,null,"Regards"]
[null,null,{"$f":"Assessment!U55","v":0}]
[null,null,{"$f":"Assessment!U56","v":0}]
[null,null,"Commercial and Industrial Services "]
[null,null,"Water Corporation (WA)"]
[]
[null,null,"ALL PAGES MUST BE RETURNED ONCE THIS ACCEPTANCE HAS BEEN SIGNED.  FAILURE TO RETURN A SIGNED COPY RENDERS THIS DOCUMENT INVALID."]
[]
[]
[]
[null,null,"Customer Acceptance of Additional Conditions and General Conditions\n(ALL FIELDS BELOW MUST BE COMPLETED)"]
[]
[null,null,null,"Name:",null,null,null,null,null,null,null,null,null,null,null,"Signature:"]
[]
[null,null,null,"Business Trading Name:",null,null,null,null,null,null,null,null,null,null,null,null,null,null,null,null,null,"Date:"]
[]
[null,null,null,"Contact Phone Number (24hrs):"]
[]
[null,null,null,"Billing Contact Name (person):",null,null,null,null,null,null,{"$f":"IF(OR(Application!Y29=\"Y\",Application!Y29=\"Yes\"),\"N/A\",\"\")","v":""}]
[]
[null,null,null,"Billing Business Name (full title):",null,null,null,null,null,null,{"$f":"IF(OR(Application!Y29=\"Y\",Application!Y29=\"Yes\"),\"N/A\",\"\")","v":""}]
[]
[null,null,null,"Billing Address Details (postal*):",null,null,null,null,null,null,{"$f":"IF(OR(Application!Y29=\"Y\",Application!Y29=\"Yes\"),\"N/A\",\"\")","v":""}]
[null,null,null,null,null,null,null,null,null,null,"* Sundry accounts are issued as a hard copy and sent via post, not via e-mail."]
[]
[null,null,null,{"$f":"+\"Please scan/e-mail this completed acknowledgement to \"&LEFT(Assessment!U55,FIND(\" \",Assessment!U55)-1)&\".\"&RIGHT(Assessment!U55,LEN(Assessment!U55)-FIND(\" \",Assessment!U55)-0)&\"@watercorporation.com.au.\"","v":{"$error":"#VALUE!"}}]
[]
[]
[null,null,null,null,null,null,{"$f":"C8","v":"Effective Date:"},{"$f":"G8","v":"00:00:00"}]
[]
[]
[]
[]
[]
[]
[]
[]
[]
[]
[]
[]
[]
[]
[]
[]
[]
[]
[]
[null,null,"ADDITIONAL CONDITIONS OF APPROVAL FOR ONE-OFF DISCHARGE TO SEWERAGE WORKS (continued)"]
[]
[]
[]
[null,null,"General Conditions"]
[]
[null,null,"1.","Approval to Discharge"]
[null,null,null,"(a) The Approval Holder may, subject to the Conditions the Approval, the Act, and any regulations of the Act, to the extent\n     not altered by the Approval, discharge, or permit the discharge of Trade Waste from the Premises to the Sewerage Works.\n\n(b) The Corporation shall receive the Approval Holder’s Trade Waste, provided that at all times, the Approval Holder complies with\n     the Conditions to the Approval. "]
[]
[]
[]
[]
[null,null,"2.","Commencement"]
[null,null,null,"The Approval commences on the Effective Date specified in Schedule 1 of the Additional Conditions."]
[]
[null,null,"3.","Discharge Obligations"]
[null,null,null,"(a) The Approval Holder must discharge, or permit the discharge of, Trade Waste in accordance with the Approval."]
[]
[null,null,null,"(b) The Approval Holder must ensure that Trade Waste is discharged from waste producing processes via pre-treatment and\n     monitoring equipment within the quality, quantity and rate discharge limits specified in the Approval."]
[]
[]
[null,null,null,"(c) The Corporation will determine, in its absolute discretion:\n     (1) the method of measuring the quality, quantity and rate of Trade Waste discharged by the Approval Holder; and\n     (2) whether the Approval Holder has complied with the quality, quantity and rate of Trade Waste discharge limits specified in the\n          Approval."]
[]
[]
[]
[]
[null,null,null,{"$f":"\"(d) The Approval Holder must immediately report to the Corporation, by telephone (business hours on \"&Assessment!U57&\", \"&Assessment!U55&\" - \"&Assessment!U56&\"; after hours on 13 13 75), of any failure of a fixture,\"&\" fitting or pipe that is part of or connected to the Sewerage Works or any other change, event, or anything that impacts or is\"&\" likely to impact on the quality or quantity of Trade Waste discharged by the Approval Holder.\"","v":"(d) The Approval Holder must immediately report to the Corporation, by telephone (business hours on ,  - ; after hours on 13 13 75), of any failure of a fixture, fitting or pipe that is part of or connected to the Sewerage Works or any other change, event, or anything that impacts or is likely to impact on the quality or quantity of Trade Waste discharged by the Approval Holder."}]
[]
[]
[]
[]
[null,null,null,"(e) The Approval Holder must obtain the Corporation’s written consent before changing the process of discharging Trade Waste,\n     any fixture, fitting or pipe that is part of or connected to the Sewerage Works  or the nature, quality, discharge rate or\n     discharge volume of Trade Waste."]
[]
[]
[]
[null,null,"4.","Maintenance of fittings, fixtures and pipes"]
[null,null,null,"The Approval Holder must appropriately maintain all fixtures, fittings and pipes that are part of or connected to the Sewerage Works and appropriately install any fixtures, fittings and pipes that are required to be installed as a condition of the Approval in accordance with the Corporation’s requirements and standards."]
[]
[]
[]
[null,null,"5.","Charges and fees"]
[null,null,null,"The Approval Holder must pay all charges and fees applicable to the Approval."]
[]
[null,null,"6.","Repair, Remedy and Make Good"]
[null,null,null,"The Corporation may, at the expense of the Approval Holder, repair, remedy and make good any damage to the Sewerage Works caused by, or arising out of, or resulting from the discharge of Trade Waste failing to comply with the Approval and recover the costs of doing so from the Approval Holder as a debt due and payable from the date of demand for that payment."]
[]
[]
[]
[null,null,"7.","Indemnity"]
[null,null,null,"The Approval Holder indemnifies the Corporation in respect of any claim, action, liability, damage, loss, cost, charge, expense, outgoing or payment which the Corporation suffers, incurs or is liable for in respect of any accident, damage, loss or injury to:\n\n(a) the Water Corporation’s Sewerage Works and/or Water Service Works;\n\n(b) any authorised officer, servant, agent, contractor or employee of the Corporation; or\n\n(c) any third party, property or the environment generally;\n\ndirectly or indirectly arising from the Approval Holder’s failure to implement, or breach of the Approval, or any negligent acts of the Approval Holder."]
[]
[]
[]
[]
[]
[]
[]
[]
[null,null,"8.","Interruptions to service"]
[null,null,null,"(a) The Corporation may from time to time, at its absolute discretion, prevent, stop or restrict the Approval Holder from discharging\n     Trade Waste during any maintenance, alteration, repair or inspection or as a result of any adverse operational impacts on the\n     Corporation’s Sewerage Works or Water Service Works.\n\n(b) The Approval Holder will not be compensated from the Corporation for or in respect to any interruption, restriction or\n     cancellation of the Approval to the discharge of Trade Waste from the Premises to the Sewerage Works during any\n     maintenance, alteration, repair or inspection of the Sewerage Works and/or Water Service Works or for any interruption\n     to the Approval Holder’s ability to discharge Trade Waste."]
[]
[]
[]
[]
[]
[]
[]
[]
[null,null,"9.","Right of entry"]
[null,null,null,"The Corporation or any authorised officer, servant, agent, contractor or employee of the Corporation may, at any time and without notice, enter the Approval Holder’s property and/or the Premises to conduct an inspection, take samples, attach identification tags to any fixtures or fittings that are part of or connected to the Sewerage Works or obtain evidence in relation to the Approval Holder’s compliance or breach or suspected breach of the Approval."]
[]
[]
[]
[]
[null,null,"ADDITIONAL CONDITIONS OF APPROVAL FOR ONE-OFF DISCHARGE TO SEWERAGE WORKS (continued)"]
[]
[]
[]
[null,null,"General Conditions (continued)"]
[]
[null,null,"10.","Approval details to be correct"]
[null,null,null,"(a) The Approval is void where any information or detail included in the Approval is altered or incorrect.\n\n(b) The Approval Holder must immediately provide the Corporation with written notice of any incorrect information or detail included\n     in this Approval."]
[]
[]
[]
[]
[null,null,"11.","Transfer of approval"]
[null,null,null,"At the written request of the Approval Holder, or an incoming occupier or owner of the Premises applicable to the Approval, the Corporation may, in its absolute discretion, transfer the Approval to the incoming occupier or owner of the Premises."]
[]
[]
[null,null,"12.","Amendment of approval"]
[null,null,null,"(a) The Approval supersedes any other Trade Waste discharge approval or other permit issued by the Corporation prior to the\n     Effective Date of the Approval, as specified in Schedule 1 of the Additional Conditions.\n\n(b) The Corporation may revoke the Approval or amend any condition of, or impose a new condition on, the Approval at any time\n     by written notice to the Approval Holder, including upon the transfer of this Approval under condition 11 of this Approval.\n\n(c) At the written request of the Approval Holder, the Corporation may, in its absolute discretion, amend the Conditions of the\n     Approval."]
[]
[]
[]
[]
[]
[]
[null,null,"13.","Conditions"]
[null,null,null,"(a) The Approval Holder acknowledges and agrees that the Approval is subject to the Additional Conditions of Approval for One-Off\n     Discharge to Sewerage Works.\n\n(b) The Approval Holder acknowledges and agrees that the Additional Conditions form part of the Approval and to the extent that\n     there is any inconsistency between the Additional Conditions and any other provisions of the Approval, the Additional Conditions\n     will prevail.\n\n(c) The Approval Holder must comply with the Additional Conditions of Approval for One-Off Discharge to Sewerage Works.\n\n(d) The Approval Holder agrees and acknowledges that the Corporation may amend the Additional Conditions of Approval for One-\n     Off Discharge to Sewerage Works to:\n     (1) avoid or minimise material damage to any of the Corporation’s Sewerage Works and/or the Water Service Works, person,\n          property or the environment generally;\n     (2) avoid or minimise materially adverse impacts on the Corporation’s Sewerage Works and/or Water Service Works in terms of\n          the efficient processing or capacity of the Corporation to treat the Trade Waste; or\n     (3) ensure compliance with, or avoid a likely breach of any condition of a licence or agreement the Corporation is subject to, or\n          the requirements of  any government, local government, statutory authority or statutory corporation or other external entity\n          which has the legal power to enforce compliance; and\n     after the Corporation has made such amendments, they shall apply for the purposes of this Approval.\n\n(e) Defined terms in clause 18 of these General Conditions where used in the Additional Conditions have the same meaning as\n     these General Conditions."]
[]
[]
[]
[]
[]
[]
[]
[]
[]
[]
[]
[]
[]
[]
[]
[]
[null,null,"14.","Compliance with laws"]
[null,null,null,"(a) The relevant provisions of the Act and the Water Services Regulations (WA), and any other applicable laws, apply to the\n     Approval (Laws).\n(b) The Approval Holder must comply, and ensure that all officers, servants, agents, contractors or employees of the Approval\n     Holder comply, with all relevant Laws relating to the discharge of Trade Waste and the conditions of the Approval.\n\n(c) Any breach of the Conditions of the Approval by the Approval Holder’s tenants, officers, servants, agents, contractors or\n     employees will be deemed to be the breach of the Approval Holder."]
[]
[]
[]
[]
[]
[]
[null,null,"15.","Breach of Approval"]
[null,null,null,"If the Approval Holder breaches any Condition of the Approval, the Corporation may do one or more of the following:\n\n(a) give a compliance notice pursuant to section 119 and/or 104 of the Act to the Approval Holder;\n\n(b) amend the Conditions of the Approval, including so that the discharge of Trade Waste is no longer covered by the Approval;\n\n(c) terminate this Approval; or\n\n(d) seek an order against the Approval Holder under section 127 of the Act for the recovery of water service charges including\n     interest."]
[]
[]
[]
[]
[]
[]
[]
[null,null,"16.","Termination of approval"]
[null,null,null,"This Approval will terminate when:\n\n(a) the Approval Holder surrenders this Approval to the Corporation; or\n\n(b) the Corporation, in its absolute discretion, terminates the Approval by written notice to the Approval Holder."]
[]
[]
[]
[]
[null,null,"ADDITIONAL CONDITIONS OF APPROVAL FOR ONE-OFF DISCHARGE TO SEWERAGE WORKS (continued)"]
[]
[]
[null,null,"General Conditions (continued)"]
[]
[null,null,"17.","Privacy"]
[null,null,null,"(a) In giving effect to the Approval, the Approval Holder acknowledges and agrees that the Corporation will collect and retain\n     personal information relating to the Approval Holder.\n\n(b) The Approval holder acknowledges and agrees that the primary purposes of collection by the Corporation of the Approval\n     Holder’s information under or in connection with this Approval includes (without limitation) the provision of information by the\n     Corporation to third parties to:\n     (1) ensure that the Conditions of the Approval are complied with; and\n     (2) ensure the safe, effective and efficient operation, maintenance, repair, or alteration of the Corporation’s Sewerage Works. "]
[]
[]
[]
[]
[]
[]
[]
[null,null,"18.","Definitions"]
[null,null,null,"Act means the Water Services Act 2012.\n\nAdditional Conditions means the additional conditions contained in the Additional Conditions of Approval for One-Off Discharge to Sewer Works set out in the Approval.\n\nAdditional Conditions of Approval for One-Off Discharge to Sewerage Works means the Additional Conditions of Approval for One-Off Discharge to Sewerage Works set out in the Approval. \n\nApproval means the Corporation’s approval subject to the Conditions to permit the once-off discharge of Trade Waste from the Premises by the Approval Holder into the Corporation’s Sewerage Works to comply with the Act.\n\nApproval Holder means the occupier of the Premises who is identified as the approval holder in the Additional Conditions of Approval for One-Off Discharge to Sewerage Works.\n\nConditions means the General Conditions and the Additional Conditions.\n\nCorporation means the Water Corporation (WA)\n\nGeneral Conditions means these general conditions set out in this document.\n\nPremises means the premises of discharge identified in the Additional Conditions of Approval for One-Off Discharge to Sewerage Works and being any land or part of any land or any building or structure or part of any building or structure within which or from which the Trade Waste is created, dealt with, or otherwise discharged or capable of being discharged, which is occupied by the Approval Holder. \n\nSewerage Works means the sewerage works of the Corporation as defined in section 3 of the Act to which the Premises may be connected or to which Trade Waste may be discharged or in which Trade Waste may be treated, reused, or disposed.\n\nTrade Waste means trade waste as defined in section 101 of the Act.\n\nWater Service Works means water service works as defined in section 3 of the Act\n\n\n"]

{"sheet":"Action Plan","index":15,"n_rows":15,"n_cols":6,"rows_kept":15,"cut":false,"hidden":true,"merged":[[1,1,1,5]]}
[]
[null,"Action Plan"]
[null,"All site visits must have performed an appropriate Step Back or JHA / JSA."]
[]
[null,"#","Item","Who","When","Closed"]
[null,1,"Index and Activity Status Sheet to be updated. (58953309)"]
[null,2,"Sewer Flow Tracking Sheet to be updated. (109586477)"]
[null,3,"Perth Region Status Updates of One off Discharges to be updated. (58833365)"]
[null,4]
[null,5]
[null,6]
[null,7]
[null,8]
[null,9]
[null,10]

{"sheet":"Meter 1","index":16,"n_rows":324,"n_cols":13,"rows_kept":324,"cut":false,"hidden":true,"merged":[[8,7,8,9],[9,7,9,8],[0,4,1,9],[0,11,1,12],[2,11,2,12],[3,11,3,12],[4,8,4,12],[5,12,6,12],[5,2,5,4],[6,2,6,4],[0,2,1,3],[2,2,2,3],[3,2,3,3],[4,2,4,3]]}
[null,null,"Site:   ",null,{"$f":"Assessment!C51","v":"< Exactly enter physical property address details as created on the Enquiry Sheet >"},null,null,null,null,null,"Client:   ",{"$f":"Application!G18","v":"enter here (for billing purposes)"}]
[]
[null,null,"24 Hr Contact:   ",null,{"$f":"Application!G20&+\" (\"&+Application!U20&+\")\"","v":"enter here (enter here)"},null,null,null,"Overall Discharge Period Requested:",null,null,{"$f":"+\"From \"&+TEXT(Application!M64,\"DD MMM YYYY\")&+\" to \"&+TEXT(Application!M65,\"DD MMM YYYY\")","v":"From Enter start date here (in dd/mmm/yyyy format) to Enter end date here (in dd/mmm/yyyy format)"}]
[null,null,"Site Contact:",null,{"$f":"Application!F28&+\" (\"&+Application!U28&+\")\"","v":"enter here - do not enter 'As above' (enter here)"},null,null,null,"Current Contract Expiry:",null,{"$f":"MIN(TEXT(Assessment!P26+(365/2),\"DD MMM YYYY\"),TEXT(Application!M65,\"DD MMM YYYY\"))","v":{"$error":"#VALUE!"}},{"$f":"IF(AND((Application!M65-Application!M64>(365/2)),('Conditions of Approval'!N98+(365/2))-TODAY()<=14),\"CONTRACT HAS EXPIRED OR WILL BE EXPIRING VERY SOON.\",\"\")","v":{"$error":"#VALUE!"}}]
[null,null,"Dewatering:",null,{"$f":"Application!E34&+\" (\"&+Application!U34&+\")\"","v":"enter here (enter here)"},null,null,null,{"$f":"IF(AND((Application!M65-Application!M64>(365/2)),('Conditions of Approval'!N98+(365/2))-TODAY()<=14),\"CONTACT CUSTOMER FOR NEW CONTRACT AND POSSIBLE NEW SAMPLE!!!\",\"\")","v":{"$error":"#VALUE!"}}]
[null,null,"Approved Discharge Rate (L/s):    ",null,null,null,{"$f":"MIN(Assessment!M76,Assessment!N135)","v":0},null,"Approved Discharge Volume (kL):",null,null,{"$f":"'Est-6 Month QQ'!J60","v":{"$error":"#VALUE!"}},{"$f":"\"Total Est Cost of Whole Discharge: $\"&TEXT(ROUND(IF(Application!M65-Application!M64<=365/2,'Est-6 Month Charges'!D51,('Est-6 Month Charges'!B31*((Application!M65-Application!M64)*'Est-6 Month QQ'!H57*3600*24)/1000)+(((Application!$M$65-Application!$M$64)/(365/12))*('Est-6 Month Charges'!D10/6))+(((Application!$M$65-Application!$M$64)/(365/12))*('Est-6 Month Charges'!D18/6))+(((Application!$M$65-Application!$M$64)/(365/12))*('Est-6 Month Charges'!D27/6))),-2),\"#,##0\")","v":{"$error":"#VALUE!"}}]
[null,null,"Approved Discharge Location:    ",null,null,{"$f":"'Conditions of Approval'!N97","v":false},null,null,"Estimated Charge per Kilolitre ($/kL):",null,null,{"$f":"ROUND('Est-6 Month QQ'!B37,4)","v":{"$error":"#VALUE!"}}]
[]
[null,null,null,null,"Last Avg Discharge Rate (L/s):",{"$f":"IF(D12=\"\",\"\",LOOKUP(2,1/(I11:I103<>\"\"),I11:I103))","v":""},null,"L/sec =  kL/min x 1000              OR",null,null,"kL/day x 1000",null,{"$f":"+\"Total volume discharged to date = \"&+SUM(G13:G103)&+\" kL\"","v":"Total volume discharged to date = 0 kL"}]
[null,null,null,null,null,null,null,60,null,null,86400]
["Billing Cycle","Quality","Entered\non KPI?","Date\n(dd/mm/yyyy)","Meter Serial Number","Meter Reading (kL)","Discharge Since Last Read (kL)","Daily Discharge\n(kL)"," Average Discharge Rate (L/sec)","Discharge Rate (Observed) (kL/min)","Discharge Rate (Observed) (L/sec)","Total Discharge Volume (kL)","Comments"]
["MUST pick a number!","MUST pick a letter!",null,null,null,null,"START",null,null,null,null,null,{"$f":"IF(Assessment!G5=\"YES - by Water Corporation\",\"At start-up, must take Water Corp sample!\",(IF(Assessment!G5=\"YES - by the Customer\",\"At start-up, get water quality data from customer or third party dewatering contractor!\",\"\")))","v":""}]
["MUST pick a number!","MUST pick a letter!",null,null,null,null,{"$f":"IF(F13=\"\",\"\",(IF(F13-F12<=0,\"potential error!\",F13-F12)))","v":""},{"$f":"IF(F13-F12<=0,\"\",(F13-F12)/(D13-D12))","v":""},{"$f":"IF(F13-F12<=0,\"\",(H13*1000)/(24*60*60))","v":""},{"$f":"IF(F13=\"\",\"\",\"enter rate\")","v":""},{"$f":"IF(J13=\"\",\"\",(J13*1000)/60)","v":""},{"$f":"IF(F13=0,\"\",F13-$F$12)","v":""}]
["MUST pick a number!","MUST pick a letter!",null,null,null,null,{"$f":"IF(F14=\"\",\"\",(IF(F14-F13<=0,\"potential error!\",F14-F13)))","v":""},{"$f":"IF(F14-F13<=0,\"\",(F14-F13)/(D14-D13))","v":""},{"$f":"IF(F14-F13<=0,\"\",(H14*1000)/(24*60*60))","v":""},{"$f":"IF(F14=\"\",\"\",\"enter rate\")","v":""},{"$f":"IF(J14=\"\",\"\",(J14*1000)/60)","v":""},{"$f":"IF(F14=0,\"\",F14-$F$12)","v":""}]
["MUST pick a number!","MUST pick a letter!",null,null,null,null,"","","","","",""]
["MUST pick a number!","MUST pick a letter!",null,null,null,null,"","","","","",""]
["MUST pick a number!","MUST pick a letter!",null,null,null,null,"","","","","",""]
["MUST pick a number!","MUST pick a letter!",null,null,null,null,"",{"$f":"IF(F18-F17<=0,\"\",(F18-F17)/(D18-D17))","v":""},"","","",""]
["MUST pick a number!","MUST pick a letter!",null,null,null,null,"","","","","",""]
["MUST pick a number!","MUST pick a letter!",null,null,null,null,"","","","","",""]
["MUST pick a number!","MUST pick a letter!",null,null,null,null,"","","","","",""]
["MUST pick a number!","MUST pick a letter!",null,null,null,null,"","","","","",""]
["MUST pick a number!","MUST pick a letter!",null,null,null,null,"","","","","",""]
["MUST pick a number!","MUST pick a letter!",null,null,null,null,"","","","","",""]
["MUST pick a number!","MUST pick a letter!",null,null,null,null,"","","","","",""]
["MUST pick a number!","MUST pick a letter!",null,null,null,null,"","","","","",""]
["MUST pick a number!","MUST pick a letter!",null,null,null,null,"","","","","",""]
["MUST pick a number!","MUST pick a letter!",null,null,null,null,"","","","","",""]
["MUST pick a number!","MUST pick a letter!",null,null,null,null,"","","","","",""]
["MUST pick a number!","MUST pick a letter!",null,null,null,null,"","","","","",""]
["MUST pick a number!","MUST pick a letter!",null,null,null,null,"","","","","",""]
["MUST pick a number!","MUST pick a letter!",null,null,null,null,"","","","","",""]
["MUST pick a number!","MUST pick a letter!",null,null,null,null,"","","","","",""]
["MUST pick a number!","MUST pick a letter!",null,null,null,null,"","","","","",""]
["MUST pick a number!","MUST pick a letter!",null,null,null,null,"","","","","",""]
["MUST pick a number!","MUST pick a letter!",null,null,null,null,"","","","","",""]
["MUST pick a number!","MUST pick a letter!",null,null,null,null,"","","","","",""]
["MUST pick a number!","MUST pick a letter!",null,null,null,null,"","","","","",""]
["MUST pick a number!","MUST pick a letter!",null,null,null,null,"","","","","",""]
["MUST pick a number!","MUST pick a letter!",null,null,null,null,"","","","","",""]
["MUST pick a number!","MUST pick a letter!",null,null,null,null,"","","","","",""]
["MUST pick a number!","MUST pick a letter!",null,null,null,null,"","","","","",""]
["MUST pick a number!","MUST pick a letter!",null,null,null,null,"","","","","",""]
["MUST pick a number!","MUST pick a letter!",null,null,null,null,"","","","","",""]
["MUST pick a number!","MUST pick a letter!",null,null,null,null,"","","","","",""]
["MUST pick a number!","MUST pick a letter!",null,null,null,null,"","","","","",""]
["MUST pick a number!","MUST pick a letter!",null,null,null,null,"","","","","",""]
["MUST pick a number!","MUST pick a letter!",null,null,null,null,"","","","","",""]
["MUST pick a number!","MUST pick a letter!",null,null,null,null,"","","","","",""]
["MUST pick a number!","MUST pick a letter!",null,null,null,null,"","","","","",""]
["MUST pick a number!","MUST pick a letter!",null,null,null,null,"","","","","",""]
["MUST pick a number!","MUST pick a letter!",null,null,null,null,"","","","","",""]
["MUST pick a number!","MUST pick a letter!",null,null,null,null,"","","","","",""]
["MUST pick a number!","MUST pick a letter!",null,null,null,null,"","","","","",""]
["MUST pick a number!","MUST pick a letter!",null,null,null,null,"","","","","",""]
["MUST pick a number!","MUST pick a letter!",null,null,null,null,"","","","","",""]
["MUST pick a number!","MUST pick a letter!",null,null,null,null,"","","","","",""]
["MUST pick a number!","MUST pick a letter!",null,null,null,null,"","","","","",""]
["MUST pick a number!","MUST pick a letter!",null,null,null,null,"","","","","",""]
["MUST pick a number!","MUST pick a letter!",null,null,null,null,"","","","","",""]
["MUST pick a number!","MUST pick a letter!",null,null,null,null,"","","","","",""]
["MUST pick a number!","MUST pick a letter!",null,null,null,null,"","","","","",""]
["MUST pick a number!","MUST pick a letter!",null,null,null,null,"","","","","",""]
["MUST pick a number!","MUST pick a letter!",null,null,null,null,"","","","","",""]
["MUST pick a number!","MUST pick a letter!",null,null,null,null,"","","","","",""]
["MUST pick a number!","MUST pick a letter!",null,null,null,null,"","","","","",""]
["MUST pick a number!","MUST pick a letter!",null,null,null,null,"","","","","",""]
["MUST pick a number!","MUST pick a letter!",null,null,null,null,"","","","","",""]
["MUST pick a number!","MUST pick a letter!",null,null,null,null,"","","","","",""]
["MUST pick a number!","MUST pick a letter!",null,null,null,null,"","","","","",""]
["MUST pick a number!","MUST pick a letter!",null,null,null,null,"","","","","",""]
["MUST pick a number!","MUST pick a letter!",null,null,null,null,"","","","","",""]
["MUST pick a number!","MUST pick a letter!",null,null,null,null,"","","","","",""]
["MUST pick a number!","MUST pick a letter!",null,null,null,null,"","","","","",""]
["MUST pick a number!","MUST pick a letter!",null,null,null,null,"","","","","",""]
["MUST pick a number!","MUST pick a letter!",null,null,null,null,"","","","","",""]
["MUST pick a number!","MUST pick a letter!",null,null,null,null,"","","","","",""]
["MUST pick a number!","MUST pick a letter!",null,null,null,null,{"$f":"IF(F78=\"\",\"\",(IF(F78-F77<=0,\"potential error!\",F78-F77)))","v":""},"",{"$f":"IF(F78-F77<=0,\"\",(H78*1000)/(24*60*60))","v":""},{"$f":"IF(F78=\"\",\"\",\"enter rate\")","v":""},{"$f":"IF(J78=\"\",\"\",(J78*1000)/60)","v":""},{"$f":"IF(F78=0,\"\",F78-$F$12)","v":""}]
["MUST pick a number!","MUST pick a letter!",null,null,null,null,"","","","","",""]
["MUST pick a number!","MUST pick a letter!",null,null,null,null,"","","","","",""]
["MUST pick a number!","MUST pick a letter!",null,null,null,null,"","","","","",""]
["MUST pick a number!","MUST pick a letter!",null,null,null,null,"",{"$f":"IF(F82-F81<=0,\"\",(F82-F81)/(D82-D81))","v":""},"","","",""]
["MUST pick a number!","MUST pick a letter!",null,null,null,null,"","","","","",""]
["MUST pick a number!","MUST pick a letter!",null,null,null,null,"","","","","",""]
["MUST pick a number!","MUST pick a letter!",null,null,null,null,"","","","","",""]
["MUST pick a number!","MUST pick a letter!",null,null,null,null,"","","","","",""]
["MUST pick a number!","MUST pick a letter!",null,null,null,null,"","","","","",""]
["MUST pick a number!","MUST pick a letter!",null,null,null,null,"","","","","",""]
["MUST pick a number!","MUST pick a letter!",null,null,null,null,"","","","","",""]
["MUST pick a number!","MUST pick a letter!",null,null,null,null,"","","","","",""]
["MUST pick a number!","MUST pick a letter!",null,null,null,null,"","","","","",""]
["MUST pick a number!","MUST pick a letter!",null,null,null,null,"","",{"$f":"IF(F92-F91<=0,\"\",(H92*1000)/(24*60*60))","v":""},"","",""]
["MUST pick a number!","MUST pick a letter!",null,null,null,null,"","","","","",""]
["MUST pick a number!","MUST pick a letter!",null,null,null,null,"","","","","",""]
["MUST pick a number!","MUST pick a letter!",null,null,null,null,"","",{"$f":"IF(F95-F94<=0,\"\",(H95*1000)/(24*60*60))","v":""},{"$f":"IF(F95=\"\",\"\",\"enter rate\")","v":""},{"$f":"IF(J95=\"\",\"\",(J95*1000)/60)","v":""},{"$f":"IF(F95=0,\"\",F95-$F$12)","v":""}]
["MUST pick a number!","MUST pick a letter!",null,null,null,null,"","",{"$f":"IF(F96-F95<=0,\"\",(H96*1000)/(24*60*60))","v":""},{"$f":"IF(F96=\"\",\"\",\"enter rate\")","v":""},{"$f":"IF(J96=\"\",\"\",(J96*1000)/60)","v":""},{"$f":"IF(F96=0,\"\",F96-$F$12)","v":""}]
["MUST pick a number!","MUST pick a letter!",null,null,null,null,"","",{"$f":"IF(F97-F96<=0,\"\",(H97*1000)/(24*60*60))","v":""},{"$f":"IF(F97=\"\",\"\",\"enter rate\")","v":""},{"$f":"IF(J97=\"\",\"\",(J97*1000)/60)","v":""},{"$f":"IF(F97=0,\"\",F97-$F$12)","v":""}]
["MUST pick a number!","MUST pick a letter!",null,null,null,null,"","",{"$f":"IF(F98-F96<=0,\"\",(H98*1000)/(24*60*60))","v":""},"","",""]
["MUST pick a number!","MUST pick a letter!",null,null,null,null,"","","","","",""]
["MUST pick a number!","MUST pick a letter!",null,null,null,null,"","",{"$f":"IF(F100-F95<=0,\"\",(H100*1000)/(24*60*60))","v":""},"","",""]
["MUST pick a number!","MUST pick a letter!",null,null,null,null,"","","","","",""]
["MUST pick a number!","MUST pick a letter!",null,null,null,null,"","","","","",""]
["MUST pick a number!","MUST pick a letter!",null,null,null,null,"","","","","",""]
[]
[]
[]
[]
[]
[]
[]
[]
[]
[]
[]
[]
[]
[]
[]
[]
[]
[]
[]
[]
[]
[]
[]
[]
[]
[]
[]
[]
[]
[]
[]
[]
[]
[]
[]
[]
[]
[]
[]
[]
[]
[]
[]
[]
[]
[]
[]
[]
[]
[]
[]
[]
[]
[]
[]
[]
[]
[]
[]
[]
[]
[]
[]
[]
[]
[]
[]
[]
[]
[]
[]
[]
[]
[]
[]
[]
[]
[]
[]
[]
[]
[]
[]
[]
[]
[]
[]
[]
[]
[]
[]
[]
[]
[]
[]
[]
[]
[]
[]
[]
[]
[]
[]
[]
[]
[]
[]
[]
[]
[]
[]
[]
[]
[]
[]
[]
[]
[]
[]
[]
[]
[]
[]
[]
[]
[]
[]
[]
[]
[]
[]
[]
[]
[]
[]
[]
[]
[]
[]
[]
[]
[]
[]
[]
[]
[]
[]
[]
[]
[]
[]
[]
[]
[]
[]
[]
[]
[]
[]
[]
[]
[]
[]
[]
[]
[]
[]
[]
[]
[]
[]
[]
[]
[]
[]
[]
[]
[]
[]
[]
[]
[]
[]
[]
[]
[]
[]
[]
[]
[]
[]
[]
[]
[]
[]
[]
[]
[]
[]
[]
["MUST pick a number!","MUST pick a letter!"]
[1,"A"]
[2,"B"]
[3,"C"]
[4,"D"]
[5,"E"]
[6,"F"]
[7]
[8]
[9]
[10]
[11]
[12]
[13]
[14]
[15]
[16]
[17]
[18]
[19]
[20]

{"sheet":"Meter 2","index":17,"n_rows":324,"n_cols":13,"rows_kept":324,"cut":false,"hidden":true,"merged":[[3,2,3,3],[3,11,3,12],[0,2,1,3],[0,4,1,9],[0,11,1,12],[2,2,2,3],[2,11,2,12],[9,7,9,8],[4,2,4,3],[4,8,4,12],[5,2,5,4],[5,12,6,12],[6,2,6,4],[8,7,8,9]]}
[null,null,"Site:   ",null,{"$f":"Assessment!C51","v":"< Exactly enter physical property address details as created on the Enquiry Sheet >"},null,null,null,null,null,"Client:   ",{"$f":"Application!G18","v":"enter here (for billing purposes)"}]
[]
[null,null,"24 Hr Contact:   ",null,{"$f":"Application!G20&+\" (\"&+Application!U20&+\")\"","v":"enter here (enter here)"},null,null,null,"Overall Discharge Period Requested:",null,null,{"$f":"+\"From \"&+TEXT(Application!M64,\"DD MMM YYYY\")&+\" to \"&+TEXT(Application!M65,\"DD MMM YYYY\")","v":"From Enter start date here (in dd/mmm/yyyy format) to Enter end date here (in dd/mmm/yyyy format)"}]
[null,null,"Site Contact:",null,{"$f":"Application!F28&+\" (\"&+Application!U28&+\")\"","v":"enter here - do not enter 'As above' (enter here)"},null,null,null,"Current Contract Expiry:",null,{"$f":"MIN(TEXT(Assessment!P26+(365/2),\"DD MMM YYYY\"),TEXT(Application!M65,\"DD MMM YYYY\"))","v":{"$error":"#VALUE!"}},{"$f":"IF(AND((Application!M65-Application!M64>(365/2)),('Conditions of Approval'!N98+(365/2))-TODAY()<=14),\"CONTRACT HAS EXPIRED OR WILL BE EXPIRING VERY SOON.\",\"\")","v":{"$error":"#VALUE!"}}]
[null,null,"Dewatering:",null,{"$f":"Application!E34&+\" (\"&+Application!U34&+\")\"","v":"enter here (enter here)"},null,null,null,{"$f":"IF(AND((Application!M65-Application!M64>(365/2)),('Conditions of Approval'!N98+(365/2))-TODAY()<=14),\"CONTACT CUSTOMER FOR NEW CONTRACT AND POSSIBLE NEW SAMPLE!!!\",\"\")","v":{"$error":"#VALUE!"}}]
[null,null,"Approved Discharge Rate (L/s):    ",null,null,null,{"$f":"MIN(Assessment!M76,Assessment!N135)","v":0},null,"Approved Discharge Volume (kL):",null,null,{"$f":"'Est-6 Month QQ'!J60","v":{"$error":"#VALUE!"}},{"$f":"\"Total Est Cost of Whole Discharge: $\"&TEXT(ROUND(IF(Application!M65-Application!M64<=365/2,'Est-6 Month Charges'!D51,('Est-6 Month Charges'!B31*((Application!M65-Application!M64)*'Est-6 Month QQ'!H57*3600*24)/1000)+(((Application!$M$65-Application!$M$64)/(365/12))*('Est-6 Month Charges'!D10/6))+(((Application!$M$65-Application!$M$64)/(365/12))*('Est-6 Month Charges'!D18/6))+(((Application!$M$65-Application!$M$64)/(365/12))*('Est-6 Month Charges'!D27/6))),-2),\"#,##0\")","v":{"$error":"#VALUE!"}}]
[null,null,"Approved Discharge Location:    ",null,null,{"$f":"'Conditions of Approval'!N97","v":false},null,null,"Estimated Charge per Kilolitre ($/kL):",null,null,{"$f":"ROUND('Est-6 Month QQ'!B37,4)","v":{"$error":"#VALUE!"}}]
[]
[null,null,null,null,"Last Avg Discharge Rate (L/s):",{"$f":"IF(D12=\"\",\"\",LOOKUP(2,1/(I11:I103<>\"\"),I11:I103))","v":""},null,"L/sec =  kL/min x 1000              OR",null,null,"kL/day x 1000",null,{"$f":"+\"Total volume discharged to date = \"&+SUM(G13:G103)&+\" kL\"","v":"Total volume discharged to date = 0 kL"}]
[null,null,null,null,null,null,null,60,null,null,86400]
["Billing Cycle","Quality","Entered\non KPI?","Date\n(dd/mm/yyyy)","Meter Serial Number","Meter Reading (kL)","Discharge Since Last Read (kL)","Daily Discharge\n(kL)"," Average Discharge Rate (L/sec)","Discharge Rate (Observed) (kL/min)","Discharge Rate (Observed) (L/sec)","Total Discharge Volume (kL)","Comments"]
["MUST pick a number!","MUST pick a letter!",null,null,null,null,"START",null,null,null,null,null,{"$f":"IF(Assessment!G5=\"YES - by Water Corporation\",\"At start-up, must take Water Corp sample!\",(IF(Assessment!G5=\"YES - by the Customer\",\"At start-up, get water quality data from customer or third party dewatering contractor!\",\"\")))","v":""}]
["MUST pick a number!","MUST pick a letter!",null,null,null,null,{"$f":"IF(F13=\"\",\"\",(IF(F13-F12<=0,\"potential error!\",F13-F12)))","v":""},{"$f":"IF(F13-F12<=0,\"\",(F13-F12)/(D13-D12))","v":""},{"$f":"IF(F13-F12<=0,\"\",(H13*1000)/(24*60*60))","v":""},{"$f":"IF(F13=\"\",\"\",\"enter rate\")","v":""},{"$f":"IF(J13=\"\",\"\",(J13*1000)/60)","v":""},{"$f":"IF(F13=0,\"\",F13-$F$12)","v":""}]
["MUST pick a number!","MUST pick a letter!",null,null,null,null,{"$f":"IF(F14=\"\",\"\",(IF(F14-F13<=0,\"potential error!\",F14-F13)))","v":""},{"$f":"IF(F14-F13<=0,\"\",(F14-F13)/(D14-D13))","v":""},{"$f":"IF(F14-F13<=0,\"\",(H14*1000)/(24*60*60))","v":""},{"$f":"IF(F14=\"\",\"\",\"enter rate\")","v":""},{"$f":"IF(J14=\"\",\"\",(J14*1000)/60)","v":""},{"$f":"IF(F14=0,\"\",F14-$F$12)","v":""}]
["MUST pick a number!","MUST pick a letter!",null,null,null,null,"","","","","",""]
["MUST pick a number!","MUST pick a letter!",null,null,null,null,"","","","","",""]
["MUST pick a number!","MUST pick a letter!",null,null,null,null,"","","","","",""]
["MUST pick a number!","MUST pick a letter!",null,null,null,null,"","","","","",""]
["MUST pick a number!","MUST pick a letter!",null,null,null,null,"","","","","",""]
["MUST pick a number!","MUST pick a letter!",null,null,null,null,"","","","","",""]
["MUST pick a number!","MUST pick a letter!",null,null,null,null,"","","","","",""]
["MUST pick a number!","MUST pick a letter!",null,null,null,null,"","","","","",""]
["MUST pick a number!","MUST pick a letter!",null,null,null,null,"","","","","",""]
["MUST pick a number!","MUST pick a letter!",null,null,null,null,"","","","","",""]
["MUST pick a number!","MUST pick a letter!",null,null,null,null,"","","","","",""]
["MUST pick a number!","MUST pick a letter!",null,null,null,null,"","","","","",""]
["MUST pick a number!","MUST pick a letter!",null,null,null,null,"","","","","",""]
["MUST pick a number!","MUST pick a letter!",null,null,null,null,"","","","","",""]
["MUST pick a number!","MUST pick a letter!",null,null,null,null,"","","","","",""]
["MUST pick a number!","MUST pick a letter!",null,null,null,null,"","","","","",""]
["MUST pick a number!","MUST pick a letter!",null,null,null,null,"","","","","",""]
["MUST pick a number!","MUST pick a letter!",null,null,null,null,"","","","","",""]
["MUST pick a number!","MUST pick a letter!",null,null,null,null,"","","","","",""]
["MUST pick a number!","MUST pick a letter!",null,null,null,null,"","","","","",""]
["MUST pick a number!","MUST pick a letter!",null,null,null,null,"","","","","",""]
["MUST pick a number!","MUST pick a letter!",null,null,null,null,"","","","","",""]
["MUST pick a number!","MUST pick a letter!",null,null,null,null,"","","","","",""]
["MUST pick a number!","MUST pick a letter!",null,null,null,null,"","","","","",""]
["MUST pick a number!","MUST pick a letter!",null,null,null,null,"","","","","",""]
["MUST pick a number!","MUST pick a letter!",null,null,null,null,"","","","","",""]
["MUST pick a number!","MUST pick a letter!",null,null,null,null,"","","","","",""]
["MUST pick a number!","MUST pick a letter!",null,null,null,null,"","","","","",""]
["MUST pick a number!","MUST pick a letter!",null,null,null,null,"","","","","",""]
["MUST pick a number!","MUST pick a letter!",null,null,null,null,"","","","","",""]
["MUST pick a number!","MUST pick a letter!",null,null,null,null,"","","","","",""]
["MUST pick a number!","MUST pick a letter!",null,null,null,null,"","","","","",""]
["MUST pick a number!","MUST pick a letter!",null,null,null,null,"","","","","",""]
["MUST pick a number!","MUST pick a letter!",null,null,null,null,"","","","","",""]
["MUST pick a number!","MUST pick a letter!",null,null,null,null,"","","","","",""]
["MUST pick a number!","MUST pick a letter!",null,null,null,null,"","","","","",""]
["MUST pick a number!","MUST pick a letter!",null,null,null,null,"","","","","",""]
["MUST pick a number!","MUST pick a letter!",null,null,null,null,"","","","","",""]
["MUST pick a number!","MUST pick a letter!",null,null,null,null,"","","","","",""]
["MUST pick a number!","MUST pick a letter!",null,null,null,null,"","","","","",""]
["MUST pick a number!","MUST pick a letter!",null,null,null,null,"","","","","",""]
["MUST pick a number!","MUST pick a letter!",null,null,null,null,"","","","","",""]
["MUST pick a number!","MUST pick a letter!",null,null,null,null,"","","","","",""]
["MUST pick a number!","MUST pick a letter!",null,null,null,null,"","","","","",""]
["MUST pick a number!","MUST pick a letter!",null,null,null,null,"","","","","",""]
["MUST pick a number!","MUST pick a letter!",null,null,null,null,"","","","","",""]
["MUST pick a number!","MUST pick a letter!",null,null,null,null,"","","","","",""]
["MUST pick a number!","MUST pick a letter!",null,null,null,null,"","","","","",""]
["MUST pick a number!","MUST pick a letter!",null,null,null,null,"","","","","",""]
["MUST pick a number!","MUST pick a letter!",null,null,null,null,"","","","","",""]
["MUST pick a number!","MUST pick a letter!",null,null,null,null,"","","","","",""]
["MUST pick a number!","MUST pick a letter!",null,null,null,null,"","","","","",""]
["MUST pick a number!","MUST pick a letter!",null,null,null,null,"","","","","",""]
["MUST pick a number!","MUST pick a letter!",null,null,null,null,"","","","","",""]
["MUST pick a number!","MUST pick a letter!",null,null,null,null,"","","","","",""]
["MUST pick a number!","MUST pick a letter!",null,null,null,null,"","","","","",""]
["MUST pick a number!","MUST pick a letter!",null,null,null,null,"","","","","",""]
["MUST pick a number!","MUST pick a letter!",null,null,null,null,"","","","","",""]
["MUST pick a number!","MUST pick a letter!",null,null,null,null,"","","","","",""]
["MUST pick a number!","MUST pick a letter!",null,null,null,null,"","","","","",""]
["MUST pick a number!","MUST pick a letter!",null,null,null,null,"","","","","",""]
["MUST pick a number!","MUST pick a letter!",null,null,null,null,"","","","","",""]
["MUST pick a number!","MUST pick a letter!",null,null,null,null,"","","","","",""]
["MUST pick a number!","MUST pick a letter!",null,null,null,null,{"$f":"IF(F78=\"\",\"\",(IF(F78-F77<=0,\"potential error!\",F78-F77)))","v":""},{"$f":"IF(F78-F77<=0,\"\",(F78-F77)/(D78-D77))","v":""},{"$f":"IF(F78-F77<=0,\"\",(H78*1000)/(24*60*60))","v":""},{"$f":"IF(F78=\"\",\"\",\"enter rate\")","v":""},{"$f":"IF(J78=\"\",\"\",(J78*1000)/60)","v":""},{"$f":"IF(F78=0,\"\",F78-$F$12)","v":""}]
["MUST pick a number!","MUST pick a letter!",null,null,null,null,"","","","","",""]
["MUST pick a number!","MUST pick a letter!",null,null,null,null,"","","","","",""]
["MUST pick a number!","MUST pick a letter!",null,null,null,null,"","","","","",""]
["MUST pick a number!","MUST pick a letter!",null,null,null,null,"","","","","",""]
["MUST pick a number!","MUST pick a letter!",null,null,null,null,"","","","","",""]
["MUST pick a number!","MUST pick a letter!",null,null,null,null,"","","","","",""]
["MUST pick a number!","MUST pick a letter!",null,null,null,null,"","","","","",""]
["MUST pick a number!","MUST pick a letter!",null,null,null,null,"","","","","",""]
["MUST pick a number!","MUST pick a letter!",null,null,null,null,"","","","","",""]
["MUST pick a number!","MUST pick a letter!",null,null,null,null,"","","","","",""]
["MUST pick a number!","MUST pick a letter!",null,null,null,null,"","","","","",""]
["MUST pick a number!","MUST pick a letter!",null,null,null,null,"",{"$f":"IF(F90-F89<=0,\"\",(F90-F89)/(D90-D89))","v":""},{"$f":"IF(F90-F89<=0,\"\",(H90*1000)/(24*60*60))","v":""},{"$f":"IF(F90=\"\",\"\",\"enter rate\")","v":""},{"$f":"IF(J90=\"\",\"\",(J90*1000)/60)","v":""},{"$f":"IF(F90=0,\"\",F90-$F$12)","v":""}]
["MUST pick a number!","MUST pick a letter!",null,null,null,null,"","","","","",""]
["MUST pick a number!","MUST pick a letter!",null,null,null,null,"","","","","",""]
["MUST pick a number!","MUST pick a letter!",null,null,null,null,"","","","","",""]
["MUST pick a number!","MUST pick a letter!",null,null,null,null,"",{"$f":"IF(F94-F89<=0,\"\",(F94-F89)/(D94-D89))","v":""},{"$f":"IF(F94-F89<=0,\"\",(H94*1000)/(24*60*60))","v":""},"","",""]
["MUST pick a number!","MUST pick a letter!",null,null,null,null,"","","","","",""]
["MUST pick a number!","MUST pick a letter!",null,null,null,null,"","","","","",""]
["MUST pick a number!","MUST pick a letter!",null,null,null,null,"","","","","",""]
["MUST pick a number!","MUST pick a letter!",null,null,null,null,"","","","","",""]
["MUST pick a number!","MUST pick a letter!",null,null,null,null,"","","","","",""]
["MUST pick a number!","MUST pick a letter!",null,null,null,null,"","","","","",""]
["MUST pick a number!","MUST pick a letter!",null,null,null,null,"","","","","",""]
["MUST pick a number!","MUST pick a letter!",null,null,null,null,"","","","","",""]
["MUST pick a number!","MUST pick a letter!",null,null,null,null,"","","","","",""]
[]
[]
[]
[]
[]
[]
[]
[]
[]
[]
[]
[]
[]
[]
[]
[]
[]
[]
[]
[]
[]
[]
[]
[]
[]
[]
[]
[]
[]
[]
[]
[]
[]
[]
[]
[]
[]
[]
[]
[]
[]
[]
[]
[]
[]
[]
[]
[]
[]
[]
[]
[]
[]
[]
[]
[]
[]
[]
[]
[]
[]
[]
[]
[]
[]
[]
[]
[]
[]
[]
[]
[]
[]
[]
[]
[]
[]
[]
[]
[]
[]
[]
[]
[]
[]
[]
[]
[]
[]
[]
[]
[]
[]
[]
[]
[]
[]
[]
[]
[]
[]
[]
[]
[]
[]
[]
[]
[]
[]
[]
[]
[]
[]
[]
[]
[]
[]
[]
[]
[]
[]
[]
[]
[]
[]
[]
[]
[]
[]
[]
[]
[]
[]
[]
[]
[]
[]
[]
[]
[]
[]
[]
[]
[]
[]
[]
[]
[]
[]
[]
[]
[]
[]
[]
[]
[]
[]
[]
[]
[]
[]
[]
[]
[]
[]
[]
[]
[]
[]
[]
[]
[]
[]
[]
[]
[]
[]
[]
[]
[]
[]
[]
[]
[]
[]
[]
[]
[]
[]
[]
[]
[]
[]
[]
[]
[]
[]
[]
[]
[]
["MUST pick a number!","MUST pick a letter!"]
[1,"A"]
[2,"B"]
[3,"C"]
[4,"D"]
[5,"E"]
[6,"F"]
[7]
[8]
[9]
[10]
[11]
[12]
[13]
[14]
[15]
[16]
[17]
[18]
[19]
[20]

{"sheet":"Meter 3","index":18,"n_rows":324,"n_cols":13,"rows_kept":324,"cut":false,"hidden":true,"merged":[[3,2,3,3],[3,11,3,12],[0,2,1,3],[0,4,1,9],[0,11,1,12],[2,2,2,3],[2,11,2,12],[9,7,9,8],[4,2,4,3],[4,8,4,12],[5,2,5,4],[5,12,6,12],[6,2,6,4],[8,7,8,9]]}
[null,null,"Site:   ",null,{"$f":"Assessment!C51","v":"< Exactly enter physical property address details as created on the Enquiry Sheet >"},null,null,null,null,null,"Client:   ",{"$f":"Application!G18","v":"enter here (for billing purposes)"}]
[]
[null,null,"24 Hr Contact:   ",null,{"$f":"Application!G20&+\" (\"&+Application!U20&+\")\"","v":"enter here (enter here)"},null,null,null,"Overall Discharge Period Requested:",null,null,{"$f":"+\"From \"&+TEXT(Application!M64,\"DD MMM YYYY\")&+\" to \"&+TEXT(Application!M65,\"DD MMM YYYY\")","v":"From Enter start date here (in dd/mmm/yyyy format) to Enter end date here (in dd/mmm/yyyy format)"}]
[null,null,"Site Contact:",null,{"$f":"Application!F28&+\" (\"&+Application!U28&+\")\"","v":"enter here - do not enter 'As above' (enter here)"},null,null,null,"Current Contract Expiry:",null,{"$f":"MIN(TEXT(Assessment!P26+(365/2),\"DD MMM YYYY\"),TEXT(Application!M65,\"DD MMM YYYY\"))","v":{"$error":"#VALUE!"}},{"$f":"IF(AND((Application!M65-Application!M64>(365/2)),('Conditions of Approval'!N98+(365/2))-TODAY()<=14),\"CONTRACT HAS EXPIRED OR WILL BE EXPIRING VERY SOON.\",\"\")","v":{"$error":"#VALUE!"}}]
[null,null,"Dewatering:",null,{"$f":"Application!E34&+\" (\"&+Application!U34&+\")\"","v":"enter here (enter here)"},null,null,null,{"$f":"IF(AND((Application!M65-Application!M64>(365/2)),('Conditions of Approval'!N98+(365/2))-TODAY()<=14),\"CONTACT CUSTOMER FOR NEW CONTRACT AND POSSIBLE NEW SAMPLE!!!\",\"\")","v":{"$error":"#VALUE!"}}]
[null,null,"Approved Discharge Rate (L/s):    ",null,null,null,{"$f":"MIN(Assessment!M76,Assessment!N135)","v":0},null,"Approved Discharge Volume (kL):",null,null,{"$f":"'Est-6 Month QQ'!J60","v":{"$error":"#VALUE!"}},{"$f":"\"Total Est Cost of Whole Discharge: $\"&TEXT(ROUND(IF(Application!M65-Application!M64<=365/2,'Est-6 Month Charges'!D51,('Est-6 Month Charges'!B31*((Application!M65-Application!M64)*'Est-6 Month QQ'!H57*3600*24)/1000)+(((Application!$M$65-Application!$M$64)/(365/12))*('Est-6 Month Charges'!D10/6))+(((Application!$M$65-Application!$M$64)/(365/12))*('Est-6 Month Charges'!D18/6))+(((Application!$M$65-Application!$M$64)/(365/12))*('Est-6 Month Charges'!D27/6))),-2),\"#,##0\")","v":{"$error":"#VALUE!"}}]
[null,null,"Approved Discharge Location:    ",null,null,{"$f":"'Conditions of Approval'!N97","v":false},null,null,"Estimated Charge per Kilolitre ($/kL):",null,null,{"$f":"ROUND('Est-6 Month QQ'!B37,4)","v":{"$error":"#VALUE!"}}]
[]
[null,null,null,null,"Last Avg Discharge Rate (L/s):",{"$f":"IF(D12=\"\",\"\",LOOKUP(2,1/(I11:I103<>\"\"),I11:I103))","v":""},null,"L/sec =  kL/min x 1000              OR",null,null,"kL/day x 1000",null,{"$f":"+\"Total volume discharged to date = \"&+SUM(G13:G103)&+\" kL\"","v":"Total volume discharged to date = 0 kL"}]
[null,null,null,null,null,null,null,60,null,null,86400]
["Billing Cycle","Quality","Entered\non KPI?","Date\n(dd/mm/yyyy)","Meter Serial Number","Meter Reading (kL)","Discharge Since Last Read (kL)","Daily Discharge\n(kL)"," Average Discharge Rate (L/sec)","Discharge Rate (Observed) (kL/min)","Discharge Rate (Observed) (L/sec)","Total Discharge Volume (kL)","Comments"]
["MUST pick a number!","MUST pick a letter!",null,null,null,null,"START",null,null,null,null,null,{"$f":"IF(Assessment!G5=\"YES - by Water Corporation\",\"At start-up, must take Water Corp sample!\",(IF(Assessment!G5=\"YES - by the Customer\",\"At start-up, get water quality data from customer or third party dewatering contractor!\",\"\")))","v":""}]
["MUST pick a number!","MUST pick a letter!",null,null,null,null,{"$f":"IF(F13=\"\",\"\",(IF(F13-F12<=0,\"potential error!\",F13-F12)))","v":""},{"$f":"IF(F13-F12<=0,\"\",(F13-F12)/(D13-D12))","v":""},{"$f":"IF(F13-F12<=0,\"\",(H13*1000)/(24*60*60))","v":""},{"$f":"IF(F13=\"\",\"\",\"enter rate\")","v":""},{"$f":"IF(J13=\"\",\"\",(J13*1000)/60)","v":""},{"$f":"IF(F13=0,\"\",F13-$F$12)","v":""}]
["MUST pick a number!","MUST pick a letter!",null,null,null,null,{"$f":"IF(F14=\"\",\"\",(IF(F14-F13<=0,\"potential error!\",F14-F13)))","v":""},{"$f":"IF(F14-F13<=0,\"\",(F14-F13)/(D14-D13))","v":""},{"$f":"IF(F14-F13<=0,\"\",(H14*1000)/(24*60*60))","v":""},{"$f":"IF(F14=\"\",\"\",\"enter rate\")","v":""},{"$f":"IF(J14=\"\",\"\",(J14*1000)/60)","v":""},{"$f":"IF(F14=0,\"\",F14-$F$12)","v":""}]
["MUST pick a number!","MUST pick a letter!",null,null,null,null,"","","","","",""]
["MUST pick a number!","MUST pick a letter!",null,null,null,null,"","","","","",""]
["MUST pick a number!","MUST pick a letter!",null,null,null,null,"","","","","",""]
["MUST pick a number!","MUST pick a letter!",null,null,null,null,"","","","","",""]
["MUST pick a number!","MUST pick a letter!",null,null,null,null,"","","","","",""]
["MUST pick a number!","MUST pick a letter!",null,null,null,null,"","","","","",""]
["MUST pick a number!","MUST pick a letter!",null,null,null,null,"","","","","",""]
["MUST pick a number!","MUST pick a letter!",null,null,null,null,"","","","","",""]
["MUST pick a number!","MUST pick a letter!",null,null,null,null,"","","","","",""]
["MUST pick a number!","MUST pick a letter!",null,null,null,null,"","","","","",""]
["MUST pick a number!","MUST pick a letter!",null,null,null,null,"","","","","",""]
["MUST pick a number!","MUST pick a letter!",null,null,null,null,"","","","","",""]
["MUST pick a number!","MUST pick a letter!",null,null,null,null,"","","","","",""]
["MUST pick a number!","MUST pick a letter!",null,null,null,null,"","","","","",""]
["MUST pick a number!","MUST pick a letter!",null,null,null,null,"","","","","",""]
["MUST pick a number!","MUST pick a letter!",null,null,null,null,"","","","","",""]
["MUST pick a number!","MUST pick a letter!",null,null,null,null,"","","","","",""]
["MUST pick a number!","MUST pick a letter!",null,null,null,null,"","","","","",""]
["MUST pick a number!","MUST pick a letter!",null,null,null,null,"","","","","",""]
["MUST pick a number!","MUST pick a letter!",null,null,null,null,"","","","","",""]
["MUST pick a number!","MUST pick a letter!",null,null,null,null,"","","","","",""]
["MUST pick a number!","MUST pick a letter!",null,null,null,null,"","","","","",""]
["MUST pick a number!","MUST pick a letter!",null,null,null,null,"","","","","",""]
["MUST pick a number!","MUST pick a letter!",null,null,null,null,"","","","","",""]
["MUST pick a number!","MUST pick a letter!",null,null,null,null,"","","","","",""]
["MUST pick a number!","MUST pick a letter!",null,null,null,null,"","","","","",""]
["MUST pick a number!","MUST pick a letter!",null,null,null,null,"","","","","",""]
["MUST pick a number!","MUST pick a letter!",null,null,null,null,"","","","","",""]
["MUST pick a number!","MUST pick a letter!",null,null,null,null,"","","","","",""]
["MUST pick a number!","MUST pick a letter!",null,null,null,null,"","","","","",""]
["MUST pick a number!","MUST pick a letter!",null,null,null,null,"","","","","",""]
["MUST pick a number!","MUST pick a letter!",null,null,null,null,"","","","","",""]
["MUST pick a number!","MUST pick a letter!",null,null,null,null,"","","","","",""]
["MUST pick a number!","MUST pick a letter!",null,null,null,null,"","","","","",""]
["MUST pick a number!","MUST pick a letter!",null,null,null,null,"","","","","",""]
["MUST pick a number!","MUST pick a letter!",null,null,null,null,"","","","","",""]
["MUST pick a number!","MUST pick a letter!",null,null,null,null,"","","","","",""]
["MUST pick a number!","MUST pick a letter!",null,null,null,null,"","","","","",""]
["MUST pick a number!","MUST pick a letter!",null,null,null,null,"","","","","",""]
["MUST pick a number!","MUST pick a letter!",null,null,null,null,"","","","","",""]
["MUST pick a number!","MUST pick a letter!",null,null,null,null,"","","","","",""]
["MUST pick a number!","MUST pick a letter!",null,null,null,null,"","","","","",""]
["MUST pick a number!","MUST pick a letter!",null,null,null,null,"","","","","",""]
["MUST pick a number!","MUST pick a letter!",null,null,null,null,"","","","","",""]
["MUST pick a number!","MUST pick a letter!",null,null,null,null,"","","","","",""]
["MUST pick a number!","MUST pick a letter!",null,null,null,null,"","","","","",""]
["MUST pick a number!","MUST pick a letter!",null,null,null,null,"","","","","",""]
["MUST pick a number!","MUST pick a letter!",null,null,null,null,"","","","","",""]
["MUST pick a number!","MUST pick a letter!",null,null,null,null,"","","","","",""]
["MUST pick a number!","MUST pick a letter!",null,null,null,null,"","","","","",""]
["MUST pick a number!","MUST pick a letter!",null,null,null,null,"","","","","",""]
["MUST pick a number!","MUST pick a letter!",null,null,null,null,"","","","","",""]
["MUST pick a number!","MUST pick a letter!",null,null,null,null,"","","","","",""]
["MUST pick a number!","MUST pick a letter!",null,null,null,null,"","","","","",""]
["MUST pick a number!","MUST pick a letter!",null,null,null,null,"","","","","",""]
["MUST pick a number!","MUST pick a letter!",null,null,null,null,"","","","","",""]
["MUST pick a number!","MUST pick a letter!",null,null,null,null,"","","","","",""]
["MUST pick a number!","MUST pick a letter!",null,null,null,null,"","","","","",""]
["MUST pick a number!","MUST pick a letter!",null,null,null,null,"","","","","",""]
["MUST pick a number!","MUST pick a letter!",null,null,null,null,"","","","","",""]
["MUST pick a number!","MUST pick a letter!",null,null,null,null,"","","","","",""]
["MUST pick a number!","MUST pick a letter!",null,null,null,null,"","","","","",""]
["MUST pick a number!","MUST pick a letter!",null,null,null,null,"","","","","",""]
["MUST pick a number!","MUST pick a letter!",null,null,null,null,{"$f":"IF(F78=\"\",\"\",(IF(F78-F77<=0,\"potential error!\",F78-F77)))","v":""},{"$f":"IF(F78-F77<=0,\"\",(F78-F77)/(D78-D77))","v":""},{"$f":"IF(F78-F77<=0,\"\",(H78*1000)/(24*60*60))","v":""},{"$f":"IF(F78=\"\",\"\",\"enter rate\")","v":""},{"$f":"IF(J78=\"\",\"\",(J78*1000)/60)","v":""},{"$f":"IF(F78=0,\"\",F78-$F$12)","v":""}]
["MUST pick a number!","MUST pick a letter!",null,null,null,null,"","","","","",""]
["MUST pick a number!","MUST pick a letter!",null,null,null,null,"","","","","",""]
["MUST pick a number!","MUST pick a letter!",null,null,null,null,"","","","","",""]
["MUST pick a number!","MUST pick a letter!",null,null,null,null,"","","","","",""]
["MUST pick a number!","MUST pick a letter!",null,null,null,null,"","","","","",""]
["MUST pick a number!","MUST pick a letter!",null,null,null,null,"","","","","",""]
["MUST pick a number!","MUST pick a letter!",null,null,null,null,"","","","","",""]
["MUST pick a number!","MUST pick a letter!",null,null,null,null,"","","","","",""]
["MUST pick a number!","MUST pick a letter!",null,null,null,null,"","","","","",""]
["MUST pick a number!","MUST pick a letter!",null,null,null,null,"","","","","",""]
["MUST pick a number!","MUST pick a letter!",null,null,null,null,"","","","","",""]
["MUST pick a number!","MUST pick a letter!",null,null,null,null,"","","","","",""]
["MUST pick a number!","MUST pick a letter!",null,null,null,null,"","","","","",""]
["MUST pick a number!","MUST pick a letter!",null,null,null,null,"","",{"$f":"IF(F92-F91<=0,\"\",(H92*1000)/(24*60*60))","v":""},"","",""]
["MUST pick a number!","MUST pick a letter!",null,null,null,null,"","","","","",""]
["MUST pick a number!","MUST pick a letter!",null,null,null,null,"","","","","",""]
["MUST pick a number!","MUST pick a letter!",null,null,null,null,"","","","","",""]
["MUST pick a number!","MUST pick a letter!",null,null,null,null,"","","","","",""]
["MUST pick a number!","MUST pick a letter!",null,null,null,null,"","","","","",""]
["MUST pick a number!","MUST pick a letter!",null,null,null,null,"","",{"$f":"IF(F98-F96<=0,\"\",(H98*1000)/(24*60*60))","v":""},"","",""]
["MUST pick a number!","MUST pick a letter!",null,null,null,null,"","","","","",""]
["MUST pick a number!","MUST pick a letter!",null,null,null,null,"","",{"$f":"IF(F100-F95<=0,\"\",(H100*1000)/(24*60*60))","v":""},"","",""]
["MUST pick a number!","MUST pick a letter!",null,null,null,null,"","","","","",""]
["MUST pick a number!","MUST pick a letter!",null,null,null,null,"","","","","",""]
["MUST pick a number!","MUST pick a letter!",null,null,null,null,"","","","","",""]
[]
[]
[]
[]
[]
[]
[]
[]
[]
[]
[]
[]
[]
[]
[]
[]
[]
[]
[]
[]
[]
[]
[]
[]
[]
[]
[]
[]
[]
[]
[]
[]
[]
[]
[]
[]
[]
[]
[]
[]
[]
[]
[]
[]
[]
[]
[]
[]
[]
[]
[]
[]
[]
[]
[]
[]
[]
[]
[]
[]
[]
[]
[]
[]
[]
[]
[]
[]
[]
[]
[]
[]
[]
[]
[]
[]
[]
[]
[]
[]
[]
[]
[]
[]
[]
[]
[]
[]
[]
[]
[]
[]
[]
[]
[]
[]
[]
[]
[]
[]
[]
[]
[]
[]
[]
[]
[]
[]
[]
[]
[]
[]
[]
[]
[]
[]
[]
[]
[]
[]
[]
[]
[]
[]
[]
[]
[]
[]
[]
[]
[]
[]
[]
[]
[]
[]
[]
[]
[]
[]
[]
[]
[]
[]
[]
[]
[]
[]
[]
[]
[]
[]
[]
[]
[]
[]
[]
[]
[]
[]
[]
[]
[]
[]
[]
[]
[]
[]
[]
[]
[]
[]
[]
[]
[]
[]
[]
[]
[]
[]
[]
[]
[]
[]
[]
[]
[]
[]
[]
[]
[]
[]
[]
[]
[]
[]
[]
[]
[]
[]
["MUST pick a number!","MUST pick a letter!"]
[1,"A"]
[2,"B"]
[3,"C"]
[4,"D"]
[5,"E"]
[6,"F"]
[7]
[8]
[9]
[10]
[11]
[12]
[13]
[14]
[15]
[16]
[17]
[18]
[19]
[20]

{"sheet":"Meter 4","index":19,"n_rows":324,"n_cols":13,"rows_kept":324,"cut":false,"hidden":true,"merged":[[3,2,3,3],[3,11,3,12],[0,2,1,3],[0,4,1,9],[0,11,1,12],[2,2,2,3],[2,11,2,12],[9,7,9,8],[4,2,4,3],[4,8,4,12],[5,2,5,4],[5,12,6,12],[6,2,6,4],[8,7,8,9]]}
[null,null,"Site:   ",null,{"$f":"Assessment!C51","v":"< Exactly enter physical property address details as created on the Enquiry Sheet >"},null,null,null,null,null,"Client:   ",{"$f":"Application!G18","v":"enter here (for billing purposes)"}]
[]
[null,null,"24 Hr Contact:   ",null,{"$f":"Application!G20&+\" (\"&+Application!U20&+\")\"","v":"enter here (enter here)"},null,null,null,"Overall Discharge Period Requested:",null,null,{"$f":"+\"From \"&+TEXT(Application!M64,\"DD MMM YYYY\")&+\" to \"&+TEXT(Application!M65,\"DD MMM YYYY\")","v":"From Enter start date here (in dd/mmm/yyyy format) to Enter end date here (in dd/mmm/yyyy format)"}]
[null,null,"Site Contact:",null,{"$f":"Application!F28&+\" (\"&+Application!U28&+\")\"","v":"enter here - do not enter 'As above' (enter here)"},null,null,null,"Current Contract Expiry:",null,{"$f":"MIN(TEXT(Assessment!P26+(365/2),\"DD MMM YYYY\"),TEXT(Application!M65,\"DD MMM YYYY\"))","v":{"$error":"#VALUE!"}},{"$f":"IF(AND((Application!M65-Application!M64>(365/2)),('Conditions of Approval'!N98+(365/2))-TODAY()<=14),\"CONTRACT HAS EXPIRED OR WILL BE EXPIRING VERY SOON.\",\"\")","v":{"$error":"#VALUE!"}}]
[null,null,"Dewatering:",null,{"$f":"Application!E34&+\" (\"&+Application!U34&+\")\"","v":"enter here (enter here)"},null,null,null,{"$f":"IF(AND((Application!M65-Application!M64>(365/2)),('Conditions of Approval'!N98+(365/2))-TODAY()<=14),\"CONTACT CUSTOMER FOR NEW CONTRACT AND POSSIBLE NEW SAMPLE!!!\",\"\")","v":{"$error":"#VALUE!"}}]
[null,null,"Approved Discharge Rate (L/s):    ",null,null,null,{"$f":"MIN(Assessment!M76,Assessment!N135)","v":0},null,"Approved Discharge Volume (kL):",null,null,{"$f":"'Est-6 Month QQ'!J60","v":{"$error":"#VALUE!"}},{"$f":"\"Total Est Cost of Whole Discharge: $\"&TEXT(ROUND(IF(Application!M65-Application!M64<=365/2,'Est-6 Month Charges'!D51,('Est-6 Month Charges'!B31*((Application!M65-Application!M64)*'Est-6 Month QQ'!H57*3600*24)/1000)+(((Application!$M$65-Application!$M$64)/(365/12))*('Est-6 Month Charges'!D10/6))+(((Application!$M$65-Application!$M$64)/(365/12))*('Est-6 Month Charges'!D18/6))+(((Application!$M$65-Application!$M$64)/(365/12))*('Est-6 Month Charges'!D27/6))),-2),\"#,##0\")","v":{"$error":"#VALUE!"}}]
[null,null,"Approved Discharge Location:    ",null,null,{"$f":"'Conditions of Approval'!N97","v":false},null,null,"Estimated Charge per Kilolitre ($/kL):",null,null,{"$f":"ROUND('Est-6 Month QQ'!B37,4)","v":{"$error":"#VALUE!"}}]
[]
[null,null,null,null,"Last Avg Discharge Rate (L/s):",{"$f":"IF(D12=\"\",\"\",LOOKUP(2,1/(I11:I103<>\"\"),I11:I103))","v":""},null,"L/sec =  kL/min x 1000              OR",null,null,"kL/day x 1000",null,{"$f":"+\"Total volume discharged to date = \"&+SUM(G13:G103)&+\" kL\"","v":"Total volume discharged to date = 0 kL"}]
[null,null,null,null,null,null,null,60,null,null,86400]
["Billing Cycle","Quality","Entered\non KPI?","Date\n(dd/mm/yyyy)","Meter Serial Number","Meter Reading (kL)","Discharge Since Last Read (kL)","Daily Discharge\n(kL)"," Average Discharge Rate (L/sec)","Discharge Rate (Observed) (kL/min)","Discharge Rate (Observed) (L/sec)","Total Discharge Volume (kL)","Comments"]
["MUST pick a number!","MUST pick a letter!",null,null,null,null,"START",null,null,null,null,null,{"$f":"IF(Assessment!G5=\"YES - by Water Corporation\",\"At start-up, must take Water Corp sample!\",(IF(Assessment!G5=\"YES - by the Customer\",\"At start-up, get water quality data from customer or third party dewatering contractor!\",\"\")))","v":""}]
["MUST pick a number!","MUST pick a letter!",null,null,null,null,{"$f":"IF(F13=\"\",\"\",(IF(F13-F12<=0,\"potential error!\",F13-F12)))","v":""},{"$f":"IF(F13-F12<=0,\"\",(F13-F12)/(D13-D12))","v":""},{"$f":"IF(F13-F12<=0,\"\",(H13*1000)/(24*60*60))","v":""},{"$f":"IF(F13=\"\",\"\",\"enter rate\")","v":""},{"$f":"IF(J13=\"\",\"\",(J13*1000)/60)","v":""},{"$f":"IF(F13=0,\"\",F13-$F$12)","v":""}]
["MUST pick a number!","MUST pick a letter!",null,null,null,null,{"$f":"IF(F14=\"\",\"\",(IF(F14-F13<=0,\"potential error!\",F14-F13)))","v":""},{"$f":"IF(F14-F13<=0,\"\",(F14-F13)/(D14-D13))","v":""},{"$f":"IF(F14-F13<=0,\"\",(H14*1000)/(24*60*60))","v":""},{"$f":"IF(F14=\"\",\"\",\"enter rate\")","v":""},{"$f":"IF(J14=\"\",\"\",(J14*1000)/60)","v":""},{"$f":"IF(F14=0,\"\",F14-$F$12)","v":""}]
["MUST pick a number!","MUST pick a letter!",null,null,null,null,"","","","","",""]
["MUST pick a number!","MUST pick a letter!",null,null,null,null,"","","","","",""]
["MUST pick a number!","MUST pick a letter!",null,null,null,null,"","","","","",""]
["MUST pick a number!","MUST pick a letter!",null,null,null,null,"","","","","",""]
["MUST pick a number!","MUST pick a letter!",null,null,null,null,"","","","","",""]
["MUST pick a number!","MUST pick a letter!",null,null,null,null,"","","","","",""]
["MUST pick a number!","MUST pick a letter!",null,null,null,null,"","","","","",""]
["MUST pick a number!","MUST pick a letter!",null,null,null,null,"","","","","",""]
["MUST pick a number!","MUST pick a letter!",null,null,null,null,"","","","","",""]
["MUST pick a number!","MUST pick a letter!",null,null,null,null,"","","","","",""]
["MUST pick a number!","MUST pick a letter!",null,null,null,null,"","","","","",""]
["MUST pick a number!","MUST pick a letter!",null,null,null,null,"","","","","",""]
["MUST pick a number!","MUST pick a letter!",null,null,null,null,"","","","","",""]
["MUST pick a number!","MUST pick a letter!",null,null,null,null,"","","","","",""]
["MUST pick a number!","MUST pick a letter!",null,null,null,null,"","","","","",""]
["MUST pick a number!","MUST pick a letter!",null,null,null,null,"","","","","",""]
["MUST pick a number!","MUST pick a letter!",null,null,null,null,"","","","","",""]
["MUST pick a number!","MUST pick a letter!",null,null,null,null,"","","","","",""]
["MUST pick a number!","MUST pick a letter!",null,null,null,null,"","","","","",""]
["MUST pick a number!","MUST pick a letter!",null,null,null,null,"","","","","",""]
["MUST pick a number!","MUST pick a letter!",null,null,null,null,"","","","","",""]
["MUST pick a number!","MUST pick a letter!",null,null,null,null,"","","","","",""]
["MUST pick a number!","MUST pick a letter!",null,null,null,null,"","","","","",""]
["MUST pick a number!","MUST pick a letter!",null,null,null,null,"","","","","",""]
["MUST pick a number!","MUST pick a letter!",null,null,null,null,"","","","","",""]
["MUST pick a number!","MUST pick a letter!",null,null,null,null,"","","","","",""]
["MUST pick a number!","MUST pick a letter!",null,null,null,null,"","","","","",""]
["MUST pick a number!","MUST pick a letter!",null,null,null,null,"","","","","",""]
["MUST pick a number!","MUST pick a letter!",null,null,null,null,"","","","","",""]
["MUST pick a number!","MUST pick a letter!",null,null,null,null,"","","","","",""]
["MUST pick a number!","MUST pick a letter!",null,null,null,null,"","","","","",""]
["MUST pick a number!","MUST pick a letter!",null,null,null,null,"","","","","",""]
["MUST pick a number!","MUST pick a letter!",null,null,null,null,"","","","","",""]
["MUST pick a number!","MUST pick a letter!",null,null,null,null,"","","","","",""]
["MUST pick a number!","MUST pick a letter!",null,null,null,null,"","","","","",""]
["MUST pick a number!","MUST pick a letter!",null,null,null,null,"","","","","",""]
["MUST pick a number!","MUST pick a letter!",null,null,null,null,"","","","","",""]
["MUST pick a number!","MUST pick a letter!",null,null,null,null,"","","","","",""]
["MUST pick a number!","MUST pick a letter!",null,null,null,null,"","","","","",""]
["MUST pick a number!","MUST pick a letter!",null,null,null,null,"","","","","",""]
["MUST pick a number!","MUST pick a letter!",null,null,null,null,"","","","","",""]
["MUST pick a number!","MUST pick a letter!",null,null,null,null,"","","","","",""]
["MUST pick a number!","MUST pick a letter!",null,null,null,null,"","","","","",""]
["MUST pick a number!","MUST pick a letter!",null,null,null,null,"","","","","",""]
["MUST pick a number!","MUST pick a letter!",null,null,null,null,"","","","","",""]
["MUST pick a number!","MUST pick a letter!",null,null,null,null,"","","","","",""]
["MUST pick a number!","MUST pick a letter!",null,null,null,null,"","","","","",""]
["MUST pick a number!","MUST pick a letter!",null,null,null,null,"","","","","",""]
["MUST pick a number!","MUST pick a letter!",null,null,null,null,"","","","","",""]
["MUST pick a number!","MUST pick a letter!",null,null,null,null,"","","","","",""]
["MUST pick a number!","MUST pick a letter!",null,null,null,null,"","","","","",""]
["MUST pick a number!","MUST pick a letter!",null,null,null,null,"","","","","",""]
["MUST pick a number!","MUST pick a letter!",null,null,null,null,"","","","","",""]
["MUST pick a number!","MUST pick a letter!",null,null,null,null,"","","","","",""]
["MUST pick a number!","MUST pick a letter!",null,null,null,null,"","","","","",""]
["MUST pick a number!","MUST pick a letter!",null,null,null,null,"","","","","",""]
["MUST pick a number!","MUST pick a letter!",null,null,null,null,"","","","","",""]
["MUST pick a number!","MUST pick a letter!",null,null,null,null,"","","","","",""]
["MUST pick a number!","MUST pick a letter!",null,null,null,null,"","","","","",""]
["MUST pick a number!","MUST pick a letter!",null,null,null,null,"","","","","",""]
["MUST pick a number!","MUST pick a letter!",null,null,null,null,"","","","","",""]
["MUST pick a number!","MUST pick a letter!",null,null,null,null,"","","","","",""]
["MUST pick a number!","MUST pick a letter!",null,null,null,null,"","","","","",""]
["MUST pick a number!","MUST pick a letter!",null,null,null,null,{"$f":"IF(F78=\"\",\"\",(IF(F78-F77<=0,\"potential error!\",F78-F77)))","v":""},{"$f":"IF(F78-F77<=0,\"\",(F78-F77)/(D78-D77))","v":""},{"$f":"IF(F78-F77<=0,\"\",(H78*1000)/(24*60*60))","v":""},{"$f":"IF(F78=\"\",\"\",\"enter rate\")","v":""},{"$f":"IF(J78=\"\",\"\",(J78*1000)/60)","v":""},{"$f":"IF(F78=0,\"\",F78-$F$12)","v":""}]
["MUST pick a number!","MUST pick a letter!",null,null,null,null,"","","","","",""]
["MUST pick a number!","MUST pick a letter!",null,null,null,null,"","","","","",""]
["MUST pick a number!","MUST pick a letter!",null,null,null,null,"","","","","",""]
["MUST pick a number!","MUST pick a letter!",null,null,null,null,"","","","","",""]
["MUST pick a number!","MUST pick a letter!",null,null,null,null,"","","","","",""]
["MUST pick a number!","MUST pick a letter!",null,null,null,null,"","","","","",""]
["MUST pick a number!","MUST pick a letter!",null,null,null,null,"","","","","",""]
["MUST pick a number!","MUST pick a letter!",null,null,null,null,"","","","","",""]
["MUST pick a number!","MUST pick a letter!",null,null,null,null,"","","","","",""]
["MUST pick a number!","MUST pick a letter!",null,null,null,null,"","","","","",""]
["MUST pick a number!","MUST pick a letter!",null,null,null,null,"","","","","",""]
["MUST pick a number!","MUST pick a letter!",null,null,null,null,"","","","","",""]
["MUST pick a number!","MUST pick a letter!",null,null,null,null,"","","","","",""]
["MUST pick a number!","MUST pick a letter!",null,null,null,null,"","","","","",""]
["MUST pick a number!","MUST pick a letter!",null,null,null,null,"","","","","",""]
["MUST pick a number!","MUST pick a letter!",null,null,null,null,"",{"$f":"IF(F94-F89<=0,\"\",(F94-F89)/(D94-D89))","v":""},{"$f":"IF(F94-F89<=0,\"\",(H94*1000)/(24*60*60))","v":""},"","",""]
["MUST pick a number!","MUST pick a letter!",null,null,null,null,"","","","","",""]
["MUST pick a number!","MUST pick a letter!",null,null,null,null,"","","","","",""]
["MUST pick a number!","MUST pick a letter!",null,null,null,null,"","","","","",""]
["MUST pick a number!","MUST pick a letter!",null,null,null,null,"","","","","",""]
["MUST pick a number!","MUST pick a letter!",null,null,null,null,"","","","","",""]
["MUST pick a number!","MUST pick a letter!",null,null,null,null,"","","","","",""]
["MUST pick a number!","MUST pick a letter!",null,null,null,null,"","","","","",""]
["MUST pick a number!","MUST pick a letter!",null,null,null,null,"","","","","",""]
["MUST pick a number!","MUST pick a letter!",null,null,null,null,"","","","","",""]
[]
[]
[]
[]
[]
[]
[]
[]
[]
[]
[]
[]
[]
[]
[]
[]
[]
[]
[]
[]
[]
[]
[]
[]
[]
[]
[]
[]
[]
[]
[]
[]
[]
[]
[]
[]
[]
[]
[]
[]
[]
[]
[]
[]
[]
[]
[]
[]
[]
[]
[]
[]
[]
[]
[]
[]
[]
[]
[]
[]
[]
[]
[]
[]
[]
[]
[]
[]
[]
[]
[]
[]
[]
[]
[]
[]
[]
[]
[]
[]
[]
[]
[]
[]
[]
[]
[]
[]
[]
[]
[]
[]
[]
[]
[]
[]
[]
[]
[]
[]
[]
[]
[]
[]
[]
[]
[]
[]
[]
[]
[]
[]
[]
[]
[]
[]
[]
[]
[]
[]
[]
[]
[]
[]
[]
[]
[]
[]
[]
[]
[]
[]
[]
[]
[]
[]
[]
[]
[]
[]
[]
[]
[]
[]
[]
[]
[]
[]
[]
[]
[]
[]
[]
[]
[]
[]
[]
[]
[]
[]
[]
[]
[]
[]
[]
[]
[]
[]
[]
[]
[]
[]
[]
[]
[]
[]
[]
[]
[]
[]
[]
[]
[]
[]
[]
[]
[]
[]
[]
[]
[]
[]
[]
[]
[]
[]
[]
[]
[]
[]
["MUST pick a number!","MUST pick a letter!"]
[1,"A"]
[2,"B"]
[3,"C"]
[4,"D"]
[5,"E"]
[6,"F"]
[7]
[8]
[9]
[10]
[11]
[12]
[13]
[14]
[15]
[16]
[17]
[18]
[19]
[20]

{"sheet":"Meter 5","index":20,"n_rows":324,"n_cols":13,"rows_kept":324,"cut":false,"hidden":true,"merged":[[3,2,3,3],[3,11,3,12],[0,2,1,3],[0,4,1,9],[0,11,1,12],[2,2,2,3],[2,11,2,12],[9,7,9,8],[4,2,4,3],[4,8,4,12],[5,2,5,4],[5,12,6,12],[6,2,6,4],[8,7,8,9]]}
[null,null,"Site:   ",null,{"$f":"Assessment!C51","v":"< Exactly enter physical property address details as created on the Enquiry Sheet >"},null,null,null,null,null,"Client:   ",{"$f":"Application!G18","v":"enter here (for billing purposes)"}]
[]
[null,null,"24 Hr Contact:   ",null,{"$f":"Application!G20&+\" (\"&+Application!U20&+\")\"","v":"enter here (enter here)"},null,null,null,"Overall Discharge Period Requested:",null,null,{"$f":"+\"From \"&+TEXT(Application!M64,\"DD MMM YYYY\")&+\" to \"&+TEXT(Application!M65,\"DD MMM YYYY\")","v":"From Enter start date here (in dd/mmm/yyyy format) to Enter end date here (in dd/mmm/yyyy format)"}]
[null,null,"Site Contact:",null,{"$f":"Application!F28&+\" (\"&+Application!U28&+\")\"","v":"enter here - do not enter 'As above' (enter here)"},null,null,null,"Current Contract Expiry:",null,{"$f":"MIN(TEXT(Assessment!P26+(365/2),\"DD MMM YYYY\"),TEXT(Application!M65,\"DD MMM YYYY\"))","v":{"$error":"#VALUE!"}},{"$f":"IF(AND((Application!M65-Application!M64>(365/2)),('Conditions of Approval'!N98+(365/2))-TODAY()<=14),\"CONTRACT HAS EXPIRED OR WILL BE EXPIRING VERY SOON.\",\"\")","v":{"$error":"#VALUE!"}}]
[null,null,"Dewatering:",null,{"$f":"Application!E34&+\" (\"&+Application!U34&+\")\"","v":"enter here (enter here)"},null,null,null,{"$f":"IF(AND((Application!M65-Application!M64>(365/2)),('Conditions of Approval'!N98+(365/2))-TODAY()<=14),\"CONTACT CUSTOMER FOR NEW CONTRACT AND POSSIBLE NEW SAMPLE!!!\",\"\")","v":{"$error":"#VALUE!"}}]
[null,null,"Approved Discharge Rate (L/s):    ",null,null,null,{"$f":"MIN(Assessment!M76,Assessment!N135)","v":0},null,"Approved Discharge Volume (kL):",null,null,{"$f":"'Est-6 Month QQ'!J60","v":{"$error":"#VALUE!"}},{"$f":"\"Total Est Cost of Whole Discharge: $\"&TEXT(ROUND(IF(Application!M65-Application!M64<=365/2,'Est-6 Month Charges'!D51,('Est-6 Month Charges'!B31*((Application!M65-Application!M64)*'Est-6 Month QQ'!H57*3600*24)/1000)+(((Application!$M$65-Application!$M$64)/(365/12))*('Est-6 Month Charges'!D10/6))+(((Application!$M$65-Application!$M$64)/(365/12))*('Est-6 Month Charges'!D18/6))+(((Application!$M$65-Application!$M$64)/(365/12))*('Est-6 Month Charges'!D27/6))),-2),\"#,##0\")","v":{"$error":"#VALUE!"}}]
[null,null,"Approved Discharge Location:    ",null,null,{"$f":"'Conditions of Approval'!N97","v":false},null,null,"Estimated Charge per Kilolitre ($/kL):",null,null,{"$f":"ROUND('Est-6 Month QQ'!B37,4)","v":{"$error":"#VALUE!"}}]
[]
[null,null,null,null,"Last Avg Discharge Rate (L/s):",{"$f":"IF(D12=\"\",\"\",LOOKUP(2,1/(I11:I103<>\"\"),I11:I103))","v":""},null,"L/sec =  kL/min x 1000              OR",null,null,"kL/day x 1000",null,{"$f":"+\"Total volume discharged to date = \"&+SUM(G13:G103)&+\" kL\"","v":"Total volume discharged to date = 0 kL"}]
[null,null,null,null,null,null,null,60,null,null,86400]
["Billing Cycle","Quality","Entered\non KPI?","Date\n(dd/mm/yyyy)","Meter Serial Number","Meter Reading (kL)","Discharge Since Last Read (kL)","Daily Discharge\n(kL)"," Average Discharge Rate (L/sec)","Discharge Rate (Observed) (kL/min)","Discharge Rate (Observed) (L/sec)","Total Discharge Volume (kL)","Comments"]
["MUST pick a number!","MUST pick a letter!",null,null,null,null,"START",null,null,null,null,null,{"$f":"IF(Assessment!G5=\"YES - by Water Corporation\",\"At start-up, must take Water Corp sample!\",(IF(Assessment!G5=\"YES - by the Customer\",\"At start-up, get water quality data from customer or third party dewatering contractor!\",\"\")))","v":""}]
["MUST pick a number!","MUST pick a letter!",null,null,null,null,{"$f":"IF(F13=\"\",\"\",(IF(F13-F12<=0,\"potential error!\",F13-F12)))","v":""},{"$f":"IF(F13-F12<=0,\"\",(F13-F12)/(D13-D12))","v":""},{"$f":"IF(F13-F12<=0,\"\",(H13*1000)/(24*60*60))","v":""},{"$f":"IF(F13=\"\",\"\",\"enter rate\")","v":""},{"$f":"IF(J13=\"\",\"\",(J13*1000)/60)","v":""},{"$f":"IF(F13=0,\"\",F13-$F$12)","v":""}]
["MUST pick a number!","MUST pick a letter!",null,null,null,null,{"$f":"IF(F14=\"\",\"\",(IF(F14-F13<=0,\"potential error!\",F14-F13)))","v":""},{"$f":"IF(F14-F13<=0,\"\",(F14-F13)/(D14-D13))","v":""},{"$f":"IF(F14-F13<=0,\"\",(H14*1000)/(24*60*60))","v":""},{"$f":"IF(F14=\"\",\"\",\"enter rate\")","v":""},{"$f":"IF(J14=\"\",\"\",(J14*1000)/60)","v":""},{"$f":"IF(F14=0,\"\",F14-$F$12)","v":""}]
["MUST pick a number!","MUST pick a letter!",null,null,null,null,"","","","","",""]
["MUST pick a number!","MUST pick a letter!",null,null,null,null,"","","","","",""]
["MUST pick a number!","MUST pick a letter!",null,null,null,null,"","","","","",""]
["MUST pick a number!","MUST pick a letter!",null,null,null,null,"","","","","",""]
["MUST pick a number!","MUST pick a letter!",null,null,null,null,"","","","","",""]
["MUST pick a number!","MUST pick a letter!",null,null,null,null,"","","","","",""]
["MUST pick a number!","MUST pick a letter!",null,null,null,null,"","","","","",""]
["MUST pick a number!","MUST pick a letter!",null,null,null,null,"","","","","",""]
["MUST pick a number!","MUST pick a letter!",null,null,null,null,"","","","","",""]
["MUST pick a number!","MUST pick a letter!",null,null,null,null,"","","","","",""]
["MUST pick a number!","MUST pick a letter!",null,null,null,null,"","","","","",""]
["MUST pick a number!","MUST pick a letter!",null,null,null,null,"","","","","",""]
["MUST pick a number!","MUST pick a letter!",null,null,null,null,"","","","","",""]
["MUST pick a number!","MUST pick a letter!",null,null,null,null,"","","","","",""]
["MUST pick a number!","MUST pick a letter!",null,null,null,null,"","","","","",""]
["MUST pick a number!","MUST pick a letter!",null,null,null,null,"","","","","",""]
["MUST pick a number!","MUST pick a letter!",null,null,null,null,"","","","","",""]
["MUST pick a number!","MUST pick a letter!",null,null,null,null,"","","","","",""]
["MUST pick a number!","MUST pick a letter!",null,null,null,null,"","","","","",""]
["MUST pick a number!","MUST pick a letter!",null,null,null,null,"","","","","",""]
["MUST pick a number!","MUST pick a letter!",null,null,null,null,"","","","","",""]
["MUST pick a number!","MUST pick a letter!",null,null,null,null,"","","","","",""]
["MUST pick a number!","MUST pick a letter!",null,null,null,null,"","","","","",""]
["MUST pick a number!","MUST pick a letter!",null,null,null,null,"","","","","",""]
["MUST pick a number!","MUST pick a letter!",null,null,null,null,"","","","","",""]
["MUST pick a number!","MUST pick a letter!",null,null,null,null,"","","","","",""]
["MUST pick a number!","MUST pick a letter!",null,null,null,null,"","","","","",""]
["MUST pick a number!","MUST pick a letter!",null,null,null,null,"","","","","",""]
["MUST pick a number!","MUST pick a letter!",null,null,null,null,"","","","","",""]
["MUST pick a number!","MUST pick a letter!",null,null,null,null,"","","","","",""]
["MUST pick a number!","MUST pick a letter!",null,null,null,null,"","","","","",""]
["MUST pick a number!","MUST pick a letter!",null,null,null,null,"","","","","",""]
["MUST pick a number!","MUST pick a letter!",null,null,null,null,"","","","","",""]
["MUST pick a number!","MUST pick a letter!",null,null,null,null,"","","","","",""]
["MUST pick a number!","MUST pick a letter!",null,null,null,null,"","","","","",""]
["MUST pick a number!","MUST pick a letter!",null,null,null,null,"","","","","",""]
["MUST pick a number!","MUST pick a letter!",null,null,null,null,"","","","","",""]
["MUST pick a number!","MUST pick a letter!",null,null,null,null,"","","","","",""]
["MUST pick a number!","MUST pick a letter!",null,null,null,null,"","","","","",""]
["MUST pick a number!","MUST pick a letter!",null,null,null,null,"","","","","",""]
["MUST pick a number!","MUST pick a letter!",null,null,null,null,"","","","","",""]
["MUST pick a number!","MUST pick a letter!",null,null,null,null,"","","","","",""]
["MUST pick a number!","MUST pick a letter!",null,null,null,null,"","","","","",""]
["MUST pick a number!","MUST pick a letter!",null,null,null,null,"","","","","",""]
["MUST pick a number!","MUST pick a letter!",null,null,null,null,"","","","","",""]
["MUST pick a number!","MUST pick a letter!",null,null,null,null,"","","","","",""]
["MUST pick a number!","MUST pick a letter!",null,null,null,null,"","","","","",""]
["MUST pick a number!","MUST pick a letter!",null,null,null,null,"","","","","",""]
["MUST pick a number!","MUST pick a letter!",null,null,null,null,"","","","","",""]
["MUST pick a number!","MUST pick a letter!",null,null,null,null,"","","","","",""]
["MUST pick a number!","MUST pick a letter!",null,null,null,null,"","","","","",""]
["MUST pick a number!","MUST pick a letter!",null,null,null,null,"","","","","",""]
["MUST pick a number!","MUST pick a letter!",null,null,null,null,"","","","","",""]
["MUST pick a number!","MUST pick a letter!",null,null,null,null,"","","","","",""]
["MUST pick a number!","MUST pick a letter!",null,null,null,null,"","","","","",""]
["MUST pick a number!","MUST pick a letter!",null,null,null,null,"","","","","",""]
["MUST pick a number!","MUST pick a letter!",null,null,null,null,"","","","","",""]
["MUST pick a number!","MUST pick a letter!",null,null,null,null,"","","","","",""]
["MUST pick a number!","MUST pick a letter!",null,null,null,null,"","","","","",""]
["MUST pick a number!","MUST pick a letter!",null,null,null,null,"","","","","",""]
["MUST pick a number!","MUST pick a letter!",null,null,null,null,"","","","","",""]
["MUST pick a number!","MUST pick a letter!",null,null,null,null,"","","","","",""]
["MUST pick a number!","MUST pick a letter!",null,null,null,null,"","","","","",""]
["MUST pick a number!","MUST pick a letter!",null,null,null,null,{"$f":"IF(F78=\"\",\"\",(IF(F78-F77<=0,\"potential error!\",F78-F77)))","v":""},{"$f":"IF(F78-F77<=0,\"\",(F78-F77)/(D78-D77))","v":""},{"$f":"IF(F78-F77<=0,\"\",(H78*1000)/(24*60*60))","v":""},{"$f":"IF(F78=\"\",\"\",\"enter rate\")","v":""},{"$f":"IF(J78=\"\",\"\",(J78*1000)/60)","v":""},{"$f":"IF(F78=0,\"\",F78-$F$12)","v":""}]
["MUST pick a number!","MUST pick a letter!",null,null,null,null,"","","","","",""]
["MUST pick a number!","MUST pick a letter!",null,null,null,null,"","","","","",""]
["MUST pick a number!","MUST pick a letter!",null,null,null,null,"","","","","",""]
["MUST pick a number!","MUST pick a letter!",null,null,null,null,"","","","","",""]
["MUST pick a number!","MUST pick a letter!",null,null,null,null,"","","","","",""]
["MUST pick a number!","MUST pick a letter!",null,null,null,null,"","","","","",""]
["MUST pick a number!","MUST pick a letter!",null,null,null,null,"","","","","",""]
["MUST pick a number!","MUST pick a letter!",null,null,null,null,"","","","","",""]
["MUST pick a number!","MUST pick a letter!",null,null,null,null,"","","","","",""]
["MUST pick a number!","MUST pick a letter!",null,null,null,null,"","","","","",""]
["MUST pick a number!","MUST pick a letter!",null,null,null,null,"","","","","",""]
["MUST pick a number!","MUST pick a letter!",null,null,null,null,"","","","","",""]
["MUST pick a number!","MUST pick a letter!",null,null,null,null,"","","","","",""]
["MUST pick a number!","MUST pick a letter!",null,null,null,null,"","",{"$f":"IF(F92-F91<=0,\"\",(H92*1000)/(24*60*60))","v":""},"","",""]
["MUST pick a number!","MUST pick a letter!",null,null,null,null,"","","","","",""]
["MUST pick a number!","MUST pick a letter!",null,null,null,null,"","","","","",""]
["MUST pick a number!","MUST pick a letter!",null,null,null,null,"","","","","",""]
["MUST pick a number!","MUST pick a letter!",null,null,null,null,"","","","","",""]
["MUST pick a number!","MUST pick a letter!",null,null,null,null,"","","","","",""]
["MUST pick a number!","MUST pick a letter!",null,null,null,null,"","",{"$f":"IF(F98-F96<=0,\"\",(H98*1000)/(24*60*60))","v":""},"","",""]
["MUST pick a number!","MUST pick a letter!",null,null,null,null,"","","","","",""]
["MUST pick a number!","MUST pick a letter!",null,null,null,null,"","",{"$f":"IF(F100-F95<=0,\"\",(H100*1000)/(24*60*60))","v":""},"","",""]
["MUST pick a number!","MUST pick a letter!",null,null,null,null,"","","","","",""]
["MUST pick a number!","MUST pick a letter!",null,null,null,null,"","","","","",""]
["MUST pick a number!","MUST pick a letter!",null,null,null,null,"","","","","",""]
[]
[]
[]
[]
[]
[]
[]
[]
[]
[]
[]
[]
[]
[]
[]
[]
[]
[]
[]
[]
[]
[]
[]
[]
[]
[]
[]
[]
[]
[]
[]
[]
[]
[]
[]
[]
[]
[]
[]
[]
[]
[]
[]
[]
[]
[]
[]
[]
[]
[]
[]
[]
[]
[]
[]
[]
[]
[]
[]
[]
[]
[]
[]
[]
[]
[]
[]
[]
[]
[]
[]
[]
[]
[]
[]
[]
[]
[]
[]
[]
[]
[]
[]
[]
[]
[]
[]
[]
[]
[]
[]
[]
[]
[]
[]
[]
[]
[]
[]
[]
[]
[]
[]
[]
[]
[]
[]
[]
[]
[]
[]
[]
[]
[]
[]
[]
[]
[]
[]
[]
[]
[]
[]
[]
[]
[]
[]
[]
[]
[]
[]
[]
[]
[]
[]
[]
[]
[]
[]
[]
[]
[]
[]
[]
[]
[]
[]
[]
[]
[]
[]
[]
[]
[]
[]
[]
[]
[]
[]
[]
[]
[]
[]
[]
[]
[]
[]
[]
[]
[]
[]
[]
[]
[]
[]
[]
[]
[]
[]
[]
[]
[]
[]
[]
[]
[]
[]
[]
[]
[]
[]
[]
[]
[]
[]
[]
[]
[]
[]
[]
["MUST pick a number!","MUST pick a letter!"]
[1,"A"]
[2,"B"]
[3,"C"]
[4,"D"]
[5,"E"]
[6,"F"]
[7]
[8]
[9]
[10]
[11]
[12]
[13]
[14]
[15]
[16]
[17]
[18]
[19]
[20]

{"sheet":"Meter 6","index":21,"n_rows":324,"n_cols":13,"rows_kept":324,"cut":false,"hidden":true,"merged":[[3,2,3,3],[3,11,3,12],[0,2,1,3],[0,4,1,9],[0,11,1,12],[2,2,2,3],[2,11,2,12],[9,7,9,8],[4,2,4,3],[4,8,4,12],[5,2,5,4],[5,12,6,12],[6,2,6,4],[8,7,8,9]]}
[null,null,"Site:   ",null,{"$f":"Assessment!C51","v":"< Exactly enter physical property address details as created on the Enquiry Sheet >"},null,null,null,null,null,"Client:   ",{"$f":"Application!G18","v":"enter here (for billing purposes)"}]
[]
[null,null,"24 Hr Contact:   ",null,{"$f":"Application!G20&+\" (\"&+Application!U20&+\")\"","v":"enter here (enter here)"},null,null,null,"Overall Discharge Period Requested:",null,null,{"$f":"+\"From \"&+TEXT(Application!M64,\"DD MMM YYYY\")&+\" to \"&+TEXT(Application!M65,\"DD MMM YYYY\")","v":"From Enter start date here (in dd/mmm/yyyy format) to Enter end date here (in dd/mmm/yyyy format)"}]
[null,null,"Site Contact:",null,{"$f":"Application!F28&+\" (\"&+Application!U28&+\")\"","v":"enter here - do not enter 'As above' (enter here)"},null,null,null,"Current Contract Expiry:",null,{"$f":"MIN(TEXT(Assessment!P26+(365/2),\"DD MMM YYYY\"),TEXT(Application!M65,\"DD MMM YYYY\"))","v":{"$error":"#VALUE!"}},{"$f":"IF(AND((Application!M65-Application!M64>(365/2)),('Conditions of Approval'!N98+(365/2))-TODAY()<=14),\"CONTRACT HAS EXPIRED OR WILL BE EXPIRING VERY SOON.\",\"\")","v":{"$error":"#VALUE!"}}]
[null,null,"Dewatering:",null,{"$f":"Application!E34&+\" (\"&+Application!U34&+\")\"","v":"enter here (enter here)"},null,null,null,{"$f":"IF(AND((Application!M65-Application!M64>(365/2)),('Conditions of Approval'!N98+(365/2))-TODAY()<=14),\"CONTACT CUSTOMER FOR NEW CONTRACT AND POSSIBLE NEW SAMPLE!!!\",\"\")","v":{"$error":"#VALUE!"}}]
[null,null,"Approved Discharge Rate (L/s):    ",null,null,null,{"$f":"MIN(Assessment!M76,Assessment!N135)","v":0},null,"Approved Discharge Volume (kL):",null,null,{"$f":"'Est-6 Month QQ'!J60","v":{"$error":"#VALUE!"}},{"$f":"\"Total Est Cost of Whole Discharge: $\"&TEXT(ROUND(IF(Application!M65-Application!M64<=365/2,'Est-6 Month Charges'!D51,('Est-6 Month Charges'!B31*((Application!M65-Application!M64)*'Est-6 Month QQ'!H57*3600*24)/1000)+(((Application!$M$65-Application!$M$64)/(365/12))*('Est-6 Month Charges'!D10/6))+(((Application!$M$65-Application!$M$64)/(365/12))*('Est-6 Month Charges'!D18/6))+(((Application!$M$65-Application!$M$64)/(365/12))*('Est-6 Month Charges'!D27/6))),-2),\"#,##0\")","v":{"$error":"#VALUE!"}}]
[null,null,"Approved Discharge Location:    ",null,null,{"$f":"'Conditions of Approval'!N97","v":false},null,null,"Estimated Charge per Kilolitre ($/kL):",null,null,{"$f":"ROUND('Est-6 Month QQ'!B37,4)","v":{"$error":"#VALUE!"}}]
[]
[null,null,null,null,"Last Avg Discharge Rate (L/s):",{"$f":"IF(D12=\"\",\"\",LOOKUP(2,1/(I11:I103<>\"\"),I11:I103))","v":""},null,"L/sec =  kL/min x 1000              OR",null,null,"kL/day x 1000",null,{"$f":"+\"Total volume discharged to date = \"&+SUM(G13:G103)&+\" kL\"","v":"Total volume discharged to date = 0 kL"}]
[null,null,null,null,null,null,null,60,null,null,86400]
["Billing Cycle","Quality","Entered\non KPI?","Date\n(dd/mm/yyyy)","Meter Serial Number","Meter Reading (kL)","Discharge Since Last Read (kL)","Daily Discharge\n(kL)"," Average Discharge Rate (L/sec)","Discharge Rate (Observed) (kL/min)","Discharge Rate (Observed) (L/sec)","Total Discharge Volume (kL)","Comments"]
["MUST pick a number!","MUST pick a letter!",null,null,null,null,"START",null,null,null,null,null,{"$f":"IF(Assessment!G5=\"YES - by Water Corporation\",\"At start-up, must take Water Corp sample!\",(IF(Assessment!G5=\"YES - by the Customer\",\"At start-up, get water quality data from customer or third party dewatering contractor!\",\"\")))","v":""}]
["MUST pick a number!","MUST pick a letter!",null,null,null,null,{"$f":"IF(F13=\"\",\"\",(IF(F13-F12<=0,\"potential error!\",F13-F12)))","v":""},{"$f":"IF(F13-F12<=0,\"\",(F13-F12)/(D13-D12))","v":""},{"$f":"IF(F13-F12<=0,\"\",(H13*1000)/(24*60*60))","v":""},{"$f":"IF(F13=\"\",\"\",\"enter rate\")","v":""},{"$f":"IF(J13=\"\",\"\",(J13*1000)/60)","v":""},{"$f":"IF(F13=0,\"\",F13-$F$12)","v":""}]
["MUST pick a number!","MUST pick a letter!",null,null,null,null,{"$f":"IF(F14=\"\",\"\",(IF(F14-F13<=0,\"potential error!\",F14-F13)))","v":""},{"$f":"IF(F14-F13<=0,\"\",(F14-F13)/(D14-D13))","v":""},{"$f":"IF(F14-F13<=0,\"\",(H14*1000)/(24*60*60))","v":""},{"$f":"IF(F14=\"\",\"\",\"enter rate\")","v":""},{"$f":"IF(J14=\"\",\"\",(J14*1000)/60)","v":""},{"$f":"IF(F14=0,\"\",F14-$F$12)","v":""}]
["MUST pick a number!","MUST pick a letter!",null,null,null,null,"","","","","",""]
["MUST pick a number!","MUST pick a letter!",null,null,null,null,"","","","","",""]
["MUST pick a number!","MUST pick a letter!",null,null,null,null,"","","","","",""]
["MUST pick a number!","MUST pick a letter!",null,null,null,null,"","","","","",""]
["MUST pick a number!","MUST pick a letter!",null,null,null,null,"","","","","",""]
["MUST pick a number!","MUST pick a letter!",null,null,null,null,"","","","","",""]
["MUST pick a number!","MUST pick a letter!",null,null,null,null,"","","","","",""]
["MUST pick a number!","MUST pick a letter!",null,null,null,null,"","","","","",""]
["MUST pick a number!","MUST pick a letter!",null,null,null,null,"","","","","",""]
["MUST pick a number!","MUST pick a letter!",null,null,null,null,"","","","","",""]
["MUST pick a number!","MUST pick a letter!",null,null,null,null,"","","","","",""]
["MUST pick a number!","MUST pick a letter!",null,null,null,null,"","","","","",""]
["MUST pick a number!","MUST pick a letter!",null,null,null,null,"","","","","",""]
["MUST pick a number!","MUST pick a letter!",null,null,null,null,"","","","","",""]
["MUST pick a number!","MUST pick a letter!",null,null,null,null,"","","","","",""]
["MUST pick a number!","MUST pick a letter!",null,null,null,null,"","","","","",""]
["MUST pick a number!","MUST pick a letter!",null,null,null,null,"","","","","",""]
["MUST pick a number!","MUST pick a letter!",null,null,null,null,"","","","","",""]
["MUST pick a number!","MUST pick a letter!",null,null,null,null,"","","","","",""]
["MUST pick a number!","MUST pick a letter!",null,null,null,null,"","","","","",""]
["MUST pick a number!","MUST pick a letter!",null,null,null,null,"","","","","",""]
["MUST pick a number!","MUST pick a letter!",null,null,null,null,"","","","","",""]
["MUST pick a number!","MUST pick a letter!",null,null,null,null,"","","","","",""]
["MUST pick a number!","MUST pick a letter!",null,null,null,null,"","","","","",""]
["MUST pick a number!","MUST pick a letter!",null,null,null,null,"","","","","",""]
["MUST pick a number!","MUST pick a letter!",null,null,null,null,"","","","","",""]
["MUST pick a number!","MUST pick a letter!",null,null,null,null,"","","","","",""]
["MUST pick a number!","MUST pick a letter!",null,null,null,null,"","","","","",""]
["MUST pick a number!","MUST pick a letter!",null,null,null,null,"","","","","",""]
["MUST pick a number!","MUST pick a letter!",null,null,null,null,"","","","","",""]
["MUST pick a number!","MUST pick a letter!",null,null,null,null,"","","","","",""]
["MUST pick a number!","MUST pick a letter!",null,null,null,null,"","","","","",""]
["MUST pick a number!","MUST pick a letter!",null,null,null,null,"","","","","",""]
["MUST pick a number!","MUST pick a letter!",null,null,null,null,"","","","","",""]
["MUST pick a number!","MUST pick a letter!",null,null,null,null,"","","","","",""]
["MUST pick a number!","MUST pick a letter!",null,null,null,null,"","","","","",""]
["MUST pick a number!","MUST pick a letter!",null,null,null,null,"","","","","",""]
["MUST pick a number!","MUST pick a letter!",null,null,null,null,"","","","","",""]
["MUST pick a number!","MUST pick a letter!",null,null,null,null,"","","","","",""]
["MUST pick a number!","MUST pick a letter!",null,null,null,null,"","","","","",""]
["MUST pick a number!","MUST pick a letter!",null,null,null,null,"","","","","",""]
["MUST pick a number!","MUST pick a letter!",null,null,null,null,"","","","","",""]
["MUST pick a number!","MUST pick a letter!",null,null,null,null,"","","","","",""]
["MUST pick a number!","MUST pick a letter!",null,null,null,null,"","","","","",""]
["MUST pick a number!","MUST pick a letter!",null,null,null,null,"","","","","",""]
["MUST pick a number!","MUST pick a letter!",null,null,null,null,"","","","","",""]
["MUST pick a number!","MUST pick a letter!",null,null,null,null,"","","","","",""]
["MUST pick a number!","MUST pick a letter!",null,null,null,null,"","","","","",""]
["MUST pick a number!","MUST pick a letter!",null,null,null,null,"","","","","",""]
["MUST pick a number!","MUST pick a letter!",null,null,null,null,"","","","","",""]
["MUST pick a number!","MUST pick a letter!",null,null,null,null,"","","","","",""]
["MUST pick a number!","MUST pick a letter!",null,null,null,null,"","","","","",""]
["MUST pick a number!","MUST pick a letter!",null,null,null,null,"","","","","",""]
["MUST pick a number!","MUST pick a letter!",null,null,null,null,"","","","","",""]
["MUST pick a number!","MUST pick a letter!",null,null,null,null,"","","","","",""]
["MUST pick a number!","MUST pick a letter!",null,null,null,null,"","","","","",""]
["MUST pick a number!","MUST pick a letter!",null,null,null,null,"","","","","",""]
["MUST pick a number!","MUST pick a letter!",null,null,null,null,"","","","","",""]
["MUST pick a number!","MUST pick a letter!",null,null,null,null,"","","","","",""]
["MUST pick a number!","MUST pick a letter!",null,null,null,null,"","","","","",""]
["MUST pick a number!","MUST pick a letter!",null,null,null,null,"","","","","",""]
["MUST pick a number!","MUST pick a letter!",null,null,null,null,"","","","","",""]
["MUST pick a number!","MUST pick a letter!",null,null,null,null,"","","","","",""]
["MUST pick a number!","MUST pick a letter!",null,null,null,null,{"$f":"IF(F78=\"\",\"\",(IF(F78-F77<=0,\"potential error!\",F78-F77)))","v":""},{"$f":"IF(F78-F77<=0,\"\",(F78-F77)/(D78-D77))","v":""},{"$f":"IF(F78-F77<=0,\"\",(H78*1000)/(24*60*60))","v":""},{"$f":"IF(F78=\"\",\"\",\"enter rate\")","v":""},{"$f":"IF(J78=\"\",\"\",(J78*1000)/60)","v":""},{"$f":"IF(F78=0,\"\",F78-$F$12)","v":""}]
["MUST pick a number!","MUST pick a letter!",null,null,null,null,"","","","","",""]
["MUST pick a number!","MUST pick a letter!",null,null,null,null,"","","","","",""]
["MUST pick a number!","MUST pick a letter!",null,null,null,null,"","","","","",""]
["MUST pick a number!","MUST pick a letter!",null,null,null,null,"","","","","",""]
["MUST pick a number!","MUST pick a letter!",null,null,null,null,"","","","","",""]
["MUST pick a number!","MUST pick a letter!",null,null,null,null,"","","","","",""]
["MUST pick a number!","MUST pick a letter!",null,null,null,null,"","","","","",""]
["MUST pick a number!","MUST pick a letter!",null,null,null,null,"","","","","",""]
["MUST pick a number!","MUST pick a letter!",null,null,null,null,"","","","","",""]
["MUST pick a number!","MUST pick a letter!",null,null,null,null,"","","","","",""]
["MUST pick a number!","MUST pick a letter!",null,null,null,null,"","","","","",""]
["MUST pick a number!","MUST pick a letter!",null,null,null,null,"","","","","",""]
["MUST pick a number!","MUST pick a letter!",null,null,null,null,"","","","","",""]
["MUST pick a number!","MUST pick a letter!",null,null,null,null,"","",{"$f":"IF(F92-F91<=0,\"\",(H92*1000)/(24*60*60))","v":""},"","",""]
["MUST pick a number!","MUST pick a letter!",null,null,null,null,"","","","","",""]
["MUST pick a number!","MUST pick a letter!",null,null,null,null,"","","","","",""]
["MUST pick a number!","MUST pick a letter!",null,null,null,null,"","","","","",""]
["MUST pick a number!","MUST pick a letter!",null,null,null,null,"","","","","",""]
["MUST pick a number!","MUST pick a letter!",null,null,null,null,"","","","","",""]
["MUST pick a number!","MUST pick a letter!",null,null,null,null,"","",{"$f":"IF(F98-F96<=0,\"\",(H98*1000)/(24*60*60))","v":""},"","",""]
["MUST pick a number!","MUST pick a letter!",null,null,null,null,"","","","","",""]
["MUST pick a number!","MUST pick a letter!",null,null,null,null,"","",{"$f":"IF(F100-F95<=0,\"\",(H100*1000)/(24*60*60))","v":""},"","",""]
["MUST pick a number!","MUST pick a letter!",null,null,null,null,"","","","","",""]
["MUST pick a number!","MUST pick a letter!",null,null,null,null,"","","","","",""]
["MUST pick a number!","MUST pick a letter!",null,null,null,null,"","","","","",""]
[]
[]
[]
[]
[]
[]
[]
[]
[]
[]
[]
[]
[]
[]
[]
[]
[]
[]
[]
[]
[]
[]
[]
[]
[]
[]
[]
[]
[]
[]
[]
[]
[]
[]
[]
[]
[]
[]
[]
[]
[]
[]
[]
[]
[]
[]
[]
[]
[]
[]
[]
[]
[]
[]
[]
[]
[]
[]
[]
[]
[]
[]
[]
[]
[]
[]
[]
[]
[]
[]
[]
[]
[]
[]
[]
[]
[]
[]
[]
[]
[]
[]
[]
[]
[]
[]
[]
[]
[]
[]
[]
[]
[]
[]
[]
[]
[]
[]
[]
[]
[]
[]
[]
[]
[]
[]
[]
[]
[]
[]
[]
[]
[]
[]
[]
[]
[]
[]
[]
[]
[]
[]
[]
[]
[]
[]
[]
[]
[]
[]
[]
[]
[]
[]
[]
[]
[]
[]
[]
[]
[]
[]
[]
[]
[]
[]
[]
[]
[]
[]
[]
[]
[]
[]
[]
[]
[]
[]
[]
[]
[]
[]
[]
[]
[]
[]
[]
[]
[]
[]
[]
[]
[]
[]
[]
[]
[]
[]
[]
[]
[]
[]
[]
[]
[]
[]
[]
[]
[]
[]
[]
[]
[]
[]
[]
[]
[]
[]
[]
[]
["MUST pick a number!","MUST pick a letter!"]
[1,"A"]
[2,"B"]
[3,"C"]
[4,"D"]
[5,"E"]
[6,"F"]
[7]
[8]
[9]
[10]
[11]
[12]
[13]
[14]
[15]
[16]
[17]
[18]
[19]
[20]

{"sheet":"RRR - (BLANK)","index":22,"n_rows":63,"n_cols":34,"rows_kept":63,"cut":false,"hidden":true,"merged":[[27,17,27,20],[4,10,5,28],[5,32,6,60],[8,32,9,60],[11,32,12,60],[12,4,12,27],[14,6,14,9],[14,11,14,20],[14,32,15,60],[26,33,28,57],[2,24,2,29],[21,10,21,15],[21,17,21,22],[23,2,24,29],[26,7,26,9],[26,13,26,16],[26,17,26,28],[56,19,56,25],[49,7,49,15],[51,2,52,8],[51,9,52,18],[28,17,28,20],[57,7,57,15],[2,2,2,6],[40,7,40,15],[45,7,45,15],[45,19,45,25],[46,7,46,15],[48,7,48,15],[48,19,48,25],[29,17,29,23],[30,17,33,28],[35,7,35,15],[35,19,35,25],[36,7,36,15],[39,7,39,15],[39,19,39,25],[56,7,56,15],[29,33,29,57],[30,33,30,57],[31,33,31,57],[23,33,24,57],[46,31,46,62],[35,31,35,62],[36,31,36,62],[45,31,45,62],[39,31,39,64],[40,31,40,64]]}
[]
[]
[null,null,"Billing Cycle - ?",null,null,null,null,null,null,null,null,null,null,null,null,null,null,null,null,null,null,null,null,"Date:","< enter date >"]
[]
[null,null,"Account Title (in Grange):",null,null,null,null,null,null,null,{"$f":"'RRR - 1'!K5","v":"ONE OFF DISCHARGE: < Exactly enter physical property address details as created on the Enquiry Sheet >"}]
[null,null,"(To appear on Page 1 of Grange bill)"]
[]
[null,null,"Customer (in Grange):",null,null,null,null,null,null,null,{"$f":"IF(E13=\"Billing contact details on the last signed CofA is different to the last received Application.\",\"enter new BILLING BUSINESS NAME here\",Application!$G$18)","v":"enter here (for billing purposes)"}]
[null,null,"(To appear on Page 2 of Grange bill)",null,null,null,null,null,null,null,{"$f":"IF(E13=\"Billing contact details on the last signed CofA is different to the last received Application.\",\"enter new BILLING ADDRESS DETAILS here\",Application!$G$22)","v":"enter here (must be postal address, not an e-mail account)"}]
[]
[null,null,null,null,null,null,null,null,"Attention:",null,{"$f":"IF(E13=\"Billing contact details on the last signed CofA is different to the last received Application.\",\"enter new BILLING CONTACT NAME here\",Application!$G$23)","v":"enter here (must be a natural person's name)"}]
[]
[null,null,null,null,"CHECK FOR CORRECT BILLING DETAILS BEFORE PROCEEDING FURTHER.  SELECT OPTION HERE."]
[]
[null,null,"Invoice Value:",null,null,null,{"$f":"IF(Application!Y29=\"yes\",\"\",'Billing Cycle 1 - Charges'!D10+'Billing Cycle 1 - Charges'!D18+'Billing Cycle 1 - Charges'!D27+'Billing Cycle 1 - Charges'!D35+'Billing Cycle 1 - Charges'!D39+'Billing Cycle 1 - Charges'!E18+'Billing Cycle 1 - Charges'!E39)","v":0},null,null,null,null,{"$f":"IF(Application!Y29=\"yes\",\"\",\"(This is inclusive of $\"&TEXT(ROUND(('Billing Cycle 1 - Charges'!E18+'Billing Cycle 1 - Charges'!E39),2),\"#,##0.00\")&+\" GST)\")","v":"(This is inclusive of $0.00 GST)"},null,null,null,null,null,null,null,null,null,null,null,null,null,null,null,null,null,"Profit Centre: 125"]
[]
[null,null,"(Please exclude GST component.  10% GST will be automatically calculated.)"]
[null,null,"Revenue Rating Schedules"]
[]
[null,null,"Description:",null,null,null,null,null,null,null,"One-Off-Discharge"]
[]
[null,null,null,null,null,null,null,null,null,"Charge Period From:","< enter start date >",null,null,null,null,null,"To:","< enter end date >"]
[]
[null,null,null,null,null,null,null,null,null,null,null,null,null,null,null,null,null,null,null,null,null,null,null,null,null,null,null,null,null,null,null,null,null,{"$f":"IF(C3<>\"Billing Cycle - ?\",\"\",\"READ BELOW BEFORE PROCEEDING ANY FURTHER!\")","v":"READ BELOW BEFORE PROCEEDING ANY FURTHER!"}]
[]
[]
[null,null,null,null,"Quality:",null,null,{"$f":"IF(Application!Y29=\"yes\",\"N/A\",+\"$\"&ROUND(('Billing Cycle 1 - QQ #1'!B31),4)&+\"/kL\")","v":{"$error":"#VALUE!"}},null,null,null,null,"Quantity:",{"$f":"IF(Application!Y29=\"yes\",\"N/A\",TEXT(ROUND(('Billing Cycle 1 - Charges'!C31),0),\"#,###\")&+\" kL\")","v":" kL"},null,null,null,{"$f":"IF(Application!Y29=\"yes\",\"C&IS not to recover Q/Q component\",'Billing Cycle 1 - Charges'!D31)","v":""},null,null,null,null,null,null,null,null,null,null,null,null,null,null,null,{"$f":"IF(AH24<>\"READ BELOW BEFORE PROCEEDING ANY FURTHER!\",\"\",\"If you need to copy this tab for RRR - 7 (or greater) then you may also need to amend three (hidden) formulas that follow below to ensure these formulas point to the new 'Billing Cycle ??? - Charges'!B31:B34 tab.\")","v":"If you need to copy this tab for RRR - 7 (or greater) then you may also need to amend three (hidden) formulas that follow below to ensure these formulas point to the new 'Billing Cycle ??? - Charges'!B31:B34 tab."}]
[null,null,null,null,"Laboratory Analysis Costs:",null,null,null,null,null,null,null,null,null,null,null,null,{"$f":"ROUND('Billing Cycle 1 - Charges'!D27,2)","v":0}]
[null,null,null,null,"Labour Costs",null,null,null,null,"- Administrative:",null,null,null,null,null,null,null,{"$f":"ROUND('Billing Cycle 1 - Charges'!D10,2)","v":0}]
[null,null,null,null,null,null,null,null,null,"- Monitoring (GST):",null,null,null,null,null,null,null,{"$f":"\"$\"&TEXT(ROUND('Billing Cycle 1 - Charges'!D18,2),\"#,###.00\"&\"     ($\"&TEXT(ROUND('Billing Cycle 1 - Charges'!E18,2),\"#,###.00\"&\")\"))","v":"$.00     ($.00)"},null,null,null,null,null,null,null,null,null,null,null,null,null,null,null,{"$f":"IF(COUNT('Billing Cycle 1 - Charges'!B31:B34)>1,\"It appears that more than one Q/Q value has been used for this RRR activity.\",\"\")","v":""}]
[null,null,null,null,null,null,null,null,null,"- Regional Charges (GST):",null,null,null,null,null,null,null,{"$f":"IF(Application!Y29=\"yes\",\"The PRA must recover their own regional charges directly from the Water Corp Project Manager using their own uniquely issued NWA.\",\"$\"&TEXT(ROUND('Billing Cycle 1 - Charges'!D39,2),\"#,###.00\"&\"     ($\"&TEXT(ROUND('Billing Cycle 1 - Charges'!E39,2),\"#,###.00\"&\")\")))","v":"$.00     ($.00)"},null,null,null,null,null,null,null,null,null,null,null,null,null,null,null,{"$f":"IF(COUNT('Billing Cycle 1 - Charges'!B31:B34)>1,\"If not done so already make sure these additional Q/Q values have been inserted here.\",\"\")","v":""}]
[null,null,null,null,null,null,null,null,null,null,null,null,null,null,null,null,null,null,null,null,null,null,null,null,null,null,null,null,null,null,null,null,null,{"$f":"IF(COUNT('Billing Cycle 1 - Charges'!B31:B34)>1,\"Finally, make sure the individual line entries equal the total Invoice Value at the top left.\",\"\")","v":""}]
[]
[]
[null,null,"Requested By:"]
[null,null,null,null,null,null,null,"enter here",null,null,null,null,null,null,null,null,null,null,"Date:","enter here",null,null,null,null,null,null,null,null,null,null,null,{"$f":"IF(T36<>\"enter here\",\"You must now use the link below to send an e-mail for this RRR to be checked before a Grange sundry account can be raised.\",\"\")","v":""}]
[null,null,null,null,null,null,null,"enter position title here",null,null,null,null,null,null,null,null,null,null,null,null,null,null,null,null,null,null,null,null,null,null,null,{"$f":"IF(T36<>\"enter here\",\"https://nexus.watercorporation.com.au/otcs/cs.exe/link/109973713\",\"\")","v":""}]
[]
[null,null,"Authorised By:"]
[null,null,null,null,null,null,null,"enter here",null,null,null,null,null,null,null,null,null,null,"Date:","enter here",null,null,null,null,null,null,null,null,null,null,null,{"$f":"IF(T40<>\"enter here\",\"Please forward this E-Form document to Officer - C&IS (Kellie Crofts) for Grange sundry account creation.\",\"\")","v":""}]
[null,null,null,null,null,null,null,"enter position title here",null,null,null,null,null,null,null,null,null,null,null,null,null,null,null,null,null,null,null,null,null,null,null,{"$f":"IF(T40<>\"enter here\",\"May.Ubalde@watercorporation.com.au\",\"\")","v":""}]
[null,null,"(Branch / Section Manager)"]
[]
[null,null,"Finance Use Only:"]
[]
[null,null,"Processed By:",null,null,null,null,"enter here",null,null,null,null,null,null,null,null,null,null,"Date:","enter here",null,null,null,null,null,null,null,null,null,null,null,{"$f":"IF(T46<>\"enter here\",\"Please advise TL - Investigations (Steve Jerkovic) that the Grange sundry account has now been created.\",\"\")","v":""}]
[null,null,null,null,null,null,null,"enter position title here",null,null,null,null,null,null,null,null,null,null,null,null,null,null,null,null,null,null,null,null,null,null,null,{"$f":"IF(T46<>\"enter here\",\"stephen.jerkovic@watercorporation.com.au\",\"\")","v":""}]
[]
[null,null,"Authorised By:",null,null,null,null,"enter here",null,null,null,null,null,null,null,null,null,null,"Date:","enter here"]
[null,null,null,null,null,null,null,"enter position title here"]
[]
[null,null,"Grange Account Number:",null,null,null,null,null,null,{"$f":"'RRR - 1'!J52","v":"enter here"}]
[]
[]
[]
[null,null,"QC / KPI Use Only:"]
[null,null,"Entered By:",null,null,null,null,"enter here",null,null,null,null,null,null,null,null,null,null,"Date:","enter here"]
[null,null,null,null,null,null,null,"enter position title here"]
[]
[]
[null,null,null,null,null,null,null,null,null,null,null,null,null,null,null,null,null,null,null,null,null,null,null,null,null,null,"CHECK FOR CORRECT BILLING DETAILS BEFORE PROCEEDING FURTHER.  SELECT OPTION HERE."]
[null,null,null,null,null,null,null,null,null,null,null,null,null,null,null,null,null,null,null,null,null,null,null,null,null,null,"Billing contact details on the last signed CofA is different to the last received Application."]
[null,null,null,null,null,null,null,null,null,null,null,null,null,null,null,null,null,null,null,null,null,null,null,null,null,null,"Billing contact details on the last signed CofA is the same as the last received Application."]

{"sheet":"Billing Cycle 1 - Charges","index":23,"n_rows":48,"n_cols":9,"rows_kept":48,"cut":false,"hidden":true,"merged":[[42,0,42,2],[47,0,47,2],[36,0,36,3],[37,0,37,2],[41,0,41,3],[3,0,3,3],[3,6,3,8],[11,0,11,3],[20,0,20,3],[28,0,28,3],[7,6,7,8]]}
["Name of One-Off Discharge:",{"$f":"+Assessment!C51&+\" (\"&Application!G18&+\")\"","v":"< Exactly enter physical property address details as created on the Enquiry Sheet > (enter here (for billing purposes))"}]
["From",{"$f":"'RRR - 1'!K22","v":"< enter start date >"},"To",{"$f":"'RRR - 1'!R22","v":"< enter end date >"}]
[]
["Administrative / Assessment"]
["Description","Total Hrs","Rate","$ Total"]
[null,null,{"$f":"'FY 24-25 Charges'!D$20","v":150.13},{"$f":"C6*B6","v":0}]
[null,null,{"$f":"'FY 24-25 Charges'!D$20","v":150.13},{"$f":"C7*B7","v":0}]
[null,null,{"$f":"'FY 24-25 Charges'!D$20","v":150.13},{"$f":"C8*B8","v":0},null,null,"Laboratory Analysis Calculator"]
[null,null,{"$f":"'FY 24-25 Charges'!D$20","v":150.13},{"$f":"C9*B9","v":0},null,null,"Indicate \"y\" in blue box if analyte was included"]
[null,null,"Total",{"$f":"SUM(D6:D9)","v":0},null,null,"Analyte","Included?","Rate"]
[null,null,null,null,null,null,"pH",null,{"$f":"'Est-6 Month Charges'!I11","v":4.9000000000000004}]
["Monitoring ",null,null,null,null,null,"Acidity to pH 6",null,{"$f":"'Est-6 Month Charges'!I12","v":15.7}]
["Description","Total Hrs","Rate","$ Total",null,null,"Alkalinity - to pH 10",null,{"$f":"'Est-6 Month Charges'!I13","v":16.3}]
[null,null,{"$f":"'FY 24-25 Charges'!D$13","v":150},{"$f":"C14*B14","v":0},null,null,"Conductivity",null,{"$f":"'Est-6 Month Charges'!I14","v":4.8}]
[null,null,{"$f":"'FY 24-25 Charges'!D$13","v":150},{"$f":"C15*B15","v":0},null,null,"Sulphur",null,{"$f":"'Est-6 Month Charges'!I15","v":3}]
[null,null,{"$f":"'FY 24-25 Charges'!D$13","v":150},{"$f":"C16*B16","v":0},null,null,"Copper",null,{"$f":"'Est-6 Month Charges'!I16","v":3}]
[null,null,{"$f":"'FY 24-25 Charges'!D$13","v":150},{"$f":"C17*B17","v":0},"GST Component",null,"Cadmium",null,{"$f":"'Est-6 Month Charges'!I17","v":3}]
[null,null,"Total",{"$f":"SUM(D14:D17)","v":0},{"$f":"SUM(D18)*0.1","v":0},null,"Chromium",null,{"$f":"'Est-6 Month Charges'!I18","v":3}]
[null,null,null,null,null,null,"Nickel",null,{"$f":"'Est-6 Month Charges'!I19","v":3}]
[null,null,null,null,null,null,"Lead",null,{"$f":"'Est-6 Month Charges'!I20","v":3}]
["Laboratory Analysis Costs",null,null,null,null,null,"Zinc",null,{"$f":"'Est-6 Month Charges'!I21","v":3}]
["Description","No. Samples","Unit Rate","$ Total",null,null,"Molybdenum",null,{"$f":"'Est-6 Month Charges'!I22","v":3}]
[null,null,{"$f":"H35","v":0},{"$f":"C23*B23","v":0},null,null,"Selenium",null,{"$f":"'Est-6 Month Charges'!I23","v":3}]
[null,null,null,{"$f":"C24*B24","v":0},null,null,"Silver",null,{"$f":"'Est-6 Month Charges'!I24","v":3}]
[null,null,null,{"$f":"C25*B25","v":0},null,null,"Arsenic",null,{"$f":"'Est-6 Month Charges'!I25","v":3}]
[null,null,null,{"$f":"C26*B26","v":0},null,null,"Mercury",null,{"$f":"'Est-6 Month Charges'!I26","v":14}]
[null,null,"Total",{"$f":"SUM(D23:D26)","v":0},null,null,"Suspended Solids"," ",{"$f":"'Est-6 Month Charges'!I27","v":12.8}]
[null,null,null,null,null,null,"BOD"," ",{"$f":"'Est-6 Month Charges'!I28","v":38.5}]
["Quality/Quantity Charges",null,null,null,null,null,"COD"," ",{"$f":"'Est-6 Month Charges'!I29","v":46}]
["Description","Charge Rate","Total Volume kL","$ Total",null,null,"TKN"," ",{"$f":"'Est-6 Month Charges'!I30","v":26.8}]
["Quality/Quantity Charges",{"$f":"ROUND('Billing Cycle 1 - QQ #1'!B31,4)","v":{"$error":"#VALUE!"}},{"$f":"\nSUMIFS('Meter 1'!G12:G103,'Meter 1'!A12:A103,1,'Meter 1'!B12:B103,\"A\")+\nSUMIFS('Meter 2'!G12:G103,'Meter 2'!A12:A103,1,'Meter 2'!B12:B103,\"a\")+\nSUMIFS('Meter 3'!G12:G103,'Meter 3'!A12:A103,1,'Meter 3'!B12:B103,\"a\")+\nSUMIFS('Meter 4'!G12:G103,'Meter 4'!A12:A103,1,'Meter 4'!B12:B103,\"a\")+\nSUMIFS('Meter 5'!G12:G103,'Meter 5'!A12:A103,1,'Meter 5'!B12:B103,\"a\")+\nSUMIFS('Meter 6'!G12:G103,'Meter 6'!A12:A103,1,'Meter 6'!B12:B103,\"a\")","v":0},{"$f":"IF(C31=0,\"\",B31*C31)","v":""},null,null,"Phosphorus Total"," ",{"$f":"'Est-6 Month Charges'!I31","v":16.600000000000001}]
[{"$f":"IF(C32<>\"\",\"Quality/Quantity Charges\",\"\")","v":""},{"$f":"IF(C32<>\"\",\"enter new Q/Q\",\"\")","v":""},{"$f":"\nIF(\n\nSUMIFS('Meter 1'!G12:G103,'Meter 1'!A12:A103,1,'Meter 1'!B12:B103,\"b\")+\nSUMIFS('Meter 2'!G12:G103,'Meter 2'!A12:A103,1,'Meter 2'!B12:B103,\"b\")+\nSUMIFS('Meter 3'!G12:G103,'Meter 3'!A12:A103,1,'Meter 3'!B12:B103,\"b\")+\nSUMIFS('Meter 4'!G12:G103,'Meter 4'!A12:A103,1,'Meter 4'!B12:B103,\"b\")+\nSUMIFS('Meter 5'!G12:G103,'Meter 5'!A12:A103,1,'Meter 5'!B12:B103,\"b\")+\nSUMIFS('Meter 6'!G12:G103,'Meter 6'!A12:A103,1,'Meter 6'!B12:B103,\"b\")=0,\"\",\n\n(SUMIFS('Meter 1'!G12:G103,'Meter 1'!A12:A103,1,'Meter 1'!B12:B103,\"b\")+\nSUMIFS('Meter 2'!G12:G103,'Meter 2'!A12:A103,1,'Meter 2'!B12:B103,\"b\")+\nSUMIFS('Meter 3'!G12:G103,'Meter 3'!A12:A103,1,'Meter 3'!B12:B103,\"b\")+\nSUMIFS('Meter 4'!G12:G103,'Meter 4'!A12:A103,1,'Meter 4'!B12:B103,\"b\")+\nSUMIFS('Meter 5'!G12:G103,'Meter 5'!A12:A103,1,'Meter 5'!B12:B103,\"b\")+\nSUMIFS('Meter 6'!G12:G103,'Meter 6'!A12:A103,1,'Meter 6'!B12:B103,\"b\")))","v":""},{"$f":"IF(A32=\"\",\"\",B32*C32)","v":""},null,null,"Oil and Grease",null,{"$f":"'Est-6 Month Charges'!I32","v":40.799999999999997}]
["",{"$f":"IF(C33<>\"\",\"enter new Q/Q\",\"\")","v":""},{"$f":"\nIF(\n\nSUMIFS('Meter 1'!G12:G103,'Meter 1'!A12:A103,1,'Meter 1'!B12:B103,\"c\")+\nSUMIFS('Meter 2'!G12:G103,'Meter 2'!A12:A103,1,'Meter 2'!B12:B103,\"c\")+\nSUMIFS('Meter 3'!G12:G103,'Meter 3'!A12:A103,1,'Meter 3'!B12:B103,\"c\")+\nSUMIFS('Meter 4'!G12:G103,'Meter 4'!A12:A103,1,'Meter 4'!B12:B103,\"c\")+\nSUMIFS('Meter 5'!G12:G103,'Meter 5'!A12:A103,1,'Meter 5'!B12:B103,\"c\")+\nSUMIFS('Meter 6'!G12:G103,'Meter 6'!A12:A103,1,'Meter 6'!B12:B103,\"c\")=0,\"\",\n\n(SUMIFS('Meter 1'!G12:G103,'Meter 1'!A12:A103,1,'Meter 1'!B12:B103,\"c\")+\nSUMIFS('Meter 2'!G12:G103,'Meter 2'!A12:A103,1,'Meter 2'!B12:B103,\"c\")+\nSUMIFS('Meter 3'!G12:G103,'Meter 3'!A12:A103,1,'Meter 3'!B12:B103,\"c\")+\nSUMIFS('Meter 4'!G12:G103,'Meter 4'!A12:A103,1,'Meter 4'!B12:B103,\"c\")+\nSUMIFS('Meter 5'!G12:G103,'Meter 5'!A12:A103,1,'Meter 5'!B12:B103,\"c\")+\nSUMIFS('Meter 6'!G12:G103,'Meter 6'!A12:A103,1,'Meter 6'!B12:B103,\"c\")))","v":""},{"$f":"IF(A33=\"\",\"\",B33*C33)","v":""},null,null,"BTEX & TPH",null,{"$f":"'Est-6 Month Charges'!I33","v":75}]
[{"$f":"IF(C34<>\"\",\"Quality/Quantity Charges\",\"\")","v":""},"",{"$f":"\nIF(\n\nSUMIFS('Meter 1'!G12:G103,'Meter 1'!A12:A103,1,'Meter 1'!B12:B103,\"d\")+\nSUMIFS('Meter 2'!G12:G103,'Meter 2'!A12:A103,1,'Meter 2'!B12:B103,\"d\")+\nSUMIFS('Meter 3'!G12:G103,'Meter 3'!A12:A103,1,'Meter 3'!B12:B103,\"d\")+\nSUMIFS('Meter 4'!G12:G103,'Meter 4'!A12:A103,1,'Meter 4'!B12:B103,\"d\")+\nSUMIFS('Meter 5'!G12:G103,'Meter 5'!A12:A103,1,'Meter 5'!B12:B103,\"d\")+\nSUMIFS('Meter 6'!G12:G103,'Meter 6'!A12:A103,1,'Meter 6'!B12:B103,\"d\")=0,\"\",\n\n(SUMIFS('Meter 1'!G12:G103,'Meter 1'!A12:A103,1,'Meter 1'!B12:B103,\"d\")+\nSUMIFS('Meter 2'!G12:G103,'Meter 2'!A12:A103,1,'Meter 2'!B12:B103,\"d\")+\nSUMIFS('Meter 3'!G12:G103,'Meter 3'!A12:A103,1,'Meter 3'!B12:B103,\"d\")+\nSUMIFS('Meter 4'!G12:G103,'Meter 4'!A12:A103,1,'Meter 4'!B12:B103,\"d\")+\nSUMIFS('Meter 5'!G12:G103,'Meter 5'!A12:A103,1,'Meter 5'!B12:B103,\"d\")+\nSUMIFS('Meter 6'!G12:G103,'Meter 6'!A12:A103,1,'Meter 6'!B12:B103,\"d\")))","v":""},"",null,null,"PFAS, PFOS, PFOA *",null,{"$f":"'Est-6 Month Charges'!I34","v":208}]
[null,null,"Total",{"$f":"SUM(D31:D34)","v":0},null,null,"Total Unit Rate",{"$f":"SUMIF(H11:I34,\"y\",I11:I34)","v":0}]
[]
["Regional  Charges",null,null,null,null,null,"* ARL charges $28 preparation fee per sample of PFAS "]
[null,null,null," $ Total","GST Component"]
["                                                            ",null,"Total ",null,{"$f":"SUM(D39)*0.1","v":0}]
[]
[]
["Total Charges"]
["        Description",null,null,"$ Total"]
["Quality/Quantity Charges",null,null,{"$f":"D35","v":0}]
["Laboratory Analysis Costs",null,null,{"$f":"D27","v":0}]
[{"$f":"A37","v":"Regional  Charges"},null,null,{"$f":"D39","v":0}]
["Labour Costs (Subject to GST)",{"$f":"B6+B7+B8+B9+B14+B15+B16+B17","v":0},"Hrs",{"$f":"IF(D10+D18=0,\"\",D10+D18)","v":""}]
["Total Charges for One Off Discharge\n(which includes the Monitoring and Regional GST components)",null,null,{"$f":"SUM(D44:D47)+E18+E39","v":0}]

{"sheet":"Billing Cycle 1 - QQ #1","index":24,"n_rows":48,"n_cols":10,"rows_kept":48,"cut":false,"hidden":true,"merged":[[43,7,43,9]]}
[{"$f":"'Est-6 Month QQ'!A1","v":"Quality-quantity charges for individually managed customers (2024/2025 rates)"}]
[]
["Customer",{"$f":"+Assessment!C51&+\" (\"&Application!G18&+\")\"","v":"< Exactly enter physical property address details as created on the Enquiry Sheet > (enter here (for billing purposes))"}]
["Parameter","Units","Amount","Daily charge","Annual Charge",null,"Mass kg/d","Mass kg/a"]
["Daily volume (note 1)","kL/d",{"$f":"I48","v":{"$error":"#VALUE!"}},{"$f":"C5*'FY 24-25 Charges'!D23","v":{"$error":"#VALUE!"}},{"$f":"D5*365","v":{"$error":"#VALUE!"}}]
["BOD","mg/L",null,{"$f":"IF(C6>5000,(C6-5000)*'FY 24-25 Charges'!D25 + 5000*'FY 24-25 Charges'!D24, C6*'FY 24-25 Charges'!D24)*$C$5/1000","v":{"$error":"#VALUE!"}},{"$f":"D6*365","v":{"$error":"#VALUE!"}},null,{"$f":"C6*$C$5/1000","v":{"$error":"#VALUE!"}},{"$f":"G6*365","v":{"$error":"#VALUE!"}},{"$f":"IF(G6=0,\"\",IF(G6<=200,\"Mass alarm limit OK\",\"Check mass alarm limit!\"))","v":{"$error":"#VALUE!"}}]
["SS","mg/L",null,{"$f":"IF(C7>2000,(C7-2000)*'FY 24-25 Charges'!D29 + 2000*'FY 24-25 Charges'!D28, C7*'FY 24-25 Charges'!D28)*$C$5/1000","v":{"$error":"#VALUE!"}},{"$error":"#VALUE!"},null,{"$f":"C7*$C$5/1000","v":{"$error":"#VALUE!"}},{"$f":"G7*365","v":{"$error":"#VALUE!"}},{"$f":"IF(G7=0,\"\",IF(G7<=200,\"Mass alarm limit OK\",\"Check mass alarm limit!\"))","v":{"$error":"#VALUE!"}}]
["Oil & Grease","mg/L",null,{"$f":"IF(C8>600,(C8-600)*'FY 24-25 Charges'!D32 + 300*'FY 24-25 Charges'!D31 + 300*'FY 24-25 Charges'!D30, IF(C8>300,(C8-300)*'FY 24-25 Charges'!D31 + 300*'FY 24-25 Charges'!D30, C8*'FY 24-25 Charges'!D30))*$C$5/1000","v":{"$error":"#VALUE!"}},{"$error":"#VALUE!"},null,{"$error":"#VALUE!"},{"$error":"#VALUE!"}]
["Acidity to pH 6","mg/L CaCO3",null,{"$f":"IF(C9>300,(C9-300)*'FY 24-25 Charges'!D35 + 200*'FY 24-25 Charges'!D34 + 100*'FY 24-25 Charges'!D33, IF(C9>100,(C9-100)*'FY 24-25 Charges'!D34 + 100*'FY 24-25 Charges'!D33, C9*'FY 24-25 Charges'!D33))*$C$5/1000","v":{"$error":"#VALUE!"}},{"$error":"#VALUE!"},null,{"$error":"#VALUE!"},{"$error":"#VALUE!"}]
["Alkalinity to pH 10","mg/L CaCO3",null,{"$f":"IF(C10>200,(C10-200)*'FY 24-25 Charges'!D38 + 100*'FY 24-25 Charges'!D37 + 100*'FY 24-25 Charges'!D36, IF(C10>100,(C10-100)*'FY 24-25 Charges'!D37 + 100*'FY 24-25 Charges'!D36, C10*'FY 24-25 Charges'!D36))*$C$5/1000","v":{"$error":"#VALUE!"}},{"$error":"#VALUE!"},null,{"$error":"#VALUE!"},{"$error":"#VALUE!"}]
["TKN","mg/L",null,{"$f":"C11*'FY 24-25 Charges'!D39*$C$5/1000","v":{"$error":"#VALUE!"}},{"$error":"#VALUE!"},null,{"$error":"#VALUE!"},{"$error":"#VALUE!"},{"$f":"IF(G11=0,\"\",IF(G11<=30,\"Mass alarm limit OK\",\"Check mass alarm limit!\"))","v":{"$error":"#VALUE!"}}]
["Phosphorus","mg/L",null,{"$f":"C12*'FY 24-25 Charges'!D40*$C$5/1000","v":{"$error":"#VALUE!"}},{"$error":"#VALUE!"},null,{"$error":"#VALUE!"},{"$error":"#VALUE!"},{"$f":"IF(G12=0,\"\",IF(G12<=10,\"Mass alarm limit OK\",\"Check mass alarm limit!\"))","v":{"$error":"#VALUE!"}}]
["Sulphate as SO4","mg/L",null,{"$f":"IF(C13>50,(C13-50)*'FY 24-25 Charges'!D42, 0)*$C$5/1000","v":{"$error":"#VALUE!"}},{"$error":"#VALUE!"},null,{"$error":"#VALUE!"},{"$error":"#VALUE!"}]
["Conductivity (note 2)","mS/m",null,{"$f":"IF(C14>1000,(C14-1000)*'FY 24-25 Charges'!D46 + 500*'FY 24-25 Charges'!D45 + 333*'FY 24-25 Charges'!D44, IF(C14>500,(C14-500)*'FY 24-25 Charges'!D45 + 333*'FY 24-25 Charges'!D44, IF(C14>167, (C14-167)*'FY 24-25 Charges'!D44, 0)))*$C$5*6/1000","v":{"$error":"#VALUE!"}},{"$error":"#VALUE!"},null,{"$f":"(6*C14)*$C$5/1000","v":{"$error":"#VALUE!"}},{"$error":"#VALUE!"},{"$f":"IF(G14=0,\"\",IF(G14<=220,\"Mass alarm limit OK\",\"Check mass alarm limit!\"))","v":{"$error":"#VALUE!"}}]
["Chromium","mg/L",null,{"$f":"IF(G15>1, (G15-1)*'FY 24-25 Charges'!D49 + 0.97*'FY 24-25 Charges'!D48 + 0.03*'FY 24-25 Charges'!D47, IF(G15>0.03, (G15-0.03)*'FY 24-25 Charges'!D48 + 0.03*'FY 24-25 Charges'!D47, G15*'FY 24-25 Charges'!D47))","v":{"$error":"#VALUE!"}},{"$error":"#VALUE!"},null,{"$f":"C15*$C$5/1000","v":{"$error":"#VALUE!"}},{"$error":"#VALUE!"},{"$f":"IF(G15=0,\"\",IF((1000*G15)<=30,\"Mass alarm limit OK\",\"Check mass alarm limit!\"))","v":{"$error":"#VALUE!"}}]
["Copper","mg/L",null,{"$f":"IF(G16>0.12, (G16-0.12)*'FY 24-25 Charges'!D52 + 0.09*'FY 24-25 Charges'!D51 + 0.03*'FY 24-25 Charges'!D50, IF(G16>0.03, (G16-0.03)*'FY 24-25 Charges'!D51 + 0.03*'FY 24-25 Charges'!D50, G16*'FY 24-25 Charges'!D50))","v":{"$error":"#VALUE!"}},{"$error":"#VALUE!"},null,{"$f":"C16*$C$5/1000","v":{"$error":"#VALUE!"}},{"$error":"#VALUE!"},{"$f":"IF(G16=0,\"\",IF((1000*G16)<=30,\"Mass alarm limit OK\",\"Check mass alarm limit!\"))","v":{"$error":"#VALUE!"}}]
["Lead","mg/L",null,{"$f":"IF(G17>0.3, (G17-0.3)*'FY 24-25 Charges'!D55 + 0.27*'FY 24-25 Charges'!D54 + 0.03*'FY 24-25 Charges'!D53, IF(G17>0.03, (G17-0.03)*'FY 24-25 Charges'!D54 + 0.03*'FY 24-25 Charges'!D53, G17*'FY 24-25 Charges'!D53))","v":{"$error":"#VALUE!"}},{"$error":"#VALUE!"},null,{"$error":"#VALUE!"},{"$error":"#VALUE!"},{"$f":"IF(G17=0,\"\",IF((1000*G17)<=30,\"Mass alarm limit OK\",\"Check mass alarm limit!\"))","v":{"$error":"#VALUE!"}}]
["Nickel","mg/L",null,{"$f":"IF(G18>0.15, (G18-0.15)*'FY 24-25 Charges'!D58 + 0.144*'FY 24-25 Charges'!D57 + 0.006*'FY 24-25 Charges'!D56, IF(G18>0.006, (G18-0.006)*'FY 24-25 Charges'!D57 + 0.006*'FY 24-25 Charges'!D56, G18*'FY 24-25 Charges'!D56))","v":{"$error":"#VALUE!"}},{"$error":"#VALUE!"},null,{"$error":"#VALUE!"},{"$error":"#VALUE!"},{"$f":"IF(G18=0,\"\",IF((1000*G18)<=6,\"Mass alarm limit OK\",\"Check mass alarm limit!\"))","v":{"$error":"#VALUE!"}}]
["Zinc","mg/L",null,{"$f":"IF(G19>0.5, (G19-0.5)*'FY 24-25 Charges'!D61 + 0.45*'FY 24-25 Charges'!D60 + 0.05*'FY 24-25 Charges'!D59, IF(G19>0.05, (G19-0.05)*'FY 24-25 Charges'!D60 + 0.05*'FY 24-25 Charges'!D59, G19*'FY 24-25 Charges'!D59))","v":{"$error":"#VALUE!"}},{"$error":"#VALUE!"},null,{"$error":"#VALUE!"},{"$error":"#VALUE!"},{"$f":"IF(G19=0,\"\",IF((1000*G19)<=50,\"Mass alarm limit OK\",\"Check mass alarm limit!\"))","v":{"$error":"#VALUE!"}}]
["Arsenic","mg/L",null,{"$f":"IF(G20>0.04, (G20-0.04)*'FY 24-25 Charges'!D64 + 0.039*'FY 24-25 Charges'!D63 + 0.001*'FY 24-25 Charges'!D62, IF(G20>0.001, (G20-0.001)*'FY 24-25 Charges'!D63 + 0.001*'FY 24-25 Charges'!D62, G20*'FY 24-25 Charges'!D62))","v":{"$error":"#VALUE!"}},{"$error":"#VALUE!"},null,{"$error":"#VALUE!"},{"$error":"#VALUE!"},{"$f":"IF(G20=0,\"\",IF((1000*G20)<=1,\"Mass alarm limit OK\",\"Check mass alarm limit!\"))","v":{"$error":"#VALUE!"}}]
["Cadmium","mg/L",null,{"$f":"IF(G21>0.015, (G21-0.015)*'FY 24-25 Charges'!D67 + 0.014*'FY 24-25 Charges'!D66 + 0.001*'FY 24-25 Charges'!D65, IF(G21>0.001, (G21-0.001)*'FY 24-25 Charges'!D66 + 0.001*'FY 24-25 Charges'!D65, G21*'FY 24-25 Charges'!D65))","v":{"$error":"#VALUE!"}},{"$error":"#VALUE!"},null,{"$error":"#VALUE!"},{"$error":"#VALUE!"},{"$f":"IF(G21=0,\"\",IF((1000*G21)<=1,\"Mass alarm limit OK\",\"Check mass alarm limit!\"))","v":{"$error":"#VALUE!"}}]
["Molybdenum","mg/L",null,{"$f":"IF(G22>0.02, (G22-0.02)*'FY 24-25 Charges'!D70 + 0.019*'FY 24-25 Charges'!D69 + 0.001*'FY 24-25 Charges'!D68, IF(G22>0.001, (G22-0.001)*'FY 24-25 Charges'!D69 + 0.001*'FY 24-25 Charges'!D68, G22*'FY 24-25 Charges'!D68))","v":{"$error":"#VALUE!"}},{"$error":"#VALUE!"},null,{"$error":"#VALUE!"},{"$error":"#VALUE!"},{"$f":"IF(G22=0,\"\",IF((1000*G22)<=1,\"Mass alarm limit OK\",\"Check mass alarm limit!\"))","v":{"$error":"#VALUE!"}}]
["Selenium","mg/L",null,{"$f":"IF(G23>0.02, (G23-0.02)*'FY 24-25 Charges'!D73 + 0.019*'FY 24-25 Charges'!D72 + 0.001*'FY 24-25 Charges'!D71, IF(G23>0.001, (G23-0.001)*'FY 24-25 Charges'!D72 + 0.001*'FY 24-25 Charges'!D71, G23*'FY 24-25 Charges'!D71))","v":{"$error":"#VALUE!"}},{"$error":"#VALUE!"},null,{"$error":"#VALUE!"},{"$error":"#VALUE!"},{"$f":"IF(G23=0,\"\",IF((1000*G23)<=1,\"Mass alarm limit OK\",\"Check mass alarm limit!\"))","v":{"$error":"#VALUE!"}}]
["Silver","mg/L",null,{"$f":"IF(G24>0.01, (G24-0.01)*'FY 24-25 Charges'!D76 + 0.008*'FY 24-25 Charges'!D75 + 0.002*'FY 24-25 Charges'!D74, IF(G24>0.002, (G24-0.002)*'FY 24-25 Charges'!D75 + 0.002*'FY 24-25 Charges'!D74, G24*'FY 24-25 Charges'!D74))","v":{"$error":"#VALUE!"}},{"$error":"#VALUE!"},null,{"$error":"#VALUE!"},{"$error":"#VALUE!"},{"$f":"IF(G24=0,\"\",IF((1000*G24)<=2,\"Mass alarm limit OK\",\"Check mass alarm limit!\"))","v":{"$error":"#VALUE!"}}]
["Mercury","mg/L",null,{"$f":"IF(G25>0.001, (G25-0.001)*'FY 24-25 Charges'!D79 + 0.0009*'FY 24-25 Charges'!D78 + 0.0001*'FY 24-25 Charges'!D77, IF(G25>0.0001, (G25-0.0001)*'FY 24-25 Charges'!D78 + 0.0001*'FY 24-25 Charges'!D77, G25*'FY 24-25 Charges'!D77))","v":{"$error":"#VALUE!"}},{"$error":"#VALUE!"},null,{"$error":"#VALUE!"},{"$error":"#VALUE!"},{"$f":"IF(G25=0,\"\",IF((1000*G25)<=0.1,\"Mass alarm limit OK\",\"Check mass alarm limit!\"))","v":{"$error":"#VALUE!"}}]
["pH"]
[null,null,null,null,"TDS mass loads",null,{"$f":"C14*C5*6/1000","v":{"$error":"#VALUE!"}},{"$f":"G27*365","v":{"$error":"#VALUE!"}},{"$f":"IF(G27=0,\"\",IF(G27<=220,\"Mass alarm limit OK\",\"Check mass alarm limit!\"))","v":{"$error":"#VALUE!"}}]
[]
["Total  Charge",null,null,{"$f":"SUM(D5:D25)","v":{"$error":"#VALUE!"}},{"$error":"#VALUE!"}]
[null,null,null,"(daily)","(annually)"]
["Charge per kL",{"$f":"D29/C5","v":{"$error":"#VALUE!"}}]
[]
[]
["Note 1","Volume MUST be daily volume or metals charges will not "]
[null,"calculate correctly"]
["Note 2","Use conductivity to determine TDS charges. If estimating "]
[null,"TDS charges from actual TDS data, convert TDS (mg/L) to"]
[null,"conductivity (mS/m) by dividing by 6 and entering into cell C14."]
["Note 3","All concentrations should be entered in mg/L unless otherwise indicated."]
["Note 4","For OOD Quotes: Total volume may be estimated by client in application or calculated "]
[null,"using table (Discharge Volume 24hrs/day) "]
[null,"For Final OOD Billing: Total volume is calculated from meter readings"]
[]
["What information was used to estimate volume and quality of effluent?",null,null,null,null,null,null,"Average Daily Volume Discharged During Billing Cycle 1"]
["Note 5: << enter AQUA reference of water quality data used for Q/Q calculation >>"]
[null,null,null,null,null,null,null,"start date","MUST ENTER!"]
[null,null,null,null,null,null,null,"end date","MUST ENTER!"]
[null,null,null,null,null,null,null,null,{"$f":"-'Billing Cycle 1 - Charges'!C31/(I46-I47)","v":{"$error":"#VALUE!"}},"kL/day"]

{"sheet":"RRR - 1","index":25,"n_rows":64,"n_cols":34,"rows_kept":64,"cut":false,"hidden":true,"merged":[[29,33,29,57],[30,33,30,57],[31,33,31,57],[29,17,29,23],[46,31,46,64],[35,31,35,64],[36,31,36,64],[39,31,39,64],[40,31,40,64],[45,31,45,64],[12,4,12,27],[5,32,6,60],[8,32,9,60],[11,32,12,60],[14,32,15,60],[14,11,14,20],[36,7,36,15],[51,2,52,8],[2,24,2,29],[14,6,14,9],[21,10,21,15],[21,17,21,22],[35,7,35,15],[35,19,35,25],[28,17,28,20],[23,2,24,29],[27,17,27,20],[26,7,26,9],[26,17,26,28],[26,13,26,16],[30,17,33,28],[4,10,5,28],[57,7,57,15],[49,7,49,15],[39,7,39,15],[39,19,39,25],[40,7,40,15],[46,7,46,15],[48,7,48,15],[48,19,48,25],[45,7,45,15],[45,19,45,25],[56,7,56,15],[56,19,56,25],[51,9,52,18]]}
[]
[]
[null,null,"Billing Cycle - 1",null,null,null,null,null,null,null,null,null,null,null,null,null,null,null,null,null,null,null,null,"Date:","< enter date >"]
[]
[null,null,"Account Title (in Grange):",null,null,null,null,null,null,null,{"$f":"IF(AG12=\"\",\n    \"ONE OFF DISCHARGE: \"&Assessment!C51,\n    IF(LEN(AG12<=61),\n        AG12,\n        \"ONE OFF DISCHARGE: \"&Assessment!C51))","v":"ONE OFF DISCHARGE: < Exactly enter physical property address details as created on the Enquiry Sheet >"}]
[null,null,"(To appear on Page 1 of Grange bill)",null,null,null,null,null,null,null,null,null,null,null,null,null,null,null,null,null,null,null,null,null,null,null,null,null,null,null,null,null,{"$f":"IF(LEN(Assessment!C51)>61,\"The Account Title (in Grange) character length to the left is originally set at \"&LEN(\"ONE OFF DISCHARGE: \"&Assessment!C51)&\" characters.  You need to amend this text to allow proper entry in Grange.  'ONE OFF DISCHARGE:' is to be kept in the account title.\",\"\")","v":"The Account Title (in Grange) character length to the left is originally set at 102 characters.  You need to amend this text to allow proper entry in Grange.  'ONE OFF DISCHARGE:' is to be kept in the account title."}]
[]
[null,null,"Customer (in Grange):",null,null,null,null,null,null,null,{"$f":"IF(E13=\"Billing contact details on the last signed CofA is different to the last received Application.\",\"enter new BILLING BUSINESS NAME here\",Application!$G$18)","v":"enter here (for billing purposes)"}]
[null,null,"(To appear on Page 2 of Grange bill)",null,null,null,null,null,null,null,{"$f":"IF(E13=\"Billing contact details on the last signed CofA is different to the last received Application.\",\"enter new BILLING ADDRESS DETAILS here\",Application!$G$22)","v":"enter here (must be postal address, not an e-mail account)"},null,null,null,null,null,null,null,null,null,null,null,null,null,null,null,null,null,null,null,null,null,{"$f":"IF(LEN(\"ONE OFF DISCHARGE: \"&Assessment!C51)>61,\"Without losing critical billing detail you now need to reduce the character length of this original text (refer above left) to below 61 characters (spaces included).  Enter the amended Account Title (in Grange) text below.\",\"\")","v":"Without losing critical billing detail you now need to reduce the character length of this original text (refer above left) to below 61 characters (spaces included).  Enter the amended Account Title (in Grange) text below."}]
[]
[null,null,null,null,null,null,null,null,"Attention:",null,{"$f":"IF(E13=\"Billing contact details on the last signed CofA is different to the last received Application.\",\"enter new BILLING CONTACT NAME here\",Application!$G$23)","v":"enter here (must be a natural person's name)"}]
[null,null,null,null,null,null,null,null,null,null,null,null,null,null,null,null,null,null,null,null,null,null,null,null,null,null,null,null,null,null,null,null,{"$f":"IF(LEN(\"ONE OFF DISCHARGE: \"&Assessment!C51)>61,\"ONE OFF DISCHARGE: \"&Assessment!C51,\"\")","v":"ONE OFF DISCHARGE: < Exactly enter physical property address details as created on the Enquiry Sheet >"}]
[null,null,null,null,"CHECK FOR CORRECT BILLING DETAILS BEFORE PROCEEDING FURTHER.  SELECT OPTION HERE."]
[]
[null,null,"Invoice Value:",null,null,null,{"$f":"IF(Application!Y29=\"yes\",\"\",'Billing Cycle 1 - Charges'!D10+'Billing Cycle 1 - Charges'!D18+'Billing Cycle 1 - Charges'!D27+'Billing Cycle 1 - Charges'!D35+'Billing Cycle 1 - Charges'!D39+'Billing Cycle 1 - Charges'!E18+'Billing Cycle 1 - Charges'!E39)","v":0},null,null,null,null,{"$f":"IF(Application!Y29=\"yes\",\"\",\"(This is inclusive of $\"&TEXT(ROUND(('Billing Cycle 1 - Charges'!E18+'Billing Cycle 1 - Charges'!E39),2),\"#,##0.00\")&+\" GST)\")","v":"(This is inclusive of $0.00 GST)"},null,null,null,null,null,null,null,null,null,null,null,null,null,null,null,null,null,"Profit Centre: 125",null,null,{"$f":"IF(LEN(\"ONE OFF DISCHARGE: \"&Assessment!C51)>61,IF(LEN(AG12)>61,\"Keep amending, as the new character length above (with spaces) is still >= 61.  Current count is \"&LEN(AG12)&\".  If required, 'ONE OFF DISCHARGE' above can be changed to 'OOD'.\",\"No need for any further adjustment, but please check again for clarity and spelling first!\"),\"\")","v":"Keep amending, as the new character length above (with spaces) is still >= 61.  Current count is 102.  If required, 'ONE OFF DISCHARGE' above can be changed to 'OOD'."}]
[]
[null,null,"(Please exclude GST component.  10% GST will be automatically calculated.)"]
[null,null,"Revenue Rating Schedules"]
[]
[null,null,"Description:",null,null,null,null,null,null,null,"One-Off-Discharge"]
[]
[null,null,null,null,null,null,null,null,null,"Charge Period From:","< enter start date >",null,null,null,null,null,"To:","< enter end date >"]
[]
[null,null,{"$f":"IF(Y3=\"< enter date >\",\"\",IF('Billing Cycle 1 - Charges'!C31=0,\"No volumetric discharge to sewer had occurred.  Will only be recovering Admin, any Monitoring (i.e. site visits) and any Regional (dis)connection charges.\",\"\"))","v":""}]
[]
[]
[null,null,null,null,"Quality",null,null,{"$f":"IF(Application!Y29=\"yes\",\"N/A\",+\"$\"&ROUND(('Billing Cycle 1 - QQ #1'!B31),4)&+\"/kL\")","v":{"$error":"#VALUE!"}},null,null,null,null,"Quantity:",{"$f":"IF(Application!Y29=\"yes\",\"N/A\",TEXT(ROUND(('Billing Cycle 1 - Charges'!C31),0),\"#,###\")&+\" kL\")","v":" kL"},null,null,null,{"$f":"IF(Application!Y29=\"yes\",\"C&IS not to recover Q/Q component\",'Billing Cycle 1 - Charges'!D31)","v":""}]
[null,null,null,null,"Laboratory Analysis Costs:",null,null,null,null,null,null,null,null,null,null,null,null,{"$f":"ROUND('Billing Cycle 1 - Charges'!D27,2)","v":0}]
[null,null,null,null,"Labour Costs",null,null,null,null,"- Administrative:",null,null,null,null,null,null,null,{"$f":"ROUND('Billing Cycle 1 - Charges'!D10,2)","v":0}]
[null,null,null,null,null,null,null,null,null,"- Monitoring (GST):",null,null,null,null,null,null,null,{"$f":"\"$\"&TEXT(ROUND('Billing Cycle 1 - Charges'!D18,2),\"0#,###.00\"&\"     ($\"&TEXT(ROUND('Billing Cycle 1 - Charges'!E18,2),\"0#,###.00\"&\")\"))","v":"$0.00     ($0.00)"},null,null,null,null,null,null,null,null,null,null,null,null,null,null,null,{"$f":"IF(COUNTIF('Billing Cycle 1 - Charges'!A31:A34,\"Quality/Quantity Charges\")>1,\"It appears that more than one Q/Q value has been used for this RRR activity.\",\"\")","v":""}]
[null,null,null,null,null,null,null,null,null,"- Regional Charges (GST):",null,null,null,null,null,null,null,{"$f":"IF(Application!Y29=\"yes\",\"The PRA must recover their own regional charges directly from the Water Corp Project Manager using their own uniquely issued NWA.\",\"$\"&TEXT(ROUND('Billing Cycle 1 - Charges'!D39,2),\"0#,###.00\"&\"     ($\"&TEXT(ROUND('Billing Cycle 1 - Charges'!E39,2),\"0#,###.00\"&\")\")))","v":"$0.00     ($0.00)"},null,null,null,null,null,null,null,null,null,null,null,null,null,null,null,{"$f":"IF(COUNTIF('Billing Cycle 1 - Charges'!A31:A34,\"Quality/Quantity Charges\")>1,\"If not done so already make sure these additional Q/Q values have been inserted here.\",\"\")","v":""}]
[null,null,null,null,null,null,null,null,null,null,null,null,null,null,null,null,null,null,null,null,null,null,null,null,null,null,null,null,null,null,null,null,null,{"$f":"IF(COUNTIF('Billing Cycle 1 - Charges'!A31:A34,\"Quality/Quantity Charges\")>1,\"Finally, make sure the individual line entries equal the total Invoice Value at the top left.\",\"\")","v":""}]
[]
[]
[null,null,"Requested By:"]
[null,null,null,null,null,null,null,"enter here",null,null,null,null,null,null,null,null,null,null,"Date:","enter here",null,null,null,null,null,null,null,null,null,null,null,{"$f":"IF(T36<>\"enter here\",\"You must now use the link below to send an e-mail for this RRR to be checked before a Grange sundry account can be raised.\",\"\")","v":""}]
[null,null,null,null,null,null,null,"enter position title here",null,null,null,null,null,null,null,null,null,null,null,null,null,null,null,null,null,null,null,null,null,null,null,{"$f":"IF(T36<>\"enter here\",\"https://nexus.watercorporation.com.au/otcs/cs.exe/link/109973713\",\"\")","v":""}]
[]
[null,null,"Authorised By:"]
[null,null,null,null,null,null,null,"enter here",null,null,null,null,null,null,null,null,null,null,"Date:","enter here",null,null,null,null,null,null,null,null,null,null,null,{"$f":"IF(T40<>\"enter here\",\"Please forward this E-Form document to Officer - C&IS (May Ubalde) for Grange sundry account creation.\",\"\")","v":""}]
[null,null,null,null,null,null,null,"enter position title here",null,null,null,null,null,null,null,null,null,null,null,null,null,null,null,null,null,null,null,null,null,null,null,{"$f":"IF(T40<>\"enter here\",\"May.Ubalde@watercorporation.com.au\",\"\")","v":""}]
[null,null,"(Branch / Section Manager)"]
[]
[null,null,"Finance Use Only:"]
[]
[null,null,"Processed By:",null,null,null,null,"enter here",null,null,null,null,null,null,null,null,null,null,"Date:","enter here",null,null,null,null,null,null,null,null,null,null,null,{"$f":"IF(T46<>\"enter here\",\"Please advise TL - Investigations (Steve Jerkovic) that the Grange sundry account has now been created.\",\"\")","v":""}]
[null,null,null,null,null,null,null,"enter position title here",null,null,null,null,null,null,null,null,null,null,null,null,null,null,null,null,null,null,null,null,null,null,null,{"$f":"IF(T46<>\"enter here\",\"stephen.jerkovic@watercorporation.com.au\",\"\")","v":""}]
[]
[null,null,"Authorised By:",null,null,null,null,"enter here",null,null,null,null,null,null,null,null,null,null,"Date:","enter here"]
[null,null,null,null,null,null,null,"enter position title here"]
[]
[null,null,"Grange Account Number:",null,null,null,null,null,null,"enter here"]
[]
[]
[]
[null,null,"QC / KPI Use Only:"]
[null,null,"Entered By:",null,null,null,null,"enter here",null,null,null,null,null,null,null,null,null,null,"Date:","enter here"]
[null,null,null,null,null,null,null,"enter position title here"]
[]
[]
[]
[null,null,null,null,null,null,null,null,null,null,null,null,null,null,null,null,null,null,null,null,null,null,null,null,null,null,"CHECK FOR CORRECT BILLING DETAILS BEFORE PROCEEDING FURTHER.  SELECT OPTION HERE."]
[null,null,null,null,null,null,null,null,null,null,null,null,null,null,null,null,null,null,null,null,null,null,null,null,null,null,"Billing contact details on the last signed CofA is different to the last received Application."]
[null,null,null,null,null,null,null,null,null,null,null,null,null,null,null,null,null,null,null,null,null,null,null,null,null,null,"Billing contact details on the last signed CofA is the same as the last received Application."]

{"sheet":"Billing Cycle 2 - Charges","index":26,"n_rows":48,"n_cols":9,"rows_kept":48,"cut":false,"hidden":true,"merged":[[42,0,42,2],[47,0,47,2],[36,0,36,3],[37,0,37,2],[41,0,41,3],[28,0,28,3],[3,0,3,3],[3,6,3,8],[7,6,7,8],[11,0,11,3],[20,0,20,3]]}
["Name of One-Off Discharge:",{"$f":"Assessment!C51","v":"< Exactly enter physical property address details as created on the Enquiry Sheet >"}]
["From",{"$f":"'RRR - 2'!K22","v":"< enter start date >"},"To",{"$f":"'RRR - 2'!R22","v":"< enter end date >"}]
[]
["Administrative / Assessment"]
["Description","Total Hrs","Rate","$ Total"]
[null,null,{"$f":"'FY 24-25 Charges'!D$20","v":150.13},{"$f":"C6*B6","v":0}]
[null,null,{"$f":"'FY 24-25 Charges'!D$20","v":150.13},{"$f":"C7*B7","v":0}]
[null,null,{"$f":"'FY 24-25 Charges'!D$20","v":150.13},{"$f":"C8*B8","v":0},null,null,"Laboratory Analysis Calculator"]
[null,null,{"$f":"'FY 24-25 Charges'!D$20","v":150.13},{"$f":"C9*B9","v":0},null,null,"Indicate \"y\" in blue box if analyte was included"]
[null,null,"Total",{"$f":"SUM(D6:D9)","v":0},null,null,"Analyte","Included?","Rate"]
[null,null,null,null,null,null,"pH",null,{"$f":"'Est-6 Month Charges'!I11","v":4.9000000000000004}]
["Monitoring ",null,null,null,null,null,"Acidity to pH 6",null,{"$f":"'Est-6 Month Charges'!I12","v":15.7}]
["Description","Total Hrs","Rate","$ Total",null,null,"Alkalinity - to pH 10",null,{"$f":"'Est-6 Month Charges'!I13","v":16.3}]
[null,null,{"$f":"'FY 24-25 Charges'!D$13","v":150},{"$f":"C14*B14","v":0},null,null,"Conductivity",null,{"$f":"'Est-6 Month Charges'!I14","v":4.8}]
[null,null,{"$f":"'FY 24-25 Charges'!D$13","v":150},{"$f":"C15*B15","v":0},null,null,"Sulphur",null,{"$f":"'Est-6 Month Charges'!I15","v":3}]
[null,null,{"$f":"'FY 24-25 Charges'!D$13","v":150},{"$f":"C16*B16","v":0},null,null,"Copper",null,{"$f":"'Est-6 Month Charges'!I16","v":3}]
[null,null,{"$f":"'FY 24-25 Charges'!D$13","v":150},{"$f":"C17*B17","v":0},"GST Component",null,"Cadmium",null,{"$f":"'Est-6 Month Charges'!I17","v":3}]
[null,null,"Total",{"$f":"SUM(D14:D17)","v":0},{"$f":"SUM(D18)*0.1","v":0},null,"Chromium",null,{"$f":"'Est-6 Month Charges'!I18","v":3}]
[null,null,null,null,null,null,"Nickel",null,{"$f":"'Est-6 Month Charges'!I19","v":3}]
[null,null,null,null,null,null,"Lead",null,{"$f":"'Est-6 Month Charges'!I20","v":3}]
["Laboratory Analysis Costs",null,null,null,null,null,"Zinc",null,{"$f":"'Est-6 Month Charges'!I21","v":3}]
["Description","No. Samples","Unit Rate","$ Total",null,null,"Molybdenum",null,{"$f":"'Est-6 Month Charges'!I22","v":3}]
[null,null,{"$f":"H35","v":0},{"$f":"C23*B23","v":0},null,null,"Selenium",null,{"$f":"'Est-6 Month Charges'!I23","v":3}]
[null,null,null,{"$f":"C24*B24","v":0},null,null,"Silver",null,{"$f":"'Est-6 Month Charges'!I24","v":3}]
[null,null,null,{"$f":"C25*B25","v":0},null,null,"Arsenic",null,{"$f":"'Est-6 Month Charges'!I25","v":3}]
[null,null,null,{"$f":"C26*B26","v":0},null,null,"Mercury",null,{"$f":"'Est-6 Month Charges'!I26","v":14}]
[null,null,"Total",{"$f":"SUM(D23:D26)","v":0},null,null,"Suspended Solids"," ",{"$f":"'Est-6 Month Charges'!I27","v":12.8}]
[null,null,null,null,null,null,"BOD"," ",{"$f":"'Est-6 Month Charges'!I28","v":38.5}]
["Quality/Quantity Charges",null,null,null,null,null,"COD"," ",{"$f":"'Est-6 Month Charges'!I29","v":46}]
["Description","Charge Rate","Total Volume kL","$ Total",null,null,"TKN"," ",{"$f":"'Est-6 Month Charges'!I30","v":26.8}]
["Quality/Quantity Charges",{"$f":"ROUND('Billing Cycle 2 - QQ #1'!B31,4)","v":{"$error":"#VALUE!"}},{"$f":"\nSUMIFS('Meter 1'!G12:G103,'Meter 1'!A12:A103,2,'Meter 1'!B12:B103,\"A\")+\nSUMIFS('Meter 2'!G12:G103,'Meter 2'!A12:A103,2,'Meter 2'!B12:B103,\"a\")+\nSUMIFS('Meter 3'!G12:G103,'Meter 3'!A12:A103,2,'Meter 3'!B12:B103,\"a\")+\nSUMIFS('Meter 4'!G12:G103,'Meter 4'!A12:A103,2,'Meter 4'!B12:B103,\"a\")+\nSUMIFS('Meter 5'!G12:G103,'Meter 5'!A12:A103,2,'Meter 5'!B12:B103,\"a\")+\nSUMIFS('Meter 6'!G12:G103,'Meter 6'!A12:A103,2,'Meter 6'!B12:B103,\"a\")","v":0},{"$f":"IF(C31=0,\"\",B31*C31)","v":""},null,null,"Phosphorus Total"," ",{"$f":"'Est-6 Month Charges'!I31","v":16.600000000000001}]
[{"$f":"IF(C32<>\"\",\"Quality/Quantity Charges\",\"\")","v":""},{"$f":"IF(C32<>\"\",\"enter new Q/Q\",\"\")","v":""},{"$f":"\nIF(\n\nSUMIFS('Meter 1'!G12:G103,'Meter 1'!A12:A103,2,'Meter 1'!B12:B103,\"b\")+\nSUMIFS('Meter 2'!G12:G103,'Meter 2'!A12:A103,2,'Meter 2'!B12:B103,\"b\")+\nSUMIFS('Meter 3'!G12:G103,'Meter 3'!A12:A103,2,'Meter 3'!B12:B103,\"b\")+\nSUMIFS('Meter 4'!G12:G103,'Meter 4'!A12:A103,2,'Meter 4'!B12:B103,\"b\")+\nSUMIFS('Meter 5'!G12:G103,'Meter 5'!A12:A103,2,'Meter 5'!B12:B103,\"b\")+\nSUMIFS('Meter 6'!G12:G103,'Meter 6'!A12:A103,2,'Meter 6'!B12:B103,\"b\")=0,\"\",\n\n(SUMIFS('Meter 1'!G12:G103,'Meter 1'!A12:A103,2,'Meter 1'!B12:B103,\"b\")+\nSUMIFS('Meter 2'!G12:G103,'Meter 2'!A12:A103,2,'Meter 2'!B12:B103,\"b\")+\nSUMIFS('Meter 3'!G12:G103,'Meter 3'!A12:A103,2,'Meter 3'!B12:B103,\"b\")+\nSUMIFS('Meter 4'!G12:G103,'Meter 4'!A12:A103,2,'Meter 4'!B12:B103,\"b\")+\nSUMIFS('Meter 5'!G12:G103,'Meter 5'!A12:A103,2,'Meter 5'!B12:B103,\"b\")+\nSUMIFS('Meter 6'!G12:G103,'Meter 6'!A12:A103,2,'Meter 6'!B12:B103,\"b\")))","v":""},{"$f":"IF(A32=\"\",\"\",B32*C32)","v":""},null,null,"Oil and Grease",null,{"$f":"'Est-6 Month Charges'!I32","v":40.799999999999997}]
["",{"$f":"IF(C33<>\"\",\"enter new Q/Q\",\"\")","v":""},{"$f":"\nIF(\n\nSUMIFS('Meter 1'!G12:G103,'Meter 1'!A12:A103,2,'Meter 1'!B12:B103,\"c\")+\nSUMIFS('Meter 2'!G12:G103,'Meter 2'!A12:A103,2,'Meter 2'!B12:B103,\"c\")+\nSUMIFS('Meter 3'!G12:G103,'Meter 3'!A12:A103,2,'Meter 3'!B12:B103,\"c\")+\nSUMIFS('Meter 4'!G12:G103,'Meter 4'!A12:A103,2,'Meter 4'!B12:B103,\"c\")+\nSUMIFS('Meter 5'!G12:G103,'Meter 5'!A12:A103,2,'Meter 5'!B12:B103,\"c\")+\nSUMIFS('Meter 6'!G12:G103,'Meter 6'!A12:A103,2,'Meter 6'!B12:B103,\"c\")=0,\"\",\n\n(SUMIFS('Meter 1'!G12:G103,'Meter 1'!A12:A103,2,'Meter 1'!B12:B103,\"c\")+\nSUMIFS('Meter 2'!G12:G103,'Meter 2'!A12:A103,2,'Meter 2'!B12:B103,\"c\")+\nSUMIFS('Meter 3'!G12:G103,'Meter 3'!A12:A103,2,'Meter 3'!B12:B103,\"c\")+\nSUMIFS('Meter 4'!G12:G103,'Meter 4'!A12:A103,2,'Meter 4'!B12:B103,\"c\")+\nSUMIFS('Meter 5'!G12:G103,'Meter 5'!A12:A103,2,'Meter 5'!B12:B103,\"c\")+\nSUMIFS('Meter 6'!G12:G103,'Meter 6'!A12:A103,2,'Meter 6'!B12:B103,\"c\")))","v":""},{"$f":"IF(A33=\"\",\"\",B33*C33)","v":""},null,null,"BTEX & TPH",null,{"$f":"'Est-6 Month Charges'!I33","v":75}]
[{"$f":"IF(C34<>\"\",\"Quality/Quantity Charges\",\"\")","v":""},"",{"$f":"\nIF(\n\nSUMIFS('Meter 1'!G12:G103,'Meter 1'!A12:A103,2,'Meter 1'!B12:B103,\"d\")+\nSUMIFS('Meter 2'!G12:G103,'Meter 2'!A12:A103,2,'Meter 2'!B12:B103,\"d\")+\nSUMIFS('Meter 3'!G12:G103,'Meter 3'!A12:A103,2,'Meter 3'!B12:B103,\"d\")+\nSUMIFS('Meter 4'!G12:G103,'Meter 4'!A12:A103,2,'Meter 4'!B12:B103,\"d\")+\nSUMIFS('Meter 5'!G12:G103,'Meter 5'!A12:A103,2,'Meter 5'!B12:B103,\"d\")+\nSUMIFS('Meter 6'!G12:G103,'Meter 6'!A12:A103,2,'Meter 6'!B12:B103,\"d\")=0,\"\",\n\n(SUMIFS('Meter 1'!G12:G103,'Meter 1'!A12:A103,2,'Meter 1'!B12:B103,\"d\")+\nSUMIFS('Meter 2'!G12:G103,'Meter 2'!A12:A103,2,'Meter 2'!B12:B103,\"d\")+\nSUMIFS('Meter 3'!G12:G103,'Meter 3'!A12:A103,2,'Meter 3'!B12:B103,\"d\")+\nSUMIFS('Meter 4'!G12:G103,'Meter 4'!A12:A103,2,'Meter 4'!B12:B103,\"d\")+\nSUMIFS('Meter 5'!G12:G103,'Meter 5'!A12:A103,2,'Meter 5'!B12:B103,\"d\")+\nSUMIFS('Meter 6'!G12:G103,'Meter 6'!A12:A103,2,'Meter 6'!B12:B103,\"d\")))","v":""},"",null,null,"PFAS, PFOS, PFOA *",null,{"$f":"'Est-6 Month Charges'!I34","v":208}]
[null,null,"Total",{"$f":"SUM(D31:D34)","v":0},null,null,"Total Unit Rate",{"$f":"SUMIF(H11:I34,\"y\",I11:I34)","v":0}]
[]
["Regional  Charges",null,null,null,null,null,"* ARL charges $28 preparation fee per sample of PFAS "]
[null,null,null," $ Total","GST Component"]
["                                                            ",null,"Total ",null,{"$f":"SUM(D39)*0.1","v":0}]
[]
[]
["Total Charges"]
["        Description",null,null,"$ Total"]
["Quality/Quantity Charges",null,null,{"$f":"D35","v":0}]
["Laboratory Analysis Costs",null,null,{"$f":"D27","v":0}]
[{"$f":"A37","v":"Regional  Charges"},null,null,{"$f":"D39","v":0}]
["Labour Costs (Subject to GST)",{"$f":"B6+B7+B8+B9+B14+B15+B16+B17","v":0},"Hrs",{"$f":"IF(D10+D18=0,\"\",D10+D18)","v":""}]
["Total Charges for One Off Discharge\n(which includes the Monitoring and Regional GST components)",null,null,{"$f":"SUM(D44:D47)+E18","v":0}]

{"sheet":"Billing Cycle 2 - QQ #1","index":27,"n_rows":48,"n_cols":10,"rows_kept":48,"cut":false,"hidden":true,"merged":[[43,7,43,9]]}
[{"$f":"'Est-6 Month QQ'!A1","v":"Quality-quantity charges for individually managed customers (2024/2025 rates)"}]
[]
["Customer",{"$f":"'Billing Cycle 1 - QQ #1'!B3","v":"< Exactly enter physical property address details as created on the Enquiry Sheet > (enter here (for billing purposes))"}]
["Parameter","Units","Amount","Daily charge","Annual Charge",null,"Mass kg/d","Mass kg/a"]
["Daily volume (note 1)","kL/d",{"$f":"I48","v":{"$error":"#VALUE!"}},{"$f":"C5*'FY 24-25 Charges'!D23","v":{"$error":"#VALUE!"}},{"$f":"D5*365","v":{"$error":"#VALUE!"}}]
["BOD","mg/L",null,{"$f":"IF(C6>5000,(C6-5000)*'FY 24-25 Charges'!D25 + 5000*'FY 24-25 Charges'!D24, C6*'FY 24-25 Charges'!D24)*$C$5/1000","v":{"$error":"#VALUE!"}},{"$f":"D6*365","v":{"$error":"#VALUE!"}},null,{"$f":"C6*$C$5/1000","v":{"$error":"#VALUE!"}},{"$f":"G6*365","v":{"$error":"#VALUE!"}},{"$f":"IF(G6=0,\"\",IF(G6<=200,\"Mass alarm limit OK\",\"Check mass alarm limit!\"))","v":{"$error":"#VALUE!"}}]
["SS","mg/L",null,{"$f":"IF(C7>2000,(C7-2000)*'FY 24-25 Charges'!D29 + 2000*'FY 24-25 Charges'!D28, C7*'FY 24-25 Charges'!D28)*$C$5/1000","v":{"$error":"#VALUE!"}},{"$error":"#VALUE!"},null,{"$error":"#VALUE!"},{"$f":"G7*365","v":{"$error":"#VALUE!"}},{"$f":"IF(G7=0,\"\",IF(G7<=200,\"Mass alarm limit OK\",\"Check mass alarm limit!\"))","v":{"$error":"#VALUE!"}}]
["Oil & Grease","mg/L",null,{"$f":"IF(C8>600,(C8-600)*'FY 24-25 Charges'!D32 + 300*'FY 24-25 Charges'!D31 + 300*'FY 24-25 Charges'!D30, IF(C8>300,(C8-300)*'FY 24-25 Charges'!D31 + 300*'FY 24-25 Charges'!D30, C8*'FY 24-25 Charges'!D30))*$C$5/1000","v":{"$error":"#VALUE!"}},{"$error":"#VALUE!"},null,{"$error":"#VALUE!"},{"$error":"#VALUE!"}]
["Acidity to pH 6","mg/L CaCO3",null,{"$f":"IF(C9>300,(C9-300)*'FY 24-25 Charges'!D35 + 200*'FY 24-25 Charges'!D34 + 100*'FY 24-25 Charges'!D33, IF(C9>100,(C9-100)*'FY 24-25 Charges'!D34 + 100*'FY 24-25 Charges'!D33, C9*'FY 24-25 Charges'!D33))*$C$5/1000","v":{"$error":"#VALUE!"}},{"$error":"#VALUE!"},null,{"$error":"#VALUE!"},{"$error":"#VALUE!"}]
["Alkalinity to pH 10","mg/L CaCO3",null,{"$f":"IF(C10>200,(C10-200)*'FY 24-25 Charges'!D38 + 100*'FY 24-25 Charges'!D37 + 100*'FY 24-25 Charges'!D36, IF(C10>100,(C10-100)*'FY 24-25 Charges'!D37 + 100*'FY 24-25 Charges'!D36, C10*'FY 24-25 Charges'!D36))*$C$5/1000","v":{"$error":"#VALUE!"}},{"$error":"#VALUE!"},null,{"$error":"#VALUE!"},{"$error":"#VALUE!"}]
["TKN","mg/L",null,{"$f":"C11*'FY 24-25 Charges'!D39*$C$5/1000","v":{"$error":"#VALUE!"}},{"$error":"#VALUE!"},null,{"$error":"#VALUE!"},{"$error":"#VALUE!"},{"$f":"IF(G11=0,\"\",IF(G11<=30,\"Mass alarm limit OK\",\"Check mass alarm limit!\"))","v":{"$error":"#VALUE!"}}]
["Phosphorus","mg/L",null,{"$f":"C12*'FY 24-25 Charges'!D40*$C$5/1000","v":{"$error":"#VALUE!"}},{"$error":"#VALUE!"},null,{"$error":"#VALUE!"},{"$error":"#VALUE!"},{"$f":"IF(G12=0,\"\",IF(G12<=10,\"Mass alarm limit OK\",\"Check mass alarm limit!\"))","v":{"$error":"#VALUE!"}}]
["Sulphate as SO4","mg/L",null,{"$f":"IF(C13>50,(C13-50)*'FY 24-25 Charges'!D42, 0)*$C$5/1000","v":{"$error":"#VALUE!"}},{"$error":"#VALUE!"},null,{"$error":"#VALUE!"},{"$error":"#VALUE!"}]
["Conductivity (note 2)","mS/m",null,{"$f":"IF(C14>1000,(C14-1000)*'FY 24-25 Charges'!D46 + 500*'FY 24-25 Charges'!D45 + 333*'FY 24-25 Charges'!D44, IF(C14>500,(C14-500)*'FY 24-25 Charges'!D45 + 333*'FY 24-25 Charges'!D44, IF(C14>167, (C14-167)*'FY 24-25 Charges'!D44, 0)))*$C$5*6/1000","v":{"$error":"#VALUE!"}},{"$error":"#VALUE!"},null,{"$f":"(6*C14)*$C$5/1000","v":{"$error":"#VALUE!"}},{"$error":"#VALUE!"},{"$f":"IF(G14=0,\"\",IF(G14<=220,\"Mass alarm limit OK\",\"Check mass alarm limit!\"))","v":{"$error":"#VALUE!"}}]
["Chromium","mg/L",null,{"$f":"IF(G15>1, (G15-1)*'FY 24-25 Charges'!D49 + 0.97*'FY 24-25 Charges'!D48 + 0.03*'FY 24-25 Charges'!D47, IF(G15>0.03, (G15-0.03)*'FY 24-25 Charges'!D48 + 0.03*'FY 24-25 Charges'!D47, G15*'FY 24-25 Charges'!D47))","v":{"$error":"#VALUE!"}},{"$error":"#VALUE!"},null,{"$f":"C15*$C$5/1000","v":{"$error":"#VALUE!"}},{"$error":"#VALUE!"},{"$f":"IF(G15=0,\"\",IF((1000*G15)<=30,\"Mass alarm limit OK\",\"Check mass alarm limit!\"))","v":{"$error":"#VALUE!"}}]
["Copper","mg/L",null,{"$f":"IF(G16>0.12, (G16-0.12)*'FY 24-25 Charges'!D52 + 0.09*'FY 24-25 Charges'!D51 + 0.03*'FY 24-25 Charges'!D50, IF(G16>0.03, (G16-0.03)*'FY 24-25 Charges'!D51 + 0.03*'FY 24-25 Charges'!D50, G16*'FY 24-25 Charges'!D50))","v":{"$error":"#VALUE!"}},{"$error":"#VALUE!"},null,{"$f":"C16*$C$5/1000","v":{"$error":"#VALUE!"}},{"$error":"#VALUE!"},{"$f":"IF(G16=0,\"\",IF((1000*G16)<=30,\"Mass alarm limit OK\",\"Check mass alarm limit!\"))","v":{"$error":"#VALUE!"}}]
["Lead","mg/L",null,{"$f":"IF(G17>0.3, (G17-0.3)*'FY 24-25 Charges'!D55 + 0.27*'FY 24-25 Charges'!D54 + 0.03*'FY 24-25 Charges'!D53, IF(G17>0.03, (G17-0.03)*'FY 24-25 Charges'!D54 + 0.03*'FY 24-25 Charges'!D53, G17*'FY 24-25 Charges'!D53))","v":{"$error":"#VALUE!"}},{"$error":"#VALUE!"},null,{"$error":"#VALUE!"},{"$error":"#VALUE!"},{"$f":"IF(G17=0,\"\",IF((1000*G17)<=30,\"Mass alarm limit OK\",\"Check mass alarm limit!\"))","v":{"$error":"#VALUE!"}}]
["Nickel","mg/L",null,{"$f":"IF(G18>0.15, (G18-0.15)*'FY 24-25 Charges'!D58 + 0.144*'FY 24-25 Charges'!D57 + 0.006*'FY 24-25 Charges'!D56, IF(G18>0.006, (G18-0.006)*'FY 24-25 Charges'!D57 + 0.006*'FY 24-25 Charges'!D56, G18*'FY 24-25 Charges'!D56))","v":{"$error":"#VALUE!"}},{"$error":"#VALUE!"},null,{"$error":"#VALUE!"},{"$error":"#VALUE!"},{"$f":"IF(G18=0,\"\",IF((1000*G18)<=6,\"Mass alarm limit OK\",\"Check mass alarm limit!\"))","v":{"$error":"#VALUE!"}}]
["Zinc","mg/L",null,{"$f":"IF(G19>0.5, (G19-0.5)*'FY 24-25 Charges'!D61 + 0.45*'FY 24-25 Charges'!D60 + 0.05*'FY 24-25 Charges'!D59, IF(G19>0.05, (G19-0.05)*'FY 24-25 Charges'!D60 + 0.05*'FY 24-25 Charges'!D59, G19*'FY 24-25 Charges'!D59))","v":{"$error":"#VALUE!"}},{"$error":"#VALUE!"},null,{"$error":"#VALUE!"},{"$error":"#VALUE!"},{"$f":"IF(G19=0,\"\",IF((1000*G19)<=50,\"Mass alarm limit OK\",\"Check mass alarm limit!\"))","v":{"$error":"#VALUE!"}}]
["Arsenic","mg/L",null,{"$f":"IF(G20>0.04, (G20-0.04)*'FY 24-25 Charges'!D64 + 0.039*'FY 24-25 Charges'!D63 + 0.001*'FY 24-25 Charges'!D62, IF(G20>0.001, (G20-0.001)*'FY 24-25 Charges'!D63 + 0.001*'FY 24-25 Charges'!D62, G20*'FY 24-25 Charges'!D62))","v":{"$error":"#VALUE!"}},{"$error":"#VALUE!"},null,{"$error":"#VALUE!"},{"$error":"#VALUE!"},{"$f":"IF(G20=0,\"\",IF((1000*G20)<=1,\"Mass alarm limit OK\",\"Check mass alarm limit!\"))","v":{"$error":"#VALUE!"}}]
["Cadmium","mg/L",null,{"$f":"IF(G21>0.015, (G21-0.015)*'FY 24-25 Charges'!D67 + 0.014*'FY 24-25 Charges'!D66 + 0.001*'FY 24-25 Charges'!D65, IF(G21>0.001, (G21-0.001)*'FY 24-25 Charges'!D66 + 0.001*'FY 24-25 Charges'!D65, G21*'FY 24-25 Charges'!D65))","v":{"$error":"#VALUE!"}},{"$error":"#VALUE!"},null,{"$error":"#VALUE!"},{"$error":"#VALUE!"},{"$f":"IF(G21=0,\"\",IF((1000*G21)<=1,\"Mass alarm limit OK\",\"Check mass alarm limit!\"))","v":{"$error":"#VALUE!"}}]
["Molybdenum","mg/L",null,{"$f":"IF(G22>0.02, (G22-0.02)*'FY 24-25 Charges'!D70 + 0.019*'FY 24-25 Charges'!D69 + 0.001*'FY 24-25 Charges'!D68, IF(G22>0.001, (G22-0.001)*'FY 24-25 Charges'!D69 + 0.001*'FY 24-25 Charges'!D68, G22*'FY 24-25 Charges'!D68))","v":{"$error":"#VALUE!"}},{"$error":"#VALUE!"},null,{"$error":"#VALUE!"},{"$error":"#VALUE!"},{"$f":"IF(G22=0,\"\",IF((1000*G22)<=1,\"Mass alarm limit OK\",\"Check mass alarm limit!\"))","v":{"$error":"#VALUE!"}}]
["Selenium","mg/L",null,{"$f":"IF(G23>0.02, (G23-0.02)*'FY 24-25 Charges'!D73 + 0.019*'FY 24-25 Charges'!D72 + 0.001*'FY 24-25 Charges'!D71, IF(G23>0.001, (G23-0.001)*'FY 24-25 Charges'!D72 + 0.001*'FY 24-25 Charges'!D71, G23*'FY 24-25 Charges'!D71))","v":{"$error":"#VALUE!"}},{"$error":"#VALUE!"},null,{"$error":"#VALUE!"},{"$error":"#VALUE!"},{"$f":"IF(G23=0,\"\",IF((1000*G23)<=1,\"Mass alarm limit OK\",\"Check mass alarm limit!\"))","v":{"$error":"#VALUE!"}}]
["Silver","mg/L",null,{"$f":"IF(G24>0.01, (G24-0.01)*'FY 24-25 Charges'!D76 + 0.008*'FY 24-25 Charges'!D75 + 0.002*'FY 24-25 Charges'!D74, IF(G24>0.002, (G24-0.002)*'FY 24-25 Charges'!D75 + 0.002*'FY 24-25 Charges'!D74, G24*'FY 24-25 Charges'!D74))","v":{"$error":"#VALUE!"}},{"$error":"#VALUE!"},null,{"$error":"#VALUE!"},{"$error":"#VALUE!"},{"$f":"IF(G24=0,\"\",IF((1000*G24)<=2,\"Mass alarm limit OK\",\"Check mass alarm limit!\"))","v":{"$error":"#VALUE!"}}]
["Mercury","mg/L",null,{"$f":"IF(G25>0.001, (G25-0.001)*'FY 24-25 Charges'!D79 + 0.0009*'FY 24-25 Charges'!D78 + 0.0001*'FY 24-25 Charges'!D77, IF(G25>0.0001, (G25-0.0001)*'FY 24-25 Charges'!D78 + 0.0001*'FY 24-25 Charges'!D77, G25*'FY 24-25 Charges'!D77))","v":{"$error":"#VALUE!"}},{"$error":"#VALUE!"},null,{"$error":"#VALUE!"},{"$error":"#VALUE!"},{"$f":"IF(G25=0,\"\",IF((1000*G25)<=0.1,\"Mass alarm limit OK\",\"Check mass alarm limit!\"))","v":{"$error":"#VALUE!"}}]
["pH"]
[null,null,null,null,"TDS mass loads",null,{"$f":"C14*C5*6/1000","v":{"$error":"#VALUE!"}},{"$f":"G27*365","v":{"$error":"#VALUE!"}},{"$f":"IF(G27=0,\"\",IF(G27<=220,\"Mass alarm limit OK\",\"Check mass alarm limit!\"))","v":{"$error":"#VALUE!"}}]
[]
["Total  Charge",null,null,{"$f":"SUM(D5:D25)","v":{"$error":"#VALUE!"}},{"$error":"#VALUE!"}]
[null,null,null,"(daily)","(annually)"]
["Charge per kL",{"$f":"D29/C5","v":{"$error":"#VALUE!"}}]
[]
[]
["Note 1","Volume MUST be daily volume or metals charges will not "]
[null,"calculate correctly"]
["Note 2","Use conductivity to determine TDS charges. If estimating "]
[null,"TDS charges from actual TDS data, convert TDS (mg/L) to"]
[null,"conductivity (mS/m) by dividing by 6 and entering into cell C14."]
["Note 3","All concentrations should be entered in mg/L unless otherwise indicated."]
["Note 4","For OOD Quotes: Total volume may be estimated by client in application or calculated "]
[null,"using table (Discharge Volume 24hrs/day) "]
[null,"For Final OOD Billing: Total volume is calculated from meter readings"]
[]
["What information was used to estimate volume and quality of effluent?",null,null,null,null,null,null,"Average Daily Volume Discharged During Billing Cycle 2"]
["Note 5: << enter AQUA reference of water quality data used for Q/Q calculation >>"]
[null,null,null,null,null,null,null,"start date","MUST ENTER!"]
[null,null,null,null,null,null,null,"end date","MUST ENTER!"]
[null,null,null,null,null,null,null,null,{"$f":"-'Billing Cycle 2 - Charges'!C31/(I46-I47)","v":{"$error":"#VALUE!"}},"kL/day"]

{"sheet":"RRR - 2","index":28,"n_rows":63,"n_cols":34,"rows_kept":63,"cut":false,"hidden":true,"merged":[[2,24,2,29],[21,10,21,15],[21,17,21,22],[4,10,5,28],[57,7,57,15],[30,17,33,28],[35,7,35,15],[23,2,24,29],[26,7,26,9],[26,13,26,16],[26,17,26,28],[27,17,27,20],[51,2,52,8],[51,9,52,18],[28,17,28,20],[56,7,56,15],[56,19,56,25],[29,33,29,57],[30,33,30,57],[31,33,31,57],[49,7,49,15],[40,7,40,15],[45,7,45,15],[45,19,45,25],[46,7,46,15],[48,7,48,15],[48,19,48,25],[36,7,36,15],[39,7,39,15],[39,19,39,25],[29,17,29,23],[35,19,35,25],[35,31,35,62],[36,31,36,62],[45,31,45,62],[46,31,46,62],[39,31,39,64],[40,31,40,64],[5,32,6,60],[8,32,9,60],[11,32,12,60],[12,4,12,27],[14,6,14,9],[14,11,14,20],[14,32,15,60]]}
[]
[]
[null,null,"Billing Cycle - 2",null,null,null,null,null,null,null,null,null,null,null,null,null,null,null,null,null,null,null,null,"Date:","< enter date >"]
[]
[null,null,"Account Title (in Grange):",null,null,null,null,null,null,null,{"$f":"'RRR - 1'!K5","v":"ONE OFF DISCHARGE: < Exactly enter physical property address details as created on the Enquiry Sheet >"}]
[null,null,"(To appear on Page 1 of Grange bill)"]
[]
[null,null,"Customer (in Grange):",null,null,null,null,null,null,null,{"$f":"IF(E13=\"Billing contact details on the last signed CofA is different to the last received Application.\",\"enter new BILLING BUSINESS NAME here\",Application!$G$18)","v":"enter here (for billing purposes)"}]
[null,null,"(To appear on Page 2 of Grange bill)",null,null,null,null,null,null,null,{"$f":"IF(E13=\"Billing contact details on the last signed CofA is different to the last received Application.\",\"enter new BILLING ADDRESS DETAILS here\",Application!$G$22)","v":"enter here (must be postal address, not an e-mail account)"}]
[]
[null,null,null,null,null,null,null,null,"Attention:",null,{"$f":"IF(E13=\"Billing contact details on the last signed CofA is different to the last received Application.\",\"enter new BILLING CONTACT NAME here\",Application!$G$23)","v":"enter here (must be a natural person's name)"}]
[]
[null,null,null,null,"CHECK FOR CORRECT BILLING DETAILS BEFORE PROCEEDING FURTHER.  SELECT OPTION HERE."]
[]
[null,null,"Invoice Value:",null,null,null,{"$f":"IF(Application!Y29=\"yes\",\"\",'Billing Cycle 1 - Charges'!D10+'Billing Cycle 1 - Charges'!D18+'Billing Cycle 1 - Charges'!D27+'Billing Cycle 1 - Charges'!D35+'Billing Cycle 1 - Charges'!D39+'Billing Cycle 1 - Charges'!E18+'Billing Cycle 1 - Charges'!E39)","v":0},null,null,null,null,{"$f":"IF(Application!Y29=\"yes\",\"\",\"(This is inclusive of $\"&TEXT(ROUND(('Billing Cycle 1 - Charges'!E18+'Billing Cycle 1 - Charges'!E39),2),\"#,##0.00\")&+\" GST)\")","v":"(This is inclusive of $0.00 GST)"},null,null,null,null,null,null,null,null,null,null,null,null,null,null,null,null,null,"Profit Centre: 125"]
[]
[null,null,"(Please exclude GST component.  10% GST will be automatically calculated.)"]
[null,null,"Revenue Rating Schedules"]
[]
[null,null,"Description:",null,null,null,null,null,null,null,"One-Off-Discharge"]
[]
[null,null,null,null,null,null,null,null,null,"Charge Period From:","< enter start date >",null,null,null,null,null,"To:","< enter end date >"]
[]
[]
[]
[]
[null,null,null,null,"Quality:",null,null,{"$f":"IF(Application!Y29=\"yes\",\"N/A\",+\"$\"&ROUND(('Billing Cycle 2 - QQ #1'!B31),4)&+\"/kL\")","v":{"$error":"#VALUE!"}},null,null,null,null,"Quantity:",{"$f":"IF(Application!Y29=\"yes\",\"N/A\",TEXT(ROUND(('Billing Cycle 2 - Charges'!C31),0),\"#,###\")&+\" kL\")","v":" kL"},null,null,null,{"$f":"IF(Application!P29=\"yes\",\"C&IS not to recover Q/Q component\",'Billing Cycle 2 - Charges'!D31)","v":""}]
[null,null,null,null,"Laboratory Analysis Costs:",null,null,null,null,null,null,null,null,null,null,null,null,{"$f":"ROUND('Billing Cycle 2 - Charges'!D27,2)","v":0}]
[null,null,null,null,"Labour Costs",null,null,null,null,"- Administrative:",null,null,null,null,null,null,null,{"$f":"ROUND('Billing Cycle 2 - Charges'!D10,2)","v":0}]
[null,null,null,null,null,null,null,null,null,"- Monitoring (GST):",null,null,null,null,null,null,null,{"$f":"\"$\"&TEXT(ROUND('Billing Cycle 2 - Charges'!D18,2),\"0#,###.00\"&\"     ($\"&TEXT(ROUND('Billing Cycle 2 - Charges'!E18,2),\"0#,###.00\"&\")\"))","v":"$0.00     ($0.00)"},null,null,null,null,null,null,null,null,null,null,null,null,null,null,null,{"$f":"IF(COUNTIF('Billing Cycle 2 - Charges'!A31:A34,\"Quality/Quantity Charges\")>1,\"It appears that more than one Q/Q value has been used for this RRR activity.\",\"\")","v":""}]
[null,null,null,null,null,null,null,null,null,"- Regional Charges (GST):",null,null,null,null,null,null,null,{"$f":"IF(Application!Y29=\"yes\",\"The PRA must recover their own regional charges directly from the Water Corp Project Manager using their own uniquely issued NWA.\",\"$\"&TEXT(ROUND('Billing Cycle 2 - Charges'!D39,2),\"0#,###.00\"&\"     ($\"&TEXT(ROUND('Billing Cycle 2 - Charges'!E39,2),\"0#,###.00\"&\")\")))","v":"$0.00     ($0.00)"},null,null,null,null,null,null,null,null,null,null,null,null,null,null,null,{"$f":"IF(COUNTIF('Billing Cycle 2 - Charges'!A31:A34,\"Quality/Quantity Charges\")>1,\"If not done so already make sure these additional Q/Q values have been inserted here.\",\"\")","v":""}]
[null,null,null,null,null,null,null,null,null,null,null,null,null,null,null,null,null,null,null,null,null,null,null,null,null,null,null,null,null,null,null,null,null,{"$f":"IF(COUNTIF('Billing Cycle 2 - Charges'!A31:A34,\"Quality/Quantity Charges\")>1,\"Finally, make sure the individual line entries equal the total Invoice Value at the top left.\",\"\")","v":""}]
[]
[]
[null,null,"Requested By:"]
[null,null,null,null,null,null,null,"enter here",null,null,null,null,null,null,null,null,null,null,"Date:","enter here",null,null,null,null,null,null,null,null,null,null,null,{"$f":"IF(T36<>\"enter here\",\"You must now use the link below to send an e-mail for this RRR to be checked before a Grange sundry account can be raised.\",\"\")","v":""}]
[null,null,null,null,null,null,null,"enter position title here",null,null,null,null,null,null,null,null,null,null,null,null,null,null,null,null,null,null,null,null,null,null,null,{"$f":"IF(T36<>\"enter here\",\"https://nexus.watercorporation.com.au/otcs/cs.exe/link/109973713\",\"\")","v":""}]
[]
[null,null,"Authorised By:"]
[null,null,null,null,null,null,null,"enter here",null,null,null,null,null,null,null,null,null,null,"Date:","enter here",null,null,null,null,null,null,null,null,null,null,null,{"$f":"IF(T40<>\"enter here\",\"Please forward this E-Form document to Officer - C&IS (May Ubalde) for Grange sundry account creation.\",\"\")","v":""}]
[null,null,null,null,null,null,null,"enter position title here",null,null,null,null,null,null,null,null,null,null,null,null,null,null,null,null,null,null,null,null,null,null,null,{"$f":"IF(T40<>\"enter here\",\"May.Ubalde@watercorporation.com.au\",\"\")","v":""}]
[null,null,"(Branch / Section Manager)"]
[]
[null,null,"Finance Use Only:"]
[]
[null,null,"Processed By:",null,null,null,null,"enter here",null,null,null,null,null,null,null,null,null,null,"Date:","enter here",null,null,null,null,null,null,null,null,null,null,null,{"$f":"IF(T46<>\"enter here\",\"Please advise TL - Investigations (Steve Jerkovic) that the Grange sundry account has now been created.\",\"\")","v":""}]
[null,null,null,null,null,null,null,"enter position title here",null,null,null,null,null,null,null,null,null,null,null,null,null,null,null,null,null,null,null,null,null,null,null,{"$f":"IF(T46<>\"enter here\",\"stephen.jerkovic@watercorporation.com.au\",\"\")","v":""}]
[]
[null,null,"Authorised By:",null,null,null,null,"enter here",null,null,null,null,null,null,null,null,null,null,"Date:","enter here"]
[null,null,null,null,null,null,null,"enter position title here"]
[]
[null,null,"Grange Account Number:",null,null,null,null,null,null,{"$f":"'RRR - 1'!J52","v":"enter here"}]
[]
[]
[]
[null,null,"QC / KPI Use Only:"]
[null,null,"Entered By:",null,null,null,null,"enter here",null,null,null,null,null,null,null,null,null,null,"Date:","enter here"]
[null,null,null,null,null,null,null,"enter position title here"]
[]
[]
[null,null,null,null,null,null,null,null,null,null,null,null,null,null,null,null,null,null,null,null,null,null,null,null,null,null,"CHECK FOR CORRECT BILLING DETAILS BEFORE PROCEEDING FURTHER.  SELECT OPTION HERE."]
[null,null,null,null,null,null,null,null,null,null,null,null,null,null,null,null,null,null,null,null,null,null,null,null,null,null,"Billing contact details on the last signed CofA is different to the last received Application."]
[null,null,null,null,null,null,null,null,null,null,null,null,null,null,null,null,null,null,null,null,null,null,null,null,null,null,"Billing contact details on the last signed CofA is the same as the last received Application."]

{"sheet":"Billing Cycle 3 - Charges","index":29,"n_rows":48,"n_cols":9,"rows_kept":48,"cut":false,"hidden":true,"merged":[[42,0,42,2],[47,0,47,2],[36,0,36,3],[37,0,37,2],[41,0,41,3],[28,0,28,3],[3,0,3,3],[3,6,3,8],[7,6,7,8],[11,0,11,3],[20,0,20,3]]}
["Name of One-Off Discharge:",{"$f":"Assessment!C51","v":"< Exactly enter physical property address details as created on the Enquiry Sheet >"}]
["From",{"$f":"'RRR - 3'!K22","v":"< enter start date >"},"To",{"$f":"'RRR - 3'!R22","v":"< enter end date >"}]
[]
["Administrative / Assessment"]
["Description","Total Hrs","Rate","$ Total"]
[null,null,{"$f":"'FY 24-25 Charges'!D$20","v":150.13},{"$f":"C6*B6","v":0}]
[null,null,{"$f":"'FY 24-25 Charges'!D$20","v":150.13},{"$f":"C7*B7","v":0}]
[null,null,{"$f":"'FY 24-25 Charges'!D$20","v":150.13},{"$f":"C8*B8","v":0},null,null,"Laboratory Analysis Calculator"]
[null,null,{"$f":"'FY 24-25 Charges'!D$20","v":150.13},{"$f":"C9*B9","v":0},null,null,"Indicate \"y\" in blue box if analyte was included"]
[null,null,"Total",{"$f":"SUM(D6:D9)","v":0},null,null,"Analyte","Included?","Rate"]
[null,null,null,null,null,null,"pH",null,{"$f":"'Est-6 Month Charges'!I11","v":4.9000000000000004}]
["Monitoring ",null,null,null,null,null,"Acidity to pH 6",null,{"$f":"'Est-6 Month Charges'!I12","v":15.7}]
["Description","Total Hrs","Rate","$ Total",null,null,"Alkalinity - to pH 10",null,{"$f":"'Est-6 Month Charges'!I13","v":16.3}]
[null,null,{"$f":"'FY 24-25 Charges'!D$13","v":150},{"$f":"C14*B14","v":0},null,null,"Conductivity",null,{"$f":"'Est-6 Month Charges'!I14","v":4.8}]
[null,null,{"$f":"'FY 24-25 Charges'!D$13","v":150},{"$f":"C15*B15","v":0},null,null,"Sulphur",null,{"$f":"'Est-6 Month Charges'!I15","v":3}]
[null,null,{"$f":"'FY 24-25 Charges'!D$13","v":150},{"$f":"C16*B16","v":0},null,null,"Copper",null,{"$f":"'Est-6 Month Charges'!I16","v":3}]
[null,null,{"$f":"'FY 24-25 Charges'!D$13","v":150},{"$f":"C17*B17","v":0},"GST Component",null,"Cadmium",null,{"$f":"'Est-6 Month Charges'!I17","v":3}]
[null,null,"Total",{"$f":"SUM(D14:D17)","v":0},{"$f":"SUM(D18)*0.1","v":0},null,"Chromium",null,{"$f":"'Est-6 Month Charges'!I18","v":3}]
[null,null,null,null,null,null,"Nickel",null,{"$f":"'Est-6 Month Charges'!I19","v":3}]
[null,null,null,null,null,null,"Lead",null,{"$f":"'Est-6 Month Charges'!I20","v":3}]
["Laboratory Analysis Costs",null,null,null,null,null,"Zinc",null,{"$f":"'Est-6 Month Charges'!I21","v":3}]
["Description","No. Samples","Unit Rate","$ Total",null,null,"Molybdenum",null,{"$f":"'Est-6 Month Charges'!I22","v":3}]
[null,null,{"$f":"H35","v":0},{"$f":"C23*B23","v":0},null,null,"Selenium",null,{"$f":"'Est-6 Month Charges'!I23","v":3}]
[null,null,null,{"$f":"C24*B24","v":0},null,null,"Silver",null,{"$f":"'Est-6 Month Charges'!I24","v":3}]
[null,null,null,{"$f":"C25*B25","v":0},null,null,"Arsenic",null,{"$f":"'Est-6 Month Charges'!I25","v":3}]
[null,null,null,{"$f":"C26*B26","v":0},null,null,"Mercury",null,{"$f":"'Est-6 Month Charges'!I26","v":14}]
[null,null,"Total",{"$f":"SUM(D23:D26)","v":0},null,null,"Suspended Solids"," ",{"$f":"'Est-6 Month Charges'!I27","v":12.8}]
[null,null,null,null,null,null,"BOD"," ",{"$f":"'Est-6 Month Charges'!I28","v":38.5}]
["Quality/Quantity Charges",null,null,null,null,null,"COD"," ",{"$f":"'Est-6 Month Charges'!I29","v":46}]
["Description","Charge Rate","Total Volume kL","$ Total",null,null,"TKN"," ",{"$f":"'Est-6 Month Charges'!I30","v":26.8}]
["Quality/Quantity Charges",{"$f":"ROUND('Billing Cycle 3 - QQ #1'!B31,4)","v":{"$error":"#VALUE!"}},{"$f":"\nSUMIFS('Meter 1'!G12:G103,'Meter 1'!A12:A103,3,'Meter 1'!B12:B103,\"A\")+\nSUMIFS('Meter 2'!G12:G103,'Meter 2'!A12:A103,3,'Meter 2'!B12:B103,\"a\")+\nSUMIFS('Meter 3'!G12:G103,'Meter 3'!A12:A103,3,'Meter 3'!B12:B103,\"a\")+\nSUMIFS('Meter 4'!G12:G103,'Meter 4'!A12:A103,3,'Meter 4'!B12:B103,\"a\")+\nSUMIFS('Meter 5'!G12:G103,'Meter 5'!A12:A103,3,'Meter 5'!B12:B103,\"a\")+\nSUMIFS('Meter 6'!G12:G103,'Meter 6'!A12:A103,3,'Meter 6'!B12:B103,\"a\")","v":0},{"$f":"IF(C31=0,\"\",B31*C31)","v":""},null,null,"Phosphorus Total"," ",{"$f":"'Est-6 Month Charges'!I31","v":16.600000000000001}]
[{"$f":"IF(C32<>\"\",\"Quality/Quantity Charges\",\"\")","v":""},{"$f":"IF(C32<>\"\",\"enter new Q/Q\",\"\")","v":""},{"$f":"\nIF(\n\nSUMIFS('Meter 1'!G12:G103,'Meter 1'!A12:A103,3,'Meter 1'!B12:B103,\"b\")+\nSUMIFS('Meter 2'!G12:G103,'Meter 2'!A12:A103,3,'Meter 2'!B12:B103,\"b\")+\nSUMIFS('Meter 3'!G12:G103,'Meter 3'!A12:A103,3,'Meter 3'!B12:B103,\"b\")+\nSUMIFS('Meter 4'!G12:G103,'Meter 4'!A12:A103,3,'Meter 4'!B12:B103,\"b\")+\nSUMIFS('Meter 5'!G12:G103,'Meter 5'!A12:A103,3,'Meter 5'!B12:B103,\"b\")+\nSUMIFS('Meter 6'!G12:G103,'Meter 6'!A12:A103,3,'Meter 6'!B12:B103,\"b\")=0,\"\",\n\n(SUMIFS('Meter 1'!G12:G103,'Meter 1'!A12:A103,3,'Meter 1'!B12:B103,\"b\")+\nSUMIFS('Meter 2'!G12:G103,'Meter 2'!A12:A103,3,'Meter 2'!B12:B103,\"b\")+\nSUMIFS('Meter 3'!G12:G103,'Meter 3'!A12:A103,3,'Meter 3'!B12:B103,\"b\")+\nSUMIFS('Meter 4'!G12:G103,'Meter 4'!A12:A103,3,'Meter 4'!B12:B103,\"b\")+\nSUMIFS('Meter 5'!G12:G103,'Meter 5'!A12:A103,3,'Meter 5'!B12:B103,\"b\")+\nSUMIFS('Meter 6'!G12:G103,'Meter 6'!A12:A103,3,'Meter 6'!B12:B103,\"b\")))","v":""},{"$f":"IF(A32=\"\",\"\",B32*C32)","v":""},null,null,"Oil and Grease",null,{"$f":"'Est-6 Month Charges'!I32","v":40.799999999999997}]
["",{"$f":"IF(C33<>\"\",\"enter new Q/Q\",\"\")","v":""},{"$f":"\nIF(\n\nSUMIFS('Meter 1'!G12:G103,'Meter 1'!A12:A103,3,'Meter 1'!B12:B103,\"c\")+\nSUMIFS('Meter 2'!G12:G103,'Meter 2'!A12:A103,3,'Meter 2'!B12:B103,\"c\")+\nSUMIFS('Meter 3'!G12:G103,'Meter 3'!A12:A103,3,'Meter 3'!B12:B103,\"c\")+\nSUMIFS('Meter 4'!G12:G103,'Meter 4'!A12:A103,3,'Meter 4'!B12:B103,\"c\")+\nSUMIFS('Meter 5'!G12:G103,'Meter 5'!A12:A103,3,'Meter 5'!B12:B103,\"c\")+\nSUMIFS('Meter 6'!G12:G103,'Meter 6'!A12:A103,3,'Meter 6'!B12:B103,\"c\")=0,\"\",\n\n(SUMIFS('Meter 1'!G12:G103,'Meter 1'!A12:A103,3,'Meter 1'!B12:B103,\"c\")+\nSUMIFS('Meter 2'!G12:G103,'Meter 2'!A12:A103,3,'Meter 2'!B12:B103,\"c\")+\nSUMIFS('Meter 3'!G12:G103,'Meter 3'!A12:A103,3,'Meter 3'!B12:B103,\"c\")+\nSUMIFS('Meter 4'!G12:G103,'Meter 4'!A12:A103,3,'Meter 4'!B12:B103,\"c\")+\nSUMIFS('Meter 5'!G12:G103,'Meter 5'!A12:A103,3,'Meter 5'!B12:B103,\"c\")+\nSUMIFS('Meter 6'!G12:G103,'Meter 6'!A12:A103,3,'Meter 6'!B12:B103,\"c\")))","v":""},{"$f":"IF(A33=\"\",\"\",B33*C33)","v":""},null,null,"BTEX & TPH",null,{"$f":"'Est-6 Month Charges'!I33","v":75}]
[{"$f":"IF(C34<>\"\",\"Quality/Quantity Charges\",\"\")","v":""},"",{"$f":"\nIF(\n\nSUMIFS('Meter 1'!G12:G103,'Meter 1'!A12:A103,3,'Meter 1'!B12:B103,\"d\")+\nSUMIFS('Meter 2'!G12:G103,'Meter 2'!A12:A103,3,'Meter 2'!B12:B103,\"d\")+\nSUMIFS('Meter 3'!G12:G103,'Meter 3'!A12:A103,3,'Meter 3'!B12:B103,\"d\")+\nSUMIFS('Meter 4'!G12:G103,'Meter 4'!A12:A103,3,'Meter 4'!B12:B103,\"d\")+\nSUMIFS('Meter 5'!G12:G103,'Meter 5'!A12:A103,3,'Meter 5'!B12:B103,\"d\")+\nSUMIFS('Meter 6'!G12:G103,'Meter 6'!A12:A103,3,'Meter 6'!B12:B103,\"d\")=0,\"\",\n\n(SUMIFS('Meter 1'!G12:G103,'Meter 1'!A12:A103,3,'Meter 1'!B12:B103,\"d\")+\nSUMIFS('Meter 2'!G12:G103,'Meter 2'!A12:A103,3,'Meter 2'!B12:B103,\"d\")+\nSUMIFS('Meter 3'!G12:G103,'Meter 3'!A12:A103,3,'Meter 3'!B12:B103,\"d\")+\nSUMIFS('Meter 4'!G12:G103,'Meter 4'!A12:A103,3,'Meter 4'!B12:B103,\"d\")+\nSUMIFS('Meter 5'!G12:G103,'Meter 5'!A12:A103,3,'Meter 5'!B12:B103,\"d\")+\nSUMIFS('Meter 6'!G12:G103,'Meter 6'!A12:A103,3,'Meter 6'!B12:B103,\"d\")))","v":""},"",null,null,"PFAS, PFOS, PFOA *",null,{"$f":"'Est-6 Month Charges'!I34","v":208}]
[null,null,"Total",{"$f":"SUM(D31:D34)","v":0},null,null,"Total Unit Rate",{"$f":"SUMIF(H11:I34,\"y\",I11:I34)","v":0}]
[]
["Regional  Charges",null,null,null,null,null,"* ARL charges $28 preparation fee per sample of PFAS "]
[null,null,null," $ Total","GST Component"]
["                                                            ",null,"Total ",null,{"$f":"SUM(D39)*0.1","v":0}]
[]
[]
["Total Charges"]
["        Description",null,null,"$ Total"]
["Quality/Quantity Charges",null,null,{"$f":"D35","v":0}]
["Laboratory Analysis Costs",null,null,{"$f":"D27","v":0}]
[{"$f":"A37","v":"Regional  Charges"},null,null,{"$f":"D39","v":0}]
["Labour Costs (Subject to GST)",{"$f":"B6+B7+B8+B9+B14+B15+B16+B17","v":0},"Hrs",{"$f":"IF(D10+D18=0,\"\",D10+D18)","v":""}]
["Total Charges for One Off Discharge\n(which includes the Monitoring and Regional GST components)",null,null,{"$f":"SUM(D44:D47)+E18+E39","v":0}]

{"sheet":"Billing Cycle 3 - QQ #1","index":30,"n_rows":48,"n_cols":10,"rows_kept":48,"cut":false,"hidden":true,"merged":[[43,7,43,9]]}
[{"$f":"'Est-6 Month QQ'!A1","v":"Quality-quantity charges for individually managed customers (2024/2025 rates)"}]
[]
["Customer",{"$f":"'Billing Cycle 1 - QQ #1'!B3","v":"< Exactly enter physical property address details as created on the Enquiry Sheet > (enter here (for billing purposes))"}]
["Parameter","Units","Amount","Daily charge","Annual Charge",null,"Mass kg/d","Mass kg/a"]
["Daily volume (note 1)","kL/d",{"$f":"I48","v":{"$error":"#VALUE!"}},{"$f":"C5*'FY 24-25 Charges'!D23","v":{"$error":"#VALUE!"}},{"$f":"D5*365","v":{"$error":"#VALUE!"}}]
["BOD","mg/L",null,{"$f":"IF(C6>5000,(C6-5000)*'FY 24-25 Charges'!D25 + 5000*'FY 24-25 Charges'!D24, C6*'FY 24-25 Charges'!D24)*$C$5/1000","v":{"$error":"#VALUE!"}},{"$f":"D6*365","v":{"$error":"#VALUE!"}},null,{"$f":"C6*$C$5/1000","v":{"$error":"#VALUE!"}},{"$f":"G6*365","v":{"$error":"#VALUE!"}},{"$f":"IF(G6=0,\"\",IF(G6<=200,\"Mass alarm limit OK\",\"Check mass alarm limit!\"))","v":{"$error":"#VALUE!"}}]
["SS","mg/L",null,{"$f":"IF(C7>2000,(C7-2000)*'FY 24-25 Charges'!D29 + 2000*'FY 24-25 Charges'!D28, C7*'FY 24-25 Charges'!D28)*$C$5/1000","v":{"$error":"#VALUE!"}},{"$error":"#VALUE!"},null,{"$error":"#VALUE!"},{"$f":"G7*365","v":{"$error":"#VALUE!"}},{"$f":"IF(G7=0,\"\",IF(G7<=200,\"Mass alarm limit OK\",\"Check mass alarm limit!\"))","v":{"$error":"#VALUE!"}}]
["Oil & Grease","mg/L",null,{"$f":"IF(C8>600,(C8-600)*'FY 24-25 Charges'!D32 + 300*'FY 24-25 Charges'!D31 + 300*'FY 24-25 Charges'!D30, IF(C8>300,(C8-300)*'FY 24-25 Charges'!D31 + 300*'FY 24-25 Charges'!D30, C8*'FY 24-25 Charges'!D30))*$C$5/1000","v":{"$error":"#VALUE!"}},{"$error":"#VALUE!"},null,{"$error":"#VALUE!"},{"$error":"#VALUE!"}]
["Acidity to pH 6","mg/L CaCO3",null,{"$f":"IF(C9>300,(C9-300)*'FY 24-25 Charges'!D35 + 200*'FY 24-25 Charges'!D34 + 100*'FY 24-25 Charges'!D33, IF(C9>100,(C9-100)*'FY 24-25 Charges'!D34 + 100*'FY 24-25 Charges'!D33, C9*'FY 24-25 Charges'!D33))*$C$5/1000","v":{"$error":"#VALUE!"}},{"$error":"#VALUE!"},null,{"$error":"#VALUE!"},{"$error":"#VALUE!"}]
["Alkalinity to pH 10","mg/L CaCO3",null,{"$f":"IF(C10>200,(C10-200)*'FY 24-25 Charges'!D38 + 100*'FY 24-25 Charges'!D37 + 100*'FY 24-25 Charges'!D36, IF(C10>100,(C10-100)*'FY 24-25 Charges'!D37 + 100*'FY 24-25 Charges'!D36, C10*'FY 24-25 Charges'!D36))*$C$5/1000","v":{"$error":"#VALUE!"}},{"$error":"#VALUE!"},null,{"$error":"#VALUE!"},{"$error":"#VALUE!"}]
["TKN","mg/L",null,{"$f":"C11*'FY 24-25 Charges'!D39*$C$5/1000","v":{"$error":"#VALUE!"}},{"$error":"#VALUE!"},null,{"$error":"#VALUE!"},{"$error":"#VALUE!"},{"$f":"IF(G11=0,\"\",IF(G11<=30,\"Mass alarm limit OK\",\"Check mass alarm limit!\"))","v":{"$error":"#VALUE!"}}]
["Phosphorus","mg/L",null,{"$f":"C12*'FY 24-25 Charges'!D40*$C$5/1000","v":{"$error":"#VALUE!"}},{"$error":"#VALUE!"},null,{"$error":"#VALUE!"},{"$error":"#VALUE!"},{"$f":"IF(G12=0,\"\",IF(G12<=10,\"Mass alarm limit OK\",\"Check mass alarm limit!\"))","v":{"$error":"#VALUE!"}}]
["Sulphate as SO4","mg/L",null,{"$f":"IF(C13>50,(C13-50)*'FY 24-25 Charges'!D42, 0)*$C$5/1000","v":{"$error":"#VALUE!"}},{"$error":"#VALUE!"},null,{"$error":"#VALUE!"},{"$error":"#VALUE!"}]
["Conductivity (note 2)","mS/m",null,{"$f":"IF(C14>1000,(C14-1000)*'FY 24-25 Charges'!D46 + 500*'FY 24-25 Charges'!D45 + 333*'FY 24-25 Charges'!D44, IF(C14>500,(C14-500)*'FY 24-25 Charges'!D45 + 333*'FY 24-25 Charges'!D44, IF(C14>167, (C14-167)*'FY 24-25 Charges'!D44, 0)))*$C$5*6/1000","v":{"$error":"#VALUE!"}},{"$error":"#VALUE!"},null,{"$f":"(6*C14)*$C$5/1000","v":{"$error":"#VALUE!"}},{"$error":"#VALUE!"},{"$f":"IF(G14=0,\"\",IF(G14<=220,\"Mass alarm limit OK\",\"Check mass alarm limit!\"))","v":{"$error":"#VALUE!"}}]
["Chromium","mg/L",null,{"$f":"IF(G15>1, (G15-1)*'FY 24-25 Charges'!D49 + 0.97*'FY 24-25 Charges'!D48 + 0.03*'FY 24-25 Charges'!D47, IF(G15>0.03, (G15-0.03)*'FY 24-25 Charges'!D48 + 0.03*'FY 24-25 Charges'!D47, G15*'FY 24-25 Charges'!D47))","v":{"$error":"#VALUE!"}},{"$error":"#VALUE!"},null,{"$f":"C15*$C$5/1000","v":{"$error":"#VALUE!"}},{"$error":"#VALUE!"},{"$f":"IF(G15=0,\"\",IF((1000*G15)<=30,\"Mass alarm limit OK\",\"Check mass alarm limit!\"))","v":{"$error":"#VALUE!"}}]
["Copper","mg/L",null,{"$f":"IF(G16>0.12, (G16-0.12)*'FY 24-25 Charges'!D52 + 0.09*'FY 24-25 Charges'!D51 + 0.03*'FY 24-25 Charges'!D50, IF(G16>0.03, (G16-0.03)*'FY 24-25 Charges'!D51 + 0.03*'FY 24-25 Charges'!D50, G16*'FY 24-25 Charges'!D50))","v":{"$error":"#VALUE!"}},{"$error":"#VALUE!"},null,{"$f":"C16*$C$5/1000","v":{"$error":"#VALUE!"}},{"$error":"#VALUE!"},{"$f":"IF(G16=0,\"\",IF((1000*G16)<=30,\"Mass alarm limit OK\",\"Check mass alarm limit!\"))","v":{"$error":"#VALUE!"}}]
["Lead","mg/L",null,{"$f":"IF(G17>0.3, (G17-0.3)*'FY 24-25 Charges'!D55 + 0.27*'FY 24-25 Charges'!D54 + 0.03*'FY 24-25 Charges'!D53, IF(G17>0.03, (G17-0.03)*'FY 24-25 Charges'!D54 + 0.03*'FY 24-25 Charges'!D53, G17*'FY 24-25 Charges'!D53))","v":{"$error":"#VALUE!"}},{"$error":"#VALUE!"},null,{"$error":"#VALUE!"},{"$error":"#VALUE!"},{"$f":"IF(G17=0,\"\",IF((1000*G17)<=30,\"Mass alarm limit OK\",\"Check mass alarm limit!\"))","v":{"$error":"#VALUE!"}}]
["Nickel","mg/L",null,{"$f":"IF(G18>0.15, (G18-0.15)*'FY 24-25 Charges'!D58 + 0.144*'FY 24-25 Charges'!D57 + 0.006*'FY 24-25 Charges'!D56, IF(G18>0.006, (G18-0.006)*'FY 24-25 Charges'!D57 + 0.006*'FY 24-25 Charges'!D56, G18*'FY 24-25 Charges'!D56))","v":{"$error":"#VALUE!"}},{"$error":"#VALUE!"},null,{"$error":"#VALUE!"},{"$error":"#VALUE!"},{"$f":"IF(G18=0,\"\",IF((1000*G18)<=6,\"Mass alarm limit OK\",\"Check mass alarm limit!\"))","v":{"$error":"#VALUE!"}}]
["Zinc","mg/L",null,{"$f":"IF(G19>0.5, (G19-0.5)*'FY 24-25 Charges'!D61 + 0.45*'FY 24-25 Charges'!D60 + 0.05*'FY 24-25 Charges'!D59, IF(G19>0.05, (G19-0.05)*'FY 24-25 Charges'!D60 + 0.05*'FY 24-25 Charges'!D59, G19*'FY 24-25 Charges'!D59))","v":{"$error":"#VALUE!"}},{"$error":"#VALUE!"},null,{"$error":"#VALUE!"},{"$error":"#VALUE!"},{"$f":"IF(G19=0,\"\",IF((1000*G19)<=50,\"Mass alarm limit OK\",\"Check mass alarm limit!\"))","v":{"$error":"#VALUE!"}}]
["Arsenic","mg/L",null,{"$f":"IF(G20>0.04, (G20-0.04)*'FY 24-25 Charges'!D64 + 0.039*'FY 24-25 Charges'!D63 + 0.001*'FY 24-25 Charges'!D62, IF(G20>0.001, (G20-0.001)*'FY 24-25 Charges'!D63 + 0.001*'FY 24-25 Charges'!D62, G20*'FY 24-25 Charges'!D62))","v":{"$error":"#VALUE!"}},{"$error":"#VALUE!"},null,{"$error":"#VALUE!"},{"$error":"#VALUE!"},{"$f":"IF(G20=0,\"\",IF((1000*G20)<=1,\"Mass alarm limit OK\",\"Check mass alarm limit!\"))","v":{"$error":"#VALUE!"}}]
["Cadmium","mg/L",null,{"$f":"IF(G21>0.015, (G21-0.015)*'FY 24-25 Charges'!D67 + 0.014*'FY 24-25 Charges'!D66 + 0.001*'FY 24-25 Charges'!D65, IF(G21>0.001, (G21-0.001)*'FY 24-25 Charges'!D66 + 0.001*'FY 24-25 Charges'!D65, G21*'FY 24-25 Charges'!D65))","v":{"$error":"#VALUE!"}},{"$error":"#VALUE!"},null,{"$error":"#VALUE!"},{"$error":"#VALUE!"},{"$f":"IF(G21=0,\"\",IF((1000*G21)<=1,\"Mass alarm limit OK\",\"Check mass alarm limit!\"))","v":{"$error":"#VALUE!"}}]
["Molybdenum","mg/L",null,{"$f":"IF(G22>0.02, (G22-0.02)*'FY 24-25 Charges'!D70 + 0.019*'FY 24-25 Charges'!D69 + 0.001*'FY 24-25 Charges'!D68, IF(G22>0.001, (G22-0.001)*'FY 24-25 Charges'!D69 + 0.001*'FY 24-25 Charges'!D68, G22*'FY 24-25 Charges'!D68))","v":{"$error":"#VALUE!"}},{"$error":"#VALUE!"},null,{"$error":"#VALUE!"},{"$error":"#VALUE!"},{"$f":"IF(G22=0,\"\",IF((1000*G22)<=1,\"Mass alarm limit OK\",\"Check mass alarm limit!\"))","v":{"$error":"#VALUE!"}}]
["Selenium","mg/L",null,{"$f":"IF(G23>0.02, (G23-0.02)*'FY 24-25 Charges'!D73 + 0.019*'FY 24-25 Charges'!D72 + 0.001*'FY 24-25 Charges'!D71, IF(G23>0.001, (G23-0.001)*'FY 24-25 Charges'!D72 + 0.001*'FY 24-25 Charges'!D71, G23*'FY 24-25 Charges'!D71))","v":{"$error":"#VALUE!"}},{"$error":"#VALUE!"},null,{"$error":"#VALUE!"},{"$error":"#VALUE!"},{"$f":"IF(G23=0,\"\",IF((1000*G23)<=1,\"Mass alarm limit OK\",\"Check mass alarm limit!\"))","v":{"$error":"#VALUE!"}}]
["Silver","mg/L",null,{"$f":"IF(G24>0.01, (G24-0.01)*'FY 24-25 Charges'!D76 + 0.008*'FY 24-25 Charges'!D75 + 0.002*'FY 24-25 Charges'!D74, IF(G24>0.002, (G24-0.002)*'FY 24-25 Charges'!D75 + 0.002*'FY 24-25 Charges'!D74, G24*'FY 24-25 Charges'!D74))","v":{"$error":"#VALUE!"}},{"$error":"#VALUE!"},null,{"$error":"#VALUE!"},{"$error":"#VALUE!"},{"$f":"IF(G24=0,\"\",IF((1000*G24)<=2,\"Mass alarm limit OK\",\"Check mass alarm limit!\"))","v":{"$error":"#VALUE!"}}]
["Mercury","mg/L",null,{"$f":"IF(G25>0.001, (G25-0.001)*'FY 24-25 Charges'!D79 + 0.0009*'FY 24-25 Charges'!D78 + 0.0001*'FY 24-25 Charges'!D77, IF(G25>0.0001, (G25-0.0001)*'FY 24-25 Charges'!D78 + 0.0001*'FY 24-25 Charges'!D77, G25*'FY 24-25 Charges'!D77))","v":{"$error":"#VALUE!"}},{"$error":"#VALUE!"},null,{"$error":"#VALUE!"},{"$error":"#VALUE!"},{"$f":"IF(G25=0,\"\",IF((1000*G25)<=0.1,\"Mass alarm limit OK\",\"Check mass alarm limit!\"))","v":{"$error":"#VALUE!"}}]
["pH"]
[null,null,null,null,"TDS mass loads",null,{"$f":"C14*C5*6/1000","v":{"$error":"#VALUE!"}},{"$f":"G27*365","v":{"$error":"#VALUE!"}},{"$f":"IF(G27=0,\"\",IF(G27<=220,\"Mass alarm limit OK\",\"Check mass alarm limit!\"))","v":{"$error":"#VALUE!"}}]
[]
["Total  Charge",null,null,{"$f":"SUM(D5:D25)","v":{"$error":"#VALUE!"}},{"$error":"#VALUE!"}]
[null,null,null,"(daily)","(annually)"]
["Charge per kL",{"$f":"D29/C5","v":{"$error":"#VALUE!"}}]
[]
[]
["Note 1","Volume MUST be daily volume or metals charges will not "]
[null,"calculate correctly"]
["Note 2","Use conductivity to determine TDS charges. If estimating "]
[null,"TDS charges from actual TDS data, convert TDS (mg/L) to"]
[null,"conductivity (mS/m) by dividing by 6 and entering into cell C14."]
["Note 3","All concentrations should be entered in mg/L unless otherwise indicated."]
["Note 4","For OOD Quotes: Total volume may be estimated by client in application or calculated "]
[null,"using table (Discharge Volume 24hrs/day) "]
[null,"For Final OOD Billing: Total volume is calculated from meter readings"]
[]
["What information was used to estimate volume and quality of effluent?",null,null,null,null,null,null,"Average Daily Volume Discharged During Billing Cycle 3"]
["Note 5: << enter AQUA reference of water quality data used for Q/Q calculation >>"]
[null,null,null,null,null,null,null,"start date","MUST ENTER!"]
[null,null,null,null,null,null,null,"end date","MUST ENTER!"]
[null,null,null,null,null,null,null,null,{"$f":"-'Billing Cycle 3 - Charges'!C31/(I46-I47)","v":{"$error":"#VALUE!"}},"kL/day"]

{"sheet":"RRR - 3","index":31,"n_rows":63,"n_cols":34,"rows_kept":63,"cut":false,"hidden":true,"merged":[[57,7,57,15],[48,7,48,15],[48,19,48,25],[49,7,49,15],[56,7,56,15],[56,19,56,25],[51,2,52,8],[51,9,52,18],[26,7,26,9],[26,13,26,16],[26,17,26,28],[2,24,2,29],[21,10,21,15],[21,17,21,22],[23,2,24,29],[45,7,45,15],[35,31,35,62],[36,31,36,62],[45,31,45,62],[27,17,27,20],[28,17,28,20],[29,17,29,23],[30,17,33,28],[45,19,45,25],[39,19,39,25],[29,33,29,57],[30,33,30,57],[31,33,31,57],[40,7,40,15],[46,31,46,62],[39,31,39,64],[40,31,40,64],[4,10,5,28],[5,32,6,60],[8,32,9,60],[11,32,12,60],[12,4,12,27],[14,6,14,9],[14,11,14,20],[14,32,15,60],[46,7,46,15],[35,7,35,15],[35,19,35,25],[36,7,36,15],[39,7,39,15]]}
[]
[]
[null,null,"Billing Cycle - 3",null,null,null,null,null,null,null,null,null,null,null,null,null,null,null,null,null,null,null,null,"Date:","< enter date >"]
[]
[null,null,"Account Title (in Grange):",null,null,null,null,null,null,null,{"$f":"'RRR - 1'!K5","v":"ONE OFF DISCHARGE: < Exactly enter physical property address details as created on the Enquiry Sheet >"}]
[null,null,"(To appear on Page 1 of Grange bill)"]
[]
[null,null,"Customer (in Grange):",null,null,null,null,null,null,null,{"$f":"IF(E13=\"Billing contact details on the last signed CofA is different to the last received Application.\",\"enter new BILLING BUSINESS NAME here\",Application!$G$18)","v":"enter here (for billing purposes)"}]
[null,null,"(To appear on Page 2 of Grange bill)",null,null,null,null,null,null,null,{"$f":"IF(E13=\"Billing contact details on the last signed CofA is different to the last received Application.\",\"enter new BILLING ADDRESS DETAILS here\",Application!$G$22)","v":"enter here (must be postal address, not an e-mail account)"}]
[]
[null,null,null,null,null,null,null,null,"Attention:",null,{"$f":"IF(E13=\"Billing contact details on the last signed CofA is different to the last received Application.\",\"enter new BILLING CONTACT NAME here\",Application!$G$23)","v":"enter here (must be a natural person's name)"}]
[]
[null,null,null,null,"CHECK FOR CORRECT BILLING DETAILS BEFORE PROCEEDING FURTHER.  SELECT OPTION HERE."]
[]
[null,null,"Invoice Value:",null,null,null,{"$f":"IF(Application!Y29=\"yes\",\"\",'Billing Cycle 1 - Charges'!D10+'Billing Cycle 1 - Charges'!D18+'Billing Cycle 1 - Charges'!D27+'Billing Cycle 1 - Charges'!D35+'Billing Cycle 1 - Charges'!D39+'Billing Cycle 1 - Charges'!E18+'Billing Cycle 1 - Charges'!E39)","v":0},null,null,null,null,{"$f":"IF(Application!Y29=\"yes\",\"\",\"(This is inclusive of $\"&TEXT(ROUND(('Billing Cycle 1 - Charges'!E18+'Billing Cycle 1 - Charges'!E39),2),\"#,##0.00\")&+\" GST)\")","v":"(This is inclusive of $0.00 GST)"},null,null,null,null,null,null,null,null,null,null,null,null,null,null,null,null,null,"Profit Centre: 125"]
[]
[null,null,"(Please exclude GST component.  10% GST will be automatically calculated.)"]
[null,null,"Revenue Rating Schedules"]
[]
[null,null,"Description:",null,null,null,null,null,null,null,"One-Off-Discharge"]
[]
[null,null,null,null,null,null,null,null,null,"Charge Period From:","< enter start date >",null,null,null,null,null,"To:","< enter end date >"]
[]
[]
[]
[]
[null,null,null,null,"Quality:",null,null,{"$f":"IF(Application!Y29=\"yes\",\"N/A\",+\"$\"&ROUND(('Billing Cycle 3 - QQ #1'!B31),4)&+\"/kL\")","v":{"$error":"#VALUE!"}},null,null,null,null,"Quantity:",{"$f":"IF(Application!Y29=\"yes\",\"N/A\",TEXT(ROUND(('Billing Cycle 3 - Charges'!C31),0),\"#,###\")&+\" kL\")","v":" kL"},null,null,null,{"$f":"IF(Application!P29=\"yes\",\"C&IS not to recover Q/Q component\",'Billing Cycle 3 - Charges'!D31)","v":""}]
[null,null,null,null,"Laboratory Analysis Costs:",null,null,null,null,null,null,null,null,null,null,null,null,{"$f":"ROUND('Billing Cycle 3 - Charges'!D27,2)","v":0}]
[null,null,null,null,"Labour Costs",null,null,null,null,"- Administrative:",null,null,null,null,null,null,null,{"$f":"ROUND('Billing Cycle 3 - Charges'!D10,2)","v":0}]
[null,null,null,null,null,null,null,null,null,"- Monitoring (GST):",null,null,null,null,null,null,null,{"$f":"\"$\"&TEXT(ROUND('Billing Cycle 3 - Charges'!D18,2),\"0#,###.00\"&\"     ($\"&TEXT(ROUND('Billing Cycle 3 - Charges'!E18,2),\"0#,###.00\"&\")\"))","v":"$0.00     ($0.00)"},null,null,null,null,null,null,null,null,null,null,null,null,null,null,null,{"$f":"IF(COUNTIF('Billing Cycle 3 - Charges'!A31:A34,\"Quality/Quantity Charges\")>1,\"It appears that more than one Q/Q value has been used for this RRR activity.\",\"\")","v":""}]
[null,null,null,null,null,null,null,null,null,"- Regional Charges (GST):",null,null,null,null,null,null,null,{"$f":"IF(Application!P29=\"yes\",\"The PRA must recover their own regional charges directly from the Water Corp Project Manager using their own uniquely issued NWA.\",\"$\"&TEXT(ROUND('Billing Cycle 3 - Charges'!D39,2),\"0#,###.00\"&\"     ($\"&TEXT(ROUND('Billing Cycle 3 - Charges'!E39,2),\"0#,###.00\"&\")\")))","v":"$0.00     ($0.00)"},null,null,null,null,null,null,null,null,null,null,null,null,null,null,null,{"$f":"IF(COUNTIF('Billing Cycle 3 - Charges'!A31:A34,\"Quality/Quantity Charges\")>1,\"If not done so already make sure these additional Q/Q values have been inserted here.\",\"\")","v":""}]
[null,null,null,null,null,null,null,null,null,null,null,null,null,null,null,null,null,null,null,null,null,null,null,null,null,null,null,null,null,null,null,null,null,{"$f":"IF(COUNTIF('Billing Cycle 3 - Charges'!A31:A34,\"Quality/Quantity Charges\")>1,\"Finally, make sure the individual line entries equal the total Invoice Value at the top left.\",\"\")","v":""}]
[]
[]
[null,null,"Requested By:"]
[null,null,null,null,null,null,null,"enter here",null,null,null,null,null,null,null,null,null,null,"Date:","enter here",null,null,null,null,null,null,null,null,null,null,null,{"$f":"IF(T36<>\"enter here\",\"You must now use the link below to send an e-mail for this RRR to be checked before a Grange sundry account can be raised.\",\"\")","v":""}]
[null,null,null,null,null,null,null,"enter position title here",null,null,null,null,null,null,null,null,null,null,null,null,null,null,null,null,null,null,null,null,null,null,null,{"$f":"IF(T36<>\"enter here\",\"https://nexus.watercorporation.com.au/otcs/cs.exe/link/109973713\",\"\")","v":""}]
[]
[null,null,"Authorised By:"]
[null,null,null,null,null,null,null,"enter here",null,null,null,null,null,null,null,null,null,null,"Date:","enter here",null,null,null,null,null,null,null,null,null,null,null,{"$f":"IF(T40<>\"enter here\",\"Please forward this E-Form document to Officer - C&IS (May Ubalde) for Grange sundry account creation.\",\"\")","v":""}]
[null,null,null,null,null,null,null,"enter position title here",null,null,null,null,null,null,null,null,null,null,null,null,null,null,null,null,null,null,null,null,null,null,null,{"$f":"IF(T40<>\"enter here\",\"May.Ubalde@watercorporation.com.au\",\"\")","v":""}]
[null,null,"(Branch / Section Manager)"]
[]
[null,null,"Finance Use Only:"]
[]
[null,null,"Processed By:",null,null,null,null,"enter here",null,null,null,null,null,null,null,null,null,null,"Date:","enter here",null,null,null,null,null,null,null,null,null,null,null,{"$f":"IF(T46<>\"enter here\",\"Please advise TL - Investigations (Steve Jerkovic) that the Grange sundry account has now been created.\",\"\")","v":""}]
[null,null,null,null,null,null,null,"enter position title here",null,null,null,null,null,null,null,null,null,null,null,null,null,null,null,null,null,null,null,null,null,null,null,{"$f":"IF(T46<>\"enter here\",\"stephen.jerkovic@watercorporation.com.au\",\"\")","v":""}]
[]
[null,null,"Authorised By:",null,null,null,null,"enter here",null,null,null,null,null,null,null,null,null,null,"Date:","enter here"]
[null,null,null,null,null,null,null,"enter position title here"]
[]
[null,null,"Grange Account Number:",null,null,null,null,null,null,{"$f":"'RRR - 1'!J52","v":"enter here"}]
[]
[]
[]
[null,null,"QC / KPI Use Only:"]
[null,null,"Entered By:",null,null,null,null,"enter here",null,null,null,null,null,null,null,null,null,null,"Date:","enter here"]
[null,null,null,null,null,null,null,"enter position title here"]
[]
[]
[null,null,null,null,null,null,null,null,null,null,null,null,null,null,null,null,null,null,null,null,null,null,null,null,null,null,"CHECK FOR CORRECT BILLING DETAILS BEFORE PROCEEDING FURTHER.  SELECT OPTION HERE."]
[null,null,null,null,null,null,null,null,null,null,null,null,null,null,null,null,null,null,null,null,null,null,null,null,null,null,"Billing contact details on the last signed CofA is different to the last received Application."]
[null,null,null,null,null,null,null,null,null,null,null,null,null,null,null,null,null,null,null,null,null,null,null,null,null,null,"Billing contact details on the last signed CofA is the same as the last received Application."]

{"sheet":"Billing Cycle 4 - Charges","index":32,"n_rows":48,"n_cols":9,"rows_kept":48,"cut":false,"hidden":true,"merged":[[42,0,42,2],[47,0,47,2],[36,0,36,3],[37,0,37,2],[41,0,41,3],[28,0,28,3],[3,0,3,3],[3,6,3,8],[7,6,7,8],[11,0,11,3],[20,0,20,3]]}
["Name of One-Off Discharge:",{"$f":"Assessment!C51","v":"< Exactly enter physical property address details as created on the Enquiry Sheet >"}]
["From",{"$f":"'RRR - 4'!K22","v":"< enter start date >"},"To",{"$f":"'RRR - 4'!R22","v":"< enter end date >"}]
[]
["Administrative / Assessment"]
["Description","Total Hrs","Rate","$ Total"]
[null,null,{"$f":"'FY 24-25 Charges'!D$20","v":150.13},{"$f":"C6*B6","v":0}]
[null,null,{"$f":"'FY 24-25 Charges'!D$20","v":150.13},{"$f":"C7*B7","v":0}]
[null,null,{"$f":"'FY 24-25 Charges'!D$20","v":150.13},{"$f":"C8*B8","v":0},null,null,"Laboratory Analysis Calculator"]
[null,null,{"$f":"'FY 24-25 Charges'!D$20","v":150.13},{"$f":"C9*B9","v":0},null,null,"Indicate \"y\" in blue box if analyte was included"]
[null,null,"Total",{"$f":"SUM(D6:D9)","v":0},null,null,"Analyte","Included?","Rate"]
[null,null,null,null,null,null,"pH",null,{"$f":"'Est-6 Month Charges'!I11","v":4.9000000000000004}]
["Monitoring ",null,null,null,null,null,"Acidity to pH 6",null,{"$f":"'Est-6 Month Charges'!I12","v":15.7}]
["Description","Total Hrs","Rate","$ Total",null,null,"Alkalinity - to pH 10",null,{"$f":"'Est-6 Month Charges'!I13","v":16.3}]
[null,null,{"$f":"'FY 24-25 Charges'!D$13","v":150},{"$f":"C14*B14","v":0},null,null,"Conductivity",null,{"$f":"'Est-6 Month Charges'!I14","v":4.8}]
[null,null,{"$f":"'FY 24-25 Charges'!D$13","v":150},{"$f":"C15*B15","v":0},null,null,"Sulphur",null,{"$f":"'Est-6 Month Charges'!I15","v":3}]
[null,null,{"$f":"'FY 24-25 Charges'!D$13","v":150},{"$f":"C16*B16","v":0},null,null,"Copper",null,{"$f":"'Est-6 Month Charges'!I16","v":3}]
[null,null,{"$f":"'FY 24-25 Charges'!D$13","v":150},{"$f":"C17*B17","v":0},"GST Component",null,"Cadmium",null,{"$f":"'Est-6 Month Charges'!I17","v":3}]
[null,null,"Total",{"$f":"SUM(D14:D17)","v":0},{"$f":"SUM(D18)*0.1","v":0},null,"Chromium",null,{"$f":"'Est-6 Month Charges'!I18","v":3}]
[null,null,null,null,null,null,"Nickel",null,{"$f":"'Est-6 Month Charges'!I19","v":3}]
[null,null,null,null,null,null,"Lead",null,{"$f":"'Est-6 Month Charges'!I20","v":3}]
["Laboratory Analysis Costs",null,null,null,null,null,"Zinc",null,{"$f":"'Est-6 Month Charges'!I21","v":3}]
["Description","No. Samples","Unit Rate","$ Total",null,null,"Molybdenum",null,{"$f":"'Est-6 Month Charges'!I22","v":3}]
[null,null,{"$f":"H35","v":0},{"$f":"C23*B23","v":0},null,null,"Selenium",null,{"$f":"'Est-6 Month Charges'!I23","v":3}]
[null,null,null,{"$f":"C24*B24","v":0},null,null,"Silver",null,{"$f":"'Est-6 Month Charges'!I24","v":3}]
[null,null,null,{"$f":"C25*B25","v":0},null,null,"Arsenic",null,{"$f":"'Est-6 Month Charges'!I25","v":3}]
[null,null,null,{"$f":"C26*B26","v":0},null,null,"Mercury",null,{"$f":"'Est-6 Month Charges'!I26","v":14}]
[null,null,"Total",{"$f":"SUM(D23:D26)","v":0},null,null,"Suspended Solids"," ",{"$f":"'Est-6 Month Charges'!I27","v":12.8}]
[null,null,null,null,null,null,"BOD"," ",{"$f":"'Est-6 Month Charges'!I28","v":38.5}]
["Quality/Quantity Charges",null,null,null,null,null,"COD"," ",{"$f":"'Est-6 Month Charges'!I29","v":46}]
["Description","Charge Rate","Total Volume kL","$ Total",null,null,"TKN"," ",{"$f":"'Est-6 Month Charges'!I30","v":26.8}]
["Quality/Quantity Charges",{"$f":"ROUND('Billing Cycle 4 - QQ #1'!B31,4)","v":{"$error":"#VALUE!"}},{"$f":"\nSUMIFS('Meter 1'!G12:G103,'Meter 1'!A12:A103,4,'Meter 1'!B12:B103,\"A\")+\nSUMIFS('Meter 2'!G12:G103,'Meter 2'!A12:A103,4,'Meter 2'!B12:B103,\"a\")+\nSUMIFS('Meter 3'!G12:G103,'Meter 3'!A12:A103,4,'Meter 3'!B12:B103,\"a\")+\nSUMIFS('Meter 4'!G12:G103,'Meter 4'!A12:A103,4,'Meter 4'!B12:B103,\"a\")+\nSUMIFS('Meter 5'!G12:G103,'Meter 5'!A12:A103,4,'Meter 5'!B12:B103,\"a\")+\nSUMIFS('Meter 6'!G12:G103,'Meter 6'!A12:A103,4,'Meter 6'!B12:B103,\"a\")","v":0},{"$f":"IF(C31=0,\"\",B31*C31)","v":""},null,null,"Phosphorus Total"," ",{"$f":"'Est-6 Month Charges'!I31","v":16.600000000000001}]
[{"$f":"IF(C32<>\"\",\"Quality/Quantity Charges\",\"\")","v":""},{"$f":"IF(C32<>\"\",\"enter new Q/Q\",\"\")","v":""},{"$f":"\nIF(\n\nSUMIFS('Meter 1'!G12:G103,'Meter 1'!A12:A103,4,'Meter 1'!B12:B103,\"b\")+\nSUMIFS('Meter 2'!G12:G103,'Meter 2'!A12:A103,4,'Meter 2'!B12:B103,\"b\")+\nSUMIFS('Meter 3'!G12:G103,'Meter 3'!A12:A103,4,'Meter 3'!B12:B103,\"b\")+\nSUMIFS('Meter 4'!G12:G103,'Meter 4'!A12:A103,4,'Meter 4'!B12:B103,\"b\")+\nSUMIFS('Meter 5'!G12:G103,'Meter 5'!A12:A103,4,'Meter 5'!B12:B103,\"b\")+\nSUMIFS('Meter 6'!G12:G103,'Meter 6'!A12:A103,4,'Meter 6'!B12:B103,\"b\")=0,\"\",\n\n(SUMIFS('Meter 1'!G12:G103,'Meter 1'!A12:A103,4,'Meter 1'!B12:B103,\"b\")+\nSUMIFS('Meter 2'!G12:G103,'Meter 2'!A12:A103,4,'Meter 2'!B12:B103,\"b\")+\nSUMIFS('Meter 3'!G12:G103,'Meter 3'!A12:A103,4,'Meter 3'!B12:B103,\"b\")+\nSUMIFS('Meter 4'!G12:G103,'Meter 4'!A12:A103,4,'Meter 4'!B12:B103,\"b\")+\nSUMIFS('Meter 5'!G12:G103,'Meter 5'!A12:A103,4,'Meter 5'!B12:B103,\"b\")+\nSUMIFS('Meter 6'!G12:G103,'Meter 6'!A12:A103,4,'Meter 6'!B12:B103,\"b\")))","v":""},{"$f":"IF(A32=\"\",\"\",B32*C32)","v":""},null,null,"Oil and Grease",null,{"$f":"'Est-6 Month Charges'!I32","v":40.799999999999997}]
["",{"$f":"IF(C33<>\"\",\"enter new Q/Q\",\"\")","v":""},{"$f":"\nIF(\n\nSUMIFS('Meter 1'!G12:G103,'Meter 1'!A12:A103,4,'Meter 1'!B12:B103,\"c\")+\nSUMIFS('Meter 2'!G12:G103,'Meter 2'!A12:A103,4,'Meter 2'!B12:B103,\"c\")+\nSUMIFS('Meter 3'!G12:G103,'Meter 3'!A12:A103,4,'Meter 3'!B12:B103,\"c\")+\nSUMIFS('Meter 4'!G12:G103,'Meter 4'!A12:A103,4,'Meter 4'!B12:B103,\"c\")+\nSUMIFS('Meter 5'!G12:G103,'Meter 5'!A12:A103,4,'Meter 5'!B12:B103,\"c\")+\nSUMIFS('Meter 6'!G12:G103,'Meter 6'!A12:A103,4,'Meter 6'!B12:B103,\"c\")=0,\"\",\n\n(SUMIFS('Meter 1'!G12:G103,'Meter 1'!A12:A103,4,'Meter 1'!B12:B103,\"c\")+\nSUMIFS('Meter 2'!G12:G103,'Meter 2'!A12:A103,4,'Meter 2'!B12:B103,\"c\")+\nSUMIFS('Meter 3'!G12:G103,'Meter 3'!A12:A103,4,'Meter 3'!B12:B103,\"c\")+\nSUMIFS('Meter 4'!G12:G103,'Meter 4'!A12:A103,4,'Meter 4'!B12:B103,\"c\")+\nSUMIFS('Meter 5'!G12:G103,'Meter 5'!A12:A103,4,'Meter 5'!B12:B103,\"c\")+\nSUMIFS('Meter 6'!G12:G103,'Meter 6'!A12:A103,4,'Meter 6'!B12:B103,\"c\")))","v":""},{"$f":"IF(A33=\"\",\"\",B33*C33)","v":""},null,null,"BTEX & TPH",null,{"$f":"'Est-6 Month Charges'!I33","v":75}]
[{"$f":"IF(C34<>\"\",\"Quality/Quantity Charges\",\"\")","v":""},"",{"$f":"\nIF(\n\nSUMIFS('Meter 1'!G12:G103,'Meter 1'!A12:A103,4,'Meter 1'!B12:B103,\"d\")+\nSUMIFS('Meter 2'!G12:G103,'Meter 2'!A12:A103,4,'Meter 2'!B12:B103,\"d\")+\nSUMIFS('Meter 3'!G12:G103,'Meter 3'!A12:A103,4,'Meter 3'!B12:B103,\"d\")+\nSUMIFS('Meter 4'!G12:G103,'Meter 4'!A12:A103,4,'Meter 4'!B12:B103,\"d\")+\nSUMIFS('Meter 5'!G12:G103,'Meter 5'!A12:A103,4,'Meter 5'!B12:B103,\"d\")+\nSUMIFS('Meter 6'!G12:G103,'Meter 6'!A12:A103,4,'Meter 6'!B12:B103,\"d\")=0,\"\",\n\n(SUMIFS('Meter 1'!G12:G103,'Meter 1'!A12:A103,4,'Meter 1'!B12:B103,\"d\")+\nSUMIFS('Meter 2'!G12:G103,'Meter 2'!A12:A103,4,'Meter 2'!B12:B103,\"d\")+\nSUMIFS('Meter 3'!G12:G103,'Meter 3'!A12:A103,4,'Meter 3'!B12:B103,\"d\")+\nSUMIFS('Meter 4'!G12:G103,'Meter 4'!A12:A103,4,'Meter 4'!B12:B103,\"d\")+\nSUMIFS('Meter 5'!G12:G103,'Meter 5'!A12:A103,4,'Meter 5'!B12:B103,\"d\")+\nSUMIFS('Meter 6'!G12:G103,'Meter 6'!A12:A103,4,'Meter 6'!B12:B103,\"d\")))","v":""},"",null,null,"PFAS, PFOS, PFOA *",null,{"$f":"'Est-6 Month Charges'!I34","v":208}]
[null,null,"Total",{"$f":"SUM(D31:D34)","v":0},null,null,"Total Unit Rate",{"$f":"SUMIF(H11:I34,\"y\",I11:I34)","v":0}]
[]
["Regional  Charges",null,null,null,null,null,"* ARL charges $28 preparation fee per sample of PFAS "]
[null,null,null," $ Total","GST Component"]
["                                                            ",null,"Total ",null,{"$f":"SUM(D39)*0.1","v":0}]
[]
[]
["Total Charges"]
["        Description",null,null,"$ Total"]
["Quality/Quantity Charges",null,null,{"$f":"D35","v":0}]
["Laboratory Analysis Costs",null,null,{"$f":"D27","v":0}]
[{"$f":"A37","v":"Regional  Charges"},null,null,{"$f":"D39","v":0}]
["Labour Costs (Subject to GST)",{"$f":"B6+B7+B8+B9+B14+B15+B16+B17","v":0},"Hrs",{"$f":"IF(D10+D18=0,\"\",D10+D18)","v":""}]
["Total Charges for One Off Discharge\n(which includes the Monitoring and Regional GST components)",null,null,{"$f":"SUM(D44:D47)+E18+E39","v":0}]

{"sheet":"Billing Cycle 4 - QQ #1","index":33,"n_rows":48,"n_cols":10,"rows_kept":48,"cut":false,"hidden":true,"merged":[[43,7,43,9]]}
[{"$f":"'Est-6 Month QQ'!A1","v":"Quality-quantity charges for individually managed customers (2024/2025 rates)"}]
[]
["Customer",{"$f":"'Billing Cycle 1 - QQ #1'!B3","v":"< Exactly enter physical property address details as created on the Enquiry Sheet > (enter here (for billing purposes))"}]
["Parameter","Units","Amount","Daily charge","Annual Charge",null,"Mass kg/d","Mass kg/a"]
["Daily volume (note 1)","kL/d",{"$f":"I48","v":{"$error":"#VALUE!"}},{"$f":"C5*'FY 24-25 Charges'!D23","v":{"$error":"#VALUE!"}},{"$f":"D5*365","v":{"$error":"#VALUE!"}}]
["BOD","mg/L",null,{"$f":"IF(C6>5000,(C6-5000)*'FY 24-25 Charges'!D25 + 5000*'FY 24-25 Charges'!D24, C6*'FY 24-25 Charges'!D24)*$C$5/1000","v":{"$error":"#VALUE!"}},{"$f":"D6*365","v":{"$error":"#VALUE!"}},null,{"$f":"C6*$C$5/1000","v":{"$error":"#VALUE!"}},{"$f":"G6*365","v":{"$error":"#VALUE!"}},{"$f":"IF(G6=0,\"\",IF(G6<=200,\"Mass alarm limit OK\",\"Check mass alarm limit!\"))","v":{"$error":"#VALUE!"}}]
["SS","mg/L",null,{"$f":"IF(C7>2000,(C7-2000)*'FY 24-25 Charges'!D29 + 2000*'FY 24-25 Charges'!D28, C7*'FY 24-25 Charges'!D28)*$C$5/1000","v":{"$error":"#VALUE!"}},{"$error":"#VALUE!"},null,{"$error":"#VALUE!"},{"$f":"G7*365","v":{"$error":"#VALUE!"}},{"$f":"IF(G7=0,\"\",IF(G7<=200,\"Mass alarm limit OK\",\"Check mass alarm limit!\"))","v":{"$error":"#VALUE!"}}]
["Oil & Grease","mg/L",null,{"$f":"IF(C8>600,(C8-600)*'FY 24-25 Charges'!D32 + 300*'FY 24-25 Charges'!D31 + 300*'FY 24-25 Charges'!D30, IF(C8>300,(C8-300)*'FY 24-25 Charges'!D31 + 300*'FY 24-25 Charges'!D30, C8*'FY 24-25 Charges'!D30))*$C$5/1000","v":{"$error":"#VALUE!"}},{"$error":"#VALUE!"},null,{"$error":"#VALUE!"},{"$error":"#VALUE!"}]
["Acidity to pH 6","mg/L CaCO3",null,{"$f":"IF(C9>300,(C9-300)*'FY 24-25 Charges'!D35 + 200*'FY 24-25 Charges'!D34 + 100*'FY 24-25 Charges'!D33, IF(C9>100,(C9-100)*'FY 24-25 Charges'!D34 + 100*'FY 24-25 Charges'!D33, C9*'FY 24-25 Charges'!D33))*$C$5/1000","v":{"$error":"#VALUE!"}},{"$error":"#VALUE!"},null,{"$error":"#VALUE!"},{"$error":"#VALUE!"}]
["Alkalinity to pH 10","mg/L CaCO3",null,{"$f":"IF(C10>200,(C10-200)*'FY 24-25 Charges'!D38 + 100*'FY 24-25 Charges'!D37 + 100*'FY 24-25 Charges'!D36, IF(C10>100,(C10-100)*'FY 24-25 Charges'!D37 + 100*'FY 24-25 Charges'!D36, C10*'FY 24-25 Charges'!D36))*$C$5/1000","v":{"$error":"#VALUE!"}},{"$error":"#VALUE!"},null,{"$error":"#VALUE!"},{"$error":"#VALUE!"}]
["TKN","mg/L",null,{"$f":"C11*'FY 24-25 Charges'!D39*$C$5/1000","v":{"$error":"#VALUE!"}},{"$error":"#VALUE!"},null,{"$error":"#VALUE!"},{"$error":"#VALUE!"},{"$f":"IF(G11=0,\"\",IF(G11<=30,\"Mass alarm limit OK\",\"Check mass alarm limit!\"))","v":{"$error":"#VALUE!"}}]
["Phosphorus","mg/L",null,{"$f":"C12*'FY 24-25 Charges'!D40*$C$5/1000","v":{"$error":"#VALUE!"}},{"$error":"#VALUE!"},null,{"$error":"#VALUE!"},{"$error":"#VALUE!"},{"$f":"IF(G12=0,\"\",IF(G12<=10,\"Mass alarm limit OK\",\"Check mass alarm limit!\"))","v":{"$error":"#VALUE!"}}]
["Sulphate as SO4","mg/L",null,{"$f":"IF(C13>50,(C13-50)*'FY 24-25 Charges'!D42, 0)*$C$5/1000","v":{"$error":"#VALUE!"}},{"$error":"#VALUE!"},null,{"$error":"#VALUE!"},{"$error":"#VALUE!"}]
["Conductivity (note 2)","mS/m",null,{"$f":"IF(C14>1000,(C14-1000)*'FY 24-25 Charges'!D46 + 500*'FY 24-25 Charges'!D45 + 333*'FY 24-25 Charges'!D44, IF(C14>500,(C14-500)*'FY 24-25 Charges'!D45 + 333*'FY 24-25 Charges'!D44, IF(C14>167, (C14-167)*'FY 24-25 Charges'!D44, 0)))*$C$5*6/1000","v":{"$error":"#VALUE!"}},{"$error":"#VALUE!"},null,{"$f":"(6*C14)*$C$5/1000","v":{"$error":"#VALUE!"}},{"$error":"#VALUE!"},{"$f":"IF(G14=0,\"\",IF(G14<=220,\"Mass alarm limit OK\",\"Check mass alarm limit!\"))","v":{"$error":"#VALUE!"}}]
["Chromium","mg/L",null,{"$f":"IF(G15>1, (G15-1)*'FY 24-25 Charges'!D49 + 0.97*'FY 24-25 Charges'!D48 + 0.03*'FY 24-25 Charges'!D47, IF(G15>0.03, (G15-0.03)*'FY 24-25 Charges'!D48 + 0.03*'FY 24-25 Charges'!D47, G15*'FY 24-25 Charges'!D47))","v":{"$error":"#VALUE!"}},{"$error":"#VALUE!"},null,{"$f":"C15*$C$5/1000","v":{"$error":"#VALUE!"}},{"$error":"#VALUE!"},{"$f":"IF(G15=0,\"\",IF((1000*G15)<=30,\"Mass alarm limit OK\",\"Check mass alarm limit!\"))","v":{"$error":"#VALUE!"}}]
["Copper","mg/L",null,{"$f":"IF(G16>0.12, (G16-0.12)*'FY 24-25 Charges'!D52 + 0.09*'FY 24-25 Charges'!D51 + 0.03*'FY 24-25 Charges'!D50, IF(G16>0.03, (G16-0.03)*'FY 24-25 Charges'!D51 + 0.03*'FY 24-25 Charges'!D50, G16*'FY 24-25 Charges'!D50))","v":{"$error":"#VALUE!"}},{"$error":"#VALUE!"},null,{"$f":"C16*$C$5/1000","v":{"$error":"#VALUE!"}},{"$error":"#VALUE!"},{"$f":"IF(G16=0,\"\",IF((1000*G16)<=30,\"Mass alarm limit OK\",\"Check mass alarm limit!\"))","v":{"$error":"#VALUE!"}}]
["Lead","mg/L",null,{"$f":"IF(G17>0.3, (G17-0.3)*'FY 24-25 Charges'!D55 + 0.27*'FY 24-25 Charges'!D54 + 0.03*'FY 24-25 Charges'!D53, IF(G17>0.03, (G17-0.03)*'FY 24-25 Charges'!D54 + 0.03*'FY 24-25 Charges'!D53, G17*'FY 24-25 Charges'!D53))","v":{"$error":"#VALUE!"}},{"$error":"#VALUE!"},null,{"$error":"#VALUE!"},{"$error":"#VALUE!"},{"$f":"IF(G17=0,\"\",IF((1000*G17)<=30,\"Mass alarm limit OK\",\"Check mass alarm limit!\"))","v":{"$error":"#VALUE!"}}]
["Nickel","mg/L",null,{"$f":"IF(G18>0.15, (G18-0.15)*'FY 24-25 Charges'!D58 + 0.144*'FY 24-25 Charges'!D57 + 0.006*'FY 24-25 Charges'!D56, IF(G18>0.006, (G18-0.006)*'FY 24-25 Charges'!D57 + 0.006*'FY 24-25 Charges'!D56, G18*'FY 24-25 Charges'!D56))","v":{"$error":"#VALUE!"}},{"$error":"#VALUE!"},null,{"$error":"#VALUE!"},{"$error":"#VALUE!"},{"$f":"IF(G18=0,\"\",IF((1000*G18)<=6,\"Mass alarm limit OK\",\"Check mass alarm limit!\"))","v":{"$error":"#VALUE!"}}]
["Zinc","mg/L",null,{"$f":"IF(G19>0.5, (G19-0.5)*'FY 24-25 Charges'!D61 + 0.45*'FY 24-25 Charges'!D60 + 0.05*'FY 24-25 Charges'!D59, IF(G19>0.05, (G19-0.05)*'FY 24-25 Charges'!D60 + 0.05*'FY 24-25 Charges'!D59, G19*'FY 24-25 Charges'!D59))","v":{"$error":"#VALUE!"}},{"$error":"#VALUE!"},null,{"$error":"#VALUE!"},{"$error":"#VALUE!"},{"$f":"IF(G19=0,\"\",IF((1000*G19)<=50,\"Mass alarm limit OK\",\"Check mass alarm limit!\"))","v":{"$error":"#VALUE!"}}]
["Arsenic","mg/L",null,{"$f":"IF(G20>0.04, (G20-0.04)*'FY 24-25 Charges'!D64 + 0.039*'FY 24-25 Charges'!D63 + 0.001*'FY 24-25 Charges'!D62, IF(G20>0.001, (G20-0.001)*'FY 24-25 Charges'!D63 + 0.001*'FY 24-25 Charges'!D62, G20*'FY 24-25 Charges'!D62))","v":{"$error":"#VALUE!"}},{"$error":"#VALUE!"},null,{"$error":"#VALUE!"},{"$error":"#VALUE!"},{"$f":"IF(G20=0,\"\",IF((1000*G20)<=1,\"Mass alarm limit OK\",\"Check mass alarm limit!\"))","v":{"$error":"#VALUE!"}}]
["Cadmium","mg/L",null,{"$f":"IF(G21>0.015, (G21-0.015)*'FY 24-25 Charges'!D67 + 0.014*'FY 24-25 Charges'!D66 + 0.001*'FY 24-25 Charges'!D65, IF(G21>0.001, (G21-0.001)*'FY 24-25 Charges'!D66 + 0.001*'FY 24-25 Charges'!D65, G21*'FY 24-25 Charges'!D65))","v":{"$error":"#VALUE!"}},{"$error":"#VALUE!"},null,{"$error":"#VALUE!"},{"$error":"#VALUE!"},{"$f":"IF(G21=0,\"\",IF((1000*G21)<=1,\"Mass alarm limit OK\",\"Check mass alarm limit!\"))","v":{"$error":"#VALUE!"}}]
["Molybdenum","mg/L",null,{"$f":"IF(G22>0.02, (G22-0.02)*'FY 24-25 Charges'!D70 + 0.019*'FY 24-25 Charges'!D69 + 0.001*'FY 24-25 Charges'!D68, IF(G22>0.001, (G22-0.001)*'FY 24-25 Charges'!D69 + 0.001*'FY 24-25 Charges'!D68, G22*'FY 24-25 Charges'!D68))","v":{"$error":"#VALUE!"}},{"$error":"#VALUE!"},null,{"$error":"#VALUE!"},{"$error":"#VALUE!"},{"$f":"IF(G22=0,\"\",IF((1000*G22)<=1,\"Mass alarm limit OK\",\"Check mass alarm limit!\"))","v":{"$error":"#VALUE!"}}]
["Selenium","mg/L",null,{"$f":"IF(G23>0.02, (G23-0.02)*'FY 24-25 Charges'!D73 + 0.019*'FY 24-25 Charges'!D72 + 0.001*'FY 24-25 Charges'!D71, IF(G23>0.001, (G23-0.001)*'FY 24-25 Charges'!D72 + 0.001*'FY 24-25 Charges'!D71, G23*'FY 24-25 Charges'!D71))","v":{"$error":"#VALUE!"}},{"$error":"#VALUE!"},null,{"$error":"#VALUE!"},{"$error":"#VALUE!"},{"$f":"IF(G23=0,\"\",IF((1000*G23)<=1,\"Mass alarm limit OK\",\"Check mass alarm limit!\"))","v":{"$error":"#VALUE!"}}]
["Silver","mg/L",null,{"$f":"IF(G24>0.01, (G24-0.01)*'FY 24-25 Charges'!D76 + 0.008*'FY 24-25 Charges'!D75 + 0.002*'FY 24-25 Charges'!D74, IF(G24>0.002, (G24-0.002)*'FY 24-25 Charges'!D75 + 0.002*'FY 24-25 Charges'!D74, G24*'FY 24-25 Charges'!D74))","v":{"$error":"#VALUE!"}},{"$error":"#VALUE!"},null,{"$error":"#VALUE!"},{"$error":"#VALUE!"},{"$f":"IF(G24=0,\"\",IF((1000*G24)<=2,\"Mass alarm limit OK\",\"Check mass alarm limit!\"))","v":{"$error":"#VALUE!"}}]
["Mercury","mg/L",null,{"$f":"IF(G25>0.001, (G25-0.001)*'FY 24-25 Charges'!D79 + 0.0009*'FY 24-25 Charges'!D78 + 0.0001*'FY 24-25 Charges'!D77, IF(G25>0.0001, (G25-0.0001)*'FY 24-25 Charges'!D78 + 0.0001*'FY 24-25 Charges'!D77, G25*'FY 24-25 Charges'!D77))","v":{"$error":"#VALUE!"}},{"$error":"#VALUE!"},null,{"$error":"#VALUE!"},{"$error":"#VALUE!"},{"$f":"IF(G25=0,\"\",IF((1000*G25)<=0.1,\"Mass alarm limit OK\",\"Check mass alarm limit!\"))","v":{"$error":"#VALUE!"}}]
["pH"]
[null,null,null,null,"TDS mass loads",null,{"$f":"C14*C5*6/1000","v":{"$error":"#VALUE!"}},{"$f":"G27*365","v":{"$error":"#VALUE!"}},{"$f":"IF(G27=0,\"\",IF(G27<=220,\"Mass alarm limit OK\",\"Check mass alarm limit!\"))","v":{"$error":"#VALUE!"}}]
[]
["Total  Charge",null,null,{"$f":"SUM(D5:D25)","v":{"$error":"#VALUE!"}},{"$error":"#VALUE!"}]
[null,null,null,"(daily)","(annually)"]
["Charge per kL",{"$f":"D29/C5","v":{"$error":"#VALUE!"}}]
[]
[]
["Note 1","Volume MUST be daily volume or metals charges will not "]
[null,"calculate correctly"]
["Note 2","Use conductivity to determine TDS charges. If estimating "]
[null,"TDS charges from actual TDS data, convert TDS (mg/L) to"]
[null,"conductivity (mS/m) by dividing by 6 and entering into cell C14."]
["Note 3","All concentrations should be entered in mg/L unless otherwise indicated."]
["Note 4","For OOD Quotes: Total volume may be estimated by client in application or calculated "]
[null,"using table (Discharge Volume 24hrs/day) "]
[null,"For Final OOD Billing: Total volume is calculated from meter readings"]
[]
["What information was used to estimate volume and quality of effluent?",null,null,null,null,null,null,"Average Daily Volume Discharged During Billing Cycle 4"]
["Note 5: << enter AQUA reference of water quality data used for Q/Q calculation >>"]
[null,null,null,null,null,null,null,"start date","MUST ENTER!"]
[null,null,null,null,null,null,null,"end date","MUST ENTER!"]
[null,null,null,null,null,null,null,null,{"$f":"-'Billing Cycle 4 - Charges'!C31/(I46-I47)","v":{"$error":"#VALUE!"}},"kL/day"]

{"sheet":"RRR - 4","index":34,"n_rows":63,"n_cols":34,"rows_kept":63,"cut":false,"hidden":true,"merged":[[2,24,2,29],[21,10,21,15],[21,17,21,22],[4,10,5,28],[57,7,57,15],[30,17,33,28],[35,7,35,15],[23,2,24,29],[26,7,26,9],[26,13,26,16],[26,17,26,28],[27,17,27,20],[51,2,52,8],[51,9,52,18],[28,17,28,20],[56,7,56,15],[56,19,56,25],[29,33,29,57],[30,33,30,57],[31,33,31,57],[49,7,49,15],[40,7,40,15],[45,7,45,15],[45,19,45,25],[46,7,46,15],[48,7,48,15],[48,19,48,25],[36,7,36,15],[39,7,39,15],[39,19,39,25],[29,17,29,23],[35,19,35,25],[35,31,35,62],[36,31,36,62],[45,31,45,62],[46,31,46,62],[39,31,39,64],[40,31,40,64],[5,32,6,60],[8,32,9,60],[11,32,12,60],[12,4,12,27],[14,6,14,9],[14,11,14,20],[14,32,15,60]]}
[]
[]
[null,null,"Billing Cycle - 4",null,null,null,null,null,null,null,null,null,null,null,null,null,null,null,null,null,null,null,null,"Date:","< enter date >"]
[]
[null,null,"Account Title (in Grange):",null,null,null,null,null,null,null,{"$f":"'RRR - 1'!K5","v":"ONE OFF DISCHARGE: < Exactly enter physical property address details as created on the Enquiry Sheet >"}]
[null,null,"(To appear on Page 1 of Grange bill)"]
[]
[null,null,"Customer (in Grange):",null,null,null,null,null,null,null,{"$f":"IF(E13=\"Billing contact details on the last signed CofA is different to the last received Application.\",\"enter new BILLING BUSINESS NAME here\",Application!$G$18)","v":"enter here (for billing purposes)"}]
[null,null,"(To appear on Page 2 of Grange bill)",null,null,null,null,null,null,null,{"$f":"IF(E13=\"Billing contact details on the last signed CofA is different to the last received Application.\",\"enter new BILLING ADDRESS DETAILS here\",Application!$G$22)","v":"enter here (must be postal address, not an e-mail account)"}]
[]
[null,null,null,null,null,null,null,null,"Attention:",null,{"$f":"IF(E13=\"Billing contact details on the last signed CofA is different to the last received Application.\",\"enter new BILLING CONTACT NAME here\",Application!$G$23)","v":"enter here (must be a natural person's name)"}]
[]
[null,null,null,null,"CHECK FOR CORRECT BILLING DETAILS BEFORE PROCEEDING FURTHER.  SELECT OPTION HERE."]
[]
[null,null,"Invoice Value:",null,null,null,{"$f":"IF(Application!Y29=\"yes\",\"\",'Billing Cycle 1 - Charges'!D10+'Billing Cycle 1 - Charges'!D18+'Billing Cycle 1 - Charges'!D27+'Billing Cycle 1 - Charges'!D35+'Billing Cycle 1 - Charges'!D39+'Billing Cycle 1 - Charges'!E18+'Billing Cycle 1 - Charges'!E39)","v":0},null,null,null,null,{"$f":"IF(Application!Y29=\"yes\",\"\",\"(This is inclusive of $\"&TEXT(ROUND(('Billing Cycle 1 - Charges'!E18+'Billing Cycle 1 - Charges'!E39),2),\"#,##0.00\")&+\" GST)\")","v":"(This is inclusive of $0.00 GST)"},null,null,null,null,null,null,null,null,null,null,null,null,null,null,null,null,null,"Profit Centre: 125"]
[]
[null,null,"(Please exclude GST component.  10% GST will be automatically calculated.)"]
[null,null,"Revenue Rating Schedules"]
[]
[null,null,"Description:",null,null,null,null,null,null,null,"One-Off-Discharge"]
[]
[null,null,null,null,null,null,null,null,null,"Charge Period From:","< enter start date >",null,null,null,null,null,"To:","< enter end date >"]
[]
[]
[]
[]
[null,null,null,null,"Quality:",null,null,{"$f":"IF(Application!Y29=\"yes\",\"N/A\",+\"$\"&ROUND(('Billing Cycle 4 - QQ #1'!B31),4)&+\"/kL\")","v":{"$error":"#VALUE!"}},null,null,null,null,"Quantity:",{"$f":"IF(Application!Y29=\"yes\",\"N/A\",TEXT(ROUND(('Billing Cycle 4 - Charges'!C31),0),\"#,###\")&+\" kL\")","v":" kL"},null,null,null,{"$f":"IF(Application!P29=\"yes\",\"C&IS not to recover Q/Q component\",'Billing Cycle 4 - Charges'!D31)","v":""}]
[null,null,null,null,"Laboratory Analysis Costs:",null,null,null,null,null,null,null,null,null,null,null,null,{"$f":"ROUND('Billing Cycle 4 - Charges'!D27,2)","v":0}]
[null,null,null,null,"Labour Costs",null,null,null,null,"- Administrative:",null,null,null,null,null,null,null,{"$f":"ROUND('Billing Cycle 4 - Charges'!D10,2)","v":0}]
[null,null,null,null,null,null,null,null,null,"- Monitoring (GST):",null,null,null,null,null,null,null,{"$f":"\"$\"&TEXT(ROUND('Billing Cycle 4 - Charges'!D18,2),\"0#,###.00\"&\"     ($\"&TEXT(ROUND('Billing Cycle 4 - Charges'!E18,2),\"0#,###.00\"&\")\"))","v":"$0.00     ($0.00)"},null,null,null,null,null,null,null,null,null,null,null,null,null,null,null,{"$f":"IF(COUNTIF('Billing Cycle 4 - Charges'!A31:A34,\"Quality/Quantity Charges\")>1,\"It appears that more than one Q/Q value has been used for this RRR activity.\",\"\")","v":""}]
[null,null,null,null,null,null,null,null,null,"- Regional Charges (GST):",null,null,null,null,null,null,null,{"$f":"IF(Application!P29=\"yes\",\"The PRA must recover their own regional charges directly from the Water Corp Project Manager using their own uniquely issued NWA.\",\"$\"&TEXT(ROUND('Billing Cycle 4 - Charges'!D39,2),\"0#,###.00\"&\"     ($\"&TEXT(ROUND('Billing Cycle 4 - Charges'!E39,2),\"0#,###.00\"&\")\")))","v":"$0.00     ($0.00)"},null,null,null,null,null,null,null,null,null,null,null,null,null,null,null,{"$f":"IF(COUNTIF('Billing Cycle 4 - Charges'!A31:A34,\"Quality/Quantity Charges\")>1,\"If not done so already make sure these additional Q/Q values have been inserted here.\",\"\")","v":""}]
[null,null,null,null,null,null,null,null,null,null,null,null,null,null,null,null,null,null,null,null,null,null,null,null,null,null,null,null,null,null,null,null,null,{"$f":"IF(COUNTIF('Billing Cycle 4 - Charges'!A31:A34,\"Quality/Quantity Charges\")>1,\"Finally, make sure the individual line entries equal the total Invoice Value at the top left.\",\"\")","v":""}]
[]
[]
[null,null,"Requested By:"]
[null,null,null,null,null,null,null,"enter here",null,null,null,null,null,null,null,null,null,null,"Date:","enter here",null,null,null,null,null,null,null,null,null,null,null,{"$f":"IF(T36<>\"enter here\",\"You must now use the link below to send an e-mail for this RRR to be checked before a Grange sundry account can be raised.\",\"\")","v":""}]
[null,null,null,null,null,null,null,"enter position title here",null,null,null,null,null,null,null,null,null,null,null,null,null,null,null,null,null,null,null,null,null,null,null,{"$f":"IF(T36<>\"enter here\",\"https://nexus.watercorporation.com.au/otcs/cs.exe/link/109973713\",\"\")","v":""}]
[]
[null,null,"Authorised By:"]
[null,null,null,null,null,null,null,"enter here",null,null,null,null,null,null,null,null,null,null,"Date:","enter here",null,null,null,null,null,null,null,null,null,null,null,{"$f":"IF(T40<>\"enter here\",\"Please forward this E-Form document to Officer - C&IS (May Ubalde) for Grange sundry account creation.\",\"\")","v":""}]
[null,null,null,null,null,null,null,"enter position title here",null,null,null,null,null,null,null,null,null,null,null,null,null,null,null,null,null,null,null,null,null,null,null,{"$f":"IF(T40<>\"enter here\",\"May.Ubalde@watercorporation.com.au\",\"\")","v":""}]
[null,null,"(Branch / Section Manager)"]
[]
[null,null,"Finance Use Only:"]
[]
[null,null,"Processed By:",null,null,null,null,"enter here",null,null,null,null,null,null,null,null,null,null,"Date:","enter here",null,null,null,null,null,null,null,null,null,null,null,{"$f":"IF(T46<>\"enter here\",\"Please advise TL - Investigations (Steve Jerkovic) that the Grange sundry account has now been created.\",\"\")","v":""}]
[null,null,null,null,null,null,null,"enter position title here",null,null,null,null,null,null,null,null,null,null,null,null,null,null,null,null,null,null,null,null,null,null,null,{"$f":"IF(T46<>\"enter here\",\"stephen.jerkovic@watercorporation.com.au\",\"\")","v":""}]
[]
[null,null,"Authorised By:",null,null,null,null,"enter here",null,null,null,null,null,null,null,null,null,null,"Date:","enter here"]
[null,null,null,null,null,null,null,"enter position title here"]
[]
[null,null,"Grange Account Number:",null,null,null,null,null,null,{"$f":"'RRR - 1'!J52","v":"enter here"}]
[]
[]
[]
[null,null,"QC / KPI Use Only:"]
[null,null,"Entered By:",null,null,null,null,"enter here",null,null,null,null,null,null,null,null,null,null,"Date:","enter here"]
[null,null,null,null,null,null,null,"enter position title here"]
[]
[]
[null,null,null,null,null,null,null,null,null,null,null,null,null,null,null,null,null,null,null,null,null,null,null,null,null,null,"CHECK FOR CORRECT BILLING DETAILS BEFORE PROCEEDING FURTHER.  SELECT OPTION HERE."]
[null,null,null,null,null,null,null,null,null,null,null,null,null,null,null,null,null,null,null,null,null,null,null,null,null,null,"Billing contact details on the last signed CofA is different to the last received Application."]
[null,null,null,null,null,null,null,null,null,null,null,null,null,null,null,null,null,null,null,null,null,null,null,null,null,null,"Billing contact details on the last signed CofA is the same as the last received Application."]

{"sheet":"Billing Cycle 5 - Charges","index":35,"n_rows":48,"n_cols":9,"rows_kept":48,"cut":false,"hidden":true,"merged":[[42,0,42,2],[47,0,47,2],[36,0,36,3],[37,0,37,2],[41,0,41,3],[28,0,28,3],[3,0,3,3],[3,6,3,8],[7,6,7,8],[11,0,11,3],[20,0,20,3]]}
["Name of One-Off Discharge:",{"$f":"Assessment!C51","v":"< Exactly enter physical property address details as created on the Enquiry Sheet >"}]
["From",{"$f":"'RRR - 5'!K22","v":"< enter start date >"},"To",{"$f":"'RRR - 5'!R22","v":"< enter end date >"}]
[]
["Administrative / Assessment"]
["Description","Total Hrs","Rate","$ Total"]
[null,null,{"$f":"'FY 24-25 Charges'!D$20","v":150.13},{"$f":"C6*B6","v":0}]
[null,null,{"$f":"'FY 24-25 Charges'!D$20","v":150.13},{"$f":"C7*B7","v":0}]
[null,null,{"$f":"'FY 24-25 Charges'!D$20","v":150.13},{"$f":"C8*B8","v":0},null,null,"Laboratory Analysis Calculator"]
[null,null,{"$f":"'FY 24-25 Charges'!D$20","v":150.13},{"$f":"C9*B9","v":0},null,null,"Indicate \"y\" in blue box if analyte was included"]
[null,null,"Total",{"$f":"SUM(D6:D9)","v":0},null,null,"Analyte","Included?","Rate"]
[null,null,null,null,null,null,"pH",null,{"$f":"'Est-6 Month Charges'!I11","v":4.9000000000000004}]
["Monitoring ",null,null,null,null,null,"Acidity to pH 6",null,{"$f":"'Est-6 Month Charges'!I12","v":15.7}]
["Description","Total Hrs","Rate","$ Total",null,null,"Alkalinity - to pH 10",null,{"$f":"'Est-6 Month Charges'!I13","v":16.3}]
[null,null,{"$f":"'FY 24-25 Charges'!D$13","v":150},{"$f":"C14*B14","v":0},null,null,"Conductivity",null,{"$f":"'Est-6 Month Charges'!I14","v":4.8}]
[null,null,{"$f":"'FY 24-25 Charges'!D$13","v":150},{"$f":"C15*B15","v":0},null,null,"Sulphur",null,{"$f":"'Est-6 Month Charges'!I15","v":3}]
[null,null,{"$f":"'FY 24-25 Charges'!D$13","v":150},{"$f":"C16*B16","v":0},null,null,"Copper",null,{"$f":"'Est-6 Month Charges'!I16","v":3}]
[null,null,{"$f":"'FY 24-25 Charges'!D$13","v":150},{"$f":"C17*B17","v":0},"GST Component",null,"Cadmium",null,{"$f":"'Est-6 Month Charges'!I17","v":3}]
[null,null,"Total",{"$f":"SUM(D14:D17)","v":0},{"$f":"SUM(D18)*0.1","v":0},null,"Chromium",null,{"$f":"'Est-6 Month Charges'!I18","v":3}]
[null,null,null,null,null,null,"Nickel",null,{"$f":"'Est-6 Month Charges'!I19","v":3}]
[null,null,null,null,null,null,"Lead",null,{"$f":"'Est-6 Month Charges'!I20","v":3}]
["Laboratory Analysis Costs",null,null,null,null,null,"Zinc",null,{"$f":"'Est-6 Month Charges'!I21","v":3}]
["Description","No. Samples","Unit Rate","$ Total",null,null,"Molybdenum",null,{"$f":"'Est-6 Month Charges'!I22","v":3}]
[null,null,{"$f":"H35","v":0},{"$f":"C23*B23","v":0},null,null,"Selenium",null,{"$f":"'Est-6 Month Charges'!I23","v":3}]
[null,null,null,{"$f":"C24*B24","v":0},null,null,"Silver",null,{"$f":"'Est-6 Month Charges'!I24","v":3}]
[null,null,null,{"$f":"C25*B25","v":0},null,null,"Arsenic",null,{"$f":"'Est-6 Month Charges'!I25","v":3}]
[null,null,null,{"$f":"C26*B26","v":0},null,null,"Mercury",null,{"$f":"'Est-6 Month Charges'!I26","v":14}]
[null,null,"Total",{"$f":"SUM(D23:D26)","v":0},null,null,"Suspended Solids"," ",{"$f":"'Est-6 Month Charges'!I27","v":12.8}]
[null,null,null,null,null,null,"BOD"," ",{"$f":"'Est-6 Month Charges'!I28","v":38.5}]
["Quality/Quantity Charges",null,null,null,null,null,"COD"," ",{"$f":"'Est-6 Month Charges'!I29","v":46}]
["Description","Charge Rate","Total Volume kL","$ Total",null,null,"TKN"," ",{"$f":"'Est-6 Month Charges'!I30","v":26.8}]
["Quality/Quantity Charges",{"$f":"ROUND('Billing Cycle 5 - QQ #1'!B31,4)","v":{"$error":"#VALUE!"}},{"$f":"\nSUMIFS('Meter 1'!G12:G103,'Meter 1'!A12:A103,5,'Meter 1'!B12:B103,\"A\")+\nSUMIFS('Meter 2'!G12:G103,'Meter 2'!A12:A103,5,'Meter 2'!B12:B103,\"a\")+\nSUMIFS('Meter 3'!G12:G103,'Meter 3'!A12:A103,5,'Meter 3'!B12:B103,\"a\")+\nSUMIFS('Meter 4'!G12:G103,'Meter 4'!A12:A103,5,'Meter 4'!B12:B103,\"a\")+\nSUMIFS('Meter 5'!G12:G103,'Meter 5'!A12:A103,5,'Meter 5'!B12:B103,\"a\")+\nSUMIFS('Meter 6'!G12:G103,'Meter 6'!A12:A103,5,'Meter 6'!B12:B103,\"a\")","v":0},{"$f":"IF(C31=0,\"\",B31*C31)","v":""},null,null,"Phosphorus Total"," ",{"$f":"'Est-6 Month Charges'!I31","v":16.600000000000001}]
[{"$f":"IF(C32<>\"\",\"Quality/Quantity Charges\",\"\")","v":""},{"$f":"IF(C32<>\"\",\"enter new Q/Q\",\"\")","v":""},{"$f":"\nIF(\n\nSUMIFS('Meter 1'!G12:G103,'Meter 1'!A12:A103,5,'Meter 1'!B12:B103,\"b\")+\nSUMIFS('Meter 2'!G12:G103,'Meter 2'!A12:A103,5,'Meter 2'!B12:B103,\"b\")+\nSUMIFS('Meter 3'!G12:G103,'Meter 3'!A12:A103,5,'Meter 3'!B12:B103,\"b\")+\nSUMIFS('Meter 4'!G12:G103,'Meter 4'!A12:A103,5,'Meter 4'!B12:B103,\"b\")+\nSUMIFS('Meter 5'!G12:G103,'Meter 5'!A12:A103,5,'Meter 5'!B12:B103,\"b\")+\nSUMIFS('Meter 6'!G12:G103,'Meter 6'!A12:A103,5,'Meter 6'!B12:B103,\"b\")=0,\"\",\n\n(SUMIFS('Meter 1'!G12:G103,'Meter 1'!A12:A103,5,'Meter 1'!B12:B103,\"b\")+\nSUMIFS('Meter 2'!G12:G103,'Meter 2'!A12:A103,5,'Meter 2'!B12:B103,\"b\")+\nSUMIFS('Meter 3'!G12:G103,'Meter 3'!A12:A103,5,'Meter 3'!B12:B103,\"b\")+\nSUMIFS('Meter 4'!G12:G103,'Meter 4'!A12:A103,5,'Meter 4'!B12:B103,\"b\")+\nSUMIFS('Meter 5'!G12:G103,'Meter 5'!A12:A103,5,'Meter 5'!B12:B103,\"b\")+\nSUMIFS('Meter 6'!G12:G103,'Meter 6'!A12:A103,5,'Meter 6'!B12:B103,\"b\")))","v":""},{"$f":"IF(A32=\"\",\"\",B32*C32)","v":""},null,null,"Oil and Grease",null,{"$f":"'Est-6 Month Charges'!I32","v":40.799999999999997}]
["",{"$f":"IF(C33<>\"\",\"enter new Q/Q\",\"\")","v":""},{"$f":"\nIF(\n\nSUMIFS('Meter 1'!G12:G103,'Meter 1'!A12:A103,5,'Meter 1'!B12:B103,\"c\")+\nSUMIFS('Meter 2'!G12:G103,'Meter 2'!A12:A103,5,'Meter 2'!B12:B103,\"c\")+\nSUMIFS('Meter 3'!G12:G103,'Meter 3'!A12:A103,5,'Meter 3'!B12:B103,\"c\")+\nSUMIFS('Meter 4'!G12:G103,'Meter 4'!A12:A103,5,'Meter 4'!B12:B103,\"c\")+\nSUMIFS('Meter 5'!G12:G103,'Meter 5'!A12:A103,5,'Meter 5'!B12:B103,\"c\")+\nSUMIFS('Meter 6'!G12:G103,'Meter 6'!A12:A103,5,'Meter 6'!B12:B103,\"c\")=0,\"\",\n\n(SUMIFS('Meter 1'!G12:G103,'Meter 1'!A12:A103,5,'Meter 1'!B12:B103,\"c\")+\nSUMIFS('Meter 2'!G12:G103,'Meter 2'!A12:A103,5,'Meter 2'!B12:B103,\"c\")+\nSUMIFS('Meter 3'!G12:G103,'Meter 3'!A12:A103,5,'Meter 3'!B12:B103,\"c\")+\nSUMIFS('Meter 4'!G12:G103,'Meter 4'!A12:A103,5,'Meter 4'!B12:B103,\"c\")+\nSUMIFS('Meter 5'!G12:G103,'Meter 5'!A12:A103,5,'Meter 5'!B12:B103,\"c\")+\nSUMIFS('Meter 6'!G12:G103,'Meter 6'!A12:A103,5,'Meter 6'!B12:B103,\"c\")))","v":""},{"$f":"IF(A33=\"\",\"\",B33*C33)","v":""},null,null,"BTEX & TPH",null,{"$f":"'Est-6 Month Charges'!I33","v":75}]
[{"$f":"IF(C34<>\"\",\"Quality/Quantity Charges\",\"\")","v":""},"",{"$f":"\nIF(\n\nSUMIFS('Meter 1'!G12:G103,'Meter 1'!A12:A103,5,'Meter 1'!B12:B103,\"d\")+\nSUMIFS('Meter 2'!G12:G103,'Meter 2'!A12:A103,5,'Meter 2'!B12:B103,\"d\")+\nSUMIFS('Meter 3'!G12:G103,'Meter 3'!A12:A103,5,'Meter 3'!B12:B103,\"d\")+\nSUMIFS('Meter 4'!G12:G103,'Meter 4'!A12:A103,5,'Meter 4'!B12:B103,\"d\")+\nSUMIFS('Meter 5'!G12:G103,'Meter 5'!A12:A103,5,'Meter 5'!B12:B103,\"d\")+\nSUMIFS('Meter 6'!G12:G103,'Meter 6'!A12:A103,5,'Meter 6'!B12:B103,\"d\")=0,\"\",\n\n(SUMIFS('Meter 1'!G12:G103,'Meter 1'!A12:A103,5,'Meter 1'!B12:B103,\"d\")+\nSUMIFS('Meter 2'!G12:G103,'Meter 2'!A12:A103,5,'Meter 2'!B12:B103,\"d\")+\nSUMIFS('Meter 3'!G12:G103,'Meter 3'!A12:A103,5,'Meter 3'!B12:B103,\"d\")+\nSUMIFS('Meter 4'!G12:G103,'Meter 4'!A12:A103,5,'Meter 4'!B12:B103,\"d\")+\nSUMIFS('Meter 5'!G12:G103,'Meter 5'!A12:A103,5,'Meter 5'!B12:B103,\"d\")+\nSUMIFS('Meter 6'!G12:G103,'Meter 6'!A12:A103,5,'Meter 6'!B12:B103,\"d\")))","v":""},"",null,null,"PFAS, PFOS, PFOA *",null,{"$f":"'Est-6 Month Charges'!I34","v":208}]
[null,null,"Total",{"$f":"SUM(D31:D34)","v":0},null,null,"Total Unit Rate",{"$f":"SUMIF(H11:I34,\"y\",I11:I34)","v":0}]
[]
["Regional  Charges",null,null,null,null,null,"* ARL charges $28 preparation fee per sample of PFAS "]
[null,null,null," $ Total","GST Component"]
["                                                            ",null,"Total ",null,{"$f":"SUM(D39)*0.1","v":0}]
[]
[]
["Total Charges"]
["        Description",null,null,"$ Total"]
["Quality/Quantity Charges",null,null,{"$f":"D35","v":0}]
["Laboratory Analysis Costs",null,null,{"$f":"D27","v":0}]
[{"$f":"A37","v":"Regional  Charges"},null,null,{"$f":"D39","v":0}]
["Labour Costs (Subject to GST)",{"$f":"B6+B7+B8+B9+B14+B15+B16+B17","v":0},"Hrs",{"$f":"IF(D10+D18=0,\"\",D10+D18)","v":""}]
["Total Charges for One Off Discharge\n(which includes the Monitoring and Regional GST components)",null,null,{"$f":"SUM(D44:D47)+E18+E39","v":0}]

{"sheet":"Billing Cycle 5 - QQ #1","index":36,"n_rows":48,"n_cols":10,"rows_kept":48,"cut":false,"hidden":true,"merged":[[43,7,43,9]]}
[{"$f":"'Est-6 Month QQ'!A1","v":"Quality-quantity charges for individually managed customers (2024/2025 rates)"}]
[]
["Customer",{"$f":"'Billing Cycle 1 - QQ #1'!B3","v":"< Exactly enter physical property address details as created on the Enquiry Sheet > (enter here (for billing purposes))"}]
["Parameter","Units","Amount","Daily charge","Annual Charge",null,"Mass kg/d","Mass kg/a"]
["Daily volume (note 1)","kL/d",{"$f":"I48","v":{"$error":"#VALUE!"}},{"$f":"C5*'FY 24-25 Charges'!D23","v":{"$error":"#VALUE!"}},{"$f":"D5*365","v":{"$error":"#VALUE!"}}]
["BOD","mg/L",null,{"$f":"IF(C6>5000,(C6-5000)*'FY 24-25 Charges'!D25 + 5000*'FY 24-25 Charges'!D24, C6*'FY 24-25 Charges'!D24)*$C$5/1000","v":{"$error":"#VALUE!"}},{"$f":"D6*365","v":{"$error":"#VALUE!"}},null,{"$f":"C6*$C$5/1000","v":{"$error":"#VALUE!"}},{"$f":"G6*365","v":{"$error":"#VALUE!"}},{"$f":"IF(G6=0,\"\",IF(G6<=200,\"Mass alarm limit OK\",\"Check mass alarm limit!\"))","v":{"$error":"#VALUE!"}}]
["SS","mg/L",null,{"$f":"IF(C7>2000,(C7-2000)*'FY 24-25 Charges'!D29 + 2000*'FY 24-25 Charges'!D28, C7*'FY 24-25 Charges'!D28)*$C$5/1000","v":{"$error":"#VALUE!"}},{"$error":"#VALUE!"},null,{"$error":"#VALUE!"},{"$f":"G7*365","v":{"$error":"#VALUE!"}},{"$f":"IF(G7=0,\"\",IF(G7<=200,\"Mass alarm limit OK\",\"Check mass alarm limit!\"))","v":{"$error":"#VALUE!"}}]
["Oil & Grease","mg/L",null,{"$f":"IF(C8>600,(C8-600)*'FY 24-25 Charges'!D32 + 300*'FY 24-25 Charges'!D31 + 300*'FY 24-25 Charges'!D30, IF(C8>300,(C8-300)*'FY 24-25 Charges'!D31 + 300*'FY 24-25 Charges'!D30, C8*'FY 24-25 Charges'!D30))*$C$5/1000","v":{"$error":"#VALUE!"}},{"$error":"#VALUE!"},null,{"$error":"#VALUE!"},{"$error":"#VALUE!"}]
["Acidity to pH 6","mg/L CaCO3",null,{"$f":"IF(C9>300,(C9-300)*'FY 24-25 Charges'!D35 + 200*'FY 24-25 Charges'!D34 + 100*'FY 24-25 Charges'!D33, IF(C9>100,(C9-100)*'FY 24-25 Charges'!D34 + 100*'FY 24-25 Charges'!D33, C9*'FY 24-25 Charges'!D33))*$C$5/1000","v":{"$error":"#VALUE!"}},{"$error":"#VALUE!"},null,{"$error":"#VALUE!"},{"$error":"#VALUE!"}]
["Alkalinity to pH 10","mg/L CaCO3",null,{"$f":"IF(C10>200,(C10-200)*'FY 24-25 Charges'!D38 + 100*'FY 24-25 Charges'!D37 + 100*'FY 24-25 Charges'!D36, IF(C10>100,(C10-100)*'FY 24-25 Charges'!D37 + 100*'FY 24-25 Charges'!D36, C10*'FY 24-25 Charges'!D36))*$C$5/1000","v":{"$error":"#VALUE!"}},{"$error":"#VALUE!"},null,{"$error":"#VALUE!"},{"$error":"#VALUE!"}]
["TKN","mg/L",null,{"$f":"C11*'FY 24-25 Charges'!D39*$C$5/1000","v":{"$error":"#VALUE!"}},{"$error":"#VALUE!"},null,{"$error":"#VALUE!"},{"$error":"#VALUE!"},{"$f":"IF(G11=0,\"\",IF(G11<=30,\"Mass alarm limit OK\",\"Check mass alarm limit!\"))","v":{"$error":"#VALUE!"}}]
["Phosphorus","mg/L",null,{"$f":"C12*'FY 24-25 Charges'!D40*$C$5/1000","v":{"$error":"#VALUE!"}},{"$error":"#VALUE!"},null,{"$error":"#VALUE!"},{"$error":"#VALUE!"},{"$f":"IF(G12=0,\"\",IF(G12<=10,\"Mass alarm limit OK\",\"Check mass alarm limit!\"))","v":{"$error":"#VALUE!"}}]
["Sulphate as SO4","mg/L",null,{"$f":"IF(C13>50,(C13-50)*'FY 24-25 Charges'!D42, 0)*$C$5/1000","v":{"$error":"#VALUE!"}},{"$error":"#VALUE!"},null,{"$error":"#VALUE!"},{"$error":"#VALUE!"}]
["Conductivity (note 2)","mS/m",null,{"$f":"IF(C14>1000,(C14-1000)*'FY 24-25 Charges'!D46 + 500*'FY 24-25 Charges'!D45 + 333*'FY 24-25 Charges'!D44, IF(C14>500,(C14-500)*'FY 24-25 Charges'!D45 + 333*'FY 24-25 Charges'!D44, IF(C14>167, (C14-167)*'FY 24-25 Charges'!D44, 0)))*$C$5*6/1000","v":{"$error":"#VALUE!"}},{"$error":"#VALUE!"},null,{"$f":"(6*C14)*$C$5/1000","v":{"$error":"#VALUE!"}},{"$error":"#VALUE!"},{"$f":"IF(G14=0,\"\",IF(G14<=220,\"Mass alarm limit OK\",\"Check mass alarm limit!\"))","v":{"$error":"#VALUE!"}}]
["Chromium","mg/L",null,{"$f":"IF(G15>1, (G15-1)*'FY 24-25 Charges'!D49 + 0.97*'FY 24-25 Charges'!D48 + 0.03*'FY 24-25 Charges'!D47, IF(G15>0.03, (G15-0.03)*'FY 24-25 Charges'!D48 + 0.03*'FY 24-25 Charges'!D47, G15*'FY 24-25 Charges'!D47))","v":{"$error":"#VALUE!"}},{"$error":"#VALUE!"},null,{"$f":"C15*$C$5/1000","v":{"$error":"#VALUE!"}},{"$error":"#VALUE!"},{"$f":"IF(G15=0,\"\",IF((1000*G15)<=30,\"Mass alarm limit OK\",\"Check mass alarm limit!\"))","v":{"$error":"#VALUE!"}}]
["Copper","mg/L",null,{"$f":"IF(G16>0.12, (G16-0.12)*'FY 24-25 Charges'!D52 + 0.09*'FY 24-25 Charges'!D51 + 0.03*'FY 24-25 Charges'!D50, IF(G16>0.03, (G16-0.03)*'FY 24-25 Charges'!D51 + 0.03*'FY 24-25 Charges'!D50, G16*'FY 24-25 Charges'!D50))","v":{"$error":"#VALUE!"}},{"$error":"#VALUE!"},null,{"$f":"C16*$C$5/1000","v":{"$error":"#VALUE!"}},{"$error":"#VALUE!"},{"$f":"IF(G16=0,\"\",IF((1000*G16)<=30,\"Mass alarm limit OK\",\"Check mass alarm limit!\"))","v":{"$error":"#VALUE!"}}]
["Lead","mg/L",null,{"$f":"IF(G17>0.3, (G17-0.3)*'FY 24-25 Charges'!D55 + 0.27*'FY 24-25 Charges'!D54 + 0.03*'FY 24-25 Charges'!D53, IF(G17>0.03, (G17-0.03)*'FY 24-25 Charges'!D54 + 0.03*'FY 24-25 Charges'!D53, G17*'FY 24-25 Charges'!D53))","v":{"$error":"#VALUE!"}},{"$error":"#VALUE!"},null,{"$error":"#VALUE!"},{"$error":"#VALUE!"},{"$f":"IF(G17=0,\"\",IF((1000*G17)<=30,\"Mass alarm limit OK\",\"Check mass alarm limit!\"))","v":{"$error":"#VALUE!"}}]
["Nickel","mg/L",null,{"$f":"IF(G18>0.15, (G18-0.15)*'FY 24-25 Charges'!D58 + 0.144*'FY 24-25 Charges'!D57 + 0.006*'FY 24-25 Charges'!D56, IF(G18>0.006, (G18-0.006)*'FY 24-25 Charges'!D57 + 0.006*'FY 24-25 Charges'!D56, G18*'FY 24-25 Charges'!D56))","v":{"$error":"#VALUE!"}},{"$error":"#VALUE!"},null,{"$error":"#VALUE!"},{"$error":"#VALUE!"},{"$f":"IF(G18=0,\"\",IF((1000*G18)<=6,\"Mass alarm limit OK\",\"Check mass alarm limit!\"))","v":{"$error":"#VALUE!"}}]
["Zinc","mg/L",null,{"$f":"IF(G19>0.5, (G19-0.5)*'FY 24-25 Charges'!D61 + 0.45*'FY 24-25 Charges'!D60 + 0.05*'FY 24-25 Charges'!D59, IF(G19>0.05, (G19-0.05)*'FY 24-25 Charges'!D60 + 0.05*'FY 24-25 Charges'!D59, G19*'FY 24-25 Charges'!D59))","v":{"$error":"#VALUE!"}},{"$error":"#VALUE!"},null,{"$error":"#VALUE!"},{"$error":"#VALUE!"},{"$f":"IF(G19=0,\"\",IF((1000*G19)<=50,\"Mass alarm limit OK\",\"Check mass alarm limit!\"))","v":{"$error":"#VALUE!"}}]
["Arsenic","mg/L",null,{"$f":"IF(G20>0.04, (G20-0.04)*'FY 24-25 Charges'!D64 + 0.039*'FY 24-25 Charges'!D63 + 0.001*'FY 24-25 Charges'!D62, IF(G20>0.001, (G20-0.001)*'FY 24-25 Charges'!D63 + 0.001*'FY 24-25 Charges'!D62, G20*'FY 24-25 Charges'!D62))","v":{"$error":"#VALUE!"}},{"$error":"#VALUE!"},null,{"$error":"#VALUE!"},{"$error":"#VALUE!"},{"$f":"IF(G20=0,\"\",IF((1000*G20)<=1,\"Mass alarm limit OK\",\"Check mass alarm limit!\"))","v":{"$error":"#VALUE!"}}]
["Cadmium","mg/L",null,{"$f":"IF(G21>0.015, (G21-0.015)*'FY 24-25 Charges'!D67 + 0.014*'FY 24-25 Charges'!D66 + 0.001*'FY 24-25 Charges'!D65, IF(G21>0.001, (G21-0.001)*'FY 24-25 Charges'!D66 + 0.001*'FY 24-25 Charges'!D65, G21*'FY 24-25 Charges'!D65))","v":{"$error":"#VALUE!"}},{"$error":"#VALUE!"},null,{"$error":"#VALUE!"},{"$error":"#VALUE!"},{"$f":"IF(G21=0,\"\",IF((1000*G21)<=1,\"Mass alarm limit OK\",\"Check mass alarm limit!\"))","v":{"$error":"#VALUE!"}}]
["Molybdenum","mg/L",null,{"$f":"IF(G22>0.02, (G22-0.02)*'FY 24-25 Charges'!D70 + 0.019*'FY 24-25 Charges'!D69 + 0.001*'FY 24-25 Charges'!D68, IF(G22>0.001, (G22-0.001)*'FY 24-25 Charges'!D69 + 0.001*'FY 24-25 Charges'!D68, G22*'FY 24-25 Charges'!D68))","v":{"$error":"#VALUE!"}},{"$error":"#VALUE!"},null,{"$error":"#VALUE!"},{"$error":"#VALUE!"},{"$f":"IF(G22=0,\"\",IF((1000*G22)<=1,\"Mass alarm limit OK\",\"Check mass alarm limit!\"))","v":{"$error":"#VALUE!"}}]
["Selenium","mg/L",null,{"$f":"IF(G23>0.02, (G23-0.02)*'FY 24-25 Charges'!D73 + 0.019*'FY 24-25 Charges'!D72 + 0.001*'FY 24-25 Charges'!D71, IF(G23>0.001, (G23-0.001)*'FY 24-25 Charges'!D72 + 0.001*'FY 24-25 Charges'!D71, G23*'FY 24-25 Charges'!D71))","v":{"$error":"#VALUE!"}},{"$error":"#VALUE!"},null,{"$error":"#VALUE!"},{"$error":"#VALUE!"},{"$f":"IF(G23=0,\"\",IF((1000*G23)<=1,\"Mass alarm limit OK\",\"Check mass alarm limit!\"))","v":{"$error":"#VALUE!"}}]
["Silver","mg/L",null,{"$f":"IF(G24>0.01, (G24-0.01)*'FY 24-25 Charges'!D76 + 0.008*'FY 24-25 Charges'!D75 + 0.002*'FY 24-25 Charges'!D74, IF(G24>0.002, (G24-0.002)*'FY 24-25 Charges'!D75 + 0.002*'FY 24-25 Charges'!D74, G24*'FY 24-25 Charges'!D74))","v":{"$error":"#VALUE!"}},{"$error":"#VALUE!"},null,{"$error":"#VALUE!"},{"$error":"#VALUE!"},{"$f":"IF(G24=0,\"\",IF((1000*G24)<=2,\"Mass alarm limit OK\",\"Check mass alarm limit!\"))","v":{"$error":"#VALUE!"}}]
["Mercury","mg/L",null,{"$f":"IF(G25>0.001, (G25-0.001)*'FY 24-25 Charges'!D79 + 0.0009*'FY 24-25 Charges'!D78 + 0.0001*'FY 24-25 Charges'!D77, IF(G25>0.0001, (G25-0.0001)*'FY 24-25 Charges'!D78 + 0.0001*'FY 24-25 Charges'!D77, G25*'FY 24-25 Charges'!D77))","v":{"$error":"#VALUE!"}},{"$error":"#VALUE!"},null,{"$error":"#VALUE!"},{"$error":"#VALUE!"},{"$f":"IF(G25=0,\"\",IF((1000*G25)<=0.1,\"Mass alarm limit OK\",\"Check mass alarm limit!\"))","v":{"$error":"#VALUE!"}}]
["pH"]
[null,null,null,null,"TDS mass loads",null,{"$f":"C14*C5*6/1000","v":{"$error":"#VALUE!"}},{"$f":"G27*365","v":{"$error":"#VALUE!"}},{"$f":"IF(G27=0,\"\",IF(G27<=220,\"Mass alarm limit OK\",\"Check mass alarm limit!\"))","v":{"$error":"#VALUE!"}}]
[]
["Total  Charge",null,null,{"$f":"SUM(D5:D25)","v":{"$error":"#VALUE!"}},{"$error":"#VALUE!"}]
[null,null,null,"(daily)","(annually)"]
["Charge per kL",{"$f":"D29/C5","v":{"$error":"#VALUE!"}}]
[]
[]
["Note 1","Volume MUST be daily volume or metals charges will not "]
[null,"calculate correctly"]
["Note 2","Use conductivity to determine TDS charges. If estimating "]
[null,"TDS charges from actual TDS data, convert TDS (mg/L) to"]
[null,"conductivity (mS/m) by dividing by 6 and entering into cell C14."]
["Note 3","All concentrations should be entered in mg/L unless otherwise indicated."]
["Note 4","For OOD Quotes: Total volume may be estimated by client in application or calculated "]
[null,"using table (Discharge Volume 24hrs/day) "]
[null,"For Final OOD Billing: Total volume is calculated from meter readings"]
[]
["What information was used to estimate volume and quality of effluent?",null,null,null,null,null,null,"Average Daily Volume Discharged During Billing Cycle 5"]
["Note 5: << enter AQUA reference of water quality data used for Q/Q calculation >>"]
[null,null,null,null,null,null,null,"start date","MUST ENTER!"]
[null,null,null,null,null,null,null,"end date","MUST ENTER!"]
[null,null,null,null,null,null,null,null,{"$f":"-'Billing Cycle 5 - Charges'!C31/(I46-I47)","v":{"$error":"#VALUE!"}},"kL/day"]

{"sheet":"RRR - 5","index":37,"n_rows":63,"n_cols":34,"rows_kept":63,"cut":false,"hidden":true,"merged":[[2,24,2,29],[21,10,21,15],[21,17,21,22],[4,10,5,28],[57,7,57,15],[30,17,33,28],[35,7,35,15],[23,2,24,29],[26,7,26,9],[26,13,26,16],[26,17,26,28],[27,17,27,20],[51,2,52,8],[51,9,52,18],[28,17,28,20],[56,7,56,15],[56,19,56,25],[29,33,29,57],[30,33,30,57],[31,33,31,57],[49,7,49,15],[40,7,40,15],[45,7,45,15],[45,19,45,25],[46,7,46,15],[48,7,48,15],[48,19,48,25],[36,7,36,15],[39,7,39,15],[39,19,39,25],[29,17,29,23],[35,19,35,25],[35,31,35,62],[36,31,36,62],[45,31,45,62],[46,31,46,62],[39,31,39,64],[40,31,40,64],[5,32,6,60],[8,32,9,60],[11,32,12,60],[12,4,12,27],[14,6,14,9],[14,11,14,20],[14,32,15,60]]}
[]
[]
[null,null,"Billing Cycle - 5",null,null,null,null,null,null,null,null,null,null,null,null,null,null,null,null,null,null,null,null,"Date:","< enter date >"]
[]
[null,null,"Account Title (in Grange):",null,null,null,null,null,null,null,{"$f":"'RRR - 1'!K5","v":"ONE OFF DISCHARGE: < Exactly enter physical property address details as created on the Enquiry Sheet >"}]
[null,null,"(To appear on Page 1 of Grange bill)"]
[]
[null,null,"Customer (in Grange):",null,null,null,null,null,null,null,{"$f":"IF(E13=\"Billing contact details on the last signed CofA is different to the last received Application.\",\"enter new BILLING BUSINESS NAME here\",Application!$G$18)","v":"enter here (for billing purposes)"}]
[null,null,"(To appear on Page 2 of Grange bill)",null,null,null,null,null,null,null,{"$f":"IF(E13=\"Billing contact details on the last signed CofA is different to the last received Application.\",\"enter new BILLING ADDRESS DETAILS here\",Application!$G$22)","v":"enter here (must be postal address, not an e-mail account)"}]
[]
[null,null,null,null,null,null,null,null,"Attention:",null,{"$f":"IF(E13=\"Billing contact details on the last signed CofA is different to the last received Application.\",\"enter new BILLING CONTACT NAME here\",Application!$G$23)","v":"enter here (must be a natural person's name)"}]
[]
[null,null,null,null,"CHECK FOR CORRECT BILLING DETAILS BEFORE PROCEEDING FURTHER.  SELECT OPTION HERE."]
[]
[null,null,"Invoice Value:",null,null,null,{"$f":"IF(Application!Y29=\"yes\",\"\",'Billing Cycle 1 - Charges'!D10+'Billing Cycle 1 - Charges'!D18+'Billing Cycle 1 - Charges'!D27+'Billing Cycle 1 - Charges'!D35+'Billing Cycle 1 - Charges'!D39+'Billing Cycle 1 - Charges'!E18+'Billing Cycle 1 - Charges'!E39)","v":0},null,null,null,null,{"$f":"IF(Application!Y29=\"yes\",\"\",\"(This is inclusive of $\"&TEXT(ROUND(('Billing Cycle 1 - Charges'!E18+'Billing Cycle 1 - Charges'!E39),2),\"#,##0.00\")&+\" GST)\")","v":"(This is inclusive of $0.00 GST)"},null,null,null,null,null,null,null,null,null,null,null,null,null,null,null,null,null,"Profit Centre: 125"]
[]
[null,null,"(Please exclude GST component.  10% GST will be automatically calculated.)"]
[null,null,"Revenue Rating Schedules"]
[]
[null,null,"Description:",null,null,null,null,null,null,null,"One-Off-Discharge"]
[]
[null,null,null,null,null,null,null,null,null,"Charge Period From:","< enter start date >",null,null,null,null,null,"To:","< enter end date >"]
[]
[]
[]
[]
[null,null,null,null,"Quality:",null,null,{"$f":"IF(Application!Y29=\"yes\",\"N/A\",+\"$\"&ROUND(('Billing Cycle 5 - QQ #1'!B31),4)&+\"/kL\")","v":{"$error":"#VALUE!"}},null,null,null,null,"Quantity:",{"$f":"IF(Application!Y29=\"yes\",\"N/A\",TEXT(ROUND(('Billing Cycle 5 - Charges'!C31),0),\"#,###\")&+\" kL\")","v":" kL"},null,null,null,{"$f":"IF(Application!Y29=\"yes\",\"C&IS not to recover Q/Q component\",'Billing Cycle 5 - Charges'!D31)","v":""}]
[null,null,null,null,"Laboratory Analysis Costs:",null,null,null,null,null,null,null,null,null,null,null,null,{"$f":"ROUND('Billing Cycle 5 - Charges'!D27,2)","v":0}]
[null,null,null,null,"Labour Costs",null,null,null,null,"- Administrative:",null,null,null,null,null,null,null,{"$f":"ROUND('Billing Cycle 5 - Charges'!D10,2)","v":0}]
[null,null,null,null,null,null,null,null,null,"- Monitoring (GST):",null,null,null,null,null,null,null,{"$f":"\"$\"&TEXT(ROUND('Billing Cycle 5 - Charges'!D18,2),\"0#,###.00\"&\"     ($\"&TEXT(ROUND('Billing Cycle 5 - Charges'!E18,2),\"0#,###.00\"&\")\"))","v":"$0.00     ($0.00)"},null,null,null,null,null,null,null,null,null,null,null,null,null,null,null,{"$f":"IF(COUNTIF('Billing Cycle 5 - Charges'!A31:A34,\"Quality/Quantity Charges\")>1,\"It appears that more than one Q/Q value has been used for this RRR activity.\",\"\")","v":""}]
[null,null,null,null,null,null,null,null,null,"- Regional Charges (GST):",null,null,null,null,null,null,null,{"$f":"IF(Application!P29=\"yes\",\"The PRA must recover their own regional charges directly from the Water Corp Project Manager using their own uniquely issued NWA.\",\"$\"&TEXT(ROUND('Billing Cycle 5 - Charges'!D39,2),\"0#,###.00\"&\"     ($\"&TEXT(ROUND('Billing Cycle 5 - Charges'!E39,2),\"0#,###.00\"&\")\")))","v":"$0.00     ($0.00)"},null,null,null,null,null,null,null,null,null,null,null,null,null,null,null,{"$f":"IF(COUNTIF('Billing Cycle 5 - Charges'!A31:A34,\"Quality/Quantity Charges\")>1,\"If not done so already make sure these additional Q/Q values have been inserted here.\",\"\")","v":""}]
[null,null,null,null,null,null,null,null,null,null,null,null,null,null,null,null,null,null,null,null,null,null,null,null,null,null,null,null,null,null,null,null,null,{"$f":"IF(COUNTIF('Billing Cycle 5 - Charges'!A31:A34,\"Quality/Quantity Charges\")>1,\"Finally, make sure the individual line entries equal the total Invoice Value at the top left.\",\"\")","v":""}]
[]
[]
[null,null,"Requested By:"]
[null,null,null,null,null,null,null,"enter here",null,null,null,null,null,null,null,null,null,null,"Date:","enter here",null,null,null,null,null,null,null,null,null,null,null,{"$f":"IF(T36<>\"enter here\",\"You must now use the link below to send an e-mail for this RRR to be checked before a Grange sundry account can be raised.\",\"\")","v":""}]
[null,null,null,null,null,null,null,"enter position title here",null,null,null,null,null,null,null,null,null,null,null,null,null,null,null,null,null,null,null,null,null,null,null,{"$f":"IF(T36<>\"enter here\",\"https://nexus.watercorporation.com.au/otcs/cs.exe/link/109973713\",\"\")","v":""}]
[]
[null,null,"Authorised By:"]
[null,null,null,null,null,null,null,"enter here",null,null,null,null,null,null,null,null,null,null,"Date:","enter here",null,null,null,null,null,null,null,null,null,null,null,{"$f":"IF(T40<>\"enter here\",\"Please forward this E-Form document to Officer - C&IS (May Ubalde) for Grange sundry account creation.\",\"\")","v":""}]
[null,null,null,null,null,null,null,"enter position title here",null,null,null,null,null,null,null,null,null,null,null,null,null,null,null,null,null,null,null,null,null,null,null,{"$f":"IF(T40<>\"enter here\",\"May.Ubalde@watercorporation.com.au\",\"\")","v":""}]
[null,null,"(Branch / Section Manager)"]
[]
[null,null,"Finance Use Only:"]
[]
[null,null,"Processed By:",null,null,null,null,"enter here",null,null,null,null,null,null,null,null,null,null,"Date:","enter here",null,null,null,null,null,null,null,null,null,null,null,{"$f":"IF(T46<>\"enter here\",\"Please advise TL - Investigations (Steve Jerkovic) that the Grange sundry account has now been created.\",\"\")","v":""}]
[null,null,null,null,null,null,null,"enter position title here",null,null,null,null,null,null,null,null,null,null,null,null,null,null,null,null,null,null,null,null,null,null,null,{"$f":"IF(T46<>\"enter here\",\"stephen.jerkovic@watercorporation.com.au\",\"\")","v":""}]
[]
[null,null,"Authorised By:",null,null,null,null,"enter here",null,null,null,null,null,null,null,null,null,null,"Date:","enter here"]
[null,null,null,null,null,null,null,"enter position title here"]
[]
[null,null,"Grange Account Number:",null,null,null,null,null,null,{"$f":"'RRR - 1'!J52","v":"enter here"}]
[]
[]
[]
[null,null,"QC / KPI Use Only:"]
[null,null,"Entered By:",null,null,null,null,"enter here",null,null,null,null,null,null,null,null,null,null,"Date:","enter here"]
[null,null,null,null,null,null,null,"enter position title here"]
[]
[]
[null,null,null,null,null,null,null,null,null,null,null,null,null,null,null,null,null,null,null,null,null,null,null,null,null,null,"CHECK FOR CORRECT BILLING DETAILS BEFORE PROCEEDING FURTHER.  SELECT OPTION HERE."]
[null,null,null,null,null,null,null,null,null,null,null,null,null,null,null,null,null,null,null,null,null,null,null,null,null,null,"Billing contact details on the last signed CofA is different to the last received Application."]
[null,null,null,null,null,null,null,null,null,null,null,null,null,null,null,null,null,null,null,null,null,null,null,null,null,null,"Billing contact details on the last signed CofA is the same as the last received Application."]

{"sheet":"Billing Cycle 6 - Charges","index":38,"n_rows":48,"n_cols":9,"rows_kept":48,"cut":false,"hidden":true,"merged":[[42,0,42,2],[47,0,47,2],[36,0,36,3],[37,0,37,2],[41,0,41,3],[28,0,28,3],[3,0,3,3],[3,6,3,8],[7,6,7,8],[11,0,11,3],[20,0,20,3]]}
["Name of One-Off Discharge:",{"$f":"Assessment!C51","v":"< Exactly enter physical property address details as created on the Enquiry Sheet >"}]
["From",{"$f":"'RRR - 6'!K22","v":"< enter start date >"},"To",{"$f":"'RRR - 6'!R22","v":"< enter end date >"}]
[]
["Administrative / Assessment"]
["Description","Total Hrs","Rate","$ Total"]
[null,null,{"$f":"'FY 24-25 Charges'!D$20","v":150.13},{"$f":"C6*B6","v":0}]
[null,null,{"$f":"'FY 24-25 Charges'!D$20","v":150.13},{"$f":"C7*B7","v":0}]
[null,null,{"$f":"'FY 24-25 Charges'!D$20","v":150.13},{"$f":"C8*B8","v":0},null,null,"Laboratory Analysis Calculator"]
[null,null,{"$f":"'FY 24-25 Charges'!D$20","v":150.13},{"$f":"C9*B9","v":0},null,null,"Indicate \"y\" in blue box if analyte was included"]
[null,null,"Total",{"$f":"SUM(D6:D9)","v":0},null,null,"Analyte","Included?","Rate"]
[null,null,null,null,null,null,"pH",null,{"$f":"'Est-6 Month Charges'!I11","v":4.9000000000000004}]
["Monitoring ",null,null,null,null,null,"Acidity to pH 6",null,{"$f":"'Est-6 Month Charges'!I12","v":15.7}]
["Description","Total Hrs","Rate","$ Total",null,null,"Alkalinity - to pH 10",null,{"$f":"'Est-6 Month Charges'!I13","v":16.3}]
[null,null,{"$f":"'FY 24-25 Charges'!D$13","v":150},{"$f":"C14*B14","v":0},null,null,"Conductivity",null,{"$f":"'Est-6 Month Charges'!I14","v":4.8}]
[null,null,{"$f":"'FY 24-25 Charges'!D$13","v":150},{"$f":"C15*B15","v":0},null,null,"Sulphur",null,{"$f":"'Est-6 Month Charges'!I15","v":3}]
[null,null,{"$f":"'FY 24-25 Charges'!D$13","v":150},{"$f":"C16*B16","v":0},null,null,"Copper",null,{"$f":"'Est-6 Month Charges'!I16","v":3}]
[null,null,{"$f":"'FY 24-25 Charges'!D$13","v":150},{"$f":"C17*B17","v":0},"GST Component",null,"Cadmium",null,{"$f":"'Est-6 Month Charges'!I17","v":3}]
[null,null,"Total",{"$f":"SUM(D14:D17)","v":0},{"$f":"SUM(D18)*0.1","v":0},null,"Chromium",null,{"$f":"'Est-6 Month Charges'!I18","v":3}]
[null,null,null,null,null,null,"Nickel",null,{"$f":"'Est-6 Month Charges'!I19","v":3}]
[null,null,null,null,null,null,"Lead",null,{"$f":"'Est-6 Month Charges'!I20","v":3}]
["Laboratory Analysis Costs",null,null,null,null,null,"Zinc",null,{"$f":"'Est-6 Month Charges'!I21","v":3}]
["Description","No. Samples","Unit Rate","$ Total",null,null,"Molybdenum",null,{"$f":"'Est-6 Month Charges'!I22","v":3}]
[null,null,{"$f":"H35","v":0},{"$f":"C23*B23","v":0},null,null,"Selenium",null,{"$f":"'Est-6 Month Charges'!I23","v":3}]
[null,null,null,{"$f":"C24*B24","v":0},null,null,"Silver",null,{"$f":"'Est-6 Month Charges'!I24","v":3}]
[null,null,null,{"$f":"C25*B25","v":0},null,null,"Arsenic",null,{"$f":"'Est-6 Month Charges'!I25","v":3}]
[null,null,null,{"$f":"C26*B26","v":0},null,null,"Mercury",null,{"$f":"'Est-6 Month Charges'!I26","v":14}]
[null,null,"Total",{"$f":"SUM(D23:D26)","v":0},null,null,"Suspended Solids"," ",{"$f":"'Est-6 Month Charges'!I27","v":12.8}]
[null,null,null,null,null,null,"BOD"," ",{"$f":"'Est-6 Month Charges'!I28","v":38.5}]
["Quality/Quantity Charges",null,null,null,null,null,"COD"," ",{"$f":"'Est-6 Month Charges'!I29","v":46}]
["Description","Charge Rate","Total Volume kL","$ Total",null,null,"TKN"," ",{"$f":"'Est-6 Month Charges'!I30","v":26.8}]
["Quality/Quantity Charges",{"$f":"ROUND('Billing Cycle 6 - QQ #1'!B31,4)","v":{"$error":"#VALUE!"}},{"$f":"\nSUMIFS('Meter 1'!G12:G103,'Meter 1'!A12:A103,6,'Meter 1'!B12:B103,\"A\")+\nSUMIFS('Meter 2'!G12:G103,'Meter 2'!A12:A103,6,'Meter 2'!B12:B103,\"a\")+\nSUMIFS('Meter 3'!G12:G103,'Meter 3'!A12:A103,6,'Meter 3'!B12:B103,\"a\")+\nSUMIFS('Meter 4'!G12:G103,'Meter 4'!A12:A103,6,'Meter 4'!B12:B103,\"a\")+\nSUMIFS('Meter 5'!G12:G103,'Meter 5'!A12:A103,6,'Meter 5'!B12:B103,\"a\")+\nSUMIFS('Meter 6'!G12:G103,'Meter 6'!A12:A103,6,'Meter 6'!B12:B103,\"a\")","v":0},{"$f":"IF(C31=0,\"\",B31*C31)","v":""},null,null,"Phosphorus Total"," ",{"$f":"'Est-6 Month Charges'!I31","v":16.600000000000001}]
[{"$f":"IF(C32<>\"\",\"Quality/Quantity Charges\",\"\")","v":""},{"$f":"IF(C32<>\"\",\"enter new Q/Q\",\"\")","v":""},{"$f":"\nIF(\n\nSUMIFS('Meter 1'!G12:G103,'Meter 1'!A12:A103,6,'Meter 1'!B12:B103,\"b\")+\nSUMIFS('Meter 2'!G12:G103,'Meter 2'!A12:A103,6,'Meter 2'!B12:B103,\"b\")+\nSUMIFS('Meter 3'!G12:G103,'Meter 3'!A12:A103,6,'Meter 3'!B12:B103,\"b\")+\nSUMIFS('Meter 4'!G12:G103,'Meter 4'!A12:A103,6,'Meter 4'!B12:B103,\"b\")+\nSUMIFS('Meter 5'!G12:G103,'Meter 5'!A12:A103,6,'Meter 5'!B12:B103,\"b\")+\nSUMIFS('Meter 6'!G12:G103,'Meter 6'!A12:A103,6,'Meter 6'!B12:B103,\"b\")=0,\"\",\n\n(SUMIFS('Meter 1'!G12:G103,'Meter 1'!A12:A103,6,'Meter 1'!B12:B103,\"b\")+\nSUMIFS('Meter 2'!G12:G103,'Meter 2'!A12:A103,6,'Meter 2'!B12:B103,\"b\")+\nSUMIFS('Meter 3'!G12:G103,'Meter 3'!A12:A103,6,'Meter 3'!B12:B103,\"b\")+\nSUMIFS('Meter 4'!G12:G103,'Meter 4'!A12:A103,6,'Meter 4'!B12:B103,\"b\")+\nSUMIFS('Meter 5'!G12:G103,'Meter 5'!A12:A103,6,'Meter 5'!B12:B103,\"b\")+\nSUMIFS('Meter 6'!G12:G103,'Meter 6'!A12:A103,6,'Meter 6'!B12:B103,\"b\")))","v":""},{"$f":"IF(A32=\"\",\"\",B32*C32)","v":""},null,null,"Oil and Grease",null,{"$f":"'Est-6 Month Charges'!I32","v":40.799999999999997}]
["",{"$f":"IF(C33<>\"\",\"enter new Q/Q\",\"\")","v":""},{"$f":"\nIF(\n\nSUMIFS('Meter 1'!G12:G103,'Meter 1'!A12:A103,6,'Meter 1'!B12:B103,\"c\")+\nSUMIFS('Meter 2'!G12:G103,'Meter 2'!A12:A103,6,'Meter 2'!B12:B103,\"c\")+\nSUMIFS('Meter 3'!G12:G103,'Meter 3'!A12:A103,6,'Meter 3'!B12:B103,\"c\")+\nSUMIFS('Meter 4'!G12:G103,'Meter 4'!A12:A103,6,'Meter 4'!B12:B103,\"c\")+\nSUMIFS('Meter 5'!G12:G103,'Meter 5'!A12:A103,6,'Meter 5'!B12:B103,\"c\")+\nSUMIFS('Meter 6'!G12:G103,'Meter 6'!A12:A103,6,'Meter 6'!B12:B103,\"c\")=0,\"\",\n\n(SUMIFS('Meter 1'!G12:G103,'Meter 1'!A12:A103,6,'Meter 1'!B12:B103,\"c\")+\nSUMIFS('Meter 2'!G12:G103,'Meter 2'!A12:A103,6,'Meter 2'!B12:B103,\"c\")+\nSUMIFS('Meter 3'!G12:G103,'Meter 3'!A12:A103,6,'Meter 3'!B12:B103,\"c\")+\nSUMIFS('Meter 4'!G12:G103,'Meter 4'!A12:A103,6,'Meter 4'!B12:B103,\"c\")+\nSUMIFS('Meter 5'!G12:G103,'Meter 5'!A12:A103,6,'Meter 5'!B12:B103,\"c\")+\nSUMIFS('Meter 6'!G12:G103,'Meter 6'!A12:A103,6,'Meter 6'!B12:B103,\"c\")))","v":""},{"$f":"IF(A33=\"\",\"\",B33*C33)","v":""},null,null,"BTEX & TPH",null,{"$f":"'Est-6 Month Charges'!I33","v":75}]
[{"$f":"IF(C34<>\"\",\"Quality/Quantity Charges\",\"\")","v":""},"",{"$f":"\nIF(\n\nSUMIFS('Meter 1'!G12:G103,'Meter 1'!A12:A103,6,'Meter 1'!B12:B103,\"d\")+\nSUMIFS('Meter 2'!G12:G103,'Meter 2'!A12:A103,6,'Meter 2'!B12:B103,\"d\")+\nSUMIFS('Meter 3'!G12:G103,'Meter 3'!A12:A103,6,'Meter 3'!B12:B103,\"d\")+\nSUMIFS('Meter 4'!G12:G103,'Meter 4'!A12:A103,6,'Meter 4'!B12:B103,\"d\")+\nSUMIFS('Meter 5'!G12:G103,'Meter 5'!A12:A103,6,'Meter 5'!B12:B103,\"d\")+\nSUMIFS('Meter 6'!G12:G103,'Meter 6'!A12:A103,6,'Meter 6'!B12:B103,\"d\")=0,\"\",\n\n(SUMIFS('Meter 1'!G12:G103,'Meter 1'!A12:A103,6,'Meter 1'!B12:B103,\"d\")+\nSUMIFS('Meter 2'!G12:G103,'Meter 2'!A12:A103,6,'Meter 2'!B12:B103,\"d\")+\nSUMIFS('Meter 3'!G12:G103,'Meter 3'!A12:A103,6,'Meter 3'!B12:B103,\"d\")+\nSUMIFS('Meter 4'!G12:G103,'Meter 4'!A12:A103,6,'Meter 4'!B12:B103,\"d\")+\nSUMIFS('Meter 5'!G12:G103,'Meter 5'!A12:A103,6,'Meter 5'!B12:B103,\"d\")+\nSUMIFS('Meter 6'!G12:G103,'Meter 6'!A12:A103,6,'Meter 6'!B12:B103,\"d\")))","v":""},"",null,null,"PFAS, PFOS, PFOA *",null,{"$f":"'Est-6 Month Charges'!I34","v":208}]
[null,null,"Total",{"$f":"SUM(D31:D34)","v":0},null,null,"Total Unit Rate",{"$f":"SUMIF(H11:I34,\"y\",I11:I34)","v":0}]
[]
["Regional  Charges",null,null,null,null,null,"* ARL charges $28 preparation fee per sample of PFAS "]
[null,null,null," $ Total","GST Component"]
["                                                            ",null,"Total ",null,{"$f":"SUM(D39)*0.1","v":0}]
[]
[]
["Total Charges"]
["        Description",null,null,"$ Total"]
["Quality/Quantity Charges",null,null,{"$f":"D35","v":0}]
["Laboratory Analysis Costs",null,null,{"$f":"D27","v":0}]
[{"$f":"A37","v":"Regional  Charges"},null,null,{"$f":"D39","v":0}]
["Labour Costs (Subject to GST)",{"$f":"B6+B7+B8+B9+B14+B15+B16+B17","v":0},"Hrs",{"$f":"IF(D10+D18=0,\"\",D10+D18)","v":""}]
["Total Charges for One Off Discharge\n(which includes the Monitoring and Regional GST components)",null,null,{"$f":"SUM(D44:D47)+E18","v":0}]

{"sheet":"Billing Cycle 6 - QQ #1","index":39,"n_rows":48,"n_cols":10,"rows_kept":48,"cut":false,"hidden":true,"merged":[[43,7,43,9]]}
[{"$f":"'Est-6 Month QQ'!A1","v":"Quality-quantity charges for individually managed customers (2024/2025 rates)"}]
[]
["Customer",{"$f":"'Billing Cycle 1 - QQ #1'!B3","v":"< Exactly enter physical property address details as created on the Enquiry Sheet > (enter here (for billing purposes))"}]
["Parameter","Units","Amount","Daily charge","Annual Charge",null,"Mass kg/d","Mass kg/a"]
["Daily volume (note 1)","kL/d",{"$f":"I48","v":{"$error":"#VALUE!"}},{"$f":"C5*'FY 24-25 Charges'!D23","v":{"$error":"#VALUE!"}},{"$f":"D5*365","v":{"$error":"#VALUE!"}}]
["BOD","mg/L",null,{"$f":"IF(C6>5000,(C6-5000)*'FY 24-25 Charges'!D25 + 5000*'FY 24-25 Charges'!D24, C6*'FY 24-25 Charges'!D24)*$C$5/1000","v":{"$error":"#VALUE!"}},{"$f":"D6*365","v":{"$error":"#VALUE!"}},null,{"$f":"C6*$C$5/1000","v":{"$error":"#VALUE!"}},{"$f":"G6*365","v":{"$error":"#VALUE!"}},{"$f":"IF(G6=0,\"\",IF(G6<=200,\"Mass alarm limit OK\",\"Check mass alarm limit!\"))","v":{"$error":"#VALUE!"}}]
["SS","mg/L",null,{"$f":"IF(C7>2000,(C7-2000)*'FY 24-25 Charges'!D29 + 2000*'FY 24-25 Charges'!D28, C7*'FY 24-25 Charges'!D28)*$C$5/1000","v":{"$error":"#VALUE!"}},{"$error":"#VALUE!"},null,{"$error":"#VALUE!"},{"$f":"G7*365","v":{"$error":"#VALUE!"}},{"$f":"IF(G7=0,\"\",IF(G7<=200,\"Mass alarm limit OK\",\"Check mass alarm limit!\"))","v":{"$error":"#VALUE!"}}]
["Oil & Grease","mg/L",null,{"$f":"IF(C8>600,(C8-600)*'FY 24-25 Charges'!D32 + 300*'FY 24-25 Charges'!D31 + 300*'FY 24-25 Charges'!D30, IF(C8>300,(C8-300)*'FY 24-25 Charges'!D31 + 300*'FY 24-25 Charges'!D30, C8*'FY 24-25 Charges'!D30))*$C$5/1000","v":{"$error":"#VALUE!"}},{"$error":"#VALUE!"},null,{"$error":"#VALUE!"},{"$error":"#VALUE!"}]
["Acidity to pH 6","mg/L CaCO3",null,{"$f":"IF(C9>300,(C9-300)*'FY 24-25 Charges'!D35 + 200*'FY 24-25 Charges'!D34 + 100*'FY 24-25 Charges'!D33, IF(C9>100,(C9-100)*'FY 24-25 Charges'!D34 + 100*'FY 24-25 Charges'!D33, C9*'FY 24-25 Charges'!D33))*$C$5/1000","v":{"$error":"#VALUE!"}},{"$error":"#VALUE!"},null,{"$error":"#VALUE!"},{"$error":"#VALUE!"}]
["Alkalinity to pH 10","mg/L CaCO3",null,{"$f":"IF(C10>200,(C10-200)*'FY 24-25 Charges'!D38 + 100*'FY 24-25 Charges'!D37 + 100*'FY 24-25 Charges'!D36, IF(C10>100,(C10-100)*'FY 24-25 Charges'!D37 + 100*'FY 24-25 Charges'!D36, C10*'FY 24-25 Charges'!D36))*$C$5/1000","v":{"$error":"#VALUE!"}},{"$error":"#VALUE!"},null,{"$error":"#VALUE!"},{"$error":"#VALUE!"}]
["TKN","mg/L",null,{"$f":"C11*'FY 24-25 Charges'!D39*$C$5/1000","v":{"$error":"#VALUE!"}},{"$error":"#VALUE!"},null,{"$error":"#VALUE!"},{"$error":"#VALUE!"},{"$f":"IF(G11=0,\"\",IF(G11<=30,\"Mass alarm limit OK\",\"Check mass alarm limit!\"))","v":{"$error":"#VALUE!"}}]
["Phosphorus","mg/L",null,{"$f":"C12*'FY 24-25 Charges'!D40*$C$5/1000","v":{"$error":"#VALUE!"}},{"$error":"#VALUE!"},null,{"$error":"#VALUE!"},{"$error":"#VALUE!"},{"$f":"IF(G12=0,\"\",IF(G12<=10,\"Mass alarm limit OK\",\"Check mass alarm limit!\"))","v":{"$error":"#VALUE!"}}]
["Sulphate as SO4","mg/L",null,{"$f":"IF(C13>50,(C13-50)*'FY 24-25 Charges'!D42, 0)*$C$5/1000","v":{"$error":"#VALUE!"}},{"$error":"#VALUE!"},null,{"$error":"#VALUE!"},{"$error":"#VALUE!"}]
["Conductivity (note 2)","mS/m",null,{"$f":"IF(C14>1000,(C14-1000)*'FY 24-25 Charges'!D46 + 500*'FY 24-25 Charges'!D45 + 333*'FY 24-25 Charges'!D44, IF(C14>500,(C14-500)*'FY 24-25 Charges'!D45 + 333*'FY 24-25 Charges'!D44, IF(C14>167, (C14-167)*'FY 24-25 Charges'!D44, 0)))*$C$5*6/1000","v":{"$error":"#VALUE!"}},{"$error":"#VALUE!"},null,{"$f":"(6*C14)*$C$5/1000","v":{"$error":"#VALUE!"}},{"$error":"#VALUE!"},{"$f":"IF(G14=0,\"\",IF(G14<=220,\"Mass alarm limit OK\",\"Check mass alarm limit!\"))","v":{"$error":"#VALUE!"}}]
["Chromium","mg/L",null,{"$f":"IF(G15>1, (G15-1)*'FY 24-25 Charges'!D49 + 0.97*'FY 24-25 Charges'!D48 + 0.03*'FY 24-25 Charges'!D47, IF(G15>0.03, (G15-0.03)*'FY 24-25 Charges'!D48 + 0.03*'FY 24-25 Charges'!D47, G15*'FY 24-25 Charges'!D47))","v":{"$error":"#VALUE!"}},{"$error":"#VALUE!"},null,{"$f":"C15*$C$5/1000","v":{"$error":"#VALUE!"}},{"$error":"#VALUE!"},{"$f":"IF(G15=0,\"\",IF((1000*G15)<=30,\"Mass alarm limit OK\",\"Check mass alarm limit!\"))","v":{"$error":"#VALUE!"}}]
["Copper","mg/L",null,{"$f":"IF(G16>0.12, (G16-0.12)*'FY 24-25 Charges'!D52 + 0.09*'FY 24-25 Charges'!D51 + 0.03*'FY 24-25 Charges'!D50, IF(G16>0.03, (G16-0.03)*'FY 24-25 Charges'!D51 + 0.03*'FY 24-25 Charges'!D50, G16*'FY 24-25 Charges'!D50))","v":{"$error":"#VALUE!"}},{"$error":"#VALUE!"},null,{"$f":"C16*$C$5/1000","v":{"$error":"#VALUE!"}},{"$error":"#VALUE!"},{"$f":"IF(G16=0,\"\",IF((1000*G16)<=30,\"Mass alarm limit OK\",\"Check mass alarm limit!\"))","v":{"$error":"#VALUE!"}}]
["Lead","mg/L",null,{"$f":"IF(G17>0.3, (G17-0.3)*'FY 24-25 Charges'!D55 + 0.27*'FY 24-25 Charges'!D54 + 0.03*'FY 24-25 Charges'!D53, IF(G17>0.03, (G17-0.03)*'FY 24-25 Charges'!D54 + 0.03*'FY 24-25 Charges'!D53, G17*'FY 24-25 Charges'!D53))","v":{"$error":"#VALUE!"}},{"$error":"#VALUE!"},null,{"$error":"#VALUE!"},{"$error":"#VALUE!"},{"$f":"IF(G17=0,\"\",IF((1000*G17)<=30,\"Mass alarm limit OK\",\"Check mass alarm limit!\"))","v":{"$error":"#VALUE!"}}]
["Nickel","mg/L",null,{"$f":"IF(G18>0.15, (G18-0.15)*'FY 24-25 Charges'!D58 + 0.144*'FY 24-25 Charges'!D57 + 0.006*'FY 24-25 Charges'!D56, IF(G18>0.006, (G18-0.006)*'FY 24-25 Charges'!D57 + 0.006*'FY 24-25 Charges'!D56, G18*'FY 24-25 Charges'!D56))","v":{"$error":"#VALUE!"}},{"$error":"#VALUE!"},null,{"$error":"#VALUE!"},{"$error":"#VALUE!"},{"$f":"IF(G18=0,\"\",IF((1000*G18)<=6,\"Mass alarm limit OK\",\"Check mass alarm limit!\"))","v":{"$error":"#VALUE!"}}]
["Zinc","mg/L",null,{"$f":"IF(G19>0.5, (G19-0.5)*'FY 24-25 Charges'!D61 + 0.45*'FY 24-25 Charges'!D60 + 0.05*'FY 24-25 Charges'!D59, IF(G19>0.05, (G19-0.05)*'FY 24-25 Charges'!D60 + 0.05*'FY 24-25 Charges'!D59, G19*'FY 24-25 Charges'!D59))","v":{"$error":"#VALUE!"}},{"$error":"#VALUE!"},null,{"$error":"#VALUE!"},{"$error":"#VALUE!"},{"$f":"IF(G19=0,\"\",IF((1000*G19)<=50,\"Mass alarm limit OK\",\"Check mass alarm limit!\"))","v":{"$error":"#VALUE!"}}]
["Arsenic","mg/L",null,{"$f":"IF(G20>0.04, (G20-0.04)*'FY 24-25 Charges'!D64 + 0.039*'FY 24-25 Charges'!D63 + 0.001*'FY 24-25 Charges'!D62, IF(G20>0.001, (G20-0.001)*'FY 24-25 Charges'!D63 + 0.001*'FY 24-25 Charges'!D62, G20*'FY 24-25 Charges'!D62))","v":{"$error":"#VALUE!"}},{"$error":"#VALUE!"},null,{"$error":"#VALUE!"},{"$error":"#VALUE!"},{"$f":"IF(G20=0,\"\",IF((1000*G20)<=1,\"Mass alarm limit OK\",\"Check mass alarm limit!\"))","v":{"$error":"#VALUE!"}}]
["Cadmium","mg/L",null,{"$f":"IF(G21>0.015, (G21-0.015)*'FY 24-25 Charges'!D67 + 0.014*'FY 24-25 Charges'!D66 + 0.001*'FY 24-25 Charges'!D65, IF(G21>0.001, (G21-0.001)*'FY 24-25 Charges'!D66 + 0.001*'FY 24-25 Charges'!D65, G21*'FY 24-25 Charges'!D65))","v":{"$error":"#VALUE!"}},{"$error":"#VALUE!"},null,{"$error":"#VALUE!"},{"$error":"#VALUE!"},{"$f":"IF(G21=0,\"\",IF((1000*G21)<=1,\"Mass alarm limit OK\",\"Check mass alarm limit!\"))","v":{"$error":"#VALUE!"}}]
["Molybdenum","mg/L",null,{"$f":"IF(G22>0.02, (G22-0.02)*'FY 24-25 Charges'!D70 + 0.019*'FY 24-25 Charges'!D69 + 0.001*'FY 24-25 Charges'!D68, IF(G22>0.001, (G22-0.001)*'FY 24-25 Charges'!D69 + 0.001*'FY 24-25 Charges'!D68, G22*'FY 24-25 Charges'!D68))","v":{"$error":"#VALUE!"}},{"$error":"#VALUE!"},null,{"$error":"#VALUE!"},{"$error":"#VALUE!"},{"$f":"IF(G22=0,\"\",IF((1000*G22)<=1,\"Mass alarm limit OK\",\"Check mass alarm limit!\"))","v":{"$error":"#VALUE!"}}]
["Selenium","mg/L",null,{"$f":"IF(G23>0.02, (G23-0.02)*'FY 24-25 Charges'!D73 + 0.019*'FY 24-25 Charges'!D72 + 0.001*'FY 24-25 Charges'!D71, IF(G23>0.001, (G23-0.001)*'FY 24-25 Charges'!D72 + 0.001*'FY 24-25 Charges'!D71, G23*'FY 24-25 Charges'!D71))","v":{"$error":"#VALUE!"}},{"$error":"#VALUE!"},null,{"$error":"#VALUE!"},{"$error":"#VALUE!"},{"$f":"IF(G23=0,\"\",IF((1000*G23)<=1,\"Mass alarm limit OK\",\"Check mass alarm limit!\"))","v":{"$error":"#VALUE!"}}]
["Silver","mg/L",null,{"$f":"IF(G24>0.01, (G24-0.01)*'FY 24-25 Charges'!D76 + 0.008*'FY 24-25 Charges'!D75 + 0.002*'FY 24-25 Charges'!D74, IF(G24>0.002, (G24-0.002)*'FY 24-25 Charges'!D75 + 0.002*'FY 24-25 Charges'!D74, G24*'FY 24-25 Charges'!D74))","v":{"$error":"#VALUE!"}},{"$error":"#VALUE!"},null,{"$error":"#VALUE!"},{"$error":"#VALUE!"},{"$f":"IF(G24=0,\"\",IF((1000*G24)<=2,\"Mass alarm limit OK\",\"Check mass alarm limit!\"))","v":{"$error":"#VALUE!"}}]
["Mercury","mg/L",null,{"$f":"IF(G25>0.001, (G25-0.001)*'FY 24-25 Charges'!D79 + 0.0009*'FY 24-25 Charges'!D78 + 0.0001*'FY 24-25 Charges'!D77, IF(G25>0.0001, (G25-0.0001)*'FY 24-25 Charges'!D78 + 0.0001*'FY 24-25 Charges'!D77, G25*'FY 24-25 Charges'!D77))","v":{"$error":"#VALUE!"}},{"$error":"#VALUE!"},null,{"$error":"#VALUE!"},{"$error":"#VALUE!"},{"$f":"IF(G25=0,\"\",IF((1000*G25)<=0.1,\"Mass alarm limit OK\",\"Check mass alarm limit!\"))","v":{"$error":"#VALUE!"}}]
["pH"]
[null,null,null,null,"TDS mass loads",null,{"$f":"C14*C5*6/1000","v":{"$error":"#VALUE!"}},{"$f":"G27*365","v":{"$error":"#VALUE!"}},{"$f":"IF(G27=0,\"\",IF(G27<=220,\"Mass alarm limit OK\",\"Check mass alarm limit!\"))","v":{"$error":"#VALUE!"}}]
[]
["Total  Charge",null,null,{"$f":"SUM(D5:D25)","v":{"$error":"#VALUE!"}},{"$error":"#VALUE!"}]
[null,null,null,"(daily)","(annually)"]
["Charge per kL",{"$f":"D29/C5","v":{"$error":"#VALUE!"}}]
[]
[]
["Note 1","Volume MUST be daily volume or metals charges will not "]
[null,"calculate correctly"]
["Note 2","Use conductivity to determine TDS charges. If estimating "]
[null,"TDS charges from actual TDS data, convert TDS (mg/L) to"]
[null,"conductivity (mS/m) by dividing by 6 and entering into cell C14."]
["Note 3","All concentrations should be entered in mg/L unless otherwise indicated."]
["Note 4","For OOD Quotes: Total volume may be estimated by client in application or calculated "]
[null,"using table (Discharge Volume 24hrs/day) "]
[null,"For Final OOD Billing: Total volume is calculated from meter readings"]
[]
["What information was used to estimate volume and quality of effluent?",null,null,null,null,null,null,"Average Daily Volume Discharged During Billing Cycle 6"]
["Note 5: << enter AQUA reference of water quality data used for Q/Q calculation >>"]
[null,null,null,null,null,null,null,"start date","MUST ENTER!"]
[null,null,null,null,null,null,null,"end date","MUST ENTER!"]
[null,null,null,null,null,null,null,null,{"$f":"-'Billing Cycle 6 - Charges'!C31/(I46-I47)","v":{"$error":"#VALUE!"}},"kL/day"]

{"sheet":"RRR - 6","index":40,"n_rows":63,"n_cols":34,"rows_kept":63,"cut":false,"hidden":true,"merged":[[2,24,2,29],[21,10,21,15],[21,17,21,22],[4,10,5,28],[57,7,57,15],[30,17,33,28],[35,7,35,15],[23,2,24,29],[26,7,26,9],[26,13,26,16],[26,17,26,28],[27,17,27,20],[51,2,52,8],[51,9,52,18],[28,17,28,20],[56,7,56,15],[56,19,56,25],[29,33,29,57],[30,33,30,57],[31,33,31,57],[49,7,49,15],[40,7,40,15],[45,7,45,15],[45,19,45,25],[46,7,46,15],[48,7,48,15],[48,19,48,25],[36,7,36,15],[39,7,39,15],[39,19,39,25],[29,17,29,23],[35,19,35,25],[35,31,35,62],[36,31,36,62],[45,31,45,62],[46,31,46,62],[39,31,39,64],[40,31,40,64],[5,32,6,60],[8,32,9,60],[11,32,12,60],[12,4,12,27],[14,6,14,9],[14,11,14,20],[14,32,15,60]]}
[]
[]
[null,null,"Billing Cycle - 6",null,null,null,null,null,null,null,null,null,null,null,null,null,null,null,null,null,null,null,null,"Date:","< enter date >"]
[]
[null,null,"Account Title (in Grange):",null,null,null,null,null,null,null,{"$f":"'RRR - 1'!K5","v":"ONE OFF DISCHARGE: < Exactly enter physical property address details as created on the Enquiry Sheet >"}]
[null,null,"(To appear on Page 1 of Grange bill)"]
[]
[null,null,"Customer (in Grange):",null,null,null,null,null,null,null,{"$f":"IF(E13=\"Billing contact details on the last signed CofA is different to the last received Application.\",\"enter new BILLING BUSINESS NAME here\",Application!$G$18)","v":"enter here (for billing purposes)"}]
[null,null,"(To appear on Page 2 of Grange bill)",null,null,null,null,null,null,null,{"$f":"IF(E13=\"Billing contact details on the last signed CofA is different to the last received Application.\",\"enter new BILLING ADDRESS DETAILS here\",Application!$G$22)","v":"enter here (must be postal address, not an e-mail account)"}]
[]
[null,null,null,null,null,null,null,null,"Attention:",null,{"$f":"IF(E13=\"Billing contact details on the last signed CofA is different to the last received Application.\",\"enter new BILLING CONTACT NAME here\",Application!$G$23)","v":"enter here (must be a natural person's name)"}]
[]
[null,null,null,null,"CHECK FOR CORRECT BILLING DETAILS BEFORE PROCEEDING FURTHER.  SELECT OPTION HERE."]
[]
[null,null,"Invoice Value:",null,null,null,{"$f":"IF(Application!Y29=\"yes\",\"\",'Billing Cycle 1 - Charges'!D10+'Billing Cycle 1 - Charges'!D18+'Billing Cycle 1 - Charges'!D27+'Billing Cycle 1 - Charges'!D35+'Billing Cycle 1 - Charges'!D39+'Billing Cycle 1 - Charges'!E18+'Billing Cycle 1 - Charges'!E39)","v":0},null,null,null,null,{"$f":"IF(Application!Y29=\"yes\",\"\",\"(This is inclusive of $\"&TEXT(ROUND(('Billing Cycle 1 - Charges'!E18+'Billing Cycle 1 - Charges'!E39),2),\"#,##0.00\")&+\" GST)\")","v":"(This is inclusive of $0.00 GST)"},null,null,null,null,null,null,null,null,null,null,null,null,null,null,null,null,null,"Profit Centre: 125"]
[]
[null,null,"(Please exclude GST component.  10% GST will be automatically calculated.)"]
[null,null,"Revenue Rating Schedules"]
[]
[null,null,"Description:",null,null,null,null,null,null,null,"One-Off-Discharge"]
[]
[null,null,null,null,null,null,null,null,null,"Charge Period From:","< enter start date >",null,null,null,null,null,"To:","< enter end date >"]
[]
[]
[]
[]
[null,null,null,null,"Quality:",null,null,{"$f":"IF(Application!Y29=\"yes\",\"N/A\",+\"$\"&ROUND(('Billing Cycle 6 - QQ #1'!B31),4)&+\"/kL\")","v":{"$error":"#VALUE!"}},null,null,null,null,"Quantity:",{"$f":"IF(Application!Y29=\"yes\",\"N/A\",TEXT(ROUND(('Billing Cycle 6 - Charges'!C31),0),\"#,###\")&+\" kL\")","v":" kL"},null,null,null,{"$f":"IF(Application!Y29=\"yes\",\"C&IS not to recover Q/Q component\",'Billing Cycle 6 - Charges'!D31)","v":""}]
[null,null,null,null,"Laboratory Analysis Costs:",null,null,null,null,null,null,null,null,null,null,null,null,{"$f":"ROUND('Billing Cycle 6 - Charges'!D27,2)","v":0}]
[null,null,null,null,"Labour Costs",null,null,null,null,"- Administrative:",null,null,null,null,null,null,null,{"$f":"ROUND('Billing Cycle 6 - Charges'!D10,2)","v":0}]
[null,null,null,null,null,null,null,null,null,"- Monitoring (GST):",null,null,null,null,null,null,null,{"$f":"\"$\"&TEXT(ROUND('Billing Cycle 6 - Charges'!D18,2),\"0#,###.00\"&\"     ($\"&TEXT(ROUND('Billing Cycle 6 - Charges'!E18,2),\"0#,###.00\"&\")\"))","v":"$0.00     ($0.00)"},null,null,null,null,null,null,null,null,null,null,null,null,null,null,null,{"$f":"IF(COUNTIF('Billing Cycle 6 - Charges'!A31:A34,\"Quality/Quantity Charges\")>1,\"It appears that more than one Q/Q value has been used for this RRR activity.\",\"\")","v":""}]
[null,null,null,null,null,null,null,null,null,"- Regional Charges (GST):",null,null,null,null,null,null,null,{"$f":"IF(Application!P29=\"yes\",\"The PRA must recover their own regional charges directly from the Water Corp Project Manager using their own uniquely issued NWA.\",\"$\"&TEXT(ROUND('Billing Cycle 6 - Charges'!D39,2),\"0#,###.00\"&\"     ($\"&TEXT(ROUND('Billing Cycle 6 - Charges'!E39,2),\"0#,###.00\"&\")\")))","v":"$0.00     ($0.00)"},null,null,null,null,null,null,null,null,null,null,null,null,null,null,null,{"$f":"IF(COUNTIF('Billing Cycle 6 - Charges'!A31:A34,\"Quality/Quantity Charges\")>1,\"If not done so already make sure these additional Q/Q values have been inserted here.\",\"\")","v":""}]
[null,null,null,null,null,null,null,null,null,null,null,null,null,null,null,null,null,null,null,null,null,null,null,null,null,null,null,null,null,null,null,null,null,{"$f":"IF(COUNTIF('Billing Cycle 6 - Charges'!A31:A34,\"Quality/Quantity Charges\")>1,\"Finally, make sure the individual line entries equal the total Invoice Value at the top left.\",\"\")","v":""}]
[]
[]
[null,null,"Requested By:"]
[null,null,null,null,null,null,null,"enter here",null,null,null,null,null,null,null,null,null,null,"Date:","enter here",null,null,null,null,null,null,null,null,null,null,null,{"$f":"IF(T36<>\"enter here\",\"You must now use the link below to send an e-mail for this RRR to be checked before a Grange sundry account can be raised.\",\"\")","v":""}]
[null,null,null,null,null,null,null,"enter position title here",null,null,null,null,null,null,null,null,null,null,null,null,null,null,null,null,null,null,null,null,null,null,null,{"$f":"IF(T36<>\"enter here\",\"https://nexus.watercorporation.com.au/otcs/cs.exe/link/109973713\",\"\")","v":""}]
[]
[null,null,"Authorised By:"]
[null,null,null,null,null,null,null,"enter here",null,null,null,null,null,null,null,null,null,null,"Date:","enter here",null,null,null,null,null,null,null,null,null,null,null,{"$f":"IF(T40<>\"enter here\",\"Please forward this E-Form document to Officer - C&IS (May Ubalde) for Grange sundry account creation.\",\"\")","v":""}]
[null,null,null,null,null,null,null,"enter position title here",null,null,null,null,null,null,null,null,null,null,null,null,null,null,null,null,null,null,null,null,null,null,null,{"$f":"IF(T40<>\"enter here\",\"May.Ubalde@watercorporation.com.au\",\"\")","v":""}]
[null,null,"(Branch / Section Manager)"]
[]
[null,null,"Finance Use Only:"]
[]
[null,null,"Processed By:",null,null,null,null,"enter here",null,null,null,null,null,null,null,null,null,null,"Date:","enter here",null,null,null,null,null,null,null,null,null,null,null,{"$f":"IF(T46<>\"enter here\",\"Please advise TL - Investigations (Steve Jerkovic) that the Grange sundry account has now been created.\",\"\")","v":""}]
[null,null,null,null,null,null,null,"enter position title here",null,null,null,null,null,null,null,null,null,null,null,null,null,null,null,null,null,null,null,null,null,null,null,{"$f":"IF(T46<>\"enter here\",\"stephen.jerkovic@watercorporation.com.au\",\"\")","v":""}]
[]
[null,null,"Authorised By:",null,null,null,null,"enter here",null,null,null,null,null,null,null,null,null,null,"Date:","enter here"]
[null,null,null,null,null,null,null,"enter position title here"]
[]
[null,null,"Grange Account Number:",null,null,null,null,null,null,{"$f":"'RRR - 1'!J52","v":"enter here"}]
[]
[]
[]
[null,null,"QC / KPI Use Only:"]
[null,null,"Entered By:",null,null,null,null,"enter here",null,null,null,null,null,null,null,null,null,null,"Date:","enter here"]
[null,null,null,null,null,null,null,"enter position title here"]
[]
[]
[null,null,null,null,null,null,null,null,null,null,null,null,null,null,null,null,null,null,null,null,null,null,null,null,null,null,"CHECK FOR CORRECT BILLING DETAILS BEFORE PROCEEDING FURTHER.  SELECT OPTION HERE."]
[null,null,null,null,null,null,null,null,null,null,null,null,null,null,null,null,null,null,null,null,null,null,null,null,null,null,"Billing contact details on the last signed CofA is different to the last received Application."]
[null,null,null,null,null,null,null,null,null,null,null,null,null,null,null,null,null,null,null,null,null,null,null,null,null,null,"Billing contact details on the last signed CofA is the same as the last received Application."]

{"sheet":"Close Out","index":41,"n_rows":15,"n_cols":6,"rows_kept":15,"cut":false,"hidden":true,"merged":[[1,1,1,5]]}
[]
[null,"Close Out"]
[]
[]
[null,"#","Item","Who","When","Closed"]
[null,1,"Region have been notified to remove any discharge boards installed and return AC lids onto chamber."]
[null,2,"Final billing has been completed."]
[null,3,"Index and Activity Status Sheet updated to indicate discharge has been finished. (58953309)"]
[null,4,"Sewer Flow Tracking Sheet to be updated. (109586477)"]
[null,5,"Perth Region Status Updates of One Off Discharges to be updated. (58833365)"]
[null,6]
[null,7]
[null,8]
[null,9]
[null,10]